Workbook

Sheet PainelArbovirose
A4: Localidade | B4: Sergipe | J4: Ano | K4: 2019
A5: Ano | B5: 2019 | J5: Mês | K5: Setembro
B35: VISITAS DOMICILIARES
B36: =B4 -> Sergipe | C36: 1º C I C L O | D36: 2 º C I C L O | E36: 3º C I C L O | F36: 4º C I C L O | G36: 5º C I C L O | H36: 6º C I C L O
B37: PRODUÇÃO | C37: =INDEX(Analise!$B$55:$G$57,MATCH(PainelArbovirose!$B$36,Analise!$A$55:$A$57,0),MATCH(PainelArbovirose!C36,Analise!$B$54:$G$54,0)) -> 859747 | D37: =INDEX(Analise!$B$55:$G$57,MATCH(PainelArbovirose!$B$36,Analise!$A$55:$A$57,0),MATCH(PainelArbovirose!D36,Analise!$B$54:$G$54,0)) -> 875607 | E37: =INDEX(Analise!$B$55:$G$57,MATCH(PainelArbovirose!$B$36,Analise!$A$55:$A$57,0),MATCH(PainelArbovirose!E36,Analise!$B$54:$G$54,0)) -> 798277 | F37: =INDEX(Analise!$B$55:$G$57,MATCH(PainelArbovirose!$B$36,Analise!$A$55:$A$57,0),MATCH(PainelArbovirose!F36,Analise!$B$54:$G$54,0)) -> 395124 | G37: =INDEX(Analise!$B$55:$G$57,MATCH(PainelArbovirose!$B$36,Analise!$A$55:$A$57,0),MATCH(PainelArbovirose!G36,Analise!$B$54:$G$54,0)) -> 0 | H37: =INDEX(Analise!$B$55:$G$57,MATCH(PainelArbovirose!$B$36,Analise!$A$55:$A$57,0),MATCH(PainelArbovirose!H36,Analise!$B$54:$G$54,0)) -> 0
B39: META POR CICLO | D39: INFORMAÇÕES DO CICLO
B40: Nº ABSOLUTO DE IMÓVEIS | C40: % VISITA | D40: CICLO TRABALHADO | E40: CICLO ATUAL
B41: =Analise!$B$50 -> 953570 | C41: =Analise!B57 -> 80 | D41: =INDEX(Analise!$B55:$I$57,MATCH(PainelArbovirose!$B$36,Analise!$A$55:$A$57,0),MATCH(PainelArbovirose!D40,Analise!$B$54:$I$54,0)) -> 4º C I C L O | E41: =INDEX(Analise!$B$55:$I$57,MATCH(PainelArbovirose!$B$36,Analise!$A$55:$A$57,0),MATCH(PainelArbovirose!E40,Analise!$B$54:$I$54,0)) -> 4º C I C L O
B43: =B4 -> Sergipe | C43: Total
B44: AGRAVO | C44: Nº Absoluto | D44: Taxa de Incidência | E44: População 2018
B45: Zika | C45: =IF(B5=2017,INDEX(ZikaPro!$D$4:$BE$80,MATCH(B4,ZikaPro!$B$4:$B$80,0),MATCH(C43,ZikaPro!$D$3:$BE$3,0)),IF(B5=2018,INDEX(ZikaPro2018!$D$4:$BE$80,MATCH(B4,ZikaPro2018!$B$4:$B$80,0),MATCH(C43,ZikaPro2018!$D$3:$BE$3,0)),INDEX(ZikaPro2019!$D$4:$BE$80,MATCH(B4,ZikaPro2019!$B$4:$B$80,0),MATCH(C43,ZikaPro2019!$D$3:$BE$3,0)))) -> 44 | D45: =INDEX(Analise!$C$22:$BD$24,MATCH(PainelArbovirose!$B$45,Arbovirose,0),MATCH(PainelArbovirose!$C$43,Analise!$C$21:$BD$21,0)) -> 1.931257758 | E45: =SUMIF(População!$B$4:$B$79,B4,População!$F$4:$F$79) -> 2278308
B46: Dengue | C46: =IF(B5=2017,INDEX(DenPro!$C$4:$BD$80,MATCH(B4,DenPro!$B$4:$B$80,0),MATCH(C43,DenPro!$C$3:$BD$3,0)),IF(B5=2018,INDEX(DenPro2018!$C$4:$BD$80,MATCH(B4,DenPro2018!$B$4:$B$80,0),MATCH(C43,DenPro2018!$C$3:$BD$3,0)),INDEX(DenPro2019!$C$4:$BD$80,MATCH(B4,DenPro2019!$B$4:$B$80,0),MATCH(C43,DenPro2019!$C$3:$BD$3,0)))) -> 5231 | D46: =INDEX(Analise!$C$22:$BD$24,MATCH(PainelArbovirose!$B$46,Arbovirose,0),MATCH(PainelArbovirose!$C$43,Analise!$C$21:$BD$21,0)) -> 229.6002121
B47: Chikungunya | C47: =IF(B5=2017,INDEX(ChiPro!$C$4:$BC$80,MATCH(B4,ChiPro!$B$4:$B$80,0),MATCH(C43,ChiPro!$C$3:$BC$3,0)),IF(B5=2018,INDEX(ChiPro2018!$C$4:$BD$80,MATCH(B4,ChiPro2018!$B$4:$B$80,0),MATCH(C43,ChiPro2018!$C$3:$BD$3,0)),INDEX(ChiPro2019!$C$4:$BD$80,MATCH(B4,ChiPro2019!$B$4:$B$80,0),MATCH(C43,ChiPro2019!$C$3:$BD$3,0)))) -> 225 | D47: =INDEX(Analise!$C$22:$BD$24,MATCH(PainelArbovirose!$B$45,Arbovirose,0),MATCH(PainelArbovirose!$C$43,Analise!$C$21:$BD$21,0)) -> 1.931257758
B49: LOCALIDADE | C49: LIRAa
B50: =B4 -> Sergipe | C50: =IF(INDEX(Analise!E91:E166,MATCH(PainelArbovirose!B50,Analise!B91:B166,0),MATCH(PainelArbovirose!C49,Analise!E90,0))<0,"Sem Informação",INDEX(Analise!E91:E166,MATCH(PainelArbovirose!B50,Analise!B91:B166,0),MATCH(PainelArbovirose!C49,Analise!E90,0))) -> Não se aplica
L51: ©Adalberto Canuto Junior 2017
A70: MUNICÍPIO | B70: lira | C70: ClorirMapa | K70: Escala | L70: LIRAa | M70: Cor
A71: AMPARO De SÃO FRANCISCO | B71: =IF(PainelArbovirose!$B$4="sergipe",SUMIF(Analise!$B$170:$B$244,A71,Analise!$C$170:$C$244),IF(A71=PainelArbovirose!$B$4,SUMIF(Analise!$B$170:$B$244,A71,Analise!$C$170:$C$244),-3)) -> 0 | C71: =VLOOKUP(B71,$K$71:$M$75,3,TRUE) -> $M$73 | D71: =B71 -> 0 | E71: 1 - AMPARO De SÃO FRANCISCO | K71: -3 | L71: -3 | M71: =ADDRESS(ROW(M71),COLUMN(M71)) -> $M$71
A72: AQUIDABÃ | B72: =IF(PainelArbovirose!$B$4="sergipe",SUMIF(Analise!$B$170:$B$244,A72,Analise!$C$170:$C$244),IF(A72=PainelArbovirose!$B$4,SUMIF(Analise!$B$170:$B$244,A72,Analise!$C$170:$C$244),-3)) -> 2.3 | C72: $M$74 | D72: =B72 -> 2.3 | E72: 2 - AQUIDABÃ | K72: -2 | L72: -1 | M72: =ADDRESS(ROW(M72),COLUMN(M72)) -> $M$72
A73: ARACAJU | B73: =IF(PainelArbovirose!$B$4="sergipe",SUMIF(Analise!$B$170:$B$244,A73,Analise!$C$170:$C$244),IF(A73=PainelArbovirose!$B$4,SUMIF(Analise!$B$170:$B$244,A73,Analise!$C$170:$C$244),-3)) -> 1.4 | C73: $M$74 | D73: 1.4 | E73: 3 - ARACAJU | K73: 0 | L73: 0.9 | M73: =ADDRESS(ROW(M73),COLUMN(M73)) -> $M$73
A74: ARAUÁ | B74: =IF(PainelArbovirose!$B$4="sergipe",SUMIF(Analise!$B$170:$B$244,A74,Analise!$C$170:$C$244),IF(A74=PainelArbovirose!$B$4,SUMIF(Analise!$B$170:$B$244,A74,Analise!$C$170:$C$244),-3)) -> 0.8 | C74: $M$73 | D74: 0.8 | E74: 4 - ARAUÁ | K74: 1 | L74: 3.9 | M74: =ADDRESS(ROW(M74),COLUMN(M74)) -> $M$74
A75: AREIA BRANCA | B75: =IF(PainelArbovirose!$B$4="sergipe",SUMIF(Analise!$B$170:$B$244,A75,Analise!$C$170:$C$244),IF(A75=PainelArbovirose!$B$4,SUMIF(Analise!$B$170:$B$244,A75,Analise!$C$170:$C$244),-3)) -> 2.3 | C75: $M$74 | D75: 2.3 | E75: 5 - AREIA BRANCA | K75: 3.9 | L75: + | M75: =ADDRESS(ROW(M75),COLUMN(M75)) -> $M$75
A76: BARRA DOS COQUEIROS | B76: =IF(PainelArbovirose!$B$4="sergipe",SUMIF(Analise!$B$170:$B$244,A76,Analise!$C$170:$C$244),IF(A76=PainelArbovirose!$B$4,SUMIF(Analise!$B$170:$B$244,A76,Analise!$C$170:$C$244),-3)) -> 2.1 | C76: $M$74 | D76: 2.1 | E76: 6 - BARRA DOS COQUEIROS
A77: BOQUIM | B77: =IF(PainelArbovirose!$B$4="sergipe",SUMIF(Analise!$B$170:$B$244,A77,Analise!$C$170:$C$244),IF(A77=PainelArbovirose!$B$4,SUMIF(Analise!$B$170:$B$244,A77,Analise!$C$170:$C$244),-3)) -> 2.3 | C77: $M$74 | D77: 2.3 | E77: 7 - BOQUIM
A78: BREJO GRANDE | B78: =IF(PainelArbovirose!$B$4="sergipe",SUMIF(Analise!$B$170:$B$244,A78,Analise!$C$170:$C$244),IF(A78=PainelArbovirose!$B$4,SUMIF(Analise!$B$170:$B$244,A78,Analise!$C$170:$C$244),-3)) -> 0.8 | C78: $M$73 | D78: 0.8 | E78: 8 - BREJO GRANDE
A79: CAMPO DO BRITO | B79: =IF(PainelArbovirose!$B$4="sergipe",SUMIF(Analise!$B$170:$B$244,A79,Analise!$C$170:$C$244),IF(A79=PainelArbovirose!$B$4,SUMIF(Analise!$B$170:$B$244,A79,Analise!$C$170:$C$244),-3)) -> 1.2 | C79: $M$74 | D79: 1.2 | E79: 9 - CAMPO DO BRITO
A80: CANHOBA | B80: =IF(PainelArbovirose!$B$4="sergipe",SUMIF(Analise!$B$170:$B$244,A80,Analise!$C$170:$C$244),IF(A80=PainelArbovirose!$B$4,SUMIF(Analise!$B$170:$B$244,A80,Analise!$C$170:$C$244),-3)) -> 0.3 | C80: $M$73 | D80: 0.3 | E80: 10 - CANHOBA
A81: CANINDÉ DE SÃO FRANCISCO | B81: =IF(PainelArbovirose!$B$4="sergipe",SUMIF(Analise!$B$170:$B$244,A81,Analise!$C$170:$C$244),IF(A81=PainelArbovirose!$B$4,SUMIF(Analise!$B$170:$B$244,A81,Analise!$C$170:$C$244),-3)) -> 2.1 | C81: $M$74 | D81: 2.1 | E81: 11 - CANINDÉ DE SÃO FRANCISCO
A82: CAPELA | B82: =IF(PainelArbovirose!$B$4="sergipe",SUMIF(Analise!$B$170:$B$244,A82,Analise!$C$170:$C$244),IF(A82=PainelArbovirose!$B$4,SUMIF(Analise!$B$170:$B$244,A82,Analise!$C$170:$C$244),-3)) -> 4.4 | C82: $M$75 | D82: 4.4 | E82: 12 - CAPELA
A83: CARIRA | B83: =IF(PainelArbovirose!$B$4="sergipe",SUMIF(Analise!$B$170:$B$244,A83,Analise!$C$170:$C$244),IF(A83=PainelArbovirose!$B$4,SUMIF(Analise!$B$170:$B$244,A83,Analise!$C$170:$C$244),-3)) -> 2.6 | C83: $M$74 | D83: 2.6 | E83: 13 - CARIRA
A84: CARMÓPOLIS | B84: =IF(PainelArbovirose!$B$4="sergipe",SUMIF(Analise!$B$170:$B$244,A84,Analise!$C$170:$C$244),IF(A84=PainelArbovirose!$B$4,SUMIF(Analise!$B$170:$B$244,A84,Analise!$C$170:$C$244),-3)) -> 1.3 | C84: $M$74 | D84: 1.3 | E84: 14 - CARMÓPOLIS
A85: CEDRO DE SÃO JOÃO | B85: =IF(PainelArbovirose!$B$4="sergipe",SUMIF(Analise!$B$170:$B$244,A85,Analise!$C$170:$C$244),IF(A85=PainelArbovirose!$B$4,SUMIF(Analise!$B$170:$B$244,A85,Analise!$C$170:$C$244),-3)) -> 2.9 | C85: $M$74 | D85: 2.9 | E85: 15 - CEDRO DE SÃO JOÃO
A86: CRISTINÁPOLIS | B86: =IF(PainelArbovirose!$B$4="sergipe",SUMIF(Analise!$B$170:$B$244,A86,Analise!$C$170:$C$244),IF(A86=PainelArbovirose!$B$4,SUMIF(Analise!$B$170:$B$244,A86,Analise!$C$170:$C$244),-3)) -> 1.2 | C86: $M$74 | D86: 1.2 | E86: 16 - CRISTINÁPOLIS
A87: CUMBE | B87: =IF(PainelArbovirose!$B$4="sergipe",SUMIF(Analise!$B$170:$B$244,A87,Analise!$C$170:$C$244),IF(A87=PainelArbovirose!$B$4,SUMIF(Analise!$B$170:$B$244,A87,Analise!$C$170:$C$244),-3)) -> 1.8 | C87: $M$74 | D87: 1.8 | E87: 17 - CUMBE
A88: DIVINA PASTORA | B88: =IF(PainelArbovirose!$B$4="sergipe",SUMIF(Analise!$B$170:$B$244,A88,Analise!$C$170:$C$244),IF(A88=PainelArbovirose!$B$4,SUMIF(Analise!$B$170:$B$244,A88,Analise!$C$170:$C$244),-3)) -> 0.5 | C88: $M$73 | D88: 0.5 | E88: 18 - DIVINA PASTORA
A89: ESTÂNCIA | B89: =IF(PainelArbovirose!$B$4="sergipe",SUMIF(Analise!$B$170:$B$244,A89,Analise!$C$170:$C$244),IF(A89=PainelArbovirose!$B$4,SUMIF(Analise!$B$170:$B$244,A89,Analise!$C$170:$C$244),-3)) -> 0.9 | C89: $M$73 | D89: 0.9 | E89: 19 - ESTÂNCIA
A90: FEIRA NOVA | B90: =IF(PainelArbovirose!$B$4="sergipe",SUMIF(Analise!$B$170:$B$244,A90,Analise!$C$170:$C$244),IF(A90=PainelArbovirose!$B$4,SUMIF(Analise!$B$170:$B$244,A90,Analise!$C$170:$C$244),-3)) -> 1.6 | C90: $M$74 | D90: 1.6 | E90: 20 - FEIRA NOVA
A91: FREI PAULO | B91: =IF(PainelArbovirose!$B$4="sergipe",SUMIF(Analise!$B$170:$B$244,A91,Analise!$C$170:$C$244),IF(A91=PainelArbovirose!$B$4,SUMIF(Analise!$B$170:$B$244,A91,Analise!$C$170:$C$244),-3)) -> 1.1 | C91: $M$74 | D91: 1.1 | E91: 21 - FREI PAULO
A92: GARARU | B92: =IF(PainelArbovirose!$B$4="sergipe",SUMIF(Analise!$B$170:$B$244,A92,Analise!$C$170:$C$244),IF(A92=PainelArbovirose!$B$4,SUMIF(Analise!$B$170:$B$244,A92,Analise!$C$170:$C$244),-3)) -> 2.6 | C92: $M$74 | D92: 2.6 | E92: 22 - GARARU
A93: GENERAL MAYNARD | B93: =IF(PainelArbovirose!$B$4="sergipe",SUMIF(Analise!$B$170:$B$244,A93,Analise!$C$170:$C$244),IF(A93=PainelArbovirose!$B$4,SUMIF(Analise!$B$170:$B$244,A93,Analise!$C$170:$C$244),-3)) -> 0.6 | C93: $M$73 | D93: 0.6 | E93: 23 - GENERAL MAYNARD
A94: GRACHO CARDOSO | B94: =IF(PainelArbovirose!$B$4="sergipe",SUMIF(Analise!$B$170:$B$244,A94,Analise!$C$170:$C$244),IF(A94=PainelArbovirose!$B$4,SUMIF(Analise!$B$170:$B$244,A94,Analise!$C$170:$C$244),-3)) -> 0.5 | C94: $M$73 | D94: 0.5 | E94: 24 - GRACHO CARDOSO
A95: ILHA DAS FLORES | B95: =IF(PainelArbovirose!$B$4="sergipe",SUMIF(Analise!$B$170:$B$244,A95,Analise!$C$170:$C$244),IF(A95=PainelArbovirose!$B$4,SUMIF(Analise!$B$170:$B$244,A95,Analise!$C$170:$C$244),-3)) -> 3.5 | C95: $M$74 | D95: 3.5 | E95: 25 - ILHA DAS FLORES
A96: INDIAROBA | B96: =IF(PainelArbovirose!$B$4="sergipe",SUMIF(Analise!$B$170:$B$244,A96,Analise!$C$170:$C$244),IF(A96=PainelArbovirose!$B$4,SUMIF(Analise!$B$170:$B$244,A96,Analise!$C$170:$C$244),-3)) -> 2.2 | C96: $M$74 | D96: 2.2 | E96: 26 - INDIAROBA
A97: ITABAIANA | B97: =IF(PainelArbovirose!$B$4="sergipe",SUMIF(Analise!$B$170:$B$244,A97,Analise!$C$170:$C$244),IF(A97=PainelArbovirose!$B$4,SUMIF(Analise!$B$170:$B$244,A97,Analise!$C$170:$C$244),-3)) -> 5.1 | C97: $M$75 | D97: 5.1 | E97: 27 - ITABAIANA
A98: ITABAIANINHA | B98: =IF(PainelArbovirose!$B$4="sergipe",SUMIF(Analise!$B$170:$B$244,A98,Analise!$C$170:$C$244),IF(A98=PainelArbovirose!$B$4,SUMIF(Analise!$B$170:$B$244,A98,Analise!$C$170:$C$244),-3)) -> 1.7 | C98: $M$74 | D98: 1.7 | E98: 28 - ITABAIANINHA
A99: ITABI | B99: =IF(PainelArbovirose!$B$4="sergipe",SUMIF(Analise!$B$170:$B$244,A99,Analise!$C$170:$C$244),IF(A99=PainelArbovirose!$B$4,SUMIF(Analise!$B$170:$B$244,A99,Analise!$C$170:$C$244),-3)) -> 1.6 | C99: $M$74 | D99: 1.6 | E99: 29 - ITABI
A100: ITAPORANGA D'AJUDA | B100: =IF(PainelArbovirose!$B$4="sergipe",SUMIF(Analise!$B$170:$B$244,A100,Analise!$C$170:$C$244),IF(A100=PainelArbovirose!$B$4,SUMIF(Analise!$B$170:$B$244,A100,Analise!$C$170:$C$244),-3)) -> 0.5 | C100: $M$73 | D100: 0.5 | E100: 30 - ITAPORANGA D'AJUDA
A101: JAPARATUBA | B101: =IF(PainelArbovirose!$B$4="sergipe",SUMIF(Analise!$B$170:$B$244,A101,Analise!$C$170:$C$244),IF(A101=PainelArbovirose!$B$4,SUMIF(Analise!$B$170:$B$244,A101,Analise!$C$170:$C$244),-3)) -> 0.7 | C101: $M$73 | D101: 0.7 | E101: 31 - JAPARATUBA
A102: JAPOATÃ | B102: =IF(PainelArbovirose!$B$4="sergipe",SUMIF(Analise!$B$170:$B$244,A102,Analise!$C$170:$C$244),IF(A102=PainelArbovirose!$B$4,SUMIF(Analise!$B$170:$B$244,A102,Analise!$C$170:$C$244),-3)) -> 5.1 | C102: $M$75 | D102: 5.1 | E102: 32 - JAPOATÃ
A103: LAGARTO | B103: =IF(PainelArbovirose!$B$4="sergipe",SUMIF(Analise!$B$170:$B$244,A103,Analise!$C$170:$C$244),IF(A103=PainelArbovirose!$B$4,SUMIF(Analise!$B$170:$B$244,A103,Analise!$C$170:$C$244),-3)) -> 1.7 | C103: =VLOOKUP(B103,$K$71:$M$75,3,TRUE) -> $M$74 | D103: 1.7 | E103: 33 - LAGARTO
A104: LARANJEIRAS | B104: =IF(PainelArbovirose!$B$4="sergipe",SUMIF(Analise!$B$170:$B$244,A104,Analise!$C$170:$C$244),IF(A104=PainelArbovirose!$B$4,SUMIF(Analise!$B$170:$B$244,A104,Analise!$C$170:$C$244),-3)) -> 1.1 | C104: $M$74 | D104: 1.1 | E104: 34 - LARANJEIRAS
A105: MACAMBIRA | B105: =IF(PainelArbovirose!$B$4="sergipe",SUMIF(Analise!$B$170:$B$244,A105,Analise!$C$170:$C$244),IF(A105=PainelArbovirose!$B$4,SUMIF(Analise!$B$170:$B$244,A105,Analise!$C$170:$C$244),-3)) -> 0.8 | C105: $M$73 | D105: 0.8 | E105: 35 - MACAMBIRA
A106: MALHADA DOS BOIS | B106: =IF(PainelArbovirose!$B$4="sergipe",SUMIF(Analise!$B$170:$B$244,A106,Analise!$C$170:$C$244),IF(A106=PainelArbovirose!$B$4,SUMIF(Analise!$B$170:$B$244,A106,Analise!$C$170:$C$244),-3)) -> 3.9 | C106: $M$75 | D106: 3.9 | E106: 36 - MALHADA DOS BOIS
A107: MALHADOR | B107: =IF(PainelArbovirose!$B$4="sergipe",SUMIF(Analise!$B$170:$B$244,A107,Analise!$C$170:$C$244),IF(A107=PainelArbovirose!$B$4,SUMIF(Analise!$B$170:$B$244,A107,Analise!$C$170:$C$244),-3)) -> 3.2 | C107: $M$74 | D107: 3.2 | E107: 37 - MALHADOR
A108: MARUIM | B108: =IF(PainelArbovirose!$B$4="sergipe",SUMIF(Analise!$B$170:$B$244,A108,Analise!$C$170:$C$244),IF(A108=PainelArbovirose!$B$4,SUMIF(Analise!$B$170:$B$244,A108,Analise!$C$170:$C$244),-3)) -> 2.9 | C108: $M$74 | D108: 2.9 | E108: 38 - MARUIM
A109: MOITA BONITA | B109: =IF(PainelArbovirose!$B$4="sergipe",SUMIF(Analise!$B$170:$B$244,A109,Analise!$C$170:$C$244),IF(A109=PainelArbovirose!$B$4,SUMIF(Analise!$B$170:$B$244,A109,Analise!$C$170:$C$244),-3)) -> 2.4 | C109: $M$74 | D109: 2.4 | E109: 39 - MOITA BONITA
A110: MONTE ALEGRE DE SERGIPE | B110: =IF(PainelArbovirose!$B$4="sergipe",SUMIF(Analise!$B$170:$B$244,A110,Analise!$C$170:$C$244),IF(A110=PainelArbovirose!$B$4,SUMIF(Analise!$B$170:$B$244,A110,Analise!$C$170:$C$244),-3)) -> 2.7 | C110: $M$74 | D110: 2.7 | E110: 40 - MONTE ALEGRE DE SERGIPE
A111: MURIBECA | B111: =IF(PainelArbovirose!$B$4="sergipe",SUMIF(Analise!$B$170:$B$244,A111,Analise!$C$170:$C$244),IF(A111=PainelArbovirose!$B$4,SUMIF(Analise!$B$170:$B$244,A111,Analise!$C$170:$C$244),-3)) -> 0.6 | C111: $M$73 | D111: 0.6 | E111: 41 - MURIBECA
A112: NEÓPOLIS | B112: =IF(PainelArbovirose!$B$4="sergipe",SUMIF(Analise!$B$170:$B$244,A112,Analise!$C$170:$C$244),IF(A112=PainelArbovirose!$B$4,SUMIF(Analise!$B$170:$B$244,A112,Analise!$C$170:$C$244),-3)) -> 1.4 | C112: $M$74 | D112: 1.4 | E112: 42 - NEÓPOLIS
A113: NOSSA SENHORA APARECIDA | B113: =IF(PainelArbovirose!$B$4="sergipe",SUMIF(Analise!$B$170:$B$244,A113,Analise!$C$170:$C$244),IF(A113=PainelArbovirose!$B$4,SUMIF(Analise!$B$170:$B$244,A113,Analise!$C$170:$C$244),-3)) -> 1.4 | C113: $M$74 | D113: 1.4 | E113: 43 - NOSSA SENHORA APARECIDA
A114: NOSSA SENHORA DA GLÓRIA | B114: =IF(PainelArbovirose!$B$4="sergipe",SUMIF(Analise!$B$170:$B$244,A114,Analise!$C$170:$C$244),IF(A114=PainelArbovirose!$B$4,SUMIF(Analise!$B$170:$B$244,A114,Analise!$C$170:$C$244),-3)) -> 6.2 | C114: $M$75 | D114: 6.2 | E114: 44 - NOSSA SENHORA DA GLÓRIA
A115: NOSSA SENHORA DAS DORES | B115: =IF(PainelArbovirose!$B$4="sergipe",SUMIF(Analise!$B$170:$B$244,A115,Analise!$C$170:$C$244),IF(A115=PainelArbovirose!$B$4,SUMIF(Analise!$B$170:$B$244,A115,Analise!$C$170:$C$244),-3)) -> 2 | C115: $M$74 | D115: 2 | E115: 45 - NOSSA SENHORA DAS DORES
A116: NOSSA SENHORA DE LOURDES | B116: =IF(PainelArbovirose!$B$4="sergipe",SUMIF(Analise!$B$170:$B$244,A116,Analise!$C$170:$C$244),IF(A116=PainelArbovirose!$B$4,SUMIF(Analise!$B$170:$B$244,A116,Analise!$C$170:$C$244),-3)) -> 2.3 | C116: $M$74 | D116: 2.3 | E116: 46 - NOSSA SENHORA DE LOURDES
A117: NOSSA SENHORA DO SOCORRO | B117: =IF(PainelArbovirose!$B$4="sergipe",SUMIF(Analise!$B$170:$B$244,A117,Analise!$C$170:$C$244),IF(A117=PainelArbovirose!$B$4,SUMIF(Analise!$B$170:$B$244,A117,Analise!$C$170:$C$244),-3)) -> 0.6 | C117: $M$73 | D117: 0.6 | E117: 47 - NOSSA SENHORA DO SOCORRO
A118: PACATUBA | B118: =IF(PainelArbovirose!$B$4="sergipe",SUMIF(Analise!$B$170:$B$244,A118,Analise!$C$170:$C$244),IF(A118=PainelArbovirose!$B$4,SUMIF(Analise!$B$170:$B$244,A118,Analise!$C$170:$C$244),-3)) -> 0.6 | C118: $M$73 | D118: 0.6 | E118: 48 - PACATUBA
A119: PEDRA MOLE | B119: =IF(PainelArbovirose!$B$4="sergipe",SUMIF(Analise!$B$170:$B$244,A119,Analise!$C$170:$C$244),IF(A119=PainelArbovirose!$B$4,SUMIF(Analise!$B$170:$B$244,A119,Analise!$C$170:$C$244),-3)) -> 1 | C119: $M$74 | D119: 1 | E119: 49 - PEDRA MOLE
A120: PEDRINHAS | B120: =IF(PainelArbovirose!$B$4="sergipe",SUMIF(Analise!$B$170:$B$244,A120,Analise!$C$170:$C$244),IF(A120=PainelArbovirose!$B$4,SUMIF(Analise!$B$170:$B$244,A120,Analise!$C$170:$C$244),-3)) -> 3.1 | C120: $M$74 | D120: 3.1 | E120: 50 - PEDRINHAS
A121: PINHÃO | B121: =IF(PainelArbovirose!$B$4="sergipe",SUMIF(Analise!$B$170:$B$244,A121,Analise!$C$170:$C$244),IF(A121=PainelArbovirose!$B$4,SUMIF(Analise!$B$170:$B$244,A121,Analise!$C$170:$C$244),-3)) -> 1.6 | C121: $M$74 | D121: 1.6 | E121: 51 - PINHÃO
A122: PIRAMBU | B122: =IF(PainelArbovirose!$B$4="sergipe",SUMIF(Analise!$B$170:$B$244,A122,Analise!$C$170:$C$244),IF(A122=PainelArbovirose!$B$4,SUMIF(Analise!$B$170:$B$244,A122,Analise!$C$170:$C$244),-3)) -> 0.7 | C122: $M$73 | D122: 0.7 | E122: 52 - PIRAMBU
A123: POÇO REDONDO | B123: =IF(PainelArbovirose!$B$4="sergipe",SUMIF(Analise!$B$170:$B$244,A123,Analise!$C$170:$C$244),IF(A123=PainelArbovirose!$B$4,SUMIF(Analise!$B$170:$B$244,A123,Analise!$C$170:$C$244),-3)) -> 1.4 | C123: $M$74 | D123: 1.4 | E123: 53 - POÇO REDONDO
A124: POÇO VERDE | B124: =IF(PainelArbovirose!$B$4="sergipe",SUMIF(Analise!$B$170:$B$244,A124,Analise!$C$170:$C$244),IF(A124=PainelArbovirose!$B$4,SUMIF(Analise!$B$170:$B$244,A124,Analise!$C$170:$C$244),-3)) -> 2 | C124: $M$74 | D124: 2 | E124: 54 - POÇO VERDE
A125: PORTO DA FOLHA | B125: =IF(PainelArbovirose!$B$4="sergipe",SUMIF(Analise!$B$170:$B$244,A125,Analise!$C$170:$C$244),IF(A125=PainelArbovirose!$B$4,SUMIF(Analise!$B$170:$B$244,A125,Analise!$C$170:$C$244),-3)) -> 5.1 | C125: $M$75 | D125: 5.1 | E125: 55 - PORTO DA FOLHA
A126: PROPRIÁ | B126: =IF(PainelArbovirose!$B$4="sergipe",SUMIF(Analise!$B$170:$B$244,A126,Analise!$C$170:$C$244),IF(A126=PainelArbovirose!$B$4,SUMIF(Analise!$B$170:$B$244,A126,Analise!$C$170:$C$244),-3)) -> 1.2 | C126: $M$74 | D126: 1.2 | E126: 56 - PROPRIÁ
A127: RIACHÃO DO DANTAS | B127: =IF(PainelArbovirose!$B$4="sergipe",SUMIF(Analise!$B$170:$B$244,A127,Analise!$C$170:$C$244),IF(A127=PainelArbovirose!$B$4,SUMIF(Analise!$B$170:$B$244,A127,Analise!$C$170:$C$244),-3)) -> 9.1 | C127: $M$75 | D127: 9.1 | E127: 57 - RIACHÃO DO DANTAS
A128: RIACHUELO | B128: =IF(PainelArbovirose!$B$4="sergipe",SUMIF(Analise!$B$170:$B$244,A128,Analise!$C$170:$C$244),IF(A128=PainelArbovirose!$B$4,SUMIF(Analise!$B$170:$B$244,A128,Analise!$C$170:$C$244),-3)) -> 1.4 | C128: $M$74 | D128: 1.4 | E128: 58 - RIACHUELO
A129: RIBEIRÓPOLIS | B129: =IF(PainelArbovirose!$B$4="sergipe",SUMIF(Analise!$B$170:$B$244,A129,Analise!$C$170:$C$244),IF(A129=PainelArbovirose!$B$4,SUMIF(Analise!$B$170:$B$244,A129,Analise!$C$170:$C$244),-3)) -> 4.7 | C129: $M$75 | D129: 4.7 | E129: 59 - RIBEIRÓPOLIS
A130: ROSÁRIO DO CATETE | B130: =IF(PainelArbovirose!$B$4="sergipe",SUMIF(Analise!$B$170:$B$244,A130,Analise!$C$170:$C$244),IF(A130=PainelArbovirose!$B$4,SUMIF(Analise!$B$170:$B$244,A130,Analise!$C$170:$C$244),-3)) -> 1.9 | C130: $M$74 | D130: 1.9 | E130: 60 - ROSÁRIO DO CATETE
A131: SALGADO | B131: =IF(PainelArbovirose!$B$4="sergipe",SUMIF(Analise!$B$170:$B$244,A131,Analise!$C$170:$C$244),IF(A131=PainelArbovirose!$B$4,SUMIF(Analise!$B$170:$B$244,A131,Analise!$C$170:$C$244),-3)) -> 4.9 | C131: $M$75 | D131: 4.9 | E131: 61 - SALGADO
A132: SANTA LUZIA DO ITANHY | B132: =IF(PainelArbovirose!$B$4="sergipe",SUMIF(Analise!$B$170:$B$244,A132,Analise!$C$170:$C$244),IF(A132=PainelArbovirose!$B$4,SUMIF(Analise!$B$170:$B$244,A132,Analise!$C$170:$C$244),-3)) -> 3.2 | C132: $M$74 | D132: 3.2 | E132: 62 - SANTA LUZIA DO ITANHY
A133: SANTA ROSA DE LIMA | B133: =IF(PainelArbovirose!$B$4="sergipe",SUMIF(Analise!$B$170:$B$244,A133,Analise!$C$170:$C$244),IF(A133=PainelArbovirose!$B$4,SUMIF(Analise!$B$170:$B$244,A133,Analise!$C$170:$C$244),-3)) -> 1.6 | C133: $M$74 | D133: 1.6 | E133: 63 - SANTA ROSA DE LIMA
A134: SANTANA DO SÃO FRANCISCO | B134: =IF(PainelArbovirose!$B$4="sergipe",SUMIF(Analise!$B$170:$B$244,A134,Analise!$C$170:$C$244),IF(A134=PainelArbovirose!$B$4,SUMIF(Analise!$B$170:$B$244,A134,Analise!$C$170:$C$244),-3)) -> 1.1 | C134: $M$74 | D134: 1.1 | E134: 64 - SANTANA DO SÃO FRANCISCO
A135: SANTO AMARO DAS BROTAS | B135: =IF(PainelArbovirose!$B$4="sergipe",SUMIF(Analise!$B$170:$B$244,A135,Analise!$C$170:$C$244),IF(A135=PainelArbovirose!$B$4,SUMIF(Analise!$B$170:$B$244,A135,Analise!$C$170:$C$244),-3)) -> 1.7 | C135: =VLOOKUP(B135,$K$71:$M$75,3,TRUE) -> $M$74 | D135: 1.7 | E135: 65 - SANTO AMARO DAS BROTAS
A136: SÃO CRISTÓVÃO | B136: =IF(PainelArbovirose!$B$4="sergipe",SUMIF(Analise!$B$170:$B$244,A136,Analise!$C$170:$C$244),IF(A136=PainelArbovirose!$B$4,SUMIF(Analise!$B$170:$B$244,A136,Analise!$C$170:$C$244),-3)) -> 1.4 | C136: $M$74 | D136: =B136 -> 1.4 | E136: 66 - SÃO CRISTÓVÃO
A137: SÃO DOMINGOS | B137: =IF(PainelArbovirose!$B$4="sergipe",SUMIF(Analise!$B$170:$B$244,A137,Analise!$C$170:$C$244),IF(A137=PainelArbovirose!$B$4,SUMIF(Analise!$B$170:$B$244,A137,Analise!$C$170:$C$244),-3)) -> 0.8 | C137: $M$73 | D137: 0.8 | E137: 67 - SÃO DOMINGOS
A138: SÃO FRANCISCO | B138: =IF(PainelArbovirose!$B$4="sergipe",SUMIF(Analise!$B$170:$B$244,A138,Analise!$C$170:$C$244),IF(A138=PainelArbovirose!$B$4,SUMIF(Analise!$B$170:$B$244,A138,Analise!$C$170:$C$244),-3)) -> 1.7 | C138: $M$74 | D138: 1.7 | E138: 68 - SÃO FRANCISCO
A139: SÃO MIGUEL DO ALEIXO | B139: =IF(PainelArbovirose!$B$4="sergipe",SUMIF(Analise!$B$170:$B$244,A139,Analise!$C$170:$C$244),IF(A139=PainelArbovirose!$B$4,SUMIF(Analise!$B$170:$B$244,A139,Analise!$C$170:$C$244),-3)) -> 1.7 | C139: $M$74 | D139: 1.7 | E139: 69 - SÃO MIGUEL DO ALEIXO
A140: SIMÃO DIAS | B140: =IF(PainelArbovirose!$B$4="sergipe",SUMIF(Analise!$B$170:$B$244,A140,Analise!$C$170:$C$244),IF(A140=PainelArbovirose!$B$4,SUMIF(Analise!$B$170:$B$244,A140,Analise!$C$170:$C$244),-3)) -> 7.4 | C140: $M$75 | D140: 7.4 | E140: 70 - SIMÃO DIAS
A141: SIRIRI | B141: =IF(PainelArbovirose!$B$4="sergipe",SUMIF(Analise!$B$170:$B$244,A141,Analise!$C$170:$C$244),IF(A141=PainelArbovirose!$B$4,SUMIF(Analise!$B$170:$B$244,A141,Analise!$C$170:$C$244),-3)) -> 3.6 | C141: $M$74 | D141: 3.6 | E141: 71 - SIRIRI
A142: TELHA | B142: =IF(PainelArbovirose!$B$4="sergipe",SUMIF(Analise!$B$170:$B$244,A142,Analise!$C$170:$C$244),IF(A142=PainelArbovirose!$B$4,SUMIF(Analise!$B$170:$B$244,A142,Analise!$C$170:$C$244),-3)) -> 1.5 | C142: $M$74 | D142: 1.5 | E142: 72 - TELHA
A143: TOBIAS BARRETO | B143: =IF(PainelArbovirose!$B$4="sergipe",SUMIF(Analise!$B$170:$B$244,A143,Analise!$C$170:$C$244),IF(A143=PainelArbovirose!$B$4,SUMIF(Analise!$B$170:$B$244,A143,Analise!$C$170:$C$244),-3)) -> 2 | C143: $M$74 | D143: 2 | E143: 73 - TOBIAS BARRETO
A144: TOMAR DO GERU | B144: =IF(PainelArbovirose!$B$4="sergipe",SUMIF(Analise!$B$170:$B$244,A144,Analise!$C$170:$C$244),IF(A144=PainelArbovirose!$B$4,SUMIF(Analise!$B$170:$B$244,A144,Analise!$C$170:$C$244),-3)) -> 8.1 | C144: $M$75 | D144: 8.1 | E144: 74 - TOMAR DO GERU
A145: UMBAÚBA | B145: =IF(PainelArbovirose!$B$4="sergipe",SUMIF(Analise!$B$170:$B$244,A145,Analise!$C$170:$C$244),IF(A145=PainelArbovirose!$B$4,SUMIF(Analise!$B$170:$B$244,A145,Analise!$C$170:$C$244),-3)) -> 0.7 | C145: $M$73 | D145: 0.7 | E145: 75 - UMBAÚBA
A146: Sergipe

Sheet Analise
A2: 2019 | C2: 01 | D2: 02 | E2: 03 | F2: 04 | G2: 05 | H2: 06 | I2: 07 | J2: 08 | K2: 09 | L2: 10 | M2: 11 | N2: 12 | O2: 13 | P2: 14 | Q2: 15 | R2: 16 | S2: 17 | T2: 18 | U2: 19 | V2: 20 | W2: 21 | X2: 22 | Y2: 23 | Z2: 24 | AA2: 25 | AB2: 26 | AC2: 27 | AD2: 28 | AE2: 29 | AF2: 30 | AG2: 31 | AH2: 32 | AI2: 33 | AJ2: 34 | AK2: 35 | AL2: 36 | AM2: 37 | AN2: 38 | AO2: 39 | AP2: 40 | AQ2: 41 | AR2: 42 | AS2: 43 | AT2: 44 | AU2: 45 | AV2: 46 | AW2: 47 | AX2: 48 | AY2: 49 | AZ2: 50 | BA2: 51 | BB2: 52 | BC2: 53
A3: Agravo/tx Incidência | B3: Mun Resid SE | C3: Semana 01 | D3: Semana 02 | E3: Semana 03 | F3: Semana 04 | G3: Semana 05 | H3: Semana 06 | I3: Semana 07 | J3: Semana 08 | K3: Semana 09 | L3: Semana 10 | M3: Semana 11 | N3: Semana 12 | O3: Semana 13 | P3: Semana 14 | Q3: Semana 15 | R3: Semana 16 | S3: Semana 17 | T3: Semana 18 | U3: Semana 19 | V3: Semana 20 | W3: Semana 21 | X3: Semana 22 | Y3: Semana 23 | Z3: Semana 24 | AA3: Semana 25 | AB3: Semana 26 | AC3: Semana 27 | AD3: Semana 28 | AE3: Semana 29 | AF3: Semana 30 | AG3: Semana 31 | AH3: Semana 32 | AI3: Semana 33 | AJ3: Semana 34 | AK3: Semana 35 | AL3: Semana 36 | AM3: Semana 37 | AN3: Semana 38 | AO3: Semana 39 | AP3: Semana 40 | AQ3: Semana 41 | AR3: Semana 42 | AS3: Semana 43 | AT3: Semana 44 | AU3: Semana 45 | AV3: Semana 46 | AW3: Semana 47 | AX3: Semana 48 | AY3: Semana 49 | AZ3: Semana 50 | BA3: Semana 51 | BB3: Semana 52 | BC3: Semana 53 | BD3: Total
A4: Zika | B4: =PainelArbovirose!$B$4 -> Sergipe | C4: =IF((INDEX(ZikaPro2019!$D$4:$BE$80,MATCH(Analise!$B$16,ZikaPro2019!$B$4:$B$80,0),MATCH(Analise!C3,ZikaPro2019!$D$3:$BE$3,0)))="",NA(),(INDEX(ZikaPro2019!$D$4:$BE$80,MATCH(Analise!$B$16,ZikaPro2019!$B$4:$B$80,0),MATCH(Analise!C3,ZikaPro2019!$D$3:$BE$3,0)))/SUMIF(População!$B$4:$F$79,Analise!$B$16,População!$F$4:$F$79)*100000) -> 0 | D4: =IF((INDEX(ZikaPro2019!$D$4:$BE$80,MATCH(Analise!$B$16,ZikaPro2019!$B$4:$B$80,0),MATCH(Analise!D3,ZikaPro2019!$D$3:$BE$3,0)))="",NA(),(INDEX(ZikaPro2019!$D$4:$BE$80,MATCH(Analise!$B$16,ZikaPro2019!$B$4:$B$80,0),MATCH(Analise!D3,ZikaPro2019!$D$3:$BE$3,0)))/SUMIF(População!$B$4:$F$79,Analise!$B$16,População!$F$4:$F$79)*100000) -> 0 | E4: =IF((INDEX(ZikaPro2019!$D$4:$BE$80,MATCH(Analise!$B$16,ZikaPro2019!$B$4:$B$80,0),MATCH(Analise!E3,ZikaPro2019!$D$3:$BE$3,0)))="",NA(),(INDEX(ZikaPro2019!$D$4:$BE$80,MATCH(Analise!$B$16,ZikaPro2019!$B$4:$B$80,0),MATCH(Analise!E3,ZikaPro2019!$D$3:$BE$3,0)))/SUMIF(População!$B$4:$F$79,Analise!$B$16,População!$F$4:$F$79)*100000) -> 0 | F4: =IF((INDEX(ZikaPro2019!$D$4:$BE$80,MATCH(Analise!$B$16,ZikaPro2019!$B$4:$B$80,0),MATCH(Analise!F3,ZikaPro2019!$D$3:$BE$3,0)))="",NA(),(INDEX(ZikaPro2019!$D$4:$BE$80,MATCH(Analise!$B$16,ZikaPro2019!$B$4:$B$80,0),MATCH(Analise!F3,ZikaPro2019!$D$3:$BE$3,0)))/SUMIF(População!$B$4:$F$79,Analise!$B$16,População!$F$4:$F$79)*100000) -> 0 | G4: =IF((INDEX(ZikaPro2019!$D$4:$BE$80,MATCH(Analise!$B$16,ZikaPro2019!$B$4:$B$80,0),MATCH(Analise!G3,ZikaPro2019!$D$3:$BE$3,0)))="",NA(),(INDEX(ZikaPro2019!$D$4:$BE$80,MATCH(Analise!$B$16,ZikaPro2019!$B$4:$B$80,0),MATCH(Analise!G3,ZikaPro2019!$D$3:$BE$3,0)))/SUMIF(População!$B$4:$F$79,Analise!$B$16,População!$F$4:$F$79)*100000) -> 0 | H4: =IF((INDEX(ZikaPro2019!$D$4:$BE$80,MATCH(Analise!$B$16,ZikaPro2019!$B$4:$B$80,0),MATCH(Analise!H3,ZikaPro2019!$D$3:$BE$3,0)))="",NA(),(INDEX(ZikaPro2019!$D$4:$BE$80,MATCH(Analise!$B$16,ZikaPro2019!$B$4:$B$80,0),MATCH(Analise!H3,ZikaPro2019!$D$3:$BE$3,0)))/SUMIF(População!$B$4:$F$79,Analise!$B$16,População!$F$4:$F$79)*100000) -> 0 | I4: =IF((INDEX(ZikaPro2019!$D$4:$BE$80,MATCH(Analise!$B$16,ZikaPro2019!$B$4:$B$80,0),MATCH(Analise!I3,ZikaPro2019!$D$3:$BE$3,0)))="",NA(),(INDEX(ZikaPro2019!$D$4:$BE$80,MATCH(Analise!$B$16,ZikaPro2019!$B$4:$B$80,0),MATCH(Analise!I3,ZikaPro2019!$D$3:$BE$3,0)))/SUMIF(População!$B$4:$F$79,Analise!$B$16,População!$F$4:$F$79)*100000) -> 0 | J4: =IF((INDEX(ZikaPro2019!$D$4:$BE$80,MATCH(Analise!$B$16,ZikaPro2019!$B$4:$B$80,0),MATCH(Analise!J3,ZikaPro2019!$D$3:$BE$3,0)))="",NA(),(INDEX(ZikaPro2019!$D$4:$BE$80,MATCH(Analise!$B$16,ZikaPro2019!$B$4:$B$80,0),MATCH(Analise!J3,ZikaPro2019!$D$3:$BE$3,0)))/SUMIF(População!$B$4:$F$79,Analise!$B$16,População!$F$4:$F$79)*100000) -> 0.04389222177 | K4: =IF((INDEX(ZikaPro2019!$D$4:$BE$80,MATCH(Analise!$B$16,ZikaPro2019!$B$4:$B$80,0),MATCH(Analise!K3,ZikaPro2019!$D$3:$BE$3,0)))="",NA(),(INDEX(ZikaPro2019!$D$4:$BE$80,MATCH(Analise!$B$16,ZikaPro2019!$B$4:$B$80,0),MATCH(Analise!K3,ZikaPro2019!$D$3:$BE$3,0)))/SUMIF(População!$B$4:$F$79,Analise!$B$16,População!$F$4:$F$79)*100000) -> 0 | L4: =IF((INDEX(ZikaPro2019!$D$4:$BE$80,MATCH(Analise!$B$16,ZikaPro2019!$B$4:$B$80,0),MATCH(Analise!L3,ZikaPro2019!$D$3:$BE$3,0)))="",NA(),(INDEX(ZikaPro2019!$D$4:$BE$80,MATCH(Analise!$B$16,ZikaPro2019!$B$4:$B$80,0),MATCH(Analise!L3,ZikaPro2019!$D$3:$BE$3,0)))/SUMIF(População!$B$4:$F$79,Analise!$B$16,População!$F$4:$F$79)*100000) -> 0.04389222177 | M4: =IF((INDEX(ZikaPro2019!$D$4:$BE$80,MATCH(Analise!$B$16,ZikaPro2019!$B$4:$B$80,0),MATCH(Analise!M3,ZikaPro2019!$D$3:$BE$3,0)))="",NA(),(INDEX(ZikaPro2019!$D$4:$BE$80,MATCH(Analise!$B$16,ZikaPro2019!$B$4:$B$80,0),MATCH(Analise!M3,ZikaPro2019!$D$3:$BE$3,0)))/SUMIF(População!$B$4:$F$79,Analise!$B$16,População!$F$4:$F$79)*100000) -> 0 | N4: =IF((INDEX(ZikaPro2019!$D$4:$BE$80,MATCH(Analise!$B$16,ZikaPro2019!$B$4:$B$80,0),MATCH(Analise!N3,ZikaPro2019!$D$3:$BE$3,0)))="",NA(),(INDEX(ZikaPro2019!$D$4:$BE$80,MATCH(Analise!$B$16,ZikaPro2019!$B$4:$B$80,0),MATCH(Analise!N3,ZikaPro2019!$D$3:$BE$3,0)))/SUMIF(População!$B$4:$F$79,Analise!$B$16,População!$F$4:$F$79)*100000) -> 0 | O4: =IF((INDEX(ZikaPro2019!$D$4:$BE$80,MATCH(Analise!$B$16,ZikaPro2019!$B$4:$B$80,0),MATCH(Analise!O3,ZikaPro2019!$D$3:$BE$3,0)))="",NA(),(INDEX(ZikaPro2019!$D$4:$BE$80,MATCH(Analise!$B$16,ZikaPro2019!$B$4:$B$80,0),MATCH(Analise!O3,ZikaPro2019!$D$3:$BE$3,0)))/SUMIF(População!$B$4:$F$79,Analise!$B$16,População!$F$4:$F$79)*100000) -> 0 | P4: =IF((INDEX(ZikaPro2019!$D$4:$BE$80,MATCH(Analise!$B$16,ZikaPro2019!$B$4:$B$80,0),MATCH(Analise!P3,ZikaPro2019!$D$3:$BE$3,0)))="",NA(),(INDEX(ZikaPro2019!$D$4:$BE$80,MATCH(Analise!$B$16,ZikaPro2019!$B$4:$B$80,0),MATCH(Analise!P3,ZikaPro2019!$D$3:$BE$3,0)))/SUMIF(População!$B$4:$F$79,Analise!$B$16,População!$F$4:$F$79)*100000) -> 0.08778444354 | Q4: =IF((INDEX(ZikaPro2019!$D$4:$BE$80,MATCH(Analise!$B$16,ZikaPro2019!$B$4:$B$80,0),MATCH(Analise!Q3,ZikaPro2019!$D$3:$BE$3,0)))="",NA(),(INDEX(ZikaPro2019!$D$4:$BE$80,MATCH(Analise!$B$16,ZikaPro2019!$B$4:$B$80,0),MATCH(Analise!Q3,ZikaPro2019!$D$3:$BE$3,0)))/SUMIF(População!$B$4:$F$79,Analise!$B$16,População!$F$4:$F$79)*100000) -> 0.04389222177 | R4: =IF((INDEX(ZikaPro2019!$D$4:$BE$80,MATCH(Analise!$B$16,ZikaPro2019!$B$4:$B$80,0),MATCH(Analise!R3,ZikaPro2019!$D$3:$BE$3,0)))="",NA(),(INDEX(ZikaPro2019!$D$4:$BE$80,MATCH(Analise!$B$16,ZikaPro2019!$B$4:$B$80,0),MATCH(Analise!R3,ZikaPro2019!$D$3:$BE$3,0)))/SUMIF(População!$B$4:$F$79,Analise!$B$16,População!$F$4:$F$79)*100000) -> 0.04389222177 | S4: =IF((INDEX(ZikaPro2019!$D$4:$BE$80,MATCH(Analise!$B$16,ZikaPro2019!$B$4:$B$80,0),MATCH(Analise!S3,ZikaPro2019!$D$3:$BE$3,0)))="",NA(),(INDEX(ZikaPro2019!$D$4:$BE$80,MATCH(Analise!$B$16,ZikaPro2019!$B$4:$B$80,0),MATCH(Analise!S3,ZikaPro2019!$D$3:$BE$3,0)))/SUMIF(População!$B$4:$F$79,Analise!$B$16,População!$F$4:$F$79)*100000) -> 0 | T4: =IF((INDEX(ZikaPro2019!$D$4:$BE$80,MATCH(Analise!$B$16,ZikaPro2019!$B$4:$B$80,0),MATCH(Analise!T3,ZikaPro2019!$D$3:$BE$3,0)))="",NA(),(INDEX(ZikaPro2019!$D$4:$BE$80,MATCH(Analise!$B$16,ZikaPro2019!$B$4:$B$80,0),MATCH(Analise!T3,ZikaPro2019!$D$3:$BE$3,0)))/SUMIF(População!$B$4:$F$79,Analise!$B$16,População!$F$4:$F$79)*100000) -> 0.04389222177 | U4: =IF((INDEX(ZikaPro2019!$D$4:$BE$80,MATCH(Analise!$B$16,ZikaPro2019!$B$4:$B$80,0),MATCH(Analise!U3,ZikaPro2019!$D$3:$BE$3,0)))="",NA(),(INDEX(ZikaPro2019!$D$4:$BE$80,MATCH(Analise!$B$16,ZikaPro2019!$B$4:$B$80,0),MATCH(Analise!U3,ZikaPro2019!$D$3:$BE$3,0)))/SUMIF(População!$B$4:$F$79,Analise!$B$16,População!$F$4:$F$79)*100000) -> 0.08778444354 | V4: =IF((INDEX(ZikaPro2019!$D$4:$BE$80,MATCH(Analise!$B$16,ZikaPro2019!$B$4:$B$80,0),MATCH(Analise!V3,ZikaPro2019!$D$3:$BE$3,0)))="",NA(),(INDEX(ZikaPro2019!$D$4:$BE$80,MATCH(Analise!$B$16,ZikaPro2019!$B$4:$B$80,0),MATCH(Analise!V3,ZikaPro2019!$D$3:$BE$3,0)))/SUMIF(População!$B$4:$F$79,Analise!$B$16,População!$F$4:$F$79)*100000) -> 0 | W4: =IF((INDEX(ZikaPro2019!$D$4:$BE$80,MATCH(Analise!$B$16,ZikaPro2019!$B$4:$B$80,0),MATCH(Analise!W3,ZikaPro2019!$D$3:$BE$3,0)))="",NA(),(INDEX(ZikaPro2019!$D$4:$BE$80,MATCH(Analise!$B$16,ZikaPro2019!$B$4:$B$80,0),MATCH(Analise!W3,ZikaPro2019!$D$3:$BE$3,0)))/SUMIF(População!$B$4:$F$79,Analise!$B$16,População!$F$4:$F$79)*100000) -> 0 | X4: =IF((INDEX(ZikaPro2019!$D$4:$BE$80,MATCH(Analise!$B$16,ZikaPro2019!$B$4:$B$80,0),MATCH(Analise!X3,ZikaPro2019!$D$3:$BE$3,0)))="",NA(),(INDEX(ZikaPro2019!$D$4:$BE$80,MATCH(Analise!$B$16,ZikaPro2019!$B$4:$B$80,0),MATCH(Analise!X3,ZikaPro2019!$D$3:$BE$3,0)))/SUMIF(População!$B$4:$F$79,Analise!$B$16,População!$F$4:$F$79)*100000) -> 0.04389222177 | Y4: =IF((INDEX(ZikaPro2019!$D$4:$BE$80,MATCH(Analise!$B$16,ZikaPro2019!$B$4:$B$80,0),MATCH(Analise!Y3,ZikaPro2019!$D$3:$BE$3,0)))="",NA(),(INDEX(ZikaPro2019!$D$4:$BE$80,MATCH(Analise!$B$16,ZikaPro2019!$B$4:$B$80,0),MATCH(Analise!Y3,ZikaPro2019!$D$3:$BE$3,0)))/SUMIF(População!$B$4:$F$79,Analise!$B$16,População!$F$4:$F$79)*100000) -> 0.04389222177 | Z4: =IF((INDEX(ZikaPro2019!$D$4:$BE$80,MATCH(Analise!$B$16,ZikaPro2019!$B$4:$B$80,0),MATCH(Analise!Z3,ZikaPro2019!$D$3:$BE$3,0)))="",NA(),(INDEX(ZikaPro2019!$D$4:$BE$80,MATCH(Analise!$B$16,ZikaPro2019!$B$4:$B$80,0),MATCH(Analise!Z3,ZikaPro2019!$D$3:$BE$3,0)))/SUMIF(População!$B$4:$F$79,Analise!$B$16,População!$F$4:$F$79)*100000) -> 0.04389222177 | AA4: =IF((INDEX(ZikaPro2019!$D$4:$BE$80,MATCH(Analise!$B$16,ZikaPro2019!$B$4:$B$80,0),MATCH(Analise!AA3,ZikaPro2019!$D$3:$BE$3,0)))="",NA(),(INDEX(ZikaPro2019!$D$4:$BE$80,MATCH(Analise!$B$16,ZikaPro2019!$B$4:$B$80,0),MATCH(Analise!AA3,ZikaPro2019!$D$3:$BE$3,0)))/SUMIF(População!$B$4:$F$79,Analise!$B$16,População!$F$4:$F$79)*100000) -> 0.04389222177 | AB4: =IF((INDEX(ZikaPro2019!$D$4:$BE$80,MATCH(Analise!$B$16,ZikaPro2019!$B$4:$B$80,0),MATCH(Analise!AB3,ZikaPro2019!$D$3:$BE$3,0)))="",NA(),(INDEX(ZikaPro2019!$D$4:$BE$80,MATCH(Analise!$B$16,ZikaPro2019!$B$4:$B$80,0),MATCH(Analise!AB3,ZikaPro2019!$D$3:$BE$3,0)))/SUMIF(População!$B$4:$F$79,Analise!$B$16,População!$F$4:$F$79)*100000) -> 0.08778444354 | AC4: =IF((INDEX(ZikaPro2019!$D$4:$BE$80,MATCH(Analise!$B$16,ZikaPro2019!$B$4:$B$80,0),MATCH(Analise!AC3,ZikaPro2019!$D$3:$BE$3,0)))="",NA(),(INDEX(ZikaPro2019!$D$4:$BE$80,MATCH(Analise!$B$16,ZikaPro2019!$B$4:$B$80,0),MATCH(Analise!AC3,ZikaPro2019!$D$3:$BE$3,0)))/SUMIF(População!$B$4:$F$79,Analise!$B$16,População!$F$4:$F$79)*100000) -> 0 | AD4: =IF((INDEX(ZikaPro2019!$D$4:$BE$80,MATCH(Analise!$B$16,ZikaPro2019!$B$4:$B$80,0),MATCH(Analise!AD3,ZikaPro2019!$D$3:$BE$3,0)))="",NA(),(INDEX(ZikaPro2019!$D$4:$BE$80,MATCH(Analise!$B$16,ZikaPro2019!$B$4:$B$80,0),MATCH(Analise!AD3,ZikaPro2019!$D$3:$BE$3,0)))/SUMIF(População!$B$4:$F$79,Analise!$B$16,População!$F$4:$F$79)*100000) -> 0.04389222177 | AE4: =IF((INDEX(ZikaPro2019!$D$4:$BE$80,MATCH(Analise!$B$16,ZikaPro2019!$B$4:$B$80,0),MATCH(Analise!AE3,ZikaPro2019!$D$3:$BE$3,0)))="",NA(),(INDEX(ZikaPro2019!$D$4:$BE$80,MATCH(Analise!$B$16,ZikaPro2019!$B$4:$B$80,0),MATCH(Analise!AE3,ZikaPro2019!$D$3:$BE$3,0)))/SUMIF(População!$B$4:$F$79,Analise!$B$16,População!$F$4:$F$79)*100000) -> 0.04389222177 | AF4: =IF((INDEX(ZikaPro2019!$D$4:$BE$80,MATCH(Analise!$B$16,ZikaPro2019!$B$4:$B$80,0),MATCH(Analise!AF3,ZikaPro2019!$D$3:$BE$3,0)))="",NA(),(INDEX(ZikaPro2019!$D$4:$BE$80,MATCH(Analise!$B$16,ZikaPro2019!$B$4:$B$80,0),MATCH(Analise!AF3,ZikaPro2019!$D$3:$BE$3,0)))/SUMIF(População!$B$4:$F$79,Analise!$B$16,População!$F$4:$F$79)*100000) -> 0.1316766653 | AG4: =IF((INDEX(ZikaPro2019!$D$4:$BE$80,MATCH(Analise!$B$16,ZikaPro2019!$B$4:$B$80,0),MATCH(Analise!AG3,ZikaPro2019!$D$3:$BE$3,0)))="",NA(),(INDEX(ZikaPro2019!$D$4:$BE$80,MATCH(Analise!$B$16,ZikaPro2019!$B$4:$B$80,0),MATCH(Analise!AG3,ZikaPro2019!$D$3:$BE$3,0)))/SUMIF(População!$B$4:$F$79,Analise!$B$16,População!$F$4:$F$79)*100000) -> 0.2633533306 | AH4: =IF((INDEX(ZikaPro2019!$D$4:$BE$80,MATCH(Analise!$B$16,ZikaPro2019!$B$4:$B$80,0),MATCH(Analise!AH3,ZikaPro2019!$D$3:$BE$3,0)))="",NA(),(INDEX(ZikaPro2019!$D$4:$BE$80,MATCH(Analise!$B$16,ZikaPro2019!$B$4:$B$80,0),MATCH(Analise!AH3,ZikaPro2019!$D$3:$BE$3,0)))/SUMIF(População!$B$4:$F$79,Analise!$B$16,População!$F$4:$F$79)*100000) -> 0.2194611089 | AI4: =IF((INDEX(ZikaPro2019!$D$4:$BE$80,MATCH(Analise!$B$16,ZikaPro2019!$B$4:$B$80,0),MATCH(Analise!AI3,ZikaPro2019!$D$3:$BE$3,0)))="",NA(),(INDEX(ZikaPro2019!$D$4:$BE$80,MATCH(Analise!$B$16,ZikaPro2019!$B$4:$B$80,0),MATCH(Analise!AI3,ZikaPro2019!$D$3:$BE$3,0)))/SUMIF(População!$B$4:$F$79,Analise!$B$16,População!$F$4:$F$79)*100000) -> 0.4389222177 | AJ4: =IF((INDEX(ZikaPro2019!$D$4:$BE$80,MATCH(Analise!$B$16,ZikaPro2019!$B$4:$B$80,0),MATCH(Analise!AJ3,ZikaPro2019!$D$3:$BE$3,0)))="",NA(),(INDEX(ZikaPro2019!$D$4:$BE$80,MATCH(Analise!$B$16,ZikaPro2019!$B$4:$B$80,0),MATCH(Analise!AJ3,ZikaPro2019!$D$3:$BE$3,0)))/SUMIF(População!$B$4:$F$79,Analise!$B$16,População!$F$4:$F$79)*100000) -> 0.04389222177 | AK4: =IF((INDEX(ZikaPro2019!$D$4:$BE$80,MATCH(Analise!$B$16,ZikaPro2019!$B$4:$B$80,0),MATCH(Analise!AK3,ZikaPro2019!$D$3:$BE$3,0)))="",NA(),(INDEX(ZikaPro2019!$D$4:$BE$80,MATCH(Analise!$B$16,ZikaPro2019!$B$4:$B$80,0),MATCH(Analise!AK3,ZikaPro2019!$D$3:$BE$3,0)))/SUMIF(População!$B$4:$F$79,Analise!$B$16,População!$F$4:$F$79)*100000) -> 0.08778444354 | AL4: =IF((INDEX(ZikaPro2019!$D$4:$BE$80,MATCH(Analise!$B$16,ZikaPro2019!$B$4:$B$80,0),MATCH(Analise!AL3,ZikaPro2019!$D$3:$BE$3,0)))="",NA(),(INDEX(ZikaPro2019!$D$4:$BE$80,MATCH(Analise!$B$16,ZikaPro2019!$B$4:$B$80,0),MATCH(Analise!AL3,ZikaPro2019!$D$3:$BE$3,0)))/SUMIF(População!$B$4:$F$79,Analise!$B$16,População!$F$4:$F$79)*100000) ->  | AM4: =IF((INDEX(ZikaPro2019!$D$4:$BE$80,MATCH(Analise!$B$16,ZikaPro2019!$B$4:$B$80,0),MATCH(Analise!AM3,ZikaPro2019!$D$3:$BE$3,0)))="",NA(),(INDEX(ZikaPro2019!$D$4:$BE$80,MATCH(Analise!$B$16,ZikaPro2019!$B$4:$B$80,0),MATCH(Analise!AM3,ZikaPro2019!$D$3:$BE$3,0)))/SUMIF(População!$B$4:$F$79,Analise!$B$16,População!$F$4:$F$79)*100000) ->  | AN4: =IF((INDEX(ZikaPro2019!$D$4:$BE$80,MATCH(Analise!$B$16,ZikaPro2019!$B$4:$B$80,0),MATCH(Analise!AN3,ZikaPro2019!$D$3:$BE$3,0)))="",NA(),(INDEX(ZikaPro2019!$D$4:$BE$80,MATCH(Analise!$B$16,ZikaPro2019!$B$4:$B$80,0),MATCH(Analise!AN3,ZikaPro2019!$D$3:$BE$3,0)))/SUMIF(População!$B$4:$F$79,Analise!$B$16,População!$F$4:$F$79)*100000) ->  | AO4: =IF((INDEX(ZikaPro2019!$D$4:$BE$80,MATCH(Analise!$B$16,ZikaPro2019!$B$4:$B$80,0),MATCH(Analise!AO3,ZikaPro2019!$D$3:$BE$3,0)))="",NA(),(INDEX(ZikaPro2019!$D$4:$BE$80,MATCH(Analise!$B$16,ZikaPro2019!$B$4:$B$80,0),MATCH(Analise!AO3,ZikaPro2019!$D$3:$BE$3,0)))/SUMIF(População!$B$4:$F$79,Analise!$B$16,População!$F$4:$F$79)*100000) ->  | AP4: =IF((INDEX(ZikaPro2019!$D$4:$BE$80,MATCH(Analise!$B$16,ZikaPro2019!$B$4:$B$80,0),MATCH(Analise!AP3,ZikaPro2019!$D$3:$BE$3,0)))="",NA(),(INDEX(ZikaPro2019!$D$4:$BE$80,MATCH(Analise!$B$16,ZikaPro2019!$B$4:$B$80,0),MATCH(Analise!AP3,ZikaPro2019!$D$3:$BE$3,0)))/SUMIF(População!$B$4:$F$79,Analise!$B$16,População!$F$4:$F$79)*100000) ->  | AQ4: =IF((INDEX(ZikaPro2019!$D$4:$BE$80,MATCH(Analise!$B$16,ZikaPro2019!$B$4:$B$80,0),MATCH(Analise!AQ3,ZikaPro2019!$D$3:$BE$3,0)))="",NA(),(INDEX(ZikaPro2019!$D$4:$BE$80,MATCH(Analise!$B$16,ZikaPro2019!$B$4:$B$80,0),MATCH(Analise!AQ3,ZikaPro2019!$D$3:$BE$3,0)))/SUMIF(População!$B$4:$F$79,Analise!$B$16,População!$F$4:$F$79)*100000) ->  | AR4: =IF((INDEX(ZikaPro2019!$D$4:$BE$80,MATCH(Analise!$B$16,ZikaPro2019!$B$4:$B$80,0),MATCH(Analise!AR3,ZikaPro2019!$D$3:$BE$3,0)))="",NA(),(INDEX(ZikaPro2019!$D$4:$BE$80,MATCH(Analise!$B$16,ZikaPro2019!$B$4:$B$80,0),MATCH(Analise!AR3,ZikaPro2019!$D$3:$BE$3,0)))/SUMIF(População!$B$4:$F$79,Analise!$B$16,População!$F$4:$F$79)*100000) ->  | AS4: =IF((INDEX(ZikaPro2019!$D$4:$BE$80,MATCH(Analise!$B$16,ZikaPro2019!$B$4:$B$80,0),MATCH(Analise!AS3,ZikaPro2019!$D$3:$BE$3,0)))="",NA(),(INDEX(ZikaPro2019!$D$4:$BE$80,MATCH(Analise!$B$16,ZikaPro2019!$B$4:$B$80,0),MATCH(Analise!AS3,ZikaPro2019!$D$3:$BE$3,0)))/SUMIF(População!$B$4:$F$79,Analise!$B$16,População!$F$4:$F$79)*100000) ->  | AT4: =IF((INDEX(ZikaPro2019!$D$4:$BE$80,MATCH(Analise!$B$16,ZikaPro2019!$B$4:$B$80,0),MATCH(Analise!AT3,ZikaPro2019!$D$3:$BE$3,0)))="",NA(),(INDEX(ZikaPro2019!$D$4:$BE$80,MATCH(Analise!$B$16,ZikaPro2019!$B$4:$B$80,0),MATCH(Analise!AT3,ZikaPro2019!$D$3:$BE$3,0)))/SUMIF(População!$B$4:$F$79,Analise!$B$16,População!$F$4:$F$79)*100000) ->  | AU4: =IF((INDEX(ZikaPro2019!$D$4:$BE$80,MATCH(Analise!$B$16,ZikaPro2019!$B$4:$B$80,0),MATCH(Analise!AU3,ZikaPro2019!$D$3:$BE$3,0)))="",NA(),(INDEX(ZikaPro2019!$D$4:$BE$80,MATCH(Analise!$B$16,ZikaPro2019!$B$4:$B$80,0),MATCH(Analise!AU3,ZikaPro2019!$D$3:$BE$3,0)))/SUMIF(População!$B$4:$F$79,Analise!$B$16,População!$F$4:$F$79)*100000) ->  | AV4: =IF((INDEX(ZikaPro2019!$D$4:$BE$80,MATCH(Analise!$B$16,ZikaPro2019!$B$4:$B$80,0),MATCH(Analise!AV3,ZikaPro2019!$D$3:$BE$3,0)))="",NA(),(INDEX(ZikaPro2019!$D$4:$BE$80,MATCH(Analise!$B$16,ZikaPro2019!$B$4:$B$80,0),MATCH(Analise!AV3,ZikaPro2019!$D$3:$BE$3,0)))/SUMIF(População!$B$4:$F$79,Analise!$B$16,População!$F$4:$F$79)*100000) ->  | AW4: =IF((INDEX(ZikaPro2019!$D$4:$BE$80,MATCH(Analise!$B$16,ZikaPro2019!$B$4:$B$80,0),MATCH(Analise!AW3,ZikaPro2019!$D$3:$BE$3,0)))="",NA(),(INDEX(ZikaPro2019!$D$4:$BE$80,MATCH(Analise!$B$16,ZikaPro2019!$B$4:$B$80,0),MATCH(Analise!AW3,ZikaPro2019!$D$3:$BE$3,0)))/SUMIF(População!$B$4:$F$79,Analise!$B$16,População!$F$4:$F$79)*100000) ->  | AX4: =IF((INDEX(ZikaPro2019!$D$4:$BE$80,MATCH(Analise!$B$16,ZikaPro2019!$B$4:$B$80,0),MATCH(Analise!AX3,ZikaPro2019!$D$3:$BE$3,0)))="",NA(),(INDEX(ZikaPro2019!$D$4:$BE$80,MATCH(Analise!$B$16,ZikaPro2019!$B$4:$B$80,0),MATCH(Analise!AX3,ZikaPro2019!$D$3:$BE$3,0)))/SUMIF(População!$B$4:$F$79,Analise!$B$16,População!$F$4:$F$79)*100000) ->  | AY4: =IF((INDEX(ZikaPro2019!$D$4:$BE$80,MATCH(Analise!$B$16,ZikaPro2019!$B$4:$B$80,0),MATCH(Analise!AY3,ZikaPro2019!$D$3:$BE$3,0)))="",NA(),(INDEX(ZikaPro2019!$D$4:$BE$80,MATCH(Analise!$B$16,ZikaPro2019!$B$4:$B$80,0),MATCH(Analise!AY3,ZikaPro2019!$D$3:$BE$3,0)))/SUMIF(População!$B$4:$F$79,Analise!$B$16,População!$F$4:$F$79)*100000) ->  | AZ4: =IF((INDEX(ZikaPro2019!$D$4:$BE$80,MATCH(Analise!$B$16,ZikaPro2019!$B$4:$B$80,0),MATCH(Analise!AZ3,ZikaPro2019!$D$3:$BE$3,0)))="",NA(),(INDEX(ZikaPro2019!$D$4:$BE$80,MATCH(Analise!$B$16,ZikaPro2019!$B$4:$B$80,0),MATCH(Analise!AZ3,ZikaPro2019!$D$3:$BE$3,0)))/SUMIF(População!$B$4:$F$79,Analise!$B$16,População!$F$4:$F$79)*100000) ->  | BA4: =IF((INDEX(ZikaPro2019!$D$4:$BE$80,MATCH(Analise!$B$16,ZikaPro2019!$B$4:$B$80,0),MATCH(Analise!BA3,ZikaPro2019!$D$3:$BE$3,0)))="",NA(),(INDEX(ZikaPro2019!$D$4:$BE$80,MATCH(Analise!$B$16,ZikaPro2019!$B$4:$B$80,0),MATCH(Analise!BA3,ZikaPro2019!$D$3:$BE$3,0)))/SUMIF(População!$B$4:$F$79,Analise!$B$16,População!$F$4:$F$79)*100000) ->  | BB4: =IF((INDEX(ZikaPro2019!$D$4:$BE$80,MATCH(Analise!$B$16,ZikaPro2019!$B$4:$B$80,0),MATCH(Analise!BB3,ZikaPro2019!$D$3:$BE$3,0)))="",NA(),(INDEX(ZikaPro2019!$D$4:$BE$80,MATCH(Analise!$B$16,ZikaPro2019!$B$4:$B$80,0),MATCH(Analise!BB3,ZikaPro2019!$D$3:$BE$3,0)))/SUMIF(População!$B$4:$F$79,Analise!$B$16,População!$F$4:$F$79)*100000) ->  | BC4: =IF((INDEX(ZikaPro2019!$D$4:$BE$80,MATCH(Analise!$B$16,ZikaPro2019!$B$4:$B$80,0),MATCH(Analise!BC3,ZikaPro2019!$D$3:$BE$3,0)))="",NA(),(INDEX(ZikaPro2019!$D$4:$BE$80,MATCH(Analise!$B$16,ZikaPro2019!$B$4:$B$80,0),MATCH(Analise!BC3,ZikaPro2019!$D$3:$BE$3,0)))/SUMIF(População!$B$4:$F$79,Analise!$B$16,População!$F$4:$F$79)*100000) ->  | BD4: =IF((INDEX(ZikaPro2019!$D$4:$BE$80,MATCH(Analise!$B$16,ZikaPro2019!$B$4:$B$80,0),MATCH(Analise!BD3,ZikaPro2019!$D$3:$BE$3,0)))="",NA(),(INDEX(ZikaPro2019!$D$4:$BE$80,MATCH(Analise!$B$16,ZikaPro2019!$B$4:$B$80,0),MATCH(Analise!BD3,ZikaPro2019!$D$3:$BE$3,0)))/SUMIF(População!$B$4:$B$79,Analise!$B$16,População!$F$4:$F$79)*100000) -> 1.931257758
A5: Dengue | B5: =PainelArbovirose!$B$4 -> Sergipe | C5: =IF((INDEX(DenPro2019!$C$4:$BC$80,MATCH(Analise!$B$17,DenPro2019!$B$4:$B$80,0),MATCH(Analise!C3,DenPro2019!$C$3:$BC$3,0)))="",NA(),(INDEX(DenPro2019!$C$4:$BC$80,MATCH(Analise!$B$17,DenPro2019!$B$4:$B$80,0),MATCH(Analise!C3,DenPro2019!$C$3:$BC$3,0)))/SUMIF(População!$B$4:$F$79,Analise!$B$17,População!$F$4:$F$79)*100000) -> 0.1316766653 | D5: =IF((INDEX(DenPro2019!$C$4:$BC$80,MATCH(Analise!$B$17,DenPro2019!$B$4:$B$80,0),MATCH(Analise!D3,DenPro2019!$C$3:$BC$3,0)))="",NA(),(INDEX(DenPro2019!$C$4:$BC$80,MATCH(Analise!$B$17,DenPro2019!$B$4:$B$80,0),MATCH(Analise!D3,DenPro2019!$C$3:$BC$3,0)))/SUMIF(População!$B$4:$F$79,Analise!$B$17,População!$F$4:$F$79)*100000) -> 0.2633533306 | E5: =IF((INDEX(DenPro2019!$C$4:$BC$80,MATCH(Analise!$B$17,DenPro2019!$B$4:$B$80,0),MATCH(Analise!E3,DenPro2019!$C$3:$BC$3,0)))="",NA(),(INDEX(DenPro2019!$C$4:$BC$80,MATCH(Analise!$B$17,DenPro2019!$B$4:$B$80,0),MATCH(Analise!E3,DenPro2019!$C$3:$BC$3,0)))/SUMIF(População!$B$4:$F$79,Analise!$B$17,População!$F$4:$F$79)*100000) -> 0.2194611089 | F5: =IF((INDEX(DenPro2019!$C$4:$BC$80,MATCH(Analise!$B$17,DenPro2019!$B$4:$B$80,0),MATCH(Analise!F3,DenPro2019!$C$3:$BC$3,0)))="",NA(),(INDEX(DenPro2019!$C$4:$BC$80,MATCH(Analise!$B$17,DenPro2019!$B$4:$B$80,0),MATCH(Analise!F3,DenPro2019!$C$3:$BC$3,0)))/SUMIF(População!$B$4:$F$79,Analise!$B$17,População!$F$4:$F$79)*100000) -> 0.2194611089 | G5: =IF((INDEX(DenPro2019!$C$4:$BC$80,MATCH(Analise!$B$17,DenPro2019!$B$4:$B$80,0),MATCH(Analise!G3,DenPro2019!$C$3:$BC$3,0)))="",NA(),(INDEX(DenPro2019!$C$4:$BC$80,MATCH(Analise!$B$17,DenPro2019!$B$4:$B$80,0),MATCH(Analise!G3,DenPro2019!$C$3:$BC$3,0)))/SUMIF(População!$B$4:$F$79,Analise!$B$17,População!$F$4:$F$79)*100000) -> 0.08778444354 | H5: =IF((INDEX(DenPro2019!$C$4:$BC$80,MATCH(Analise!$B$17,DenPro2019!$B$4:$B$80,0),MATCH(Analise!H3,DenPro2019!$C$3:$BC$3,0)))="",NA(),(INDEX(DenPro2019!$C$4:$BC$80,MATCH(Analise!$B$17,DenPro2019!$B$4:$B$80,0),MATCH(Analise!H3,DenPro2019!$C$3:$BC$3,0)))/SUMIF(População!$B$4:$F$79,Analise!$B$17,População!$F$4:$F$79)*100000) -> 0.1755688871 | I5: =IF((INDEX(DenPro2019!$C$4:$BC$80,MATCH(Analise!$B$17,DenPro2019!$B$4:$B$80,0),MATCH(Analise!I3,DenPro2019!$C$3:$BC$3,0)))="",NA(),(INDEX(DenPro2019!$C$4:$BC$80,MATCH(Analise!$B$17,DenPro2019!$B$4:$B$80,0),MATCH(Analise!I3,DenPro2019!$C$3:$BC$3,0)))/SUMIF(População!$B$4:$F$79,Analise!$B$17,População!$F$4:$F$79)*100000) -> 0.3072455524 | J5: =IF((INDEX(DenPro2019!$C$4:$BC$80,MATCH(Analise!$B$17,DenPro2019!$B$4:$B$80,0),MATCH(Analise!J3,DenPro2019!$C$3:$BC$3,0)))="",NA(),(INDEX(DenPro2019!$C$4:$BC$80,MATCH(Analise!$B$17,DenPro2019!$B$4:$B$80,0),MATCH(Analise!J3,DenPro2019!$C$3:$BC$3,0)))/SUMIF(População!$B$4:$F$79,Analise!$B$17,População!$F$4:$F$79)*100000) -> 0.1755688871 | K5: =IF((INDEX(DenPro2019!$C$4:$BC$80,MATCH(Analise!$B$17,DenPro2019!$B$4:$B$80,0),MATCH(Analise!K3,DenPro2019!$C$3:$BC$3,0)))="",NA(),(INDEX(DenPro2019!$C$4:$BC$80,MATCH(Analise!$B$17,DenPro2019!$B$4:$B$80,0),MATCH(Analise!K3,DenPro2019!$C$3:$BC$3,0)))/SUMIF(População!$B$4:$F$79,Analise!$B$17,População!$F$4:$F$79)*100000) -> 0.2633533306 | L5: =IF((INDEX(DenPro2019!$C$4:$BC$80,MATCH(Analise!$B$17,DenPro2019!$B$4:$B$80,0),MATCH(Analise!L3,DenPro2019!$C$3:$BC$3,0)))="",NA(),(INDEX(DenPro2019!$C$4:$BC$80,MATCH(Analise!$B$17,DenPro2019!$B$4:$B$80,0),MATCH(Analise!L3,DenPro2019!$C$3:$BC$3,0)))/SUMIF(População!$B$4:$F$79,Analise!$B$17,População!$F$4:$F$79)*100000) -> 0.5267066613 | M5: =IF((INDEX(DenPro2019!$C$4:$BC$80,MATCH(Analise!$B$17,DenPro2019!$B$4:$B$80,0),MATCH(Analise!M3,DenPro2019!$C$3:$BC$3,0)))="",NA(),(INDEX(DenPro2019!$C$4:$BC$80,MATCH(Analise!$B$17,DenPro2019!$B$4:$B$80,0),MATCH(Analise!M3,DenPro2019!$C$3:$BC$3,0)))/SUMIF(População!$B$4:$F$79,Analise!$B$17,População!$F$4:$F$79)*100000) -> 0.8778444354 | N5: =IF((INDEX(DenPro2019!$C$4:$BC$80,MATCH(Analise!$B$17,DenPro2019!$B$4:$B$80,0),MATCH(Analise!N3,DenPro2019!$C$3:$BC$3,0)))="",NA(),(INDEX(DenPro2019!$C$4:$BC$80,MATCH(Analise!$B$17,DenPro2019!$B$4:$B$80,0),MATCH(Analise!N3,DenPro2019!$C$3:$BC$3,0)))/SUMIF(População!$B$4:$F$79,Analise!$B$17,População!$F$4:$F$79)*100000) -> 0.4828144395 | O5: =IF((INDEX(DenPro2019!$C$4:$BC$80,MATCH(Analise!$B$17,DenPro2019!$B$4:$B$80,0),MATCH(Analise!O3,DenPro2019!$C$3:$BC$3,0)))="",NA(),(INDEX(DenPro2019!$C$4:$BC$80,MATCH(Analise!$B$17,DenPro2019!$B$4:$B$80,0),MATCH(Analise!O3,DenPro2019!$C$3:$BC$3,0)))/SUMIF(População!$B$4:$F$79,Analise!$B$17,População!$F$4:$F$79)*100000) -> 0.6583833266 | P5: =IF((INDEX(DenPro2019!$C$4:$BC$80,MATCH(Analise!$B$17,DenPro2019!$B$4:$B$80,0),MATCH(Analise!P3,DenPro2019!$C$3:$BC$3,0)))="",NA(),(INDEX(DenPro2019!$C$4:$BC$80,MATCH(Analise!$B$17,DenPro2019!$B$4:$B$80,0),MATCH(Analise!P3,DenPro2019!$C$3:$BC$3,0)))/SUMIF(População!$B$4:$F$79,Analise!$B$17,População!$F$4:$F$79)*100000) -> 0.9217366572 | Q5: =IF((INDEX(DenPro2019!$C$4:$BC$80,MATCH(Analise!$B$17,DenPro2019!$B$4:$B$80,0),MATCH(Analise!Q3,DenPro2019!$C$3:$BC$3,0)))="",NA(),(INDEX(DenPro2019!$C$4:$BC$80,MATCH(Analise!$B$17,DenPro2019!$B$4:$B$80,0),MATCH(Analise!Q3,DenPro2019!$C$3:$BC$3,0)))/SUMIF(População!$B$4:$F$79,Analise!$B$17,População!$F$4:$F$79)*100000) -> 1.536227762 | R5: =IF((INDEX(DenPro2019!$C$4:$BC$80,MATCH(Analise!$B$17,DenPro2019!$B$4:$B$80,0),MATCH(Analise!R3,DenPro2019!$C$3:$BC$3,0)))="",NA(),(INDEX(DenPro2019!$C$4:$BC$80,MATCH(Analise!$B$17,DenPro2019!$B$4:$B$80,0),MATCH(Analise!R3,DenPro2019!$C$3:$BC$3,0)))/SUMIF(População!$B$4:$F$79,Analise!$B$17,População!$F$4:$F$79)*100000) -> 1.448443318 | S5: =IF((INDEX(DenPro2019!$C$4:$BC$80,MATCH(Analise!$B$17,DenPro2019!$B$4:$B$80,0),MATCH(Analise!S3,DenPro2019!$C$3:$BC$3,0)))="",NA(),(INDEX(DenPro2019!$C$4:$BC$80,MATCH(Analise!$B$17,DenPro2019!$B$4:$B$80,0),MATCH(Analise!S3,DenPro2019!$C$3:$BC$3,0)))/SUMIF(População!$B$4:$F$79,Analise!$B$17,População!$F$4:$F$79)*100000) -> 1.887365536 | T5: =IF((INDEX(DenPro2019!$C$4:$BC$80,MATCH(Analise!$B$17,DenPro2019!$B$4:$B$80,0),MATCH(Analise!T3,DenPro2019!$C$3:$BC$3,0)))="",NA(),(INDEX(DenPro2019!$C$4:$BC$80,MATCH(Analise!$B$17,DenPro2019!$B$4:$B$80,0),MATCH(Analise!T3,DenPro2019!$C$3:$BC$3,0)))/SUMIF(População!$B$4:$F$79,Analise!$B$17,População!$F$4:$F$79)*100000) -> 3.862515516 | U5: =IF((INDEX(DenPro2019!$C$4:$BC$80,MATCH(Analise!$B$17,DenPro2019!$B$4:$B$80,0),MATCH(Analise!U3,DenPro2019!$C$3:$BC$3,0)))="",NA(),(INDEX(DenPro2019!$C$4:$BC$80,MATCH(Analise!$B$17,DenPro2019!$B$4:$B$80,0),MATCH(Analise!U3,DenPro2019!$C$3:$BC$3,0)))/SUMIF(População!$B$4:$F$79,Analise!$B$17,População!$F$4:$F$79)*100000) -> 4.564791064 | V5: =IF((INDEX(DenPro2019!$C$4:$BC$80,MATCH(Analise!$B$17,DenPro2019!$B$4:$B$80,0),MATCH(Analise!V3,DenPro2019!$C$3:$BC$3,0)))="",NA(),(INDEX(DenPro2019!$C$4:$BC$80,MATCH(Analise!$B$17,DenPro2019!$B$4:$B$80,0),MATCH(Analise!V3,DenPro2019!$C$3:$BC$3,0)))/SUMIF(População!$B$4:$F$79,Analise!$B$17,População!$F$4:$F$79)*100000) -> 6.715509931 | W5: =IF((INDEX(DenPro2019!$C$4:$BC$80,MATCH(Analise!$B$17,DenPro2019!$B$4:$B$80,0),MATCH(Analise!W3,DenPro2019!$C$3:$BC$3,0)))="",NA(),(INDEX(DenPro2019!$C$4:$BC$80,MATCH(Analise!$B$17,DenPro2019!$B$4:$B$80,0),MATCH(Analise!W3,DenPro2019!$C$3:$BC$3,0)))/SUMIF(População!$B$4:$F$79,Analise!$B$17,População!$F$4:$F$79)*100000) -> 7.505569923 | X5: =IF((INDEX(DenPro2019!$C$4:$BC$80,MATCH(Analise!$B$17,DenPro2019!$B$4:$B$80,0),MATCH(Analise!X3,DenPro2019!$C$3:$BC$3,0)))="",NA(),(INDEX(DenPro2019!$C$4:$BC$80,MATCH(Analise!$B$17,DenPro2019!$B$4:$B$80,0),MATCH(Analise!X3,DenPro2019!$C$3:$BC$3,0)))/SUMIF(População!$B$4:$F$79,Analise!$B$17,População!$F$4:$F$79)*100000) -> 7.417785479 | Y5: =IF((INDEX(DenPro2019!$C$4:$BC$80,MATCH(Analise!$B$17,DenPro2019!$B$4:$B$80,0),MATCH(Analise!Y3,DenPro2019!$C$3:$BC$3,0)))="",NA(),(INDEX(DenPro2019!$C$4:$BC$80,MATCH(Analise!$B$17,DenPro2019!$B$4:$B$80,0),MATCH(Analise!Y3,DenPro2019!$C$3:$BC$3,0)))/SUMIF(População!$B$4:$F$79,Analise!$B$17,População!$F$4:$F$79)*100000) -> 8.16395325 | Z5: =IF((INDEX(DenPro2019!$C$4:$BC$80,MATCH(Analise!$B$17,DenPro2019!$B$4:$B$80,0),MATCH(Analise!Z3,DenPro2019!$C$3:$BC$3,0)))="",NA(),(INDEX(DenPro2019!$C$4:$BC$80,MATCH(Analise!$B$17,DenPro2019!$B$4:$B$80,0),MATCH(Analise!Z3,DenPro2019!$C$3:$BC$3,0)))/SUMIF(População!$B$4:$F$79,Analise!$B$17,População!$F$4:$F$79)*100000) -> 9.349043237 | AA5: =IF((INDEX(DenPro2019!$C$4:$BC$80,MATCH(Analise!$B$17,DenPro2019!$B$4:$B$80,0),MATCH(Analise!AA3,DenPro2019!$C$3:$BC$3,0)))="",NA(),(INDEX(DenPro2019!$C$4:$BC$80,MATCH(Analise!$B$17,DenPro2019!$B$4:$B$80,0),MATCH(Analise!AA3,DenPro2019!$C$3:$BC$3,0)))/SUMIF(População!$B$4:$F$79,Analise!$B$17,População!$F$4:$F$79)*100000) -> 11.71922321 | AB5: =IF((INDEX(DenPro2019!$C$4:$BC$80,MATCH(Analise!$B$17,DenPro2019!$B$4:$B$80,0),MATCH(Analise!AB3,DenPro2019!$C$3:$BC$3,0)))="",NA(),(INDEX(DenPro2019!$C$4:$BC$80,MATCH(Analise!$B$17,DenPro2019!$B$4:$B$80,0),MATCH(Analise!AB3,DenPro2019!$C$3:$BC$3,0)))/SUMIF(População!$B$4:$F$79,Analise!$B$17,População!$F$4:$F$79)*100000) -> 17.68856537 | AC5: =IF((INDEX(DenPro2019!$C$4:$BC$80,MATCH(Analise!$B$17,DenPro2019!$B$4:$B$80,0),MATCH(Analise!AC3,DenPro2019!$C$3:$BC$3,0)))="",NA(),(INDEX(DenPro2019!$C$4:$BC$80,MATCH(Analise!$B$17,DenPro2019!$B$4:$B$80,0),MATCH(Analise!AC3,DenPro2019!$C$3:$BC$3,0)))/SUMIF(População!$B$4:$F$79,Analise!$B$17,População!$F$4:$F$79)*100000) -> 18.87365536 | AD5: =IF((INDEX(DenPro2019!$C$4:$BC$80,MATCH(Analise!$B$17,DenPro2019!$B$4:$B$80,0),MATCH(Analise!AD3,DenPro2019!$C$3:$BC$3,0)))="",NA(),(INDEX(DenPro2019!$C$4:$BC$80,MATCH(Analise!$B$17,DenPro2019!$B$4:$B$80,0),MATCH(Analise!AD3,DenPro2019!$C$3:$BC$3,0)))/SUMIF(População!$B$4:$F$79,Analise!$B$17,População!$F$4:$F$79)*100000) -> 17.82024204 | AE5: =IF((INDEX(DenPro2019!$C$4:$BC$80,MATCH(Analise!$B$17,DenPro2019!$B$4:$B$80,0),MATCH(Analise!AE3,DenPro2019!$C$3:$BC$3,0)))="",NA(),(INDEX(DenPro2019!$C$4:$BC$80,MATCH(Analise!$B$17,DenPro2019!$B$4:$B$80,0),MATCH(Analise!AE3,DenPro2019!$C$3:$BC$3,0)))/SUMIF(População!$B$4:$F$79,Analise!$B$17,População!$F$4:$F$79)*100000) -> 15.62563095 | AF5: =IF((INDEX(DenPro2019!$C$4:$BC$80,MATCH(Analise!$B$17,DenPro2019!$B$4:$B$80,0),MATCH(Analise!AF3,DenPro2019!$C$3:$BC$3,0)))="",NA(),(INDEX(DenPro2019!$C$4:$BC$80,MATCH(Analise!$B$17,DenPro2019!$B$4:$B$80,0),MATCH(Analise!AF3,DenPro2019!$C$3:$BC$3,0)))/SUMIF(População!$B$4:$F$79,Analise!$B$17,População!$F$4:$F$79)*100000) -> 21.59497311 | AG5: =IF((INDEX(DenPro2019!$C$4:$BC$80,MATCH(Analise!$B$17,DenPro2019!$B$4:$B$80,0),MATCH(Analise!AG3,DenPro2019!$C$3:$BC$3,0)))="",NA(),(INDEX(DenPro2019!$C$4:$BC$80,MATCH(Analise!$B$17,DenPro2019!$B$4:$B$80,0),MATCH(Analise!AG3,DenPro2019!$C$3:$BC$3,0)))/SUMIF(População!$B$4:$F$79,Analise!$B$17,População!$F$4:$F$79)*100000) -> 18.7419787 | AH5: =IF((INDEX(DenPro2019!$C$4:$BC$80,MATCH(Analise!$B$17,DenPro2019!$B$4:$B$80,0),MATCH(Analise!AH3,DenPro2019!$C$3:$BC$3,0)))="",NA(),(INDEX(DenPro2019!$C$4:$BC$80,MATCH(Analise!$B$17,DenPro2019!$B$4:$B$80,0),MATCH(Analise!AH3,DenPro2019!$C$3:$BC$3,0)))/SUMIF(População!$B$4:$F$79,Analise!$B$17,População!$F$4:$F$79)*100000) -> 13.9138343 | AI5: =IF((INDEX(DenPro2019!$C$4:$BC$80,MATCH(Analise!$B$17,DenPro2019!$B$4:$B$80,0),MATCH(Analise!AI3,DenPro2019!$C$3:$BC$3,0)))="",NA(),(INDEX(DenPro2019!$C$4:$BC$80,MATCH(Analise!$B$17,DenPro2019!$B$4:$B$80,0),MATCH(Analise!AI3,DenPro2019!$C$3:$BC$3,0)))/SUMIF(População!$B$4:$F$79,Analise!$B$17,População!$F$4:$F$79)*100000) -> 12.59706765 | AJ5: =IF((INDEX(DenPro2019!$C$4:$BC$80,MATCH(Analise!$B$17,DenPro2019!$B$4:$B$80,0),MATCH(Analise!AJ3,DenPro2019!$C$3:$BC$3,0)))="",NA(),(INDEX(DenPro2019!$C$4:$BC$80,MATCH(Analise!$B$17,DenPro2019!$B$4:$B$80,0),MATCH(Analise!AJ3,DenPro2019!$C$3:$BC$3,0)))/SUMIF(População!$B$4:$F$79,Analise!$B$17,População!$F$4:$F$79)*100000) -> 13.56269653 | AK5: =IF((INDEX(DenPro2019!$C$4:$BC$80,MATCH(Analise!$B$17,DenPro2019!$B$4:$B$80,0),MATCH(Analise!AK3,DenPro2019!$C$3:$BC$3,0)))="",NA(),(INDEX(DenPro2019!$C$4:$BC$80,MATCH(Analise!$B$17,DenPro2019!$B$4:$B$80,0),MATCH(Analise!AK3,DenPro2019!$C$3:$BC$3,0)))/SUMIF(População!$B$4:$F$79,Analise!$B$17,População!$F$4:$F$79)*100000) -> 9.700181012 | AL5: =IF((INDEX(DenPro2019!$C$4:$BC$80,MATCH(Analise!$B$17,DenPro2019!$B$4:$B$80,0),MATCH(Analise!AL3,DenPro2019!$C$3:$BC$3,0)))="",NA(),(INDEX(DenPro2019!$C$4:$BC$80,MATCH(Analise!$B$17,DenPro2019!$B$4:$B$80,0),MATCH(Analise!AL3,DenPro2019!$C$3:$BC$3,0)))/SUMIF(População!$B$4:$F$79,Analise!$B$17,População!$F$4:$F$79)*100000) ->  | AM5: =IF((INDEX(DenPro2019!$C$4:$BC$80,MATCH(Analise!$B$17,DenPro2019!$B$4:$B$80,0),MATCH(Analise!AM3,DenPro2019!$C$3:$BC$3,0)))="",NA(),(INDEX(DenPro2019!$C$4:$BC$80,MATCH(Analise!$B$17,DenPro2019!$B$4:$B$80,0),MATCH(Analise!AM3,DenPro2019!$C$3:$BC$3,0)))/SUMIF(População!$B$4:$F$79,Analise!$B$17,População!$F$4:$F$79)*100000) ->  | AN5: =IF((INDEX(DenPro2019!$C$4:$BC$80,MATCH(Analise!$B$17,DenPro2019!$B$4:$B$80,0),MATCH(Analise!AN3,DenPro2019!$C$3:$BC$3,0)))="",NA(),(INDEX(DenPro2019!$C$4:$BC$80,MATCH(Analise!$B$17,DenPro2019!$B$4:$B$80,0),MATCH(Analise!AN3,DenPro2019!$C$3:$BC$3,0)))/SUMIF(População!$B$4:$F$79,Analise!$B$17,População!$F$4:$F$79)*100000) ->  | AO5: =IF((INDEX(DenPro2019!$C$4:$BC$80,MATCH(Analise!$B$17,DenPro2019!$B$4:$B$80,0),MATCH(Analise!AO3,DenPro2019!$C$3:$BC$3,0)))="",NA(),(INDEX(DenPro2019!$C$4:$BC$80,MATCH(Analise!$B$17,DenPro2019!$B$4:$B$80,0),MATCH(Analise!AO3,DenPro2019!$C$3:$BC$3,0)))/SUMIF(População!$B$4:$F$79,Analise!$B$17,População!$F$4:$F$79)*100000) ->  | AP5: =IF((INDEX(DenPro2019!$C$4:$BC$80,MATCH(Analise!$B$17,DenPro2019!$B$4:$B$80,0),MATCH(Analise!AP3,DenPro2019!$C$3:$BC$3,0)))="",NA(),(INDEX(DenPro2019!$C$4:$BC$80,MATCH(Analise!$B$17,DenPro2019!$B$4:$B$80,0),MATCH(Analise!AP3,DenPro2019!$C$3:$BC$3,0)))/SUMIF(População!$B$4:$F$79,Analise!$B$17,População!$F$4:$F$79)*100000) ->  | AQ5: =IF((INDEX(DenPro2019!$C$4:$BC$80,MATCH(Analise!$B$17,DenPro2019!$B$4:$B$80,0),MATCH(Analise!AQ3,DenPro2019!$C$3:$BC$3,0)))="",NA(),(INDEX(DenPro2019!$C$4:$BC$80,MATCH(Analise!$B$17,DenPro2019!$B$4:$B$80,0),MATCH(Analise!AQ3,DenPro2019!$C$3:$BC$3,0)))/SUMIF(População!$B$4:$F$79,Analise!$B$17,População!$F$4:$F$79)*100000) ->  | AR5: =IF((INDEX(DenPro2019!$C$4:$BC$80,MATCH(Analise!$B$17,DenPro2019!$B$4:$B$80,0),MATCH(Analise!AR3,DenPro2019!$C$3:$BC$3,0)))="",NA(),(INDEX(DenPro2019!$C$4:$BC$80,MATCH(Analise!$B$17,DenPro2019!$B$4:$B$80,0),MATCH(Analise!AR3,DenPro2019!$C$3:$BC$3,0)))/SUMIF(População!$B$4:$F$79,Analise!$B$17,População!$F$4:$F$79)*100000) ->  | AS5: =IF((INDEX(DenPro2019!$C$4:$BC$80,MATCH(Analise!$B$17,DenPro2019!$B$4:$B$80,0),MATCH(Analise!AS3,DenPro2019!$C$3:$BC$3,0)))="",NA(),(INDEX(DenPro2019!$C$4:$BC$80,MATCH(Analise!$B$17,DenPro2019!$B$4:$B$80,0),MATCH(Analise!AS3,DenPro2019!$C$3:$BC$3,0)))/SUMIF(População!$B$4:$F$79,Analise!$B$17,População!$F$4:$F$79)*100000) ->  | AT5: =IF((INDEX(DenPro2019!$C$4:$BC$80,MATCH(Analise!$B$17,DenPro2019!$B$4:$B$80,0),MATCH(Analise!AT3,DenPro2019!$C$3:$BC$3,0)))="",NA(),(INDEX(DenPro2019!$C$4:$BC$80,MATCH(Analise!$B$17,DenPro2019!$B$4:$B$80,0),MATCH(Analise!AT3,DenPro2019!$C$3:$BC$3,0)))/SUMIF(População!$B$4:$F$79,Analise!$B$17,População!$F$4:$F$79)*100000) ->  | AU5: =IF((INDEX(DenPro2019!$C$4:$BC$80,MATCH(Analise!$B$17,DenPro2019!$B$4:$B$80,0),MATCH(Analise!AU3,DenPro2019!$C$3:$BC$3,0)))="",NA(),(INDEX(DenPro2019!$C$4:$BC$80,MATCH(Analise!$B$17,DenPro2019!$B$4:$B$80,0),MATCH(Analise!AU3,DenPro2019!$C$3:$BC$3,0)))/SUMIF(População!$B$4:$F$79,Analise!$B$17,População!$F$4:$F$79)*100000) ->  | AV5: =IF((INDEX(DenPro2019!$C$4:$BC$80,MATCH(Analise!$B$17,DenPro2019!$B$4:$B$80,0),MATCH(Analise!AV3,DenPro2019!$C$3:$BC$3,0)))="",NA(),(INDEX(DenPro2019!$C$4:$BC$80,MATCH(Analise!$B$17,DenPro2019!$B$4:$B$80,0),MATCH(Analise!AV3,DenPro2019!$C$3:$BC$3,0)))/SUMIF(População!$B$4:$F$79,Analise!$B$17,População!$F$4:$F$79)*100000) ->  | AW5: =IF((INDEX(DenPro2019!$C$4:$BC$80,MATCH(Analise!$B$17,DenPro2019!$B$4:$B$80,0),MATCH(Analise!AW3,DenPro2019!$C$3:$BC$3,0)))="",NA(),(INDEX(DenPro2019!$C$4:$BC$80,MATCH(Analise!$B$17,DenPro2019!$B$4:$B$80,0),MATCH(Analise!AW3,DenPro2019!$C$3:$BC$3,0)))/SUMIF(População!$B$4:$F$79,Analise!$B$17,População!$F$4:$F$79)*100000) ->  | AX5: =IF((INDEX(DenPro2019!$C$4:$BC$80,MATCH(Analise!$B$17,DenPro2019!$B$4:$B$80,0),MATCH(Analise!AX3,DenPro2019!$C$3:$BC$3,0)))="",NA(),(INDEX(DenPro2019!$C$4:$BC$80,MATCH(Analise!$B$17,DenPro2019!$B$4:$B$80,0),MATCH(Analise!AX3,DenPro2019!$C$3:$BC$3,0)))/SUMIF(População!$B$4:$F$79,Analise!$B$17,População!$F$4:$F$79)*100000) ->  | AY5: =IF((INDEX(DenPro2019!$C$4:$BC$80,MATCH(Analise!$B$17,DenPro2019!$B$4:$B$80,0),MATCH(Analise!AY3,DenPro2019!$C$3:$BC$3,0)))="",NA(),(INDEX(DenPro2019!$C$4:$BC$80,MATCH(Analise!$B$17,DenPro2019!$B$4:$B$80,0),MATCH(Analise!AY3,DenPro2019!$C$3:$BC$3,0)))/SUMIF(População!$B$4:$F$79,Analise!$B$17,População!$F$4:$F$79)*100000) ->  | AZ5: =IF((INDEX(DenPro2019!$C$4:$BC$80,MATCH(Analise!$B$17,DenPro2019!$B$4:$B$80,0),MATCH(Analise!AZ3,DenPro2019!$C$3:$BC$3,0)))="",NA(),(INDEX(DenPro2019!$C$4:$BC$80,MATCH(Analise!$B$17,DenPro2019!$B$4:$B$80,0),MATCH(Analise!AZ3,DenPro2019!$C$3:$BC$3,0)))/SUMIF(População!$B$4:$F$79,Analise!$B$17,População!$F$4:$F$79)*100000) ->  | BA5: =IF((INDEX(DenPro2019!$C$4:$BC$80,MATCH(Analise!$B$17,DenPro2019!$B$4:$B$80,0),MATCH(Analise!BA3,DenPro2019!$C$3:$BC$3,0)))="",NA(),(INDEX(DenPro2019!$C$4:$BC$80,MATCH(Analise!$B$17,DenPro2019!$B$4:$B$80,0),MATCH(Analise!BA3,DenPro2019!$C$3:$BC$3,0)))/SUMIF(População!$B$4:$F$79,Analise!$B$17,População!$F$4:$F$79)*100000) ->  | BB5: =IF((INDEX(DenPro2019!$C$4:$BC$80,MATCH(Analise!$B$17,DenPro2019!$B$4:$B$80,0),MATCH(Analise!BB3,DenPro2019!$C$3:$BC$3,0)))="",NA(),(INDEX(DenPro2019!$C$4:$BC$80,MATCH(Analise!$B$17,DenPro2019!$B$4:$B$80,0),MATCH(Analise!BB3,DenPro2019!$C$3:$BC$3,0)))/SUMIF(População!$B$4:$F$79,Analise!$B$17,População!$F$4:$F$79)*100000) ->  | BC5: =IF((INDEX(DenPro2019!$C$4:$BC$80,MATCH(Analise!$B$17,DenPro2019!$B$4:$B$80,0),MATCH(Analise!BC3,DenPro2019!$C$3:$BC$3,0)))="",NA(),(INDEX(DenPro2019!$C$4:$BC$80,MATCH(Analise!$B$17,DenPro2019!$B$4:$B$80,0),MATCH(Analise!BC3,DenPro2019!$C$3:$BC$3,0)))/SUMIF(População!$B$4:$F$79,Analise!$B$17,População!$F$4:$F$79)*100000) ->  | BD5: =IF((INDEX(DenPro2019!$C$4:$BD$80,MATCH(Analise!$B$17,DenPro2019!$B$4:$B$80,0),MATCH(Analise!BD3,DenPro2019!$C$3:$BD$3,0)))="",NA(),(INDEX(DenPro2019!$C$4:$BD$80,MATCH(Analise!$B$17,DenPro2019!$B$4:$B$80,0),MATCH(Analise!BD3,DenPro2019!$C$3:$BD$3,0)))/SUMIF(População!$B$4:$F$79,Analise!$B$17,População!$F$4:$F$79)*100000) -> 229.6002121
A6: Chikungunya | B6: =PainelArbovirose!$B$4 -> Sergipe | C6: =IF((INDEX(ChiPro2019!$C$4:$BC$80,MATCH(Analise!$B$17,ChiPro2019!$B$4:$B$80,0),MATCH(Analise!C3,ChiPro2019!$C$3:$BC$3,0)))="",NA(),(INDEX(ChiPro2019!$C$4:$BC$80,MATCH(Analise!$B$17,ChiPro2019!$B$4:$B$80,0),MATCH(Analise!C3,ChiPro2019!$C$3:$BC$3,0)))/SUMIF(População!$B$4:$F$79,Analise!$B$17,População!$F$4:$F$79)*100000) -> 0.04389222177 | D6: =IF((INDEX(ChiPro2019!$C$4:$BC$80,MATCH(Analise!$B$17,ChiPro2019!$B$4:$B$80,0),MATCH(Analise!D3,ChiPro2019!$C$3:$BC$3,0)))="",NA(),(INDEX(ChiPro2019!$C$4:$BC$80,MATCH(Analise!$B$17,ChiPro2019!$B$4:$B$80,0),MATCH(Analise!D3,ChiPro2019!$C$3:$BC$3,0)))/SUMIF(População!$B$4:$F$79,Analise!$B$17,População!$F$4:$F$79)*100000) -> 0 | E6: =IF((INDEX(ChiPro2019!$C$4:$BC$80,MATCH(Analise!$B$17,ChiPro2019!$B$4:$B$80,0),MATCH(Analise!E3,ChiPro2019!$C$3:$BC$3,0)))="",NA(),(INDEX(ChiPro2019!$C$4:$BC$80,MATCH(Analise!$B$17,ChiPro2019!$B$4:$B$80,0),MATCH(Analise!E3,ChiPro2019!$C$3:$BC$3,0)))/SUMIF(População!$B$4:$F$79,Analise!$B$17,População!$F$4:$F$79)*100000) -> 0.04389222177 | F6: =IF((INDEX(ChiPro2019!$C$4:$BC$80,MATCH(Analise!$B$17,ChiPro2019!$B$4:$B$80,0),MATCH(Analise!F3,ChiPro2019!$C$3:$BC$3,0)))="",NA(),(INDEX(ChiPro2019!$C$4:$BC$80,MATCH(Analise!$B$17,ChiPro2019!$B$4:$B$80,0),MATCH(Analise!F3,ChiPro2019!$C$3:$BC$3,0)))/SUMIF(População!$B$4:$F$79,Analise!$B$17,População!$F$4:$F$79)*100000) -> 0.04389222177 | G6: =IF((INDEX(ChiPro2019!$C$4:$BC$80,MATCH(Analise!$B$17,ChiPro2019!$B$4:$B$80,0),MATCH(Analise!G3,ChiPro2019!$C$3:$BC$3,0)))="",NA(),(INDEX(ChiPro2019!$C$4:$BC$80,MATCH(Analise!$B$17,ChiPro2019!$B$4:$B$80,0),MATCH(Analise!G3,ChiPro2019!$C$3:$BC$3,0)))/SUMIF(População!$B$4:$F$79,Analise!$B$17,População!$F$4:$F$79)*100000) -> 0 | H6: =IF((INDEX(ChiPro2019!$C$4:$BC$80,MATCH(Analise!$B$17,ChiPro2019!$B$4:$B$80,0),MATCH(Analise!H3,ChiPro2019!$C$3:$BC$3,0)))="",NA(),(INDEX(ChiPro2019!$C$4:$BC$80,MATCH(Analise!$B$17,ChiPro2019!$B$4:$B$80,0),MATCH(Analise!H3,ChiPro2019!$C$3:$BC$3,0)))/SUMIF(População!$B$4:$F$79,Analise!$B$17,População!$F$4:$F$79)*100000) -> 0.08778444354 | I6: =IF((INDEX(ChiPro2019!$C$4:$BC$80,MATCH(Analise!$B$17,ChiPro2019!$B$4:$B$80,0),MATCH(Analise!I3,ChiPro2019!$C$3:$BC$3,0)))="",NA(),(INDEX(ChiPro2019!$C$4:$BC$80,MATCH(Analise!$B$17,ChiPro2019!$B$4:$B$80,0),MATCH(Analise!I3,ChiPro2019!$C$3:$BC$3,0)))/SUMIF(População!$B$4:$F$79,Analise!$B$17,População!$F$4:$F$79)*100000) -> 0 | J6: =IF((INDEX(ChiPro2019!$C$4:$BC$80,MATCH(Analise!$B$17,ChiPro2019!$B$4:$B$80,0),MATCH(Analise!J3,ChiPro2019!$C$3:$BC$3,0)))="",NA(),(INDEX(ChiPro2019!$C$4:$BC$80,MATCH(Analise!$B$17,ChiPro2019!$B$4:$B$80,0),MATCH(Analise!J3,ChiPro2019!$C$3:$BC$3,0)))/SUMIF(População!$B$4:$F$79,Analise!$B$17,População!$F$4:$F$79)*100000) -> 0.08778444354 | K6: =IF((INDEX(ChiPro2019!$C$4:$BC$80,MATCH(Analise!$B$17,ChiPro2019!$B$4:$B$80,0),MATCH(Analise!K3,ChiPro2019!$C$3:$BC$3,0)))="",NA(),(INDEX(ChiPro2019!$C$4:$BC$80,MATCH(Analise!$B$17,ChiPro2019!$B$4:$B$80,0),MATCH(Analise!K3,ChiPro2019!$C$3:$BC$3,0)))/SUMIF(População!$B$4:$F$79,Analise!$B$17,População!$F$4:$F$79)*100000) -> 0 | L6: =IF((INDEX(ChiPro2019!$C$4:$BC$80,MATCH(Analise!$B$17,ChiPro2019!$B$4:$B$80,0),MATCH(Analise!L3,ChiPro2019!$C$3:$BC$3,0)))="",NA(),(INDEX(ChiPro2019!$C$4:$BC$80,MATCH(Analise!$B$17,ChiPro2019!$B$4:$B$80,0),MATCH(Analise!L3,ChiPro2019!$C$3:$BC$3,0)))/SUMIF(População!$B$4:$F$79,Analise!$B$17,População!$F$4:$F$79)*100000) -> 0 | M6: =IF((INDEX(ChiPro2019!$C$4:$BC$80,MATCH(Analise!$B$17,ChiPro2019!$B$4:$B$80,0),MATCH(Analise!M3,ChiPro2019!$C$3:$BC$3,0)))="",NA(),(INDEX(ChiPro2019!$C$4:$BC$80,MATCH(Analise!$B$17,ChiPro2019!$B$4:$B$80,0),MATCH(Analise!M3,ChiPro2019!$C$3:$BC$3,0)))/SUMIF(População!$B$4:$F$79,Analise!$B$17,População!$F$4:$F$79)*100000) -> 0 | N6: =IF((INDEX(ChiPro2019!$C$4:$BC$80,MATCH(Analise!$B$17,ChiPro2019!$B$4:$B$80,0),MATCH(Analise!N3,ChiPro2019!$C$3:$BC$3,0)))="",NA(),(INDEX(ChiPro2019!$C$4:$BC$80,MATCH(Analise!$B$17,ChiPro2019!$B$4:$B$80,0),MATCH(Analise!N3,ChiPro2019!$C$3:$BC$3,0)))/SUMIF(População!$B$4:$F$79,Analise!$B$17,População!$F$4:$F$79)*100000) -> 0.04389222177 | O6: =IF((INDEX(ChiPro2019!$C$4:$BC$80,MATCH(Analise!$B$17,ChiPro2019!$B$4:$B$80,0),MATCH(Analise!O3,ChiPro2019!$C$3:$BC$3,0)))="",NA(),(INDEX(ChiPro2019!$C$4:$BC$80,MATCH(Analise!$B$17,ChiPro2019!$B$4:$B$80,0),MATCH(Analise!O3,ChiPro2019!$C$3:$BC$3,0)))/SUMIF(População!$B$4:$F$79,Analise!$B$17,População!$F$4:$F$79)*100000) -> 0.08778444354 | P6: =IF((INDEX(ChiPro2019!$C$4:$BC$80,MATCH(Analise!$B$17,ChiPro2019!$B$4:$B$80,0),MATCH(Analise!P3,ChiPro2019!$C$3:$BC$3,0)))="",NA(),(INDEX(ChiPro2019!$C$4:$BC$80,MATCH(Analise!$B$17,ChiPro2019!$B$4:$B$80,0),MATCH(Analise!P3,ChiPro2019!$C$3:$BC$3,0)))/SUMIF(População!$B$4:$F$79,Analise!$B$17,População!$F$4:$F$79)*100000) -> 0.04389222177 | Q6: =IF((INDEX(ChiPro2019!$C$4:$BC$80,MATCH(Analise!$B$17,ChiPro2019!$B$4:$B$80,0),MATCH(Analise!Q3,ChiPro2019!$C$3:$BC$3,0)))="",NA(),(INDEX(ChiPro2019!$C$4:$BC$80,MATCH(Analise!$B$17,ChiPro2019!$B$4:$B$80,0),MATCH(Analise!Q3,ChiPro2019!$C$3:$BC$3,0)))/SUMIF(População!$B$4:$F$79,Analise!$B$17,População!$F$4:$F$79)*100000) -> 0 | R6: =IF((INDEX(ChiPro2019!$C$4:$BC$80,MATCH(Analise!$B$17,ChiPro2019!$B$4:$B$80,0),MATCH(Analise!R3,ChiPro2019!$C$3:$BC$3,0)))="",NA(),(INDEX(ChiPro2019!$C$4:$BC$80,MATCH(Analise!$B$17,ChiPro2019!$B$4:$B$80,0),MATCH(Analise!R3,ChiPro2019!$C$3:$BC$3,0)))/SUMIF(População!$B$4:$F$79,Analise!$B$17,População!$F$4:$F$79)*100000) -> 0 | S6: =IF((INDEX(ChiPro2019!$C$4:$BC$80,MATCH(Analise!$B$17,ChiPro2019!$B$4:$B$80,0),MATCH(Analise!S3,ChiPro2019!$C$3:$BC$3,0)))="",NA(),(INDEX(ChiPro2019!$C$4:$BC$80,MATCH(Analise!$B$17,ChiPro2019!$B$4:$B$80,0),MATCH(Analise!S3,ChiPro2019!$C$3:$BC$3,0)))/SUMIF(População!$B$4:$F$79,Analise!$B$17,População!$F$4:$F$79)*100000) -> 0 | T6: =IF((INDEX(ChiPro2019!$C$4:$BC$80,MATCH(Analise!$B$17,ChiPro2019!$B$4:$B$80,0),MATCH(Analise!T3,ChiPro2019!$C$3:$BC$3,0)))="",NA(),(INDEX(ChiPro2019!$C$4:$BC$80,MATCH(Analise!$B$17,ChiPro2019!$B$4:$B$80,0),MATCH(Analise!T3,ChiPro2019!$C$3:$BC$3,0)))/SUMIF(População!$B$4:$F$79,Analise!$B$17,População!$F$4:$F$79)*100000) -> 0 | U6: =IF((INDEX(ChiPro2019!$C$4:$BC$80,MATCH(Analise!$B$17,ChiPro2019!$B$4:$B$80,0),MATCH(Analise!U3,ChiPro2019!$C$3:$BC$3,0)))="",NA(),(INDEX(ChiPro2019!$C$4:$BC$80,MATCH(Analise!$B$17,ChiPro2019!$B$4:$B$80,0),MATCH(Analise!U3,ChiPro2019!$C$3:$BC$3,0)))/SUMIF(População!$B$4:$F$79,Analise!$B$17,População!$F$4:$F$79)*100000) -> 0 | V6: =IF((INDEX(ChiPro2019!$C$4:$BC$80,MATCH(Analise!$B$17,ChiPro2019!$B$4:$B$80,0),MATCH(Analise!V3,ChiPro2019!$C$3:$BC$3,0)))="",NA(),(INDEX(ChiPro2019!$C$4:$BC$80,MATCH(Analise!$B$17,ChiPro2019!$B$4:$B$80,0),MATCH(Analise!V3,ChiPro2019!$C$3:$BC$3,0)))/SUMIF(População!$B$4:$F$79,Analise!$B$17,População!$F$4:$F$79)*100000) -> 0.1316766653 | W6: =IF((INDEX(ChiPro2019!$C$4:$BC$80,MATCH(Analise!$B$17,ChiPro2019!$B$4:$B$80,0),MATCH(Analise!W3,ChiPro2019!$C$3:$BC$3,0)))="",NA(),(INDEX(ChiPro2019!$C$4:$BC$80,MATCH(Analise!$B$17,ChiPro2019!$B$4:$B$80,0),MATCH(Analise!W3,ChiPro2019!$C$3:$BC$3,0)))/SUMIF(População!$B$4:$F$79,Analise!$B$17,População!$F$4:$F$79)*100000) -> 0.1755688871 | X6: =IF((INDEX(ChiPro2019!$C$4:$BC$80,MATCH(Analise!$B$17,ChiPro2019!$B$4:$B$80,0),MATCH(Analise!X3,ChiPro2019!$C$3:$BC$3,0)))="",NA(),(INDEX(ChiPro2019!$C$4:$BC$80,MATCH(Analise!$B$17,ChiPro2019!$B$4:$B$80,0),MATCH(Analise!X3,ChiPro2019!$C$3:$BC$3,0)))/SUMIF(População!$B$4:$F$79,Analise!$B$17,População!$F$4:$F$79)*100000) -> 0.04389222177 | Y6: =IF((INDEX(ChiPro2019!$C$4:$BC$80,MATCH(Analise!$B$17,ChiPro2019!$B$4:$B$80,0),MATCH(Analise!Y3,ChiPro2019!$C$3:$BC$3,0)))="",NA(),(INDEX(ChiPro2019!$C$4:$BC$80,MATCH(Analise!$B$17,ChiPro2019!$B$4:$B$80,0),MATCH(Analise!Y3,ChiPro2019!$C$3:$BC$3,0)))/SUMIF(População!$B$4:$F$79,Analise!$B$17,População!$F$4:$F$79)*100000) -> 0 | Z6: =IF((INDEX(ChiPro2019!$C$4:$BC$80,MATCH(Analise!$B$17,ChiPro2019!$B$4:$B$80,0),MATCH(Analise!Z3,ChiPro2019!$C$3:$BC$3,0)))="",NA(),(INDEX(ChiPro2019!$C$4:$BC$80,MATCH(Analise!$B$17,ChiPro2019!$B$4:$B$80,0),MATCH(Analise!Z3,ChiPro2019!$C$3:$BC$3,0)))/SUMIF(População!$B$4:$F$79,Analise!$B$17,População!$F$4:$F$79)*100000) -> 0.3072455524 | AA6: =IF((INDEX(ChiPro2019!$C$4:$BC$80,MATCH(Analise!$B$17,ChiPro2019!$B$4:$B$80,0),MATCH(Analise!AA3,ChiPro2019!$C$3:$BC$3,0)))="",NA(),(INDEX(ChiPro2019!$C$4:$BC$80,MATCH(Analise!$B$17,ChiPro2019!$B$4:$B$80,0),MATCH(Analise!AA3,ChiPro2019!$C$3:$BC$3,0)))/SUMIF(População!$B$4:$F$79,Analise!$B$17,População!$F$4:$F$79)*100000) -> 0.3950299959 | AB6: =IF((INDEX(ChiPro2019!$C$4:$BC$80,MATCH(Analise!$B$17,ChiPro2019!$B$4:$B$80,0),MATCH(Analise!AB3,ChiPro2019!$C$3:$BC$3,0)))="",NA(),(INDEX(ChiPro2019!$C$4:$BC$80,MATCH(Analise!$B$17,ChiPro2019!$B$4:$B$80,0),MATCH(Analise!AB3,ChiPro2019!$C$3:$BC$3,0)))/SUMIF(População!$B$4:$F$79,Analise!$B$17,População!$F$4:$F$79)*100000) -> 0.1316766653 | AC6: =IF((INDEX(ChiPro2019!$C$4:$BC$80,MATCH(Analise!$B$17,ChiPro2019!$B$4:$B$80,0),MATCH(Analise!AC3,ChiPro2019!$C$3:$BC$3,0)))="",NA(),(INDEX(ChiPro2019!$C$4:$BC$80,MATCH(Analise!$B$17,ChiPro2019!$B$4:$B$80,0),MATCH(Analise!AC3,ChiPro2019!$C$3:$BC$3,0)))/SUMIF(População!$B$4:$F$79,Analise!$B$17,População!$F$4:$F$79)*100000) -> 0.2194611089 | AD6: =IF((INDEX(ChiPro2019!$C$4:$BC$80,MATCH(Analise!$B$17,ChiPro2019!$B$4:$B$80,0),MATCH(Analise!AD3,ChiPro2019!$C$3:$BC$3,0)))="",NA(),(INDEX(ChiPro2019!$C$4:$BC$80,MATCH(Analise!$B$17,ChiPro2019!$B$4:$B$80,0),MATCH(Analise!AD3,ChiPro2019!$C$3:$BC$3,0)))/SUMIF(População!$B$4:$F$79,Analise!$B$17,População!$F$4:$F$79)*100000) -> 0.6144911048 | AE6: =IF((INDEX(ChiPro2019!$C$4:$BC$80,MATCH(Analise!$B$17,ChiPro2019!$B$4:$B$80,0),MATCH(Analise!AE3,ChiPro2019!$C$3:$BC$3,0)))="",NA(),(INDEX(ChiPro2019!$C$4:$BC$80,MATCH(Analise!$B$17,ChiPro2019!$B$4:$B$80,0),MATCH(Analise!AE3,ChiPro2019!$C$3:$BC$3,0)))/SUMIF(População!$B$4:$F$79,Analise!$B$17,População!$F$4:$F$79)*100000) -> 0.8778444354 | AF6: =IF((INDEX(ChiPro2019!$C$4:$BC$80,MATCH(Analise!$B$17,ChiPro2019!$B$4:$B$80,0),MATCH(Analise!AF3,ChiPro2019!$C$3:$BC$3,0)))="",NA(),(INDEX(ChiPro2019!$C$4:$BC$80,MATCH(Analise!$B$17,ChiPro2019!$B$4:$B$80,0),MATCH(Analise!AF3,ChiPro2019!$C$3:$BC$3,0)))/SUMIF(População!$B$4:$F$79,Analise!$B$17,População!$F$4:$F$79)*100000) -> 0.7461677701 | AG6: =IF((INDEX(ChiPro2019!$C$4:$BC$80,MATCH(Analise!$B$17,ChiPro2019!$B$4:$B$80,0),MATCH(Analise!AG3,ChiPro2019!$C$3:$BC$3,0)))="",NA(),(INDEX(ChiPro2019!$C$4:$BC$80,MATCH(Analise!$B$17,ChiPro2019!$B$4:$B$80,0),MATCH(Analise!AG3,ChiPro2019!$C$3:$BC$3,0)))/SUMIF(População!$B$4:$F$79,Analise!$B$17,População!$F$4:$F$79)*100000) -> 0.8339522137 | AH6: =IF((INDEX(ChiPro2019!$C$4:$BC$80,MATCH(Analise!$B$17,ChiPro2019!$B$4:$B$80,0),MATCH(Analise!AH3,ChiPro2019!$C$3:$BC$3,0)))="",NA(),(INDEX(ChiPro2019!$C$4:$BC$80,MATCH(Analise!$B$17,ChiPro2019!$B$4:$B$80,0),MATCH(Analise!AH3,ChiPro2019!$C$3:$BC$3,0)))/SUMIF(População!$B$4:$F$79,Analise!$B$17,População!$F$4:$F$79)*100000) -> 1.360658875 | AI6: =IF((INDEX(ChiPro2019!$C$4:$BC$80,MATCH(Analise!$B$17,ChiPro2019!$B$4:$B$80,0),MATCH(Analise!AI3,ChiPro2019!$C$3:$BC$3,0)))="",NA(),(INDEX(ChiPro2019!$C$4:$BC$80,MATCH(Analise!$B$17,ChiPro2019!$B$4:$B$80,0),MATCH(Analise!AI3,ChiPro2019!$C$3:$BC$3,0)))/SUMIF(População!$B$4:$F$79,Analise!$B$17,População!$F$4:$F$79)*100000) -> 1.053413323 | AJ6: =IF((INDEX(ChiPro2019!$C$4:$BC$80,MATCH(Analise!$B$17,ChiPro2019!$B$4:$B$80,0),MATCH(Analise!AJ3,ChiPro2019!$C$3:$BC$3,0)))="",NA(),(INDEX(ChiPro2019!$C$4:$BC$80,MATCH(Analise!$B$17,ChiPro2019!$B$4:$B$80,0),MATCH(Analise!AJ3,ChiPro2019!$C$3:$BC$3,0)))/SUMIF(População!$B$4:$F$79,Analise!$B$17,População!$F$4:$F$79)*100000) -> 1.185089988 | AK6: =IF((INDEX(ChiPro2019!$C$4:$BC$80,MATCH(Analise!$B$17,ChiPro2019!$B$4:$B$80,0),MATCH(Analise!AK3,ChiPro2019!$C$3:$BC$3,0)))="",NA(),(INDEX(ChiPro2019!$C$4:$BC$80,MATCH(Analise!$B$17,ChiPro2019!$B$4:$B$80,0),MATCH(Analise!AK3,ChiPro2019!$C$3:$BC$3,0)))/SUMIF(População!$B$4:$F$79,Analise!$B$17,População!$F$4:$F$79)*100000) -> 1.316766653 | AL6: =IF((INDEX(ChiPro2019!$C$4:$BC$80,MATCH(Analise!$B$17,ChiPro2019!$B$4:$B$80,0),MATCH(Analise!AL3,ChiPro2019!$C$3:$BC$3,0)))="",NA(),(INDEX(ChiPro2019!$C$4:$BC$80,MATCH(Analise!$B$17,ChiPro2019!$B$4:$B$80,0),MATCH(Analise!AL3,ChiPro2019!$C$3:$BC$3,0)))/SUMIF(População!$B$4:$F$79,Analise!$B$17,População!$F$4:$F$79)*100000) ->  | AM6: =IF((INDEX(ChiPro2019!$C$4:$BC$80,MATCH(Analise!$B$17,ChiPro2019!$B$4:$B$80,0),MATCH(Analise!AM3,ChiPro2019!$C$3:$BC$3,0)))="",NA(),(INDEX(ChiPro2019!$C$4:$BC$80,MATCH(Analise!$B$17,ChiPro2019!$B$4:$B$80,0),MATCH(Analise!AM3,ChiPro2019!$C$3:$BC$3,0)))/SUMIF(População!$B$4:$F$79,Analise!$B$17,População!$F$4:$F$79)*100000) ->  | AN6: =IF((INDEX(ChiPro2019!$C$4:$BC$80,MATCH(Analise!$B$17,ChiPro2019!$B$4:$B$80,0),MATCH(Analise!AN3,ChiPro2019!$C$3:$BC$3,0)))="",NA(),(INDEX(ChiPro2019!$C$4:$BC$80,MATCH(Analise!$B$17,ChiPro2019!$B$4:$B$80,0),MATCH(Analise!AN3,ChiPro2019!$C$3:$BC$3,0)))/SUMIF(População!$B$4:$F$79,Analise!$B$17,População!$F$4:$F$79)*100000) ->  | AO6: =IF((INDEX(ChiPro2019!$C$4:$BC$80,MATCH(Analise!$B$17,ChiPro2019!$B$4:$B$80,0),MATCH(Analise!AO3,ChiPro2019!$C$3:$BC$3,0)))="",NA(),(INDEX(ChiPro2019!$C$4:$BC$80,MATCH(Analise!$B$17,ChiPro2019!$B$4:$B$80,0),MATCH(Analise!AO3,ChiPro2019!$C$3:$BC$3,0)))/SUMIF(População!$B$4:$F$79,Analise!$B$17,População!$F$4:$F$79)*100000) ->  | AP6: =IF((INDEX(ChiPro2019!$C$4:$BC$80,MATCH(Analise!$B$17,ChiPro2019!$B$4:$B$80,0),MATCH(Analise!AP3,ChiPro2019!$C$3:$BC$3,0)))="",NA(),(INDEX(ChiPro2019!$C$4:$BC$80,MATCH(Analise!$B$17,ChiPro2019!$B$4:$B$80,0),MATCH(Analise!AP3,ChiPro2019!$C$3:$BC$3,0)))/SUMIF(População!$B$4:$F$79,Analise!$B$17,População!$F$4:$F$79)*100000) ->  | AQ6: =IF((INDEX(ChiPro2019!$C$4:$BC$80,MATCH(Analise!$B$17,ChiPro2019!$B$4:$B$80,0),MATCH(Analise!AQ3,ChiPro2019!$C$3:$BC$3,0)))="",NA(),(INDEX(ChiPro2019!$C$4:$BC$80,MATCH(Analise!$B$17,ChiPro2019!$B$4:$B$80,0),MATCH(Analise!AQ3,ChiPro2019!$C$3:$BC$3,0)))/SUMIF(População!$B$4:$F$79,Analise!$B$17,População!$F$4:$F$79)*100000) ->  | AR6: =IF((INDEX(ChiPro2019!$C$4:$BC$80,MATCH(Analise!$B$17,ChiPro2019!$B$4:$B$80,0),MATCH(Analise!AR3,ChiPro2019!$C$3:$BC$3,0)))="",NA(),(INDEX(ChiPro2019!$C$4:$BC$80,MATCH(Analise!$B$17,ChiPro2019!$B$4:$B$80,0),MATCH(Analise!AR3,ChiPro2019!$C$3:$BC$3,0)))/SUMIF(População!$B$4:$F$79,Analise!$B$17,População!$F$4:$F$79)*100000) ->  | AS6: =IF((INDEX(ChiPro2019!$C$4:$BC$80,MATCH(Analise!$B$17,ChiPro2019!$B$4:$B$80,0),MATCH(Analise!AS3,ChiPro2019!$C$3:$BC$3,0)))="",NA(),(INDEX(ChiPro2019!$C$4:$BC$80,MATCH(Analise!$B$17,ChiPro2019!$B$4:$B$80,0),MATCH(Analise!AS3,ChiPro2019!$C$3:$BC$3,0)))/SUMIF(População!$B$4:$F$79,Analise!$B$17,População!$F$4:$F$79)*100000) ->  | AT6: =IF((INDEX(ChiPro2019!$C$4:$BC$80,MATCH(Analise!$B$17,ChiPro2019!$B$4:$B$80,0),MATCH(Analise!AT3,ChiPro2019!$C$3:$BC$3,0)))="",NA(),(INDEX(ChiPro2019!$C$4:$BC$80,MATCH(Analise!$B$17,ChiPro2019!$B$4:$B$80,0),MATCH(Analise!AT3,ChiPro2019!$C$3:$BC$3,0)))/SUMIF(População!$B$4:$F$79,Analise!$B$17,População!$F$4:$F$79)*100000) ->  | AU6: =IF((INDEX(ChiPro2019!$C$4:$BC$80,MATCH(Analise!$B$17,ChiPro2019!$B$4:$B$80,0),MATCH(Analise!AU3,ChiPro2019!$C$3:$BC$3,0)))="",NA(),(INDEX(ChiPro2019!$C$4:$BC$80,MATCH(Analise!$B$17,ChiPro2019!$B$4:$B$80,0),MATCH(Analise!AU3,ChiPro2019!$C$3:$BC$3,0)))/SUMIF(População!$B$4:$F$79,Analise!$B$17,População!$F$4:$F$79)*100000) ->  | AV6: =IF((INDEX(ChiPro2019!$C$4:$BC$80,MATCH(Analise!$B$17,ChiPro2019!$B$4:$B$80,0),MATCH(Analise!AV3,ChiPro2019!$C$3:$BC$3,0)))="",NA(),(INDEX(ChiPro2019!$C$4:$BC$80,MATCH(Analise!$B$17,ChiPro2019!$B$4:$B$80,0),MATCH(Analise!AV3,ChiPro2019!$C$3:$BC$3,0)))/SUMIF(População!$B$4:$F$79,Analise!$B$17,População!$F$4:$F$79)*100000) ->  | AW6: =IF((INDEX(ChiPro2019!$C$4:$BC$80,MATCH(Analise!$B$17,ChiPro2019!$B$4:$B$80,0),MATCH(Analise!AW3,ChiPro2019!$C$3:$BC$3,0)))="",NA(),(INDEX(ChiPro2019!$C$4:$BC$80,MATCH(Analise!$B$17,ChiPro2019!$B$4:$B$80,0),MATCH(Analise!AW3,ChiPro2019!$C$3:$BC$3,0)))/SUMIF(População!$B$4:$F$79,Analise!$B$17,População!$F$4:$F$79)*100000) ->  | AX6: =IF((INDEX(ChiPro2019!$C$4:$BC$80,MATCH(Analise!$B$17,ChiPro2019!$B$4:$B$80,0),MATCH(Analise!AX3,ChiPro2019!$C$3:$BC$3,0)))="",NA(),(INDEX(ChiPro2019!$C$4:$BC$80,MATCH(Analise!$B$17,ChiPro2019!$B$4:$B$80,0),MATCH(Analise!AX3,ChiPro2019!$C$3:$BC$3,0)))/SUMIF(População!$B$4:$F$79,Analise!$B$17,População!$F$4:$F$79)*100000) ->  | AY6: =IF((INDEX(ChiPro2019!$C$4:$BC$80,MATCH(Analise!$B$17,ChiPro2019!$B$4:$B$80,0),MATCH(Analise!AY3,ChiPro2019!$C$3:$BC$3,0)))="",NA(),(INDEX(ChiPro2019!$C$4:$BC$80,MATCH(Analise!$B$17,ChiPro2019!$B$4:$B$80,0),MATCH(Analise!AY3,ChiPro2019!$C$3:$BC$3,0)))/SUMIF(População!$B$4:$F$79,Analise!$B$17,População!$F$4:$F$79)*100000) ->  | AZ6: =IF((INDEX(ChiPro2019!$C$4:$BC$80,MATCH(Analise!$B$17,ChiPro2019!$B$4:$B$80,0),MATCH(Analise!AZ3,ChiPro2019!$C$3:$BC$3,0)))="",NA(),(INDEX(ChiPro2019!$C$4:$BC$80,MATCH(Analise!$B$17,ChiPro2019!$B$4:$B$80,0),MATCH(Analise!AZ3,ChiPro2019!$C$3:$BC$3,0)))/SUMIF(População!$B$4:$F$79,Analise!$B$17,População!$F$4:$F$79)*100000) ->  | BA6: =IF((INDEX(ChiPro2019!$C$4:$BC$80,MATCH(Analise!$B$17,ChiPro2019!$B$4:$B$80,0),MATCH(Analise!BA3,ChiPro2019!$C$3:$BC$3,0)))="",NA(),(INDEX(ChiPro2019!$C$4:$BC$80,MATCH(Analise!$B$17,ChiPro2019!$B$4:$B$80,0),MATCH(Analise!BA3,ChiPro2019!$C$3:$BC$3,0)))/SUMIF(População!$B$4:$F$79,Analise!$B$17,População!$F$4:$F$79)*100000) ->  | BB6: =IF((INDEX(ChiPro2019!$C$4:$BC$80,MATCH(Analise!$B$17,ChiPro2019!$B$4:$B$80,0),MATCH(Analise!BB3,ChiPro2019!$C$3:$BC$3,0)))="",NA(),(INDEX(ChiPro2019!$C$4:$BC$80,MATCH(Analise!$B$17,ChiPro2019!$B$4:$B$80,0),MATCH(Analise!BB3,ChiPro2019!$C$3:$BC$3,0)))/SUMIF(População!$B$4:$F$79,Analise!$B$17,População!$F$4:$F$79)*100000) ->  | BC6: =IF((INDEX(ChiPro2019!$C$4:$BC$80,MATCH(Analise!$B$17,ChiPro2019!$B$4:$B$80,0),MATCH(Analise!BC3,ChiPro2019!$C$3:$BC$3,0)))="",NA(),(INDEX(ChiPro2019!$C$4:$BC$80,MATCH(Analise!$B$17,ChiPro2019!$B$4:$B$80,0),MATCH(Analise!BC3,ChiPro2019!$C$3:$BC$3,0)))/SUMIF(População!$B$4:$F$79,Analise!$B$17,População!$F$4:$F$79)*100000) ->  | BD6: =IF((INDEX(ChiPro2019!$C$4:$BD$80,MATCH(Analise!$B$17,ChiPro2019!$B$4:$B$80,0),MATCH(Analise!BD3,ChiPro2019!$C$3:$BD$3,0)))="",NA(),(INDEX(ChiPro2019!$C$4:$BD$80,MATCH(Analise!$B$17,ChiPro2019!$B$4:$B$80,0),MATCH(Analise!BD3,ChiPro2019!$C$3:$BD$3,0)))/SUMIF(População!$B$4:$F$79,Analise!$B$17,População!$F$4:$F$79)*100000) -> 9.875749899
A8: 2018 | C8: 01 | D8: 02 | E8: 03 | F8: 04 | G8: 05 | H8: 06 | I8: 07 | J8: 08 | K8: 09 | L8: 10 | M8: 11 | N8: 12 | O8: 13 | P8: 14 | Q8: 15 | R8: 16 | S8: 17 | T8: 18 | U8: 19 | V8: 20 | W8: 21 | X8: 22 | Y8: 23 | Z8: 24 | AA8: 25 | AB8: 26 | AC8: 27 | AD8: 28 | AE8: 29 | AF8: 30 | AG8: 31 | AH8: 32 | AI8: 33 | AJ8: 34 | AK8: 35 | AL8: 36 | AM8: 37 | AN8: 38 | AO8: 39 | AP8: 40 | AQ8: 41 | AR8: 42 | AS8: 43 | AT8: 44 | AU8: 45 | AV8: 46 | AW8: 47 | AX8: 48 | AY8: 49 | AZ8: 50 | BA8: 51 | BB8: 52 | BC8: 53
A9: Agravo/tx Incidência | B9: Mun Resid SE | C9: Semana 01 | D9: Semana 02 | E9: Semana 03 | F9: Semana 04 | G9: Semana 05 | H9: Semana 06 | I9: Semana 07 | J9: Semana 08 | K9: Semana 09 | L9: Semana 10 | M9: Semana 11 | N9: Semana 12 | O9: Semana 13 | P9: Semana 14 | Q9: Semana 15 | R9: Semana 16 | S9: Semana 17 | T9: Semana 18 | U9: Semana 19 | V9: Semana 20 | W9: Semana 21 | X9: Semana 22 | Y9: Semana 23 | Z9: Semana 24 | AA9: Semana 25 | AB9: Semana 26 | AC9: Semana 27 | AD9: Semana 28 | AE9: Semana 29 | AF9: Semana 30 | AG9: Semana 31 | AH9: Semana 32 | AI9: Semana 33 | AJ9: Semana 34 | AK9: Semana 35 | AL9: Semana 36 | AM9: Semana 37 | AN9: Semana 38 | AO9: Semana 39 | AP9: Semana 40 | AQ9: Semana 41 | AR9: Semana 42 | AS9: Semana 43 | AT9: Semana 44 | AU9: Semana 45 | AV9: Semana 46 | AW9: Semana 47 | AX9: Semana 48 | AY9: Semana 49 | AZ9: Semana 50 | BA9: Semana 51 | BB9: Semana 52 | BC9: Semana 53 | BD9: Total
A10: Zika | B10: =PainelArbovirose!$B$4 -> Sergipe | C10: =IF((INDEX(ZikaPro2018!$D$4:$BE$80,MATCH(Analise!$B$16,ZikaPro2018!$B$4:$B$80,0),MATCH(Analise!C9,ZikaPro2018!$D$3:$BE$3,0)))="",NA(),(INDEX(ZikaPro2018!$D$4:$BE$80,MATCH(Analise!$B$16,ZikaPro2018!$B$4:$B$80,0),MATCH(Analise!C9,ZikaPro2018!$D$3:$BE$3,0)))/SUMIF(População!$B$4:$B$79,Analise!$B$16,População!$C$4:$C$79)*100000) -> 0 | D10: =IF((INDEX(ZikaPro2018!$D$4:$BE$80,MATCH(Analise!$B$16,ZikaPro2018!$B$4:$B$80,0),MATCH(Analise!D9,ZikaPro2018!$D$3:$BE$3,0)))="",NA(),(INDEX(ZikaPro2018!$D$4:$BE$80,MATCH(Analise!$B$16,ZikaPro2018!$B$4:$B$80,0),MATCH(Analise!D9,ZikaPro2018!$D$3:$BE$3,0)))/SUMIF(População!$B$4:$B$79,Analise!$B$16,População!$C$4:$C$79)*100000) -> 0 | E10: =IF((INDEX(ZikaPro2018!$D$4:$BE$80,MATCH(Analise!$B$16,ZikaPro2018!$B$4:$B$80,0),MATCH(Analise!E9,ZikaPro2018!$D$3:$BE$3,0)))="",NA(),(INDEX(ZikaPro2018!$D$4:$BE$80,MATCH(Analise!$B$16,ZikaPro2018!$B$4:$B$80,0),MATCH(Analise!E9,ZikaPro2018!$D$3:$BE$3,0)))/SUMIF(População!$B$4:$B$79,Analise!$B$16,População!$C$4:$C$79)*100000) -> 0 | F10: =IF((INDEX(ZikaPro2018!$D$4:$BE$80,MATCH(Analise!$B$16,ZikaPro2018!$B$4:$B$80,0),MATCH(Analise!F9,ZikaPro2018!$D$3:$BE$3,0)))="",NA(),(INDEX(ZikaPro2018!$D$4:$BE$80,MATCH(Analise!$B$16,ZikaPro2018!$B$4:$B$80,0),MATCH(Analise!F9,ZikaPro2018!$D$3:$BE$3,0)))/SUMIF(População!$B$4:$B$79,Analise!$B$16,População!$C$4:$C$79)*100000) -> 0.04413493108 | G10: =IF((INDEX(ZikaPro2018!$D$4:$BE$80,MATCH(Analise!$B$16,ZikaPro2018!$B$4:$B$80,0),MATCH(Analise!G9,ZikaPro2018!$D$3:$BE$3,0)))="",NA(),(INDEX(ZikaPro2018!$D$4:$BE$80,MATCH(Analise!$B$16,ZikaPro2018!$B$4:$B$80,0),MATCH(Analise!G9,ZikaPro2018!$D$3:$BE$3,0)))/SUMIF(População!$B$4:$B$79,Analise!$B$16,População!$C$4:$C$79)*100000) -> 0 | H10: =IF((INDEX(ZikaPro2018!$D$4:$BE$80,MATCH(Analise!$B$16,ZikaPro2018!$B$4:$B$80,0),MATCH(Analise!H9,ZikaPro2018!$D$3:$BE$3,0)))="",NA(),(INDEX(ZikaPro2018!$D$4:$BE$80,MATCH(Analise!$B$16,ZikaPro2018!$B$4:$B$80,0),MATCH(Analise!H9,ZikaPro2018!$D$3:$BE$3,0)))/SUMIF(População!$B$4:$B$79,Analise!$B$16,População!$C$4:$C$79)*100000) -> 0 | I10: =IF((INDEX(ZikaPro2018!$D$4:$BE$80,MATCH(Analise!$B$16,ZikaPro2018!$B$4:$B$80,0),MATCH(Analise!I9,ZikaPro2018!$D$3:$BE$3,0)))="",NA(),(INDEX(ZikaPro2018!$D$4:$BE$80,MATCH(Analise!$B$16,ZikaPro2018!$B$4:$B$80,0),MATCH(Analise!I9,ZikaPro2018!$D$3:$BE$3,0)))/SUMIF(População!$B$4:$B$79,Analise!$B$16,População!$C$4:$C$79)*100000) -> 0 | J10: =IF((INDEX(ZikaPro2018!$D$4:$BE$80,MATCH(Analise!$B$16,ZikaPro2018!$B$4:$B$80,0),MATCH(Analise!J9,ZikaPro2018!$D$3:$BE$3,0)))="",NA(),(INDEX(ZikaPro2018!$D$4:$BE$80,MATCH(Analise!$B$16,ZikaPro2018!$B$4:$B$80,0),MATCH(Analise!J9,ZikaPro2018!$D$3:$BE$3,0)))/SUMIF(População!$B$4:$B$79,Analise!$B$16,População!$C$4:$C$79)*100000) -> 0 | K10: =IF((INDEX(ZikaPro2018!$D$4:$BE$80,MATCH(Analise!$B$16,ZikaPro2018!$B$4:$B$80,0),MATCH(Analise!K9,ZikaPro2018!$D$3:$BE$3,0)))="",NA(),(INDEX(ZikaPro2018!$D$4:$BE$80,MATCH(Analise!$B$16,ZikaPro2018!$B$4:$B$80,0),MATCH(Analise!K9,ZikaPro2018!$D$3:$BE$3,0)))/SUMIF(População!$B$4:$B$79,Analise!$B$16,População!$C$4:$C$79)*100000) -> 0 | L10: =IF((INDEX(ZikaPro2018!$D$4:$BE$80,MATCH(Analise!$B$16,ZikaPro2018!$B$4:$B$80,0),MATCH(Analise!L9,ZikaPro2018!$D$3:$BE$3,0)))="",NA(),(INDEX(ZikaPro2018!$D$4:$BE$80,MATCH(Analise!$B$16,ZikaPro2018!$B$4:$B$80,0),MATCH(Analise!L9,ZikaPro2018!$D$3:$BE$3,0)))/SUMIF(População!$B$4:$B$79,Analise!$B$16,População!$C$4:$C$79)*100000) -> 0.04413493108 | M10: =IF((INDEX(ZikaPro2018!$D$4:$BE$80,MATCH(Analise!$B$16,ZikaPro2018!$B$4:$B$80,0),MATCH(Analise!M9,ZikaPro2018!$D$3:$BE$3,0)))="",NA(),(INDEX(ZikaPro2018!$D$4:$BE$80,MATCH(Analise!$B$16,ZikaPro2018!$B$4:$B$80,0),MATCH(Analise!M9,ZikaPro2018!$D$3:$BE$3,0)))/SUMIF(População!$B$4:$B$79,Analise!$B$16,População!$C$4:$C$79)*100000) -> 0 | N10: =IF((INDEX(ZikaPro2018!$D$4:$BE$80,MATCH(Analise!$B$16,ZikaPro2018!$B$4:$B$80,0),MATCH(Analise!N9,ZikaPro2018!$D$3:$BE$3,0)))="",NA(),(INDEX(ZikaPro2018!$D$4:$BE$80,MATCH(Analise!$B$16,ZikaPro2018!$B$4:$B$80,0),MATCH(Analise!N9,ZikaPro2018!$D$3:$BE$3,0)))/SUMIF(População!$B$4:$B$79,Analise!$B$16,População!$C$4:$C$79)*100000) -> 0.04413493108 | O10: =IF((INDEX(ZikaPro2018!$D$4:$BE$80,MATCH(Analise!$B$16,ZikaPro2018!$B$4:$B$80,0),MATCH(Analise!O9,ZikaPro2018!$D$3:$BE$3,0)))="",NA(),(INDEX(ZikaPro2018!$D$4:$BE$80,MATCH(Analise!$B$16,ZikaPro2018!$B$4:$B$80,0),MATCH(Analise!O9,ZikaPro2018!$D$3:$BE$3,0)))/SUMIF(População!$B$4:$B$79,Analise!$B$16,População!$C$4:$C$79)*100000) -> 0 | P10: =IF((INDEX(ZikaPro2018!$D$4:$BE$80,MATCH(Analise!$B$16,ZikaPro2018!$B$4:$B$80,0),MATCH(Analise!P9,ZikaPro2018!$D$3:$BE$3,0)))="",NA(),(INDEX(ZikaPro2018!$D$4:$BE$80,MATCH(Analise!$B$16,ZikaPro2018!$B$4:$B$80,0),MATCH(Analise!P9,ZikaPro2018!$D$3:$BE$3,0)))/SUMIF(População!$B$4:$B$79,Analise!$B$16,População!$C$4:$C$79)*100000) -> 0 | Q10: =IF((INDEX(ZikaPro2018!$D$4:$BE$80,MATCH(Analise!$B$16,ZikaPro2018!$B$4:$B$80,0),MATCH(Analise!Q9,ZikaPro2018!$D$3:$BE$3,0)))="",NA(),(INDEX(ZikaPro2018!$D$4:$BE$80,MATCH(Analise!$B$16,ZikaPro2018!$B$4:$B$80,0),MATCH(Analise!Q9,ZikaPro2018!$D$3:$BE$3,0)))/SUMIF(População!$B$4:$B$79,Analise!$B$16,População!$C$4:$C$79)*100000) -> 0.04413493108 | R10: =IF((INDEX(ZikaPro2018!$D$4:$BE$80,MATCH(Analise!$B$16,ZikaPro2018!$B$4:$B$80,0),MATCH(Analise!R9,ZikaPro2018!$D$3:$BE$3,0)))="",NA(),(INDEX(ZikaPro2018!$D$4:$BE$80,MATCH(Analise!$B$16,ZikaPro2018!$B$4:$B$80,0),MATCH(Analise!R9,ZikaPro2018!$D$3:$BE$3,0)))/SUMIF(População!$B$4:$B$79,Analise!$B$16,População!$C$4:$C$79)*100000) -> 0 | S10: =IF((INDEX(ZikaPro2018!$D$4:$BE$80,MATCH(Analise!$B$16,ZikaPro2018!$B$4:$B$80,0),MATCH(Analise!S9,ZikaPro2018!$D$3:$BE$3,0)))="",NA(),(INDEX(ZikaPro2018!$D$4:$BE$80,MATCH(Analise!$B$16,ZikaPro2018!$B$4:$B$80,0),MATCH(Analise!S9,ZikaPro2018!$D$3:$BE$3,0)))/SUMIF(População!$B$4:$B$79,Analise!$B$16,População!$C$4:$C$79)*100000) -> 0 | T10: =IF((INDEX(ZikaPro2018!$D$4:$BE$80,MATCH(Analise!$B$16,ZikaPro2018!$B$4:$B$80,0),MATCH(Analise!T9,ZikaPro2018!$D$3:$BE$3,0)))="",NA(),(INDEX(ZikaPro2018!$D$4:$BE$80,MATCH(Analise!$B$16,ZikaPro2018!$B$4:$B$80,0),MATCH(Analise!T9,ZikaPro2018!$D$3:$BE$3,0)))/SUMIF(População!$B$4:$B$79,Analise!$B$16,População!$C$4:$C$79)*100000) -> 0.04413493108 | U10: =IF((INDEX(ZikaPro2018!$D$4:$BE$80,MATCH(Analise!$B$16,ZikaPro2018!$B$4:$B$80,0),MATCH(Analise!U9,ZikaPro2018!$D$3:$BE$3,0)))="",NA(),(INDEX(ZikaPro2018!$D$4:$BE$80,MATCH(Analise!$B$16,ZikaPro2018!$B$4:$B$80,0),MATCH(Analise!U9,ZikaPro2018!$D$3:$BE$3,0)))/SUMIF(População!$B$4:$B$79,Analise!$B$16,População!$C$4:$C$79)*100000) -> 0 | V10: =IF((INDEX(ZikaPro2018!$D$4:$BE$80,MATCH(Analise!$B$16,ZikaPro2018!$B$4:$B$80,0),MATCH(Analise!V9,ZikaPro2018!$D$3:$BE$3,0)))="",NA(),(INDEX(ZikaPro2018!$D$4:$BE$80,MATCH(Analise!$B$16,ZikaPro2018!$B$4:$B$80,0),MATCH(Analise!V9,ZikaPro2018!$D$3:$BE$3,0)))/SUMIF(População!$B$4:$B$79,Analise!$B$16,População!$C$4:$C$79)*100000) -> 0 | W10: =IF((INDEX(ZikaPro2018!$D$4:$BE$80,MATCH(Analise!$B$16,ZikaPro2018!$B$4:$B$80,0),MATCH(Analise!W9,ZikaPro2018!$D$3:$BE$3,0)))="",NA(),(INDEX(ZikaPro2018!$D$4:$BE$80,MATCH(Analise!$B$16,ZikaPro2018!$B$4:$B$80,0),MATCH(Analise!W9,ZikaPro2018!$D$3:$BE$3,0)))/SUMIF(População!$B$4:$B$79,Analise!$B$16,População!$C$4:$C$79)*100000) -> 0 | X10: =IF((INDEX(ZikaPro2018!$D$4:$BE$80,MATCH(Analise!$B$16,ZikaPro2018!$B$4:$B$80,0),MATCH(Analise!X9,ZikaPro2018!$D$3:$BE$3,0)))="",NA(),(INDEX(ZikaPro2018!$D$4:$BE$80,MATCH(Analise!$B$16,ZikaPro2018!$B$4:$B$80,0),MATCH(Analise!X9,ZikaPro2018!$D$3:$BE$3,0)))/SUMIF(População!$B$4:$B$79,Analise!$B$16,População!$C$4:$C$79)*100000) -> 0 | Y10: =IF((INDEX(ZikaPro2018!$D$4:$BE$80,MATCH(Analise!$B$16,ZikaPro2018!$B$4:$B$80,0),MATCH(Analise!Y9,ZikaPro2018!$D$3:$BE$3,0)))="",NA(),(INDEX(ZikaPro2018!$D$4:$BE$80,MATCH(Analise!$B$16,ZikaPro2018!$B$4:$B$80,0),MATCH(Analise!Y9,ZikaPro2018!$D$3:$BE$3,0)))/SUMIF(População!$B$4:$B$79,Analise!$B$16,População!$C$4:$C$79)*100000) -> 0 | Z10: =IF((INDEX(ZikaPro2018!$D$4:$BE$80,MATCH(Analise!$B$16,ZikaPro2018!$B$4:$B$80,0),MATCH(Analise!Z9,ZikaPro2018!$D$3:$BE$3,0)))="",NA(),(INDEX(ZikaPro2018!$D$4:$BE$80,MATCH(Analise!$B$16,ZikaPro2018!$B$4:$B$80,0),MATCH(Analise!Z9,ZikaPro2018!$D$3:$BE$3,0)))/SUMIF(População!$B$4:$B$79,Analise!$B$16,População!$C$4:$C$79)*100000) -> 0 | AA10: =IF((INDEX(ZikaPro2018!$D$4:$BE$80,MATCH(Analise!$B$16,ZikaPro2018!$B$4:$B$80,0),MATCH(Analise!AA9,ZikaPro2018!$D$3:$BE$3,0)))="",NA(),(INDEX(ZikaPro2018!$D$4:$BE$80,MATCH(Analise!$B$16,ZikaPro2018!$B$4:$B$80,0),MATCH(Analise!AA9,ZikaPro2018!$D$3:$BE$3,0)))/SUMIF(População!$B$4:$B$79,Analise!$B$16,População!$C$4:$C$79)*100000) -> 0 | AB10: =IF((INDEX(ZikaPro2018!$D$4:$BE$80,MATCH(Analise!$B$16,ZikaPro2018!$B$4:$B$80,0),MATCH(Analise!AB9,ZikaPro2018!$D$3:$BE$3,0)))="",NA(),(INDEX(ZikaPro2018!$D$4:$BE$80,MATCH(Analise!$B$16,ZikaPro2018!$B$4:$B$80,0),MATCH(Analise!AB9,ZikaPro2018!$D$3:$BE$3,0)))/SUMIF(População!$B$4:$B$79,Analise!$B$16,População!$C$4:$C$79)*100000) -> 0 | AC10: =IF((INDEX(ZikaPro2018!$D$4:$BE$80,MATCH(Analise!$B$16,ZikaPro2018!$B$4:$B$80,0),MATCH(Analise!AC9,ZikaPro2018!$D$3:$BE$3,0)))="",NA(),(INDEX(ZikaPro2018!$D$4:$BE$80,MATCH(Analise!$B$16,ZikaPro2018!$B$4:$B$80,0),MATCH(Analise!AC9,ZikaPro2018!$D$3:$BE$3,0)))/SUMIF(População!$B$4:$B$79,Analise!$B$16,População!$C$4:$C$79)*100000) -> 0 | AD10: =IF((INDEX(ZikaPro2018!$D$4:$BE$80,MATCH(Analise!$B$16,ZikaPro2018!$B$4:$B$80,0),MATCH(Analise!AD9,ZikaPro2018!$D$3:$BE$3,0)))="",NA(),(INDEX(ZikaPro2018!$D$4:$BE$80,MATCH(Analise!$B$16,ZikaPro2018!$B$4:$B$80,0),MATCH(Analise!AD9,ZikaPro2018!$D$3:$BE$3,0)))/SUMIF(População!$B$4:$B$79,Analise!$B$16,População!$C$4:$C$79)*100000) -> 0 | AE10: =IF((INDEX(ZikaPro2018!$D$4:$BE$80,MATCH(Analise!$B$16,ZikaPro2018!$B$4:$B$80,0),MATCH(Analise!AE9,ZikaPro2018!$D$3:$BE$3,0)))="",NA(),(INDEX(ZikaPro2018!$D$4:$BE$80,MATCH(Analise!$B$16,ZikaPro2018!$B$4:$B$80,0),MATCH(Analise!AE9,ZikaPro2018!$D$3:$BE$3,0)))/SUMIF(População!$B$4:$B$79,Analise!$B$16,População!$C$4:$C$79)*100000) -> 0 | AF10: =IF((INDEX(ZikaPro2018!$D$4:$BE$80,MATCH(Analise!$B$16,ZikaPro2018!$B$4:$B$80,0),MATCH(Analise!AF9,ZikaPro2018!$D$3:$BE$3,0)))="",NA(),(INDEX(ZikaPro2018!$D$4:$BE$80,MATCH(Analise!$B$16,ZikaPro2018!$B$4:$B$80,0),MATCH(Analise!AF9,ZikaPro2018!$D$3:$BE$3,0)))/SUMIF(População!$B$4:$B$79,Analise!$B$16,População!$C$4:$C$79)*100000) -> 0 | AG10: =IF((INDEX(ZikaPro2018!$D$4:$BE$80,MATCH(Analise!$B$16,ZikaPro2018!$B$4:$B$80,0),MATCH(Analise!AG9,ZikaPro2018!$D$3:$BE$3,0)))="",NA(),(INDEX(ZikaPro2018!$D$4:$BE$80,MATCH(Analise!$B$16,ZikaPro2018!$B$4:$B$80,0),MATCH(Analise!AG9,ZikaPro2018!$D$3:$BE$3,0)))/SUMIF(População!$B$4:$B$79,Analise!$B$16,População!$C$4:$C$79)*100000) -> 0 | AH10: =IF((INDEX(ZikaPro2018!$D$4:$BE$80,MATCH(Analise!$B$16,ZikaPro2018!$B$4:$B$80,0),MATCH(Analise!AH9,ZikaPro2018!$D$3:$BE$3,0)))="",NA(),(INDEX(ZikaPro2018!$D$4:$BE$80,MATCH(Analise!$B$16,ZikaPro2018!$B$4:$B$80,0),MATCH(Analise!AH9,ZikaPro2018!$D$3:$BE$3,0)))/SUMIF(População!$B$4:$B$79,Analise!$B$16,População!$C$4:$C$79)*100000) -> 0 | AI10: =IF((INDEX(ZikaPro2018!$D$4:$BE$80,MATCH(Analise!$B$16,ZikaPro2018!$B$4:$B$80,0),MATCH(Analise!AI9,ZikaPro2018!$D$3:$BE$3,0)))="",NA(),(INDEX(ZikaPro2018!$D$4:$BE$80,MATCH(Analise!$B$16,ZikaPro2018!$B$4:$B$80,0),MATCH(Analise!AI9,ZikaPro2018!$D$3:$BE$3,0)))/SUMIF(População!$B$4:$B$79,Analise!$B$16,População!$C$4:$C$79)*100000) -> 0 | AJ10: =IF((INDEX(ZikaPro2018!$D$4:$BE$80,MATCH(Analise!$B$16,ZikaPro2018!$B$4:$B$80,0),MATCH(Analise!AJ9,ZikaPro2018!$D$3:$BE$3,0)))="",NA(),(INDEX(ZikaPro2018!$D$4:$BE$80,MATCH(Analise!$B$16,ZikaPro2018!$B$4:$B$80,0),MATCH(Analise!AJ9,ZikaPro2018!$D$3:$BE$3,0)))/SUMIF(População!$B$4:$B$79,Analise!$B$16,População!$C$4:$C$79)*100000) -> 0.04413493108 | AK10: =IF((INDEX(ZikaPro2018!$D$4:$BE$80,MATCH(Analise!$B$16,ZikaPro2018!$B$4:$B$80,0),MATCH(Analise!AK9,ZikaPro2018!$D$3:$BE$3,0)))="",NA(),(INDEX(ZikaPro2018!$D$4:$BE$80,MATCH(Analise!$B$16,ZikaPro2018!$B$4:$B$80,0),MATCH(Analise!AK9,ZikaPro2018!$D$3:$BE$3,0)))/SUMIF(População!$B$4:$B$79,Analise!$B$16,População!$C$4:$C$79)*100000) -> 0 | AL10: =IF((INDEX(ZikaPro2018!$D$4:$BE$80,MATCH(Analise!$B$16,ZikaPro2018!$B$4:$B$80,0),MATCH(Analise!AL9,ZikaPro2018!$D$3:$BE$3,0)))="",NA(),(INDEX(ZikaPro2018!$D$4:$BE$80,MATCH(Analise!$B$16,ZikaPro2018!$B$4:$B$80,0),MATCH(Analise!AL9,ZikaPro2018!$D$3:$BE$3,0)))/SUMIF(População!$B$4:$B$79,Analise!$B$16,População!$C$4:$C$79)*100000) -> 0 | AM10: =IF((INDEX(ZikaPro2018!$D$4:$BE$80,MATCH(Analise!$B$16,ZikaPro2018!$B$4:$B$80,0),MATCH(Analise!AM9,ZikaPro2018!$D$3:$BE$3,0)))="",NA(),(INDEX(ZikaPro2018!$D$4:$BE$80,MATCH(Analise!$B$16,ZikaPro2018!$B$4:$B$80,0),MATCH(Analise!AM9,ZikaPro2018!$D$3:$BE$3,0)))/SUMIF(População!$B$4:$B$79,Analise!$B$16,População!$C$4:$C$79)*100000) -> 0 | AN10: =IF((INDEX(ZikaPro2018!$D$4:$BE$80,MATCH(Analise!$B$16,ZikaPro2018!$B$4:$B$80,0),MATCH(Analise!AN9,ZikaPro2018!$D$3:$BE$3,0)))="",NA(),(INDEX(ZikaPro2018!$D$4:$BE$80,MATCH(Analise!$B$16,ZikaPro2018!$B$4:$B$80,0),MATCH(Analise!AN9,ZikaPro2018!$D$3:$BE$3,0)))/SUMIF(População!$B$4:$B$79,Analise!$B$16,População!$C$4:$C$79)*100000) -> 0 | AO10: =IF((INDEX(ZikaPro2018!$D$4:$BE$80,MATCH(Analise!$B$16,ZikaPro2018!$B$4:$B$80,0),MATCH(Analise!AO9,ZikaPro2018!$D$3:$BE$3,0)))="",NA(),(INDEX(ZikaPro2018!$D$4:$BE$80,MATCH(Analise!$B$16,ZikaPro2018!$B$4:$B$80,0),MATCH(Analise!AO9,ZikaPro2018!$D$3:$BE$3,0)))/SUMIF(População!$B$4:$B$79,Analise!$B$16,População!$C$4:$C$79)*100000) -> 0 | AP10: =IF((INDEX(ZikaPro2018!$D$4:$BE$80,MATCH(Analise!$B$16,ZikaPro2018!$B$4:$B$80,0),MATCH(Analise!AP9,ZikaPro2018!$D$3:$BE$3,0)))="",NA(),(INDEX(ZikaPro2018!$D$4:$BE$80,MATCH(Analise!$B$16,ZikaPro2018!$B$4:$B$80,0),MATCH(Analise!AP9,ZikaPro2018!$D$3:$BE$3,0)))/SUMIF(População!$B$4:$B$79,Analise!$B$16,População!$C$4:$C$79)*100000) -> 0.04413493108 | AQ10: =IF((INDEX(ZikaPro2018!$D$4:$BE$80,MATCH(Analise!$B$16,ZikaPro2018!$B$4:$B$80,0),MATCH(Analise!AQ9,ZikaPro2018!$D$3:$BE$3,0)))="",NA(),(INDEX(ZikaPro2018!$D$4:$BE$80,MATCH(Analise!$B$16,ZikaPro2018!$B$4:$B$80,0),MATCH(Analise!AQ9,ZikaPro2018!$D$3:$BE$3,0)))/SUMIF(População!$B$4:$B$79,Analise!$B$16,População!$C$4:$C$79)*100000) -> 0 | AR10: =IF((INDEX(ZikaPro2018!$D$4:$BE$80,MATCH(Analise!$B$16,ZikaPro2018!$B$4:$B$80,0),MATCH(Analise!AR9,ZikaPro2018!$D$3:$BE$3,0)))="",NA(),(INDEX(ZikaPro2018!$D$4:$BE$80,MATCH(Analise!$B$16,ZikaPro2018!$B$4:$B$80,0),MATCH(Analise!AR9,ZikaPro2018!$D$3:$BE$3,0)))/SUMIF(População!$B$4:$B$79,Analise!$B$16,População!$C$4:$C$79)*100000) -> 0 | AS10: =IF((INDEX(ZikaPro2018!$D$4:$BE$80,MATCH(Analise!$B$16,ZikaPro2018!$B$4:$B$80,0),MATCH(Analise!AS9,ZikaPro2018!$D$3:$BE$3,0)))="",NA(),(INDEX(ZikaPro2018!$D$4:$BE$80,MATCH(Analise!$B$16,ZikaPro2018!$B$4:$B$80,0),MATCH(Analise!AS9,ZikaPro2018!$D$3:$BE$3,0)))/SUMIF(População!$B$4:$B$79,Analise!$B$16,População!$C$4:$C$79)*100000) -> 0 | AT10: =IF((INDEX(ZikaPro2018!$D$4:$BE$80,MATCH(Analise!$B$16,ZikaPro2018!$B$4:$B$80,0),MATCH(Analise!AT9,ZikaPro2018!$D$3:$BE$3,0)))="",NA(),(INDEX(ZikaPro2018!$D$4:$BE$80,MATCH(Analise!$B$16,ZikaPro2018!$B$4:$B$80,0),MATCH(Analise!AT9,ZikaPro2018!$D$3:$BE$3,0)))/SUMIF(População!$B$4:$B$79,Analise!$B$16,População!$C$4:$C$79)*100000) -> 0 | AU10: =IF((INDEX(ZikaPro2018!$D$4:$BE$80,MATCH(Analise!$B$16,ZikaPro2018!$B$4:$B$80,0),MATCH(Analise!AU9,ZikaPro2018!$D$3:$BE$3,0)))="",NA(),(INDEX(ZikaPro2018!$D$4:$BE$80,MATCH(Analise!$B$16,ZikaPro2018!$B$4:$B$80,0),MATCH(Analise!AU9,ZikaPro2018!$D$3:$BE$3,0)))/SUMIF(População!$B$4:$B$79,Analise!$B$16,População!$C$4:$C$79)*100000) -> 0 | AV10: =IF((INDEX(ZikaPro2018!$D$4:$BE$80,MATCH(Analise!$B$16,ZikaPro2018!$B$4:$B$80,0),MATCH(Analise!AV9,ZikaPro2018!$D$3:$BE$3,0)))="",NA(),(INDEX(ZikaPro2018!$D$4:$BE$80,MATCH(Analise!$B$16,ZikaPro2018!$B$4:$B$80,0),MATCH(Analise!AV9,ZikaPro2018!$D$3:$BE$3,0)))/SUMIF(População!$B$4:$B$79,Analise!$B$16,População!$C$4:$C$79)*100000) -> 0 | AW10: =IF((INDEX(ZikaPro2018!$D$4:$BE$80,MATCH(Analise!$B$16,ZikaPro2018!$B$4:$B$80,0),MATCH(Analise!AW9,ZikaPro2018!$D$3:$BE$3,0)))="",NA(),(INDEX(ZikaPro2018!$D$4:$BE$80,MATCH(Analise!$B$16,ZikaPro2018!$B$4:$B$80,0),MATCH(Analise!AW9,ZikaPro2018!$D$3:$BE$3,0)))/SUMIF(População!$B$4:$B$79,Analise!$B$16,População!$C$4:$C$79)*100000) -> 0 | AX10: =IF((INDEX(ZikaPro2018!$D$4:$BE$80,MATCH(Analise!$B$16,ZikaPro2018!$B$4:$B$80,0),MATCH(Analise!AX9,ZikaPro2018!$D$3:$BE$3,0)))="",NA(),(INDEX(ZikaPro2018!$D$4:$BE$80,MATCH(Analise!$B$16,ZikaPro2018!$B$4:$B$80,0),MATCH(Analise!AX9,ZikaPro2018!$D$3:$BE$3,0)))/SUMIF(População!$B$4:$B$79,Analise!$B$16,População!$C$4:$C$79)*100000) -> 0.04413493108 | AY10: =IF((INDEX(ZikaPro2018!$D$4:$BE$80,MATCH(Analise!$B$16,ZikaPro2018!$B$4:$B$80,0),MATCH(Analise!AY9,ZikaPro2018!$D$3:$BE$3,0)))="",NA(),(INDEX(ZikaPro2018!$D$4:$BE$80,MATCH(Analise!$B$16,ZikaPro2018!$B$4:$B$80,0),MATCH(Analise!AY9,ZikaPro2018!$D$3:$BE$3,0)))/SUMIF(População!$B$4:$B$79,Analise!$B$16,População!$C$4:$C$79)*100000) -> 0 | AZ10: =IF((INDEX(ZikaPro2018!$D$4:$BE$80,MATCH(Analise!$B$16,ZikaPro2018!$B$4:$B$80,0),MATCH(Analise!AZ9,ZikaPro2018!$D$3:$BE$3,0)))="",NA(),(INDEX(ZikaPro2018!$D$4:$BE$80,MATCH(Analise!$B$16,ZikaPro2018!$B$4:$B$80,0),MATCH(Analise!AZ9,ZikaPro2018!$D$3:$BE$3,0)))/SUMIF(População!$B$4:$B$79,Analise!$B$16,População!$C$4:$C$79)*100000) -> 0.04413493108 | BA10: =IF((INDEX(ZikaPro2018!$D$4:$BE$80,MATCH(Analise!$B$16,ZikaPro2018!$B$4:$B$80,0),MATCH(Analise!BA9,ZikaPro2018!$D$3:$BE$3,0)))="",NA(),(INDEX(ZikaPro2018!$D$4:$BE$80,MATCH(Analise!$B$16,ZikaPro2018!$B$4:$B$80,0),MATCH(Analise!BA9,ZikaPro2018!$D$3:$BE$3,0)))/SUMIF(População!$B$4:$B$79,Analise!$B$16,População!$C$4:$C$79)*100000) -> 0 | BB10: =IF((INDEX(ZikaPro2018!$D$4:$BE$80,MATCH(Analise!$B$16,ZikaPro2018!$B$4:$B$80,0),MATCH(Analise!BB9,ZikaPro2018!$D$3:$BE$3,0)))="",NA(),(INDEX(ZikaPro2018!$D$4:$BE$80,MATCH(Analise!$B$16,ZikaPro2018!$B$4:$B$80,0),MATCH(Analise!BB9,ZikaPro2018!$D$3:$BE$3,0)))/SUMIF(População!$B$4:$B$79,Analise!$B$16,População!$C$4:$C$79)*100000) -> 0 | BC10: =IF((INDEX(ZikaPro2018!$D$4:$BE$80,MATCH(Analise!$B$16,ZikaPro2018!$B$4:$B$80,0),MATCH(Analise!BC9,ZikaPro2018!$D$3:$BE$3,0)))="",NA(),(INDEX(ZikaPro2018!$D$4:$BE$80,MATCH(Analise!$B$16,ZikaPro2018!$B$4:$B$80,0),MATCH(Analise!BC9,ZikaPro2018!$D$3:$BE$3,0)))/SUMIF(População!$B$4:$B$79,Analise!$B$16,População!$C$4:$C$79)*100000) -> 0 | BD10: =IF((INDEX(ZikaPro2018!$D$4:$BE$80,MATCH(Analise!$B$16,ZikaPro2018!$B$4:$B$80,0),MATCH(Analise!BD9,ZikaPro2018!$D$3:$BE$3,0)))="",NA(),(INDEX(ZikaPro2018!$D$4:$BE$80,MATCH(Analise!$B$16,ZikaPro2018!$B$4:$B$80,0),MATCH(Analise!BD9,ZikaPro2018!$D$3:$BE$3,0)))/SUMIF(População!$B$4:$B$79,Analise!$B$16,População!$C$4:$C$79)*100000) -> 0.3972143797
A11: Dengue | B11: =PainelArbovirose!$B$4 -> Sergipe | C11: =IF((INDEX(DenPro2018!$C$4:$BC$80,MATCH(Analise!$B$17,DenPro2018!$B$4:$B$80,0),MATCH(Analise!C9,DenPro2018!$C$3:$BC$3,0)))="",NA(),(INDEX(DenPro2018!$C$4:$BC$80,MATCH(Analise!$B$17,DenPro2018!$B$4:$B$80,0),MATCH(Analise!C9,DenPro2018!$C$3:$BC$3,0)))/SUMIF(População!$B$4:$B$79,Analise!$B$17,População!$C$4:$C$79)*100000) -> 0.08826986215 | D11: =IF((INDEX(DenPro2018!$C$4:$BC$80,MATCH(Analise!$B$17,DenPro2018!$B$4:$B$80,0),MATCH(Analise!D9,DenPro2018!$C$3:$BC$3,0)))="",NA(),(INDEX(DenPro2018!$C$4:$BC$80,MATCH(Analise!$B$17,DenPro2018!$B$4:$B$80,0),MATCH(Analise!D9,DenPro2018!$C$3:$BC$3,0)))/SUMIF(População!$B$4:$B$79,Analise!$B$17,População!$C$4:$C$79)*100000) -> 0.08826986215 | E11: =IF((INDEX(DenPro2018!$C$4:$BC$80,MATCH(Analise!$B$17,DenPro2018!$B$4:$B$80,0),MATCH(Analise!E9,DenPro2018!$C$3:$BC$3,0)))="",NA(),(INDEX(DenPro2018!$C$4:$BC$80,MATCH(Analise!$B$17,DenPro2018!$B$4:$B$80,0),MATCH(Analise!E9,DenPro2018!$C$3:$BC$3,0)))/SUMIF(População!$B$4:$B$79,Analise!$B$17,População!$C$4:$C$79)*100000) -> 0.04413493108 | F11: =IF((INDEX(DenPro2018!$C$4:$BC$80,MATCH(Analise!$B$17,DenPro2018!$B$4:$B$80,0),MATCH(Analise!F9,DenPro2018!$C$3:$BC$3,0)))="",NA(),(INDEX(DenPro2018!$C$4:$BC$80,MATCH(Analise!$B$17,DenPro2018!$B$4:$B$80,0),MATCH(Analise!F9,DenPro2018!$C$3:$BC$3,0)))/SUMIF(População!$B$4:$B$79,Analise!$B$17,População!$C$4:$C$79)*100000) -> 0.08826986215 | G11: =IF((INDEX(DenPro2018!$C$4:$BC$80,MATCH(Analise!$B$17,DenPro2018!$B$4:$B$80,0),MATCH(Analise!G9,DenPro2018!$C$3:$BC$3,0)))="",NA(),(INDEX(DenPro2018!$C$4:$BC$80,MATCH(Analise!$B$17,DenPro2018!$B$4:$B$80,0),MATCH(Analise!G9,DenPro2018!$C$3:$BC$3,0)))/SUMIF(População!$B$4:$B$79,Analise!$B$17,População!$C$4:$C$79)*100000) -> 0.1324047932 | H11: =IF((INDEX(DenPro2018!$C$4:$BC$80,MATCH(Analise!$B$17,DenPro2018!$B$4:$B$80,0),MATCH(Analise!H9,DenPro2018!$C$3:$BC$3,0)))="",NA(),(INDEX(DenPro2018!$C$4:$BC$80,MATCH(Analise!$B$17,DenPro2018!$B$4:$B$80,0),MATCH(Analise!H9,DenPro2018!$C$3:$BC$3,0)))/SUMIF(População!$B$4:$B$79,Analise!$B$17,População!$C$4:$C$79)*100000) -> 0.08826986215 | I11: =IF((INDEX(DenPro2018!$C$4:$BC$80,MATCH(Analise!$B$17,DenPro2018!$B$4:$B$80,0),MATCH(Analise!I9,DenPro2018!$C$3:$BC$3,0)))="",NA(),(INDEX(DenPro2018!$C$4:$BC$80,MATCH(Analise!$B$17,DenPro2018!$B$4:$B$80,0),MATCH(Analise!I9,DenPro2018!$C$3:$BC$3,0)))/SUMIF(População!$B$4:$B$79,Analise!$B$17,População!$C$4:$C$79)*100000) -> 0.04413493108 | J11: =IF((INDEX(DenPro2018!$C$4:$BC$80,MATCH(Analise!$B$17,DenPro2018!$B$4:$B$80,0),MATCH(Analise!J9,DenPro2018!$C$3:$BC$3,0)))="",NA(),(INDEX(DenPro2018!$C$4:$BC$80,MATCH(Analise!$B$17,DenPro2018!$B$4:$B$80,0),MATCH(Analise!J9,DenPro2018!$C$3:$BC$3,0)))/SUMIF(População!$B$4:$B$79,Analise!$B$17,População!$C$4:$C$79)*100000) -> 0.2648095865 | K11: =IF((INDEX(DenPro2018!$C$4:$BC$80,MATCH(Analise!$B$17,DenPro2018!$B$4:$B$80,0),MATCH(Analise!K9,DenPro2018!$C$3:$BC$3,0)))="",NA(),(INDEX(DenPro2018!$C$4:$BC$80,MATCH(Analise!$B$17,DenPro2018!$B$4:$B$80,0),MATCH(Analise!K9,DenPro2018!$C$3:$BC$3,0)))/SUMIF(População!$B$4:$B$79,Analise!$B$17,População!$C$4:$C$79)*100000) -> 0.1324047932 | L11: =IF((INDEX(DenPro2018!$C$4:$BC$80,MATCH(Analise!$B$17,DenPro2018!$B$4:$B$80,0),MATCH(Analise!L9,DenPro2018!$C$3:$BC$3,0)))="",NA(),(INDEX(DenPro2018!$C$4:$BC$80,MATCH(Analise!$B$17,DenPro2018!$B$4:$B$80,0),MATCH(Analise!L9,DenPro2018!$C$3:$BC$3,0)))/SUMIF(População!$B$4:$B$79,Analise!$B$17,População!$C$4:$C$79)*100000) -> 0 | M11: =IF((INDEX(DenPro2018!$C$4:$BC$80,MATCH(Analise!$B$17,DenPro2018!$B$4:$B$80,0),MATCH(Analise!M9,DenPro2018!$C$3:$BC$3,0)))="",NA(),(INDEX(DenPro2018!$C$4:$BC$80,MATCH(Analise!$B$17,DenPro2018!$B$4:$B$80,0),MATCH(Analise!M9,DenPro2018!$C$3:$BC$3,0)))/SUMIF(População!$B$4:$B$79,Analise!$B$17,População!$C$4:$C$79)*100000) -> 0.3089445175 | N11: =IF((INDEX(DenPro2018!$C$4:$BC$80,MATCH(Analise!$B$17,DenPro2018!$B$4:$B$80,0),MATCH(Analise!N9,DenPro2018!$C$3:$BC$3,0)))="",NA(),(INDEX(DenPro2018!$C$4:$BC$80,MATCH(Analise!$B$17,DenPro2018!$B$4:$B$80,0),MATCH(Analise!N9,DenPro2018!$C$3:$BC$3,0)))/SUMIF(População!$B$4:$B$79,Analise!$B$17,População!$C$4:$C$79)*100000) -> 0.2648095865 | O11: =IF((INDEX(DenPro2018!$C$4:$BC$80,MATCH(Analise!$B$17,DenPro2018!$B$4:$B$80,0),MATCH(Analise!O9,DenPro2018!$C$3:$BC$3,0)))="",NA(),(INDEX(DenPro2018!$C$4:$BC$80,MATCH(Analise!$B$17,DenPro2018!$B$4:$B$80,0),MATCH(Analise!O9,DenPro2018!$C$3:$BC$3,0)))/SUMIF(População!$B$4:$B$79,Analise!$B$17,População!$C$4:$C$79)*100000) -> 0.2206746554 | P11: =IF((INDEX(DenPro2018!$C$4:$BC$80,MATCH(Analise!$B$17,DenPro2018!$B$4:$B$80,0),MATCH(Analise!P9,DenPro2018!$C$3:$BC$3,0)))="",NA(),(INDEX(DenPro2018!$C$4:$BC$80,MATCH(Analise!$B$17,DenPro2018!$B$4:$B$80,0),MATCH(Analise!P9,DenPro2018!$C$3:$BC$3,0)))/SUMIF(População!$B$4:$B$79,Analise!$B$17,População!$C$4:$C$79)*100000) -> 0.08826986215 | Q11: =IF((INDEX(DenPro2018!$C$4:$BC$80,MATCH(Analise!$B$17,DenPro2018!$B$4:$B$80,0),MATCH(Analise!Q9,DenPro2018!$C$3:$BC$3,0)))="",NA(),(INDEX(DenPro2018!$C$4:$BC$80,MATCH(Analise!$B$17,DenPro2018!$B$4:$B$80,0),MATCH(Analise!Q9,DenPro2018!$C$3:$BC$3,0)))/SUMIF(População!$B$4:$B$79,Analise!$B$17,População!$C$4:$C$79)*100000) -> 0.3972143797 | R11: =IF((INDEX(DenPro2018!$C$4:$BC$80,MATCH(Analise!$B$17,DenPro2018!$B$4:$B$80,0),MATCH(Analise!R9,DenPro2018!$C$3:$BC$3,0)))="",NA(),(INDEX(DenPro2018!$C$4:$BC$80,MATCH(Analise!$B$17,DenPro2018!$B$4:$B$80,0),MATCH(Analise!R9,DenPro2018!$C$3:$BC$3,0)))/SUMIF(População!$B$4:$B$79,Analise!$B$17,População!$C$4:$C$79)*100000) -> 0.3530794486 | S11: =IF((INDEX(DenPro2018!$C$4:$BC$80,MATCH(Analise!$B$17,DenPro2018!$B$4:$B$80,0),MATCH(Analise!S9,DenPro2018!$C$3:$BC$3,0)))="",NA(),(INDEX(DenPro2018!$C$4:$BC$80,MATCH(Analise!$B$17,DenPro2018!$B$4:$B$80,0),MATCH(Analise!S9,DenPro2018!$C$3:$BC$3,0)))/SUMIF(População!$B$4:$B$79,Analise!$B$17,População!$C$4:$C$79)*100000) -> 0.1765397243 | T11: =IF((INDEX(DenPro2018!$C$4:$BC$80,MATCH(Analise!$B$17,DenPro2018!$B$4:$B$80,0),MATCH(Analise!T9,DenPro2018!$C$3:$BC$3,0)))="",NA(),(INDEX(DenPro2018!$C$4:$BC$80,MATCH(Analise!$B$17,DenPro2018!$B$4:$B$80,0),MATCH(Analise!T9,DenPro2018!$C$3:$BC$3,0)))/SUMIF(População!$B$4:$B$79,Analise!$B$17,População!$C$4:$C$79)*100000) -> 0.4854842418 | U11: =IF((INDEX(DenPro2018!$C$4:$BC$80,MATCH(Analise!$B$17,DenPro2018!$B$4:$B$80,0),MATCH(Analise!U9,DenPro2018!$C$3:$BC$3,0)))="",NA(),(INDEX(DenPro2018!$C$4:$BC$80,MATCH(Analise!$B$17,DenPro2018!$B$4:$B$80,0),MATCH(Analise!U9,DenPro2018!$C$3:$BC$3,0)))/SUMIF(População!$B$4:$B$79,Analise!$B$17,População!$C$4:$C$79)*100000) -> 0.4413493108 | V11: =IF((INDEX(DenPro2018!$C$4:$BC$80,MATCH(Analise!$B$17,DenPro2018!$B$4:$B$80,0),MATCH(Analise!V9,DenPro2018!$C$3:$BC$3,0)))="",NA(),(INDEX(DenPro2018!$C$4:$BC$80,MATCH(Analise!$B$17,DenPro2018!$B$4:$B$80,0),MATCH(Analise!V9,DenPro2018!$C$3:$BC$3,0)))/SUMIF(População!$B$4:$B$79,Analise!$B$17,População!$C$4:$C$79)*100000) -> 0.573754104 | W11: =IF((INDEX(DenPro2018!$C$4:$BC$80,MATCH(Analise!$B$17,DenPro2018!$B$4:$B$80,0),MATCH(Analise!W9,DenPro2018!$C$3:$BC$3,0)))="",NA(),(INDEX(DenPro2018!$C$4:$BC$80,MATCH(Analise!$B$17,DenPro2018!$B$4:$B$80,0),MATCH(Analise!W9,DenPro2018!$C$3:$BC$3,0)))/SUMIF(População!$B$4:$B$79,Analise!$B$17,População!$C$4:$C$79)*100000) -> 0.3530794486 | X11: =IF((INDEX(DenPro2018!$C$4:$BC$80,MATCH(Analise!$B$17,DenPro2018!$B$4:$B$80,0),MATCH(Analise!X9,DenPro2018!$C$3:$BC$3,0)))="",NA(),(INDEX(DenPro2018!$C$4:$BC$80,MATCH(Analise!$B$17,DenPro2018!$B$4:$B$80,0),MATCH(Analise!X9,DenPro2018!$C$3:$BC$3,0)))/SUMIF(População!$B$4:$B$79,Analise!$B$17,População!$C$4:$C$79)*100000) -> 0.2206746554 | Y11: =IF((INDEX(DenPro2018!$C$4:$BC$80,MATCH(Analise!$B$17,DenPro2018!$B$4:$B$80,0),MATCH(Analise!Y9,DenPro2018!$C$3:$BC$3,0)))="",NA(),(INDEX(DenPro2018!$C$4:$BC$80,MATCH(Analise!$B$17,DenPro2018!$B$4:$B$80,0),MATCH(Analise!Y9,DenPro2018!$C$3:$BC$3,0)))/SUMIF(População!$B$4:$B$79,Analise!$B$17,População!$C$4:$C$79)*100000) -> 0.3972143797 | Z11: =IF((INDEX(DenPro2018!$C$4:$BC$80,MATCH(Analise!$B$17,DenPro2018!$B$4:$B$80,0),MATCH(Analise!Z9,DenPro2018!$C$3:$BC$3,0)))="",NA(),(INDEX(DenPro2018!$C$4:$BC$80,MATCH(Analise!$B$17,DenPro2018!$B$4:$B$80,0),MATCH(Analise!Z9,DenPro2018!$C$3:$BC$3,0)))/SUMIF(População!$B$4:$B$79,Analise!$B$17,População!$C$4:$C$79)*100000) -> 0.1765397243 | AA11: =IF((INDEX(DenPro2018!$C$4:$BC$80,MATCH(Analise!$B$17,DenPro2018!$B$4:$B$80,0),MATCH(Analise!AA9,DenPro2018!$C$3:$BC$3,0)))="",NA(),(INDEX(DenPro2018!$C$4:$BC$80,MATCH(Analise!$B$17,DenPro2018!$B$4:$B$80,0),MATCH(Analise!AA9,DenPro2018!$C$3:$BC$3,0)))/SUMIF(População!$B$4:$B$79,Analise!$B$17,População!$C$4:$C$79)*100000) -> 0.1765397243 | AB11: =IF((INDEX(DenPro2018!$C$4:$BC$80,MATCH(Analise!$B$17,DenPro2018!$B$4:$B$80,0),MATCH(Analise!AB9,DenPro2018!$C$3:$BC$3,0)))="",NA(),(INDEX(DenPro2018!$C$4:$BC$80,MATCH(Analise!$B$17,DenPro2018!$B$4:$B$80,0),MATCH(Analise!AB9,DenPro2018!$C$3:$BC$3,0)))/SUMIF(População!$B$4:$B$79,Analise!$B$17,População!$C$4:$C$79)*100000) -> 0.04413493108 | AC11: =IF((INDEX(DenPro2018!$C$4:$BC$80,MATCH(Analise!$B$17,DenPro2018!$B$4:$B$80,0),MATCH(Analise!AC9,DenPro2018!$C$3:$BC$3,0)))="",NA(),(INDEX(DenPro2018!$C$4:$BC$80,MATCH(Analise!$B$17,DenPro2018!$B$4:$B$80,0),MATCH(Analise!AC9,DenPro2018!$C$3:$BC$3,0)))/SUMIF(População!$B$4:$B$79,Analise!$B$17,População!$C$4:$C$79)*100000) -> 0.1324047932 | AD11: =IF((INDEX(DenPro2018!$C$4:$BC$80,MATCH(Analise!$B$17,DenPro2018!$B$4:$B$80,0),MATCH(Analise!AD9,DenPro2018!$C$3:$BC$3,0)))="",NA(),(INDEX(DenPro2018!$C$4:$BC$80,MATCH(Analise!$B$17,DenPro2018!$B$4:$B$80,0),MATCH(Analise!AD9,DenPro2018!$C$3:$BC$3,0)))/SUMIF(População!$B$4:$B$79,Analise!$B$17,População!$C$4:$C$79)*100000) -> 0.2206746554 | AE11: =IF((INDEX(DenPro2018!$C$4:$BC$80,MATCH(Analise!$B$17,DenPro2018!$B$4:$B$80,0),MATCH(Analise!AE9,DenPro2018!$C$3:$BC$3,0)))="",NA(),(INDEX(DenPro2018!$C$4:$BC$80,MATCH(Analise!$B$17,DenPro2018!$B$4:$B$80,0),MATCH(Analise!AE9,DenPro2018!$C$3:$BC$3,0)))/SUMIF(População!$B$4:$B$79,Analise!$B$17,População!$C$4:$C$79)*100000) -> 0.3089445175 | AF11: =IF((INDEX(DenPro2018!$C$4:$BC$80,MATCH(Analise!$B$17,DenPro2018!$B$4:$B$80,0),MATCH(Analise!AF9,DenPro2018!$C$3:$BC$3,0)))="",NA(),(INDEX(DenPro2018!$C$4:$BC$80,MATCH(Analise!$B$17,DenPro2018!$B$4:$B$80,0),MATCH(Analise!AF9,DenPro2018!$C$3:$BC$3,0)))/SUMIF(População!$B$4:$B$79,Analise!$B$17,População!$C$4:$C$79)*100000) -> 0.04413493108 | AG11: =IF((INDEX(DenPro2018!$C$4:$BC$80,MATCH(Analise!$B$17,DenPro2018!$B$4:$B$80,0),MATCH(Analise!AG9,DenPro2018!$C$3:$BC$3,0)))="",NA(),(INDEX(DenPro2018!$C$4:$BC$80,MATCH(Analise!$B$17,DenPro2018!$B$4:$B$80,0),MATCH(Analise!AG9,DenPro2018!$C$3:$BC$3,0)))/SUMIF(População!$B$4:$B$79,Analise!$B$17,População!$C$4:$C$79)*100000) -> 0.04413493108 | AH11: =IF((INDEX(DenPro2018!$C$4:$BC$80,MATCH(Analise!$B$17,DenPro2018!$B$4:$B$80,0),MATCH(Analise!AH9,DenPro2018!$C$3:$BC$3,0)))="",NA(),(INDEX(DenPro2018!$C$4:$BC$80,MATCH(Analise!$B$17,DenPro2018!$B$4:$B$80,0),MATCH(Analise!AH9,DenPro2018!$C$3:$BC$3,0)))/SUMIF(População!$B$4:$B$79,Analise!$B$17,População!$C$4:$C$79)*100000) -> 0.1765397243 | AI11: =IF((INDEX(DenPro2018!$C$4:$BC$80,MATCH(Analise!$B$17,DenPro2018!$B$4:$B$80,0),MATCH(Analise!AI9,DenPro2018!$C$3:$BC$3,0)))="",NA(),(INDEX(DenPro2018!$C$4:$BC$80,MATCH(Analise!$B$17,DenPro2018!$B$4:$B$80,0),MATCH(Analise!AI9,DenPro2018!$C$3:$BC$3,0)))/SUMIF(População!$B$4:$B$79,Analise!$B$17,População!$C$4:$C$79)*100000) -> 0.3530794486 | AJ11: =IF((INDEX(DenPro2018!$C$4:$BC$80,MATCH(Analise!$B$17,DenPro2018!$B$4:$B$80,0),MATCH(Analise!AJ9,DenPro2018!$C$3:$BC$3,0)))="",NA(),(INDEX(DenPro2018!$C$4:$BC$80,MATCH(Analise!$B$17,DenPro2018!$B$4:$B$80,0),MATCH(Analise!AJ9,DenPro2018!$C$3:$BC$3,0)))/SUMIF(População!$B$4:$B$79,Analise!$B$17,População!$C$4:$C$79)*100000) -> 0.3089445175 | AK11: =IF((INDEX(DenPro2018!$C$4:$BC$80,MATCH(Analise!$B$17,DenPro2018!$B$4:$B$80,0),MATCH(Analise!AK9,DenPro2018!$C$3:$BC$3,0)))="",NA(),(INDEX(DenPro2018!$C$4:$BC$80,MATCH(Analise!$B$17,DenPro2018!$B$4:$B$80,0),MATCH(Analise!AK9,DenPro2018!$C$3:$BC$3,0)))/SUMIF(População!$B$4:$B$79,Analise!$B$17,População!$C$4:$C$79)*100000) -> 0.04413493108 | AL11: =IF((INDEX(DenPro2018!$C$4:$BC$80,MATCH(Analise!$B$17,DenPro2018!$B$4:$B$80,0),MATCH(Analise!AL9,DenPro2018!$C$3:$BC$3,0)))="",NA(),(INDEX(DenPro2018!$C$4:$BC$80,MATCH(Analise!$B$17,DenPro2018!$B$4:$B$80,0),MATCH(Analise!AL9,DenPro2018!$C$3:$BC$3,0)))/SUMIF(População!$B$4:$B$79,Analise!$B$17,População!$C$4:$C$79)*100000) -> 0.1765397243 | AM11: =IF((INDEX(DenPro2018!$C$4:$BC$80,MATCH(Analise!$B$17,DenPro2018!$B$4:$B$80,0),MATCH(Analise!AM9,DenPro2018!$C$3:$BC$3,0)))="",NA(),(INDEX(DenPro2018!$C$4:$BC$80,MATCH(Analise!$B$17,DenPro2018!$B$4:$B$80,0),MATCH(Analise!AM9,DenPro2018!$C$3:$BC$3,0)))/SUMIF(População!$B$4:$B$79,Analise!$B$17,População!$C$4:$C$79)*100000) -> 0.1324047932 | AN11: =IF((INDEX(DenPro2018!$C$4:$BC$80,MATCH(Analise!$B$17,DenPro2018!$B$4:$B$80,0),MATCH(Analise!AN9,DenPro2018!$C$3:$BC$3,0)))="",NA(),(INDEX(DenPro2018!$C$4:$BC$80,MATCH(Analise!$B$17,DenPro2018!$B$4:$B$80,0),MATCH(Analise!AN9,DenPro2018!$C$3:$BC$3,0)))/SUMIF(População!$B$4:$B$79,Analise!$B$17,População!$C$4:$C$79)*100000) -> 0.1324047932 | AO11: =IF((INDEX(DenPro2018!$C$4:$BC$80,MATCH(Analise!$B$17,DenPro2018!$B$4:$B$80,0),MATCH(Analise!AO9,DenPro2018!$C$3:$BC$3,0)))="",NA(),(INDEX(DenPro2018!$C$4:$BC$80,MATCH(Analise!$B$17,DenPro2018!$B$4:$B$80,0),MATCH(Analise!AO9,DenPro2018!$C$3:$BC$3,0)))/SUMIF(População!$B$4:$B$79,Analise!$B$17,População!$C$4:$C$79)*100000) -> 0.1324047932 | AP11: =IF((INDEX(DenPro2018!$C$4:$BC$80,MATCH(Analise!$B$17,DenPro2018!$B$4:$B$80,0),MATCH(Analise!AP9,DenPro2018!$C$3:$BC$3,0)))="",NA(),(INDEX(DenPro2018!$C$4:$BC$80,MATCH(Analise!$B$17,DenPro2018!$B$4:$B$80,0),MATCH(Analise!AP9,DenPro2018!$C$3:$BC$3,0)))/SUMIF(População!$B$4:$B$79,Analise!$B$17,População!$C$4:$C$79)*100000) -> 0.1324047932 | AQ11: =IF((INDEX(DenPro2018!$C$4:$BC$80,MATCH(Analise!$B$17,DenPro2018!$B$4:$B$80,0),MATCH(Analise!AQ9,DenPro2018!$C$3:$BC$3,0)))="",NA(),(INDEX(DenPro2018!$C$4:$BC$80,MATCH(Analise!$B$17,DenPro2018!$B$4:$B$80,0),MATCH(Analise!AQ9,DenPro2018!$C$3:$BC$3,0)))/SUMIF(População!$B$4:$B$79,Analise!$B$17,População!$C$4:$C$79)*100000) -> 0.3972143797 | AR11: =IF((INDEX(DenPro2018!$C$4:$BC$80,MATCH(Analise!$B$17,DenPro2018!$B$4:$B$80,0),MATCH(Analise!AR9,DenPro2018!$C$3:$BC$3,0)))="",NA(),(INDEX(DenPro2018!$C$4:$BC$80,MATCH(Analise!$B$17,DenPro2018!$B$4:$B$80,0),MATCH(Analise!AR9,DenPro2018!$C$3:$BC$3,0)))/SUMIF(População!$B$4:$B$79,Analise!$B$17,População!$C$4:$C$79)*100000) -> 0.1324047932 | AS11: =IF((INDEX(DenPro2018!$C$4:$BC$80,MATCH(Analise!$B$17,DenPro2018!$B$4:$B$80,0),MATCH(Analise!AS9,DenPro2018!$C$3:$BC$3,0)))="",NA(),(INDEX(DenPro2018!$C$4:$BC$80,MATCH(Analise!$B$17,DenPro2018!$B$4:$B$80,0),MATCH(Analise!AS9,DenPro2018!$C$3:$BC$3,0)))/SUMIF(População!$B$4:$B$79,Analise!$B$17,População!$C$4:$C$79)*100000) -> 0.1765397243 | AT11: =IF((INDEX(DenPro2018!$C$4:$BC$80,MATCH(Analise!$B$17,DenPro2018!$B$4:$B$80,0),MATCH(Analise!AT9,DenPro2018!$C$3:$BC$3,0)))="",NA(),(INDEX(DenPro2018!$C$4:$BC$80,MATCH(Analise!$B$17,DenPro2018!$B$4:$B$80,0),MATCH(Analise!AT9,DenPro2018!$C$3:$BC$3,0)))/SUMIF(População!$B$4:$B$79,Analise!$B$17,População!$C$4:$C$79)*100000) -> 0.2206746554 | AU11: =IF((INDEX(DenPro2018!$C$4:$BC$80,MATCH(Analise!$B$17,DenPro2018!$B$4:$B$80,0),MATCH(Analise!AU9,DenPro2018!$C$3:$BC$3,0)))="",NA(),(INDEX(DenPro2018!$C$4:$BC$80,MATCH(Analise!$B$17,DenPro2018!$B$4:$B$80,0),MATCH(Analise!AU9,DenPro2018!$C$3:$BC$3,0)))/SUMIF(População!$B$4:$B$79,Analise!$B$17,População!$C$4:$C$79)*100000) -> 0.2648095865 | AV11: =IF((INDEX(DenPro2018!$C$4:$BC$80,MATCH(Analise!$B$17,DenPro2018!$B$4:$B$80,0),MATCH(Analise!AV9,DenPro2018!$C$3:$BC$3,0)))="",NA(),(INDEX(DenPro2018!$C$4:$BC$80,MATCH(Analise!$B$17,DenPro2018!$B$4:$B$80,0),MATCH(Analise!AV9,DenPro2018!$C$3:$BC$3,0)))/SUMIF(População!$B$4:$B$79,Analise!$B$17,População!$C$4:$C$79)*100000) -> 0.1765397243 | AW11: =IF((INDEX(DenPro2018!$C$4:$BC$80,MATCH(Analise!$B$17,DenPro2018!$B$4:$B$80,0),MATCH(Analise!AW9,DenPro2018!$C$3:$BC$3,0)))="",NA(),(INDEX(DenPro2018!$C$4:$BC$80,MATCH(Analise!$B$17,DenPro2018!$B$4:$B$80,0),MATCH(Analise!AW9,DenPro2018!$C$3:$BC$3,0)))/SUMIF(População!$B$4:$B$79,Analise!$B$17,População!$C$4:$C$79)*100000) -> 0.3089445175 | AX11: =IF((INDEX(DenPro2018!$C$4:$BC$80,MATCH(Analise!$B$17,DenPro2018!$B$4:$B$80,0),MATCH(Analise!AX9,DenPro2018!$C$3:$BC$3,0)))="",NA(),(INDEX(DenPro2018!$C$4:$BC$80,MATCH(Analise!$B$17,DenPro2018!$B$4:$B$80,0),MATCH(Analise!AX9,DenPro2018!$C$3:$BC$3,0)))/SUMIF(População!$B$4:$B$79,Analise!$B$17,População!$C$4:$C$79)*100000) -> 0.1324047932 | AY11: =IF((INDEX(DenPro2018!$C$4:$BC$80,MATCH(Analise!$B$17,DenPro2018!$B$4:$B$80,0),MATCH(Analise!AY9,DenPro2018!$C$3:$BC$3,0)))="",NA(),(INDEX(DenPro2018!$C$4:$BC$80,MATCH(Analise!$B$17,DenPro2018!$B$4:$B$80,0),MATCH(Analise!AY9,DenPro2018!$C$3:$BC$3,0)))/SUMIF(População!$B$4:$B$79,Analise!$B$17,População!$C$4:$C$79)*100000) -> 0.1324047932 | AZ11: =IF((INDEX(DenPro2018!$C$4:$BC$80,MATCH(Analise!$B$17,DenPro2018!$B$4:$B$80,0),MATCH(Analise!AZ9,DenPro2018!$C$3:$BC$3,0)))="",NA(),(INDEX(DenPro2018!$C$4:$BC$80,MATCH(Analise!$B$17,DenPro2018!$B$4:$B$80,0),MATCH(Analise!AZ9,DenPro2018!$C$3:$BC$3,0)))/SUMIF(População!$B$4:$B$79,Analise!$B$17,População!$C$4:$C$79)*100000) -> 0.04413493108 | BA11: =IF((INDEX(DenPro2018!$C$4:$BC$80,MATCH(Analise!$B$17,DenPro2018!$B$4:$B$80,0),MATCH(Analise!BA9,DenPro2018!$C$3:$BC$3,0)))="",NA(),(INDEX(DenPro2018!$C$4:$BC$80,MATCH(Analise!$B$17,DenPro2018!$B$4:$B$80,0),MATCH(Analise!BA9,DenPro2018!$C$3:$BC$3,0)))/SUMIF(População!$B$4:$B$79,Analise!$B$17,População!$C$4:$C$79)*100000) -> 0.08826986215 | BB11: =IF((INDEX(DenPro2018!$C$4:$BC$80,MATCH(Analise!$B$17,DenPro2018!$B$4:$B$80,0),MATCH(Analise!BB9,DenPro2018!$C$3:$BC$3,0)))="",NA(),(INDEX(DenPro2018!$C$4:$BC$80,MATCH(Analise!$B$17,DenPro2018!$B$4:$B$80,0),MATCH(Analise!BB9,DenPro2018!$C$3:$BC$3,0)))/SUMIF(População!$B$4:$B$79,Analise!$B$17,População!$C$4:$C$79)*100000) -> 0.04413493108 | BC11: =IF((INDEX(DenPro2018!$C$4:$BC$80,MATCH(Analise!$B$17,DenPro2018!$B$4:$B$80,0),MATCH(Analise!BC9,DenPro2018!$C$3:$BC$3,0)))="",NA(),(INDEX(DenPro2018!$C$4:$BC$80,MATCH(Analise!$B$17,DenPro2018!$B$4:$B$80,0),MATCH(Analise!BC9,DenPro2018!$C$3:$BC$3,0)))/SUMIF(População!$B$4:$B$79,Analise!$B$17,População!$C$4:$C$79)*100000) -> 0 | BD11: =IF((INDEX(DenPro2018!$C$4:$BD$80,MATCH(Analise!$B$17,DenPro2018!$B$4:$B$80,0),MATCH(Analise!BD9,DenPro2018!$C$3:$BD$3,0)))="",NA(),(INDEX(DenPro2018!$C$4:$BD$80,MATCH(Analise!$B$17,DenPro2018!$B$4:$B$80,0),MATCH(Analise!BD9,DenPro2018!$C$3:$BD$3,0)))/SUMIF(População!$B$4:$B$79,Analise!$B$17,População!$C$4:$C$79)*100000) -> 10.10689922
A12: Chikungunya | B12: =PainelArbovirose!$B$4 -> Sergipe | C12: =IF((INDEX(ChiPro2018!$C$4:$BC$80,MATCH(Analise!$B$17,ChiPro2018!$B$4:$B$80,0),MATCH(Analise!C9,ChiPro2018!$C$3:$BC$3,0)))="",NA(),(INDEX(ChiPro2018!$C$4:$BC$80,MATCH(Analise!$B$17,ChiPro2018!$B$4:$B$80,0),MATCH(Analise!C9,ChiPro2018!$C$3:$BC$3,0)))/SUMIF(População!$B$4:$B$79,Analise!$B$17,População!$C$4:$C$79)*100000) -> 0 | D12: =IF((INDEX(ChiPro2018!$C$4:$BC$80,MATCH(Analise!$B$17,ChiPro2018!$B$4:$B$80,0),MATCH(Analise!D9,ChiPro2018!$C$3:$BC$3,0)))="",NA(),(INDEX(ChiPro2018!$C$4:$BC$80,MATCH(Analise!$B$17,ChiPro2018!$B$4:$B$80,0),MATCH(Analise!D9,ChiPro2018!$C$3:$BC$3,0)))/SUMIF(População!$B$4:$B$79,Analise!$B$17,População!$C$4:$C$79)*100000) -> 0 | E12: =IF((INDEX(ChiPro2018!$C$4:$BC$80,MATCH(Analise!$B$17,ChiPro2018!$B$4:$B$80,0),MATCH(Analise!E9,ChiPro2018!$C$3:$BC$3,0)))="",NA(),(INDEX(ChiPro2018!$C$4:$BC$80,MATCH(Analise!$B$17,ChiPro2018!$B$4:$B$80,0),MATCH(Analise!E9,ChiPro2018!$C$3:$BC$3,0)))/SUMIF(População!$B$4:$B$79,Analise!$B$17,População!$C$4:$C$79)*100000) -> 0 | F12: =IF((INDEX(ChiPro2018!$C$4:$BC$80,MATCH(Analise!$B$17,ChiPro2018!$B$4:$B$80,0),MATCH(Analise!F9,ChiPro2018!$C$3:$BC$3,0)))="",NA(),(INDEX(ChiPro2018!$C$4:$BC$80,MATCH(Analise!$B$17,ChiPro2018!$B$4:$B$80,0),MATCH(Analise!F9,ChiPro2018!$C$3:$BC$3,0)))/SUMIF(População!$B$4:$B$79,Analise!$B$17,População!$C$4:$C$79)*100000) -> 0.08826986215 | G12: =IF((INDEX(ChiPro2018!$C$4:$BC$80,MATCH(Analise!$B$17,ChiPro2018!$B$4:$B$80,0),MATCH(Analise!G9,ChiPro2018!$C$3:$BC$3,0)))="",NA(),(INDEX(ChiPro2018!$C$4:$BC$80,MATCH(Analise!$B$17,ChiPro2018!$B$4:$B$80,0),MATCH(Analise!G9,ChiPro2018!$C$3:$BC$3,0)))/SUMIF(População!$B$4:$B$79,Analise!$B$17,População!$C$4:$C$79)*100000) -> 0.04413493108 | H12: =IF((INDEX(ChiPro2018!$C$4:$BC$80,MATCH(Analise!$B$17,ChiPro2018!$B$4:$B$80,0),MATCH(Analise!H9,ChiPro2018!$C$3:$BC$3,0)))="",NA(),(INDEX(ChiPro2018!$C$4:$BC$80,MATCH(Analise!$B$17,ChiPro2018!$B$4:$B$80,0),MATCH(Analise!H9,ChiPro2018!$C$3:$BC$3,0)))/SUMIF(População!$B$4:$B$79,Analise!$B$17,População!$C$4:$C$79)*100000) -> 0 | I12: =IF((INDEX(ChiPro2018!$C$4:$BC$80,MATCH(Analise!$B$17,ChiPro2018!$B$4:$B$80,0),MATCH(Analise!I9,ChiPro2018!$C$3:$BC$3,0)))="",NA(),(INDEX(ChiPro2018!$C$4:$BC$80,MATCH(Analise!$B$17,ChiPro2018!$B$4:$B$80,0),MATCH(Analise!I9,ChiPro2018!$C$3:$BC$3,0)))/SUMIF(População!$B$4:$B$79,Analise!$B$17,População!$C$4:$C$79)*100000) -> 0 | J12: =IF((INDEX(ChiPro2018!$C$4:$BC$80,MATCH(Analise!$B$17,ChiPro2018!$B$4:$B$80,0),MATCH(Analise!J9,ChiPro2018!$C$3:$BC$3,0)))="",NA(),(INDEX(ChiPro2018!$C$4:$BC$80,MATCH(Analise!$B$17,ChiPro2018!$B$4:$B$80,0),MATCH(Analise!J9,ChiPro2018!$C$3:$BC$3,0)))/SUMIF(População!$B$4:$B$79,Analise!$B$17,População!$C$4:$C$79)*100000) -> 0.08826986215 | K12: =IF((INDEX(ChiPro2018!$C$4:$BC$80,MATCH(Analise!$B$17,ChiPro2018!$B$4:$B$80,0),MATCH(Analise!K9,ChiPro2018!$C$3:$BC$3,0)))="",NA(),(INDEX(ChiPro2018!$C$4:$BC$80,MATCH(Analise!$B$17,ChiPro2018!$B$4:$B$80,0),MATCH(Analise!K9,ChiPro2018!$C$3:$BC$3,0)))/SUMIF(População!$B$4:$B$79,Analise!$B$17,População!$C$4:$C$79)*100000) -> 0 | L12: =IF((INDEX(ChiPro2018!$C$4:$BC$80,MATCH(Analise!$B$17,ChiPro2018!$B$4:$B$80,0),MATCH(Analise!L9,ChiPro2018!$C$3:$BC$3,0)))="",NA(),(INDEX(ChiPro2018!$C$4:$BC$80,MATCH(Analise!$B$17,ChiPro2018!$B$4:$B$80,0),MATCH(Analise!L9,ChiPro2018!$C$3:$BC$3,0)))/SUMIF(População!$B$4:$B$79,Analise!$B$17,População!$C$4:$C$79)*100000) -> 0 | M12: =IF((INDEX(ChiPro2018!$C$4:$BC$80,MATCH(Analise!$B$17,ChiPro2018!$B$4:$B$80,0),MATCH(Analise!M9,ChiPro2018!$C$3:$BC$3,0)))="",NA(),(INDEX(ChiPro2018!$C$4:$BC$80,MATCH(Analise!$B$17,ChiPro2018!$B$4:$B$80,0),MATCH(Analise!M9,ChiPro2018!$C$3:$BC$3,0)))/SUMIF(População!$B$4:$B$79,Analise!$B$17,População!$C$4:$C$79)*100000) -> 0.08826986215 | N12: =IF((INDEX(ChiPro2018!$C$4:$BC$80,MATCH(Analise!$B$17,ChiPro2018!$B$4:$B$80,0),MATCH(Analise!N9,ChiPro2018!$C$3:$BC$3,0)))="",NA(),(INDEX(ChiPro2018!$C$4:$BC$80,MATCH(Analise!$B$17,ChiPro2018!$B$4:$B$80,0),MATCH(Analise!N9,ChiPro2018!$C$3:$BC$3,0)))/SUMIF(População!$B$4:$B$79,Analise!$B$17,População!$C$4:$C$79)*100000) -> 0 | O12: =IF((INDEX(ChiPro2018!$C$4:$BC$80,MATCH(Analise!$B$17,ChiPro2018!$B$4:$B$80,0),MATCH(Analise!O9,ChiPro2018!$C$3:$BC$3,0)))="",NA(),(INDEX(ChiPro2018!$C$4:$BC$80,MATCH(Analise!$B$17,ChiPro2018!$B$4:$B$80,0),MATCH(Analise!O9,ChiPro2018!$C$3:$BC$3,0)))/SUMIF(População!$B$4:$B$79,Analise!$B$17,População!$C$4:$C$79)*100000) -> 0.04413493108 | P12: =IF((INDEX(ChiPro2018!$C$4:$BC$80,MATCH(Analise!$B$17,ChiPro2018!$B$4:$B$80,0),MATCH(Analise!P9,ChiPro2018!$C$3:$BC$3,0)))="",NA(),(INDEX(ChiPro2018!$C$4:$BC$80,MATCH(Analise!$B$17,ChiPro2018!$B$4:$B$80,0),MATCH(Analise!P9,ChiPro2018!$C$3:$BC$3,0)))/SUMIF(População!$B$4:$B$79,Analise!$B$17,População!$C$4:$C$79)*100000) -> 0.08826986215 | Q12: =IF((INDEX(ChiPro2018!$C$4:$BC$80,MATCH(Analise!$B$17,ChiPro2018!$B$4:$B$80,0),MATCH(Analise!Q9,ChiPro2018!$C$3:$BC$3,0)))="",NA(),(INDEX(ChiPro2018!$C$4:$BC$80,MATCH(Analise!$B$17,ChiPro2018!$B$4:$B$80,0),MATCH(Analise!Q9,ChiPro2018!$C$3:$BC$3,0)))/SUMIF(População!$B$4:$B$79,Analise!$B$17,População!$C$4:$C$79)*100000) -> 0.04413493108 | R12: =IF((INDEX(ChiPro2018!$C$4:$BC$80,MATCH(Analise!$B$17,ChiPro2018!$B$4:$B$80,0),MATCH(Analise!R9,ChiPro2018!$C$3:$BC$3,0)))="",NA(),(INDEX(ChiPro2018!$C$4:$BC$80,MATCH(Analise!$B$17,ChiPro2018!$B$4:$B$80,0),MATCH(Analise!R9,ChiPro2018!$C$3:$BC$3,0)))/SUMIF(População!$B$4:$B$79,Analise!$B$17,População!$C$4:$C$79)*100000) -> 0.04413493108 | S12: =IF((INDEX(ChiPro2018!$C$4:$BC$80,MATCH(Analise!$B$17,ChiPro2018!$B$4:$B$80,0),MATCH(Analise!S9,ChiPro2018!$C$3:$BC$3,0)))="",NA(),(INDEX(ChiPro2018!$C$4:$BC$80,MATCH(Analise!$B$17,ChiPro2018!$B$4:$B$80,0),MATCH(Analise!S9,ChiPro2018!$C$3:$BC$3,0)))/SUMIF(População!$B$4:$B$79,Analise!$B$17,População!$C$4:$C$79)*100000) -> 0 | T12: =IF((INDEX(ChiPro2018!$C$4:$BC$80,MATCH(Analise!$B$17,ChiPro2018!$B$4:$B$80,0),MATCH(Analise!T9,ChiPro2018!$C$3:$BC$3,0)))="",NA(),(INDEX(ChiPro2018!$C$4:$BC$80,MATCH(Analise!$B$17,ChiPro2018!$B$4:$B$80,0),MATCH(Analise!T9,ChiPro2018!$C$3:$BC$3,0)))/SUMIF(População!$B$4:$B$79,Analise!$B$17,População!$C$4:$C$79)*100000) -> 0.1324047932 | U12: =IF((INDEX(ChiPro2018!$C$4:$BC$80,MATCH(Analise!$B$17,ChiPro2018!$B$4:$B$80,0),MATCH(Analise!U9,ChiPro2018!$C$3:$BC$3,0)))="",NA(),(INDEX(ChiPro2018!$C$4:$BC$80,MATCH(Analise!$B$17,ChiPro2018!$B$4:$B$80,0),MATCH(Analise!U9,ChiPro2018!$C$3:$BC$3,0)))/SUMIF(População!$B$4:$B$79,Analise!$B$17,População!$C$4:$C$79)*100000) -> 0.08826986215 | V12: =IF((INDEX(ChiPro2018!$C$4:$BC$80,MATCH(Analise!$B$17,ChiPro2018!$B$4:$B$80,0),MATCH(Analise!V9,ChiPro2018!$C$3:$BC$3,0)))="",NA(),(INDEX(ChiPro2018!$C$4:$BC$80,MATCH(Analise!$B$17,ChiPro2018!$B$4:$B$80,0),MATCH(Analise!V9,ChiPro2018!$C$3:$BC$3,0)))/SUMIF(População!$B$4:$B$79,Analise!$B$17,População!$C$4:$C$79)*100000) -> 0.04413493108 | W12: =IF((INDEX(ChiPro2018!$C$4:$BC$80,MATCH(Analise!$B$17,ChiPro2018!$B$4:$B$80,0),MATCH(Analise!W9,ChiPro2018!$C$3:$BC$3,0)))="",NA(),(INDEX(ChiPro2018!$C$4:$BC$80,MATCH(Analise!$B$17,ChiPro2018!$B$4:$B$80,0),MATCH(Analise!W9,ChiPro2018!$C$3:$BC$3,0)))/SUMIF(População!$B$4:$B$79,Analise!$B$17,População!$C$4:$C$79)*100000) -> 0.2206746554 | X12: =IF((INDEX(ChiPro2018!$C$4:$BC$80,MATCH(Analise!$B$17,ChiPro2018!$B$4:$B$80,0),MATCH(Analise!X9,ChiPro2018!$C$3:$BC$3,0)))="",NA(),(INDEX(ChiPro2018!$C$4:$BC$80,MATCH(Analise!$B$17,ChiPro2018!$B$4:$B$80,0),MATCH(Analise!X9,ChiPro2018!$C$3:$BC$3,0)))/SUMIF(População!$B$4:$B$79,Analise!$B$17,População!$C$4:$C$79)*100000) -> 0.1324047932 | Y12: =IF((INDEX(ChiPro2018!$C$4:$BC$80,MATCH(Analise!$B$17,ChiPro2018!$B$4:$B$80,0),MATCH(Analise!Y9,ChiPro2018!$C$3:$BC$3,0)))="",NA(),(INDEX(ChiPro2018!$C$4:$BC$80,MATCH(Analise!$B$17,ChiPro2018!$B$4:$B$80,0),MATCH(Analise!Y9,ChiPro2018!$C$3:$BC$3,0)))/SUMIF(População!$B$4:$B$79,Analise!$B$17,População!$C$4:$C$79)*100000) -> 0 | Z12: =IF((INDEX(ChiPro2018!$C$4:$BC$80,MATCH(Analise!$B$17,ChiPro2018!$B$4:$B$80,0),MATCH(Analise!Z9,ChiPro2018!$C$3:$BC$3,0)))="",NA(),(INDEX(ChiPro2018!$C$4:$BC$80,MATCH(Analise!$B$17,ChiPro2018!$B$4:$B$80,0),MATCH(Analise!Z9,ChiPro2018!$C$3:$BC$3,0)))/SUMIF(População!$B$4:$B$79,Analise!$B$17,População!$C$4:$C$79)*100000) -> 0.04413493108 | AA12: =IF((INDEX(ChiPro2018!$C$4:$BC$80,MATCH(Analise!$B$17,ChiPro2018!$B$4:$B$80,0),MATCH(Analise!AA9,ChiPro2018!$C$3:$BC$3,0)))="",NA(),(INDEX(ChiPro2018!$C$4:$BC$80,MATCH(Analise!$B$17,ChiPro2018!$B$4:$B$80,0),MATCH(Analise!AA9,ChiPro2018!$C$3:$BC$3,0)))/SUMIF(População!$B$4:$B$79,Analise!$B$17,População!$C$4:$C$79)*100000) -> 0 | AB12: =IF((INDEX(ChiPro2018!$C$4:$BC$80,MATCH(Analise!$B$17,ChiPro2018!$B$4:$B$80,0),MATCH(Analise!AB9,ChiPro2018!$C$3:$BC$3,0)))="",NA(),(INDEX(ChiPro2018!$C$4:$BC$80,MATCH(Analise!$B$17,ChiPro2018!$B$4:$B$80,0),MATCH(Analise!AB9,ChiPro2018!$C$3:$BC$3,0)))/SUMIF(População!$B$4:$B$79,Analise!$B$17,População!$C$4:$C$79)*100000) -> 0 | AC12: =IF((INDEX(ChiPro2018!$C$4:$BC$80,MATCH(Analise!$B$17,ChiPro2018!$B$4:$B$80,0),MATCH(Analise!AC9,ChiPro2018!$C$3:$BC$3,0)))="",NA(),(INDEX(ChiPro2018!$C$4:$BC$80,MATCH(Analise!$B$17,ChiPro2018!$B$4:$B$80,0),MATCH(Analise!AC9,ChiPro2018!$C$3:$BC$3,0)))/SUMIF(População!$B$4:$B$79,Analise!$B$17,População!$C$4:$C$79)*100000) -> 0 | AD12: =IF((INDEX(ChiPro2018!$C$4:$BC$80,MATCH(Analise!$B$17,ChiPro2018!$B$4:$B$80,0),MATCH(Analise!AD9,ChiPro2018!$C$3:$BC$3,0)))="",NA(),(INDEX(ChiPro2018!$C$4:$BC$80,MATCH(Analise!$B$17,ChiPro2018!$B$4:$B$80,0),MATCH(Analise!AD9,ChiPro2018!$C$3:$BC$3,0)))/SUMIF(População!$B$4:$B$79,Analise!$B$17,População!$C$4:$C$79)*100000) -> 0 | AE12: =IF((INDEX(ChiPro2018!$C$4:$BC$80,MATCH(Analise!$B$17,ChiPro2018!$B$4:$B$80,0),MATCH(Analise!AE9,ChiPro2018!$C$3:$BC$3,0)))="",NA(),(INDEX(ChiPro2018!$C$4:$BC$80,MATCH(Analise!$B$17,ChiPro2018!$B$4:$B$80,0),MATCH(Analise!AE9,ChiPro2018!$C$3:$BC$3,0)))/SUMIF(População!$B$4:$B$79,Analise!$B$17,População!$C$4:$C$79)*100000) -> 0.08826986215 | AF12: =IF((INDEX(ChiPro2018!$C$4:$BC$80,MATCH(Analise!$B$17,ChiPro2018!$B$4:$B$80,0),MATCH(Analise!AF9,ChiPro2018!$C$3:$BC$3,0)))="",NA(),(INDEX(ChiPro2018!$C$4:$BC$80,MATCH(Analise!$B$17,ChiPro2018!$B$4:$B$80,0),MATCH(Analise!AF9,ChiPro2018!$C$3:$BC$3,0)))/SUMIF(População!$B$4:$B$79,Analise!$B$17,População!$C$4:$C$79)*100000) -> 0 | AG12: =IF((INDEX(ChiPro2018!$C$4:$BC$80,MATCH(Analise!$B$17,ChiPro2018!$B$4:$B$80,0),MATCH(Analise!AG9,ChiPro2018!$C$3:$BC$3,0)))="",NA(),(INDEX(ChiPro2018!$C$4:$BC$80,MATCH(Analise!$B$17,ChiPro2018!$B$4:$B$80,0),MATCH(Analise!AG9,ChiPro2018!$C$3:$BC$3,0)))/SUMIF(População!$B$4:$B$79,Analise!$B$17,População!$C$4:$C$79)*100000) -> 0 | AH12: =IF((INDEX(ChiPro2018!$C$4:$BC$80,MATCH(Analise!$B$17,ChiPro2018!$B$4:$B$80,0),MATCH(Analise!AH9,ChiPro2018!$C$3:$BC$3,0)))="",NA(),(INDEX(ChiPro2018!$C$4:$BC$80,MATCH(Analise!$B$17,ChiPro2018!$B$4:$B$80,0),MATCH(Analise!AH9,ChiPro2018!$C$3:$BC$3,0)))/SUMIF(População!$B$4:$B$79,Analise!$B$17,População!$C$4:$C$79)*100000) -> 0.04413493108 | AI12: =IF((INDEX(ChiPro2018!$C$4:$BC$80,MATCH(Analise!$B$17,ChiPro2018!$B$4:$B$80,0),MATCH(Analise!AI9,ChiPro2018!$C$3:$BC$3,0)))="",NA(),(INDEX(ChiPro2018!$C$4:$BC$80,MATCH(Analise!$B$17,ChiPro2018!$B$4:$B$80,0),MATCH(Analise!AI9,ChiPro2018!$C$3:$BC$3,0)))/SUMIF(População!$B$4:$B$79,Analise!$B$17,População!$C$4:$C$79)*100000) -> 0 | AJ12: =IF((INDEX(ChiPro2018!$C$4:$BC$80,MATCH(Analise!$B$17,ChiPro2018!$B$4:$B$80,0),MATCH(Analise!AJ9,ChiPro2018!$C$3:$BC$3,0)))="",NA(),(INDEX(ChiPro2018!$C$4:$BC$80,MATCH(Analise!$B$17,ChiPro2018!$B$4:$B$80,0),MATCH(Analise!AJ9,ChiPro2018!$C$3:$BC$3,0)))/SUMIF(População!$B$4:$B$79,Analise!$B$17,População!$C$4:$C$79)*100000) -> 0.04413493108 | AK12: =IF((INDEX(ChiPro2018!$C$4:$BC$80,MATCH(Analise!$B$17,ChiPro2018!$B$4:$B$80,0),MATCH(Analise!AK9,ChiPro2018!$C$3:$BC$3,0)))="",NA(),(INDEX(ChiPro2018!$C$4:$BC$80,MATCH(Analise!$B$17,ChiPro2018!$B$4:$B$80,0),MATCH(Analise!AK9,ChiPro2018!$C$3:$BC$3,0)))/SUMIF(População!$B$4:$B$79,Analise!$B$17,População!$C$4:$C$79)*100000) -> 0.04413493108 | AL12: =IF((INDEX(ChiPro2018!$C$4:$BC$80,MATCH(Analise!$B$17,ChiPro2018!$B$4:$B$80,0),MATCH(Analise!AL9,ChiPro2018!$C$3:$BC$3,0)))="",NA(),(INDEX(ChiPro2018!$C$4:$BC$80,MATCH(Analise!$B$17,ChiPro2018!$B$4:$B$80,0),MATCH(Analise!AL9,ChiPro2018!$C$3:$BC$3,0)))/SUMIF(População!$B$4:$B$79,Analise!$B$17,População!$C$4:$C$79)*100000) -> 0 | AM12: =IF((INDEX(ChiPro2018!$C$4:$BC$80,MATCH(Analise!$B$17,ChiPro2018!$B$4:$B$80,0),MATCH(Analise!AM9,ChiPro2018!$C$3:$BC$3,0)))="",NA(),(INDEX(ChiPro2018!$C$4:$BC$80,MATCH(Analise!$B$17,ChiPro2018!$B$4:$B$80,0),MATCH(Analise!AM9,ChiPro2018!$C$3:$BC$3,0)))/SUMIF(População!$B$4:$B$79,Analise!$B$17,População!$C$4:$C$79)*100000) -> 0.04413493108 | AN12: =IF((INDEX(ChiPro2018!$C$4:$BC$80,MATCH(Analise!$B$17,ChiPro2018!$B$4:$B$80,0),MATCH(Analise!AN9,ChiPro2018!$C$3:$BC$3,0)))="",NA(),(INDEX(ChiPro2018!$C$4:$BC$80,MATCH(Analise!$B$17,ChiPro2018!$B$4:$B$80,0),MATCH(Analise!AN9,ChiPro2018!$C$3:$BC$3,0)))/SUMIF(População!$B$4:$B$79,Analise!$B$17,População!$C$4:$C$79)*100000) -> 0.04413493108 | AO12: =IF((INDEX(ChiPro2018!$C$4:$BC$80,MATCH(Analise!$B$17,ChiPro2018!$B$4:$B$80,0),MATCH(Analise!AO9,ChiPro2018!$C$3:$BC$3,0)))="",NA(),(INDEX(ChiPro2018!$C$4:$BC$80,MATCH(Analise!$B$17,ChiPro2018!$B$4:$B$80,0),MATCH(Analise!AO9,ChiPro2018!$C$3:$BC$3,0)))/SUMIF(População!$B$4:$B$79,Analise!$B$17,População!$C$4:$C$79)*100000) -> 0 | AP12: =IF((INDEX(ChiPro2018!$C$4:$BC$80,MATCH(Analise!$B$17,ChiPro2018!$B$4:$B$80,0),MATCH(Analise!AP9,ChiPro2018!$C$3:$BC$3,0)))="",NA(),(INDEX(ChiPro2018!$C$4:$BC$80,MATCH(Analise!$B$17,ChiPro2018!$B$4:$B$80,0),MATCH(Analise!AP9,ChiPro2018!$C$3:$BC$3,0)))/SUMIF(População!$B$4:$B$79,Analise!$B$17,População!$C$4:$C$79)*100000) -> 0.04413493108 | AQ12: =IF((INDEX(ChiPro2018!$C$4:$BC$80,MATCH(Analise!$B$17,ChiPro2018!$B$4:$B$80,0),MATCH(Analise!AQ9,ChiPro2018!$C$3:$BC$3,0)))="",NA(),(INDEX(ChiPro2018!$C$4:$BC$80,MATCH(Analise!$B$17,ChiPro2018!$B$4:$B$80,0),MATCH(Analise!AQ9,ChiPro2018!$C$3:$BC$3,0)))/SUMIF(População!$B$4:$B$79,Analise!$B$17,População!$C$4:$C$79)*100000) -> 0 | AR12: =IF((INDEX(ChiPro2018!$C$4:$BC$80,MATCH(Analise!$B$17,ChiPro2018!$B$4:$B$80,0),MATCH(Analise!AR9,ChiPro2018!$C$3:$BC$3,0)))="",NA(),(INDEX(ChiPro2018!$C$4:$BC$80,MATCH(Analise!$B$17,ChiPro2018!$B$4:$B$80,0),MATCH(Analise!AR9,ChiPro2018!$C$3:$BC$3,0)))/SUMIF(População!$B$4:$B$79,Analise!$B$17,População!$C$4:$C$79)*100000) -> 0 | AS12: =IF((INDEX(ChiPro2018!$C$4:$BC$80,MATCH(Analise!$B$17,ChiPro2018!$B$4:$B$80,0),MATCH(Analise!AS9,ChiPro2018!$C$3:$BC$3,0)))="",NA(),(INDEX(ChiPro2018!$C$4:$BC$80,MATCH(Analise!$B$17,ChiPro2018!$B$4:$B$80,0),MATCH(Analise!AS9,ChiPro2018!$C$3:$BC$3,0)))/SUMIF(População!$B$4:$B$79,Analise!$B$17,População!$C$4:$C$79)*100000) -> 0.04413493108 | AT12: =IF((INDEX(ChiPro2018!$C$4:$BC$80,MATCH(Analise!$B$17,ChiPro2018!$B$4:$B$80,0),MATCH(Analise!AT9,ChiPro2018!$C$3:$BC$3,0)))="",NA(),(INDEX(ChiPro2018!$C$4:$BC$80,MATCH(Analise!$B$17,ChiPro2018!$B$4:$B$80,0),MATCH(Analise!AT9,ChiPro2018!$C$3:$BC$3,0)))/SUMIF(População!$B$4:$B$79,Analise!$B$17,População!$C$4:$C$79)*100000) -> 0 | AU12: =IF((INDEX(ChiPro2018!$C$4:$BC$80,MATCH(Analise!$B$17,ChiPro2018!$B$4:$B$80,0),MATCH(Analise!AU9,ChiPro2018!$C$3:$BC$3,0)))="",NA(),(INDEX(ChiPro2018!$C$4:$BC$80,MATCH(Analise!$B$17,ChiPro2018!$B$4:$B$80,0),MATCH(Analise!AU9,ChiPro2018!$C$3:$BC$3,0)))/SUMIF(População!$B$4:$B$79,Analise!$B$17,População!$C$4:$C$79)*100000) -> 0 | AV12: =IF((INDEX(ChiPro2018!$C$4:$BC$80,MATCH(Analise!$B$17,ChiPro2018!$B$4:$B$80,0),MATCH(Analise!AV9,ChiPro2018!$C$3:$BC$3,0)))="",NA(),(INDEX(ChiPro2018!$C$4:$BC$80,MATCH(Analise!$B$17,ChiPro2018!$B$4:$B$80,0),MATCH(Analise!AV9,ChiPro2018!$C$3:$BC$3,0)))/SUMIF(População!$B$4:$B$79,Analise!$B$17,População!$C$4:$C$79)*100000) -> 0.04413493108 | AW12: =IF((INDEX(ChiPro2018!$C$4:$BC$80,MATCH(Analise!$B$17,ChiPro2018!$B$4:$B$80,0),MATCH(Analise!AW9,ChiPro2018!$C$3:$BC$3,0)))="",NA(),(INDEX(ChiPro2018!$C$4:$BC$80,MATCH(Analise!$B$17,ChiPro2018!$B$4:$B$80,0),MATCH(Analise!AW9,ChiPro2018!$C$3:$BC$3,0)))/SUMIF(População!$B$4:$B$79,Analise!$B$17,População!$C$4:$C$79)*100000) -> 0 | AX12: =IF((INDEX(ChiPro2018!$C$4:$BC$80,MATCH(Analise!$B$17,ChiPro2018!$B$4:$B$80,0),MATCH(Analise!AX9,ChiPro2018!$C$3:$BC$3,0)))="",NA(),(INDEX(ChiPro2018!$C$4:$BC$80,MATCH(Analise!$B$17,ChiPro2018!$B$4:$B$80,0),MATCH(Analise!AX9,ChiPro2018!$C$3:$BC$3,0)))/SUMIF(População!$B$4:$B$79,Analise!$B$17,População!$C$4:$C$79)*100000) -> 0 | AY12: =IF((INDEX(ChiPro2018!$C$4:$BC$80,MATCH(Analise!$B$17,ChiPro2018!$B$4:$B$80,0),MATCH(Analise!AY9,ChiPro2018!$C$3:$BC$3,0)))="",NA(),(INDEX(ChiPro2018!$C$4:$BC$80,MATCH(Analise!$B$17,ChiPro2018!$B$4:$B$80,0),MATCH(Analise!AY9,ChiPro2018!$C$3:$BC$3,0)))/SUMIF(População!$B$4:$B$79,Analise!$B$17,População!$C$4:$C$79)*100000) -> 0.04413493108 | AZ12: =IF((INDEX(ChiPro2018!$C$4:$BC$80,MATCH(Analise!$B$17,ChiPro2018!$B$4:$B$80,0),MATCH(Analise!AZ9,ChiPro2018!$C$3:$BC$3,0)))="",NA(),(INDEX(ChiPro2018!$C$4:$BC$80,MATCH(Analise!$B$17,ChiPro2018!$B$4:$B$80,0),MATCH(Analise!AZ9,ChiPro2018!$C$3:$BC$3,0)))/SUMIF(População!$B$4:$B$79,Analise!$B$17,População!$C$4:$C$79)*100000) -> 0 | BA12: =IF((INDEX(ChiPro2018!$C$4:$BC$80,MATCH(Analise!$B$17,ChiPro2018!$B$4:$B$80,0),MATCH(Analise!BA9,ChiPro2018!$C$3:$BC$3,0)))="",NA(),(INDEX(ChiPro2018!$C$4:$BC$80,MATCH(Analise!$B$17,ChiPro2018!$B$4:$B$80,0),MATCH(Analise!BA9,ChiPro2018!$C$3:$BC$3,0)))/SUMIF(População!$B$4:$B$79,Analise!$B$17,População!$C$4:$C$79)*100000) -> 0 | BB12: =IF((INDEX(ChiPro2018!$C$4:$BC$80,MATCH(Analise!$B$17,ChiPro2018!$B$4:$B$80,0),MATCH(Analise!BB9,ChiPro2018!$C$3:$BC$3,0)))="",NA(),(INDEX(ChiPro2018!$C$4:$BC$80,MATCH(Analise!$B$17,ChiPro2018!$B$4:$B$80,0),MATCH(Analise!BB9,ChiPro2018!$C$3:$BC$3,0)))/SUMIF(População!$B$4:$B$79,Analise!$B$17,População!$C$4:$C$79)*100000) -> 0 | BC12: =IF((INDEX(ChiPro2018!$C$4:$BC$80,MATCH(Analise!$B$17,ChiPro2018!$B$4:$B$80,0),MATCH(Analise!BC9,ChiPro2018!$C$3:$BC$3,0)))="",NA(),(INDEX(ChiPro2018!$C$4:$BC$80,MATCH(Analise!$B$17,ChiPro2018!$B$4:$B$80,0),MATCH(Analise!BC9,ChiPro2018!$C$3:$BC$3,0)))/SUMIF(População!$B$4:$B$79,Analise!$B$17,População!$C$4:$C$79)*100000) -> 0 | BD12: =IF((INDEX(ChiPro2018!$C$4:$BD$80,MATCH(Analise!$B$17,ChiPro2018!$B$4:$B$80,0),MATCH(Analise!BD9,ChiPro2018!$C$3:$BD$3,0)))="",NA(),(INDEX(ChiPro2018!$C$4:$BD$80,MATCH(Analise!$B$17,ChiPro2018!$B$4:$B$80,0),MATCH(Analise!BD9,ChiPro2018!$C$3:$BD$3,0)))/SUMIF(População!$B$4:$B$79,Analise!$B$17,População!$C$4:$C$79)*100000) -> 1.677127381
A14: 2017 | C14: 01 | D14: 02 | E14: 03 | F14: 04 | G14: 05 | H14: 06 | I14: 07 | J14: 08 | K14: 09 | L14: 10 | M14: 11 | N14: 12 | O14: 13 | P14: 14 | Q14: 15 | R14: 16 | S14: 17 | T14: 18 | U14: 19 | V14: 20 | W14: 21 | X14: 22 | Y14: 23 | Z14: 24 | AA14: 25 | AB14: 26 | AC14: 27 | AD14: 28 | AE14: 29 | AF14: 30 | AG14: 31 | AH14: 32 | AI14: 33 | AJ14: 34 | AK14: 35 | AL14: 36 | AM14: 37 | AN14: 38 | AO14: 39 | AP14: 40 | AQ14: 41 | AR14: 42 | AS14: 43 | AT14: 44 | AU14: 45 | AV14: 46 | AW14: 47 | AX14: 48 | AY14: 49 | AZ14: 50 | BA14: 51 | BB14: 52 | BC14: 53
A15: Agravo/tx Incidência | B15: Mun Resid SE | C15: Semana 01 | D15: Semana 02 | E15: Semana 03 | F15: Semana 04 | G15: Semana 05 | H15: Semana 06 | I15: Semana 07 | J15: Semana 08 | K15: Semana 09 | L15: Semana 10 | M15: Semana 11 | N15: Semana 12 | O15: Semana 13 | P15: Semana 14 | Q15: Semana 15 | R15: Semana 16 | S15: Semana 17 | T15: Semana 18 | U15: Semana 19 | V15: Semana 20 | W15: Semana 21 | X15: Semana 22 | Y15: Semana 23 | Z15: Semana 24 | AA15: Semana 25 | AB15: Semana 26 | AC15: Semana 27 | AD15: Semana 28 | AE15: Semana 29 | AF15: Semana 30 | AG15: Semana 31 | AH15: Semana 32 | AI15: Semana 33 | AJ15: Semana 34 | AK15: Semana 35 | AL15: Semana 36 | AM15: Semana 37 | AN15: Semana 38 | AO15: Semana 39 | AP15: Semana 40 | AQ15: Semana 41 | AR15: Semana 42 | AS15: Semana 43 | AT15: Semana 44 | AU15: Semana 45 | AV15: Semana 46 | AW15: Semana 47 | AX15: Semana 48 | AY15: Semana 49 | AZ15: Semana 50 | BA15: Semana 51 | BB15: Semana 52 | BC15: Semana 53 | BD15: Total
A16: Zika | B16: =PainelArbovirose!$B$4 -> Sergipe | C16: =IF((INDEX(ZikaPro!$D$4:$BE$80,MATCH(Analise!$B$16,ZikaPro!$B$4:$B$80,0),MATCH(Analise!C15,ZikaPro!$D$3:$BE$3,0)))="",NA(),(INDEX(ZikaPro!$D$4:$BE$80,MATCH(Analise!$B$16,ZikaPro!$B$4:$B$80,0),MATCH(Analise!C15,ZikaPro!$D$3:$BE$3,0)))/SUMIF(População!$B$4:$B$79,Analise!$B$16,População!$C$4:$C$79)*100000) -> 0.08826986215 | D16: =IF((INDEX(ZikaPro!$D$4:$BE$80,MATCH(Analise!$B$16,ZikaPro!$B$4:$B$80,0),MATCH(Analise!D15,ZikaPro!$D$3:$BE$3,0)))="",NA(),(INDEX(ZikaPro!$D$4:$BE$80,MATCH(Analise!$B$16,ZikaPro!$B$4:$B$80,0),MATCH(Analise!D15,ZikaPro!$D$3:$BE$3,0)))/SUMIF(População!$B$4:$B$79,Analise!$B$16,População!$C$4:$C$79)*100000) -> 0 | E16: =IF((INDEX(ZikaPro!$D$4:$BE$80,MATCH(Analise!$B$16,ZikaPro!$B$4:$B$80,0),MATCH(Analise!E15,ZikaPro!$D$3:$BE$3,0)))="",NA(),(INDEX(ZikaPro!$D$4:$BE$80,MATCH(Analise!$B$16,ZikaPro!$B$4:$B$80,0),MATCH(Analise!E15,ZikaPro!$D$3:$BE$3,0)))/SUMIF(População!$B$4:$B$79,Analise!$B$16,População!$C$4:$C$79)*100000) -> 0.04413493108 | F16: =IF((INDEX(ZikaPro!$D$4:$BE$80,MATCH(Analise!$B$16,ZikaPro!$B$4:$B$80,0),MATCH(Analise!F15,ZikaPro!$D$3:$BE$3,0)))="",NA(),(INDEX(ZikaPro!$D$4:$BE$80,MATCH(Analise!$B$16,ZikaPro!$B$4:$B$80,0),MATCH(Analise!F15,ZikaPro!$D$3:$BE$3,0)))/SUMIF(População!$B$4:$B$79,Analise!$B$16,População!$C$4:$C$79)*100000) -> 0 | G16: =IF((INDEX(ZikaPro!$D$4:$BE$80,MATCH(Analise!$B$16,ZikaPro!$B$4:$B$80,0),MATCH(Analise!G15,ZikaPro!$D$3:$BE$3,0)))="",NA(),(INDEX(ZikaPro!$D$4:$BE$80,MATCH(Analise!$B$16,ZikaPro!$B$4:$B$80,0),MATCH(Analise!G15,ZikaPro!$D$3:$BE$3,0)))/SUMIF(População!$B$4:$B$79,Analise!$B$16,População!$C$4:$C$79)*100000) -> 0.1324047932 | H16: =IF((INDEX(ZikaPro!$D$4:$BE$80,MATCH(Analise!$B$16,ZikaPro!$B$4:$B$80,0),MATCH(Analise!H15,ZikaPro!$D$3:$BE$3,0)))="",NA(),(INDEX(ZikaPro!$D$4:$BE$80,MATCH(Analise!$B$16,ZikaPro!$B$4:$B$80,0),MATCH(Analise!H15,ZikaPro!$D$3:$BE$3,0)))/SUMIF(População!$B$4:$B$79,Analise!$B$16,População!$C$4:$C$79)*100000) -> 0.04413493108 | I16: =IF((INDEX(ZikaPro!$D$4:$BE$80,MATCH(Analise!$B$16,ZikaPro!$B$4:$B$80,0),MATCH(Analise!I15,ZikaPro!$D$3:$BE$3,0)))="",NA(),(INDEX(ZikaPro!$D$4:$BE$80,MATCH(Analise!$B$16,ZikaPro!$B$4:$B$80,0),MATCH(Analise!I15,ZikaPro!$D$3:$BE$3,0)))/SUMIF(População!$B$4:$B$79,Analise!$B$16,População!$C$4:$C$79)*100000) -> 0 | J16: =IF((INDEX(ZikaPro!$D$4:$BE$80,MATCH(Analise!$B$16,ZikaPro!$B$4:$B$80,0),MATCH(Analise!J15,ZikaPro!$D$3:$BE$3,0)))="",NA(),(INDEX(ZikaPro!$D$4:$BE$80,MATCH(Analise!$B$16,ZikaPro!$B$4:$B$80,0),MATCH(Analise!J15,ZikaPro!$D$3:$BE$3,0)))/SUMIF(População!$B$4:$B$79,Analise!$B$16,População!$C$4:$C$79)*100000) -> 0 | K16: =IF((INDEX(ZikaPro!$D$4:$BE$80,MATCH(Analise!$B$16,ZikaPro!$B$4:$B$80,0),MATCH(Analise!K15,ZikaPro!$D$3:$BE$3,0)))="",NA(),(INDEX(ZikaPro!$D$4:$BE$80,MATCH(Analise!$B$16,ZikaPro!$B$4:$B$80,0),MATCH(Analise!K15,ZikaPro!$D$3:$BE$3,0)))/SUMIF(População!$B$4:$B$79,Analise!$B$16,População!$C$4:$C$79)*100000) -> 0.04413493108 | L16: =IF((INDEX(ZikaPro!$D$4:$BE$80,MATCH(Analise!$B$16,ZikaPro!$B$4:$B$80,0),MATCH(Analise!L15,ZikaPro!$D$3:$BE$3,0)))="",NA(),(INDEX(ZikaPro!$D$4:$BE$80,MATCH(Analise!$B$16,ZikaPro!$B$4:$B$80,0),MATCH(Analise!L15,ZikaPro!$D$3:$BE$3,0)))/SUMIF(População!$B$4:$B$79,Analise!$B$16,População!$C$4:$C$79)*100000) -> 0.04413493108 | M16: =IF((INDEX(ZikaPro!$D$4:$BE$80,MATCH(Analise!$B$16,ZikaPro!$B$4:$B$80,0),MATCH(Analise!M15,ZikaPro!$D$3:$BE$3,0)))="",NA(),(INDEX(ZikaPro!$D$4:$BE$80,MATCH(Analise!$B$16,ZikaPro!$B$4:$B$80,0),MATCH(Analise!M15,ZikaPro!$D$3:$BE$3,0)))/SUMIF(População!$B$4:$B$79,Analise!$B$16,População!$C$4:$C$79)*100000) -> 0 | N16: =IF((INDEX(ZikaPro!$D$4:$BE$80,MATCH(Analise!$B$16,ZikaPro!$B$4:$B$80,0),MATCH(Analise!N15,ZikaPro!$D$3:$BE$3,0)))="",NA(),(INDEX(ZikaPro!$D$4:$BE$80,MATCH(Analise!$B$16,ZikaPro!$B$4:$B$80,0),MATCH(Analise!N15,ZikaPro!$D$3:$BE$3,0)))/SUMIF(População!$B$4:$B$79,Analise!$B$16,População!$C$4:$C$79)*100000) -> 0 | O16: =IF((INDEX(ZikaPro!$D$4:$BE$80,MATCH(Analise!$B$16,ZikaPro!$B$4:$B$80,0),MATCH(Analise!O15,ZikaPro!$D$3:$BE$3,0)))="",NA(),(INDEX(ZikaPro!$D$4:$BE$80,MATCH(Analise!$B$16,ZikaPro!$B$4:$B$80,0),MATCH(Analise!O15,ZikaPro!$D$3:$BE$3,0)))/SUMIF(População!$B$4:$B$79,Analise!$B$16,População!$C$4:$C$79)*100000) -> 0 | P16: =IF((INDEX(ZikaPro!$D$4:$BE$80,MATCH(Analise!$B$16,ZikaPro!$B$4:$B$80,0),MATCH(Analise!P15,ZikaPro!$D$3:$BE$3,0)))="",NA(),(INDEX(ZikaPro!$D$4:$BE$80,MATCH(Analise!$B$16,ZikaPro!$B$4:$B$80,0),MATCH(Analise!P15,ZikaPro!$D$3:$BE$3,0)))/SUMIF(População!$B$4:$B$79,Analise!$B$16,População!$C$4:$C$79)*100000) -> 0 | Q16: =IF((INDEX(ZikaPro!$D$4:$BE$80,MATCH(Analise!$B$16,ZikaPro!$B$4:$B$80,0),MATCH(Analise!Q15,ZikaPro!$D$3:$BE$3,0)))="",NA(),(INDEX(ZikaPro!$D$4:$BE$80,MATCH(Analise!$B$16,ZikaPro!$B$4:$B$80,0),MATCH(Analise!Q15,ZikaPro!$D$3:$BE$3,0)))/SUMIF(População!$B$4:$B$79,Analise!$B$16,População!$C$4:$C$79)*100000) -> 0.04413493108 | R16: =IF((INDEX(ZikaPro!$D$4:$BE$80,MATCH(Analise!$B$16,ZikaPro!$B$4:$B$80,0),MATCH(Analise!R15,ZikaPro!$D$3:$BE$3,0)))="",NA(),(INDEX(ZikaPro!$D$4:$BE$80,MATCH(Analise!$B$16,ZikaPro!$B$4:$B$80,0),MATCH(Analise!R15,ZikaPro!$D$3:$BE$3,0)))/SUMIF(População!$B$4:$B$79,Analise!$B$16,População!$C$4:$C$79)*100000) -> 0 | S16: =IF((INDEX(ZikaPro!$D$4:$BE$80,MATCH(Analise!$B$16,ZikaPro!$B$4:$B$80,0),MATCH(Analise!S15,ZikaPro!$D$3:$BE$3,0)))="",NA(),(INDEX(ZikaPro!$D$4:$BE$80,MATCH(Analise!$B$16,ZikaPro!$B$4:$B$80,0),MATCH(Analise!S15,ZikaPro!$D$3:$BE$3,0)))/SUMIF(População!$B$4:$B$79,Analise!$B$16,População!$C$4:$C$79)*100000) -> 0 | T16: =IF((INDEX(ZikaPro!$D$4:$BE$80,MATCH(Analise!$B$16,ZikaPro!$B$4:$B$80,0),MATCH(Analise!T15,ZikaPro!$D$3:$BE$3,0)))="",NA(),(INDEX(ZikaPro!$D$4:$BE$80,MATCH(Analise!$B$16,ZikaPro!$B$4:$B$80,0),MATCH(Analise!T15,ZikaPro!$D$3:$BE$3,0)))/SUMIF(População!$B$4:$B$79,Analise!$B$16,População!$C$4:$C$79)*100000) -> 0 | U16: =IF((INDEX(ZikaPro!$D$4:$BE$80,MATCH(Analise!$B$16,ZikaPro!$B$4:$B$80,0),MATCH(Analise!U15,ZikaPro!$D$3:$BE$3,0)))="",NA(),(INDEX(ZikaPro!$D$4:$BE$80,MATCH(Analise!$B$16,ZikaPro!$B$4:$B$80,0),MATCH(Analise!U15,ZikaPro!$D$3:$BE$3,0)))/SUMIF(População!$B$4:$B$79,Analise!$B$16,População!$C$4:$C$79)*100000) -> 0 | V16: =IF((INDEX(ZikaPro!$D$4:$BE$80,MATCH(Analise!$B$16,ZikaPro!$B$4:$B$80,0),MATCH(Analise!V15,ZikaPro!$D$3:$BE$3,0)))="",NA(),(INDEX(ZikaPro!$D$4:$BE$80,MATCH(Analise!$B$16,ZikaPro!$B$4:$B$80,0),MATCH(Analise!V15,ZikaPro!$D$3:$BE$3,0)))/SUMIF(População!$B$4:$B$79,Analise!$B$16,População!$C$4:$C$79)*100000) -> 0 | W16: =IF((INDEX(ZikaPro!$D$4:$BE$80,MATCH(Analise!$B$16,ZikaPro!$B$4:$B$80,0),MATCH(Analise!W15,ZikaPro!$D$3:$BE$3,0)))="",NA(),(INDEX(ZikaPro!$D$4:$BE$80,MATCH(Analise!$B$16,ZikaPro!$B$4:$B$80,0),MATCH(Analise!W15,ZikaPro!$D$3:$BE$3,0)))/SUMIF(População!$B$4:$B$79,Analise!$B$16,População!$C$4:$C$79)*100000) -> 0 | X16: =IF((INDEX(ZikaPro!$D$4:$BE$80,MATCH(Analise!$B$16,ZikaPro!$B$4:$B$80,0),MATCH(Analise!X15,ZikaPro!$D$3:$BE$3,0)))="",NA(),(INDEX(ZikaPro!$D$4:$BE$80,MATCH(Analise!$B$16,ZikaPro!$B$4:$B$80,0),MATCH(Analise!X15,ZikaPro!$D$3:$BE$3,0)))/SUMIF(População!$B$4:$B$79,Analise!$B$16,População!$C$4:$C$79)*100000) -> 0 | Y16: =IF((INDEX(ZikaPro!$D$4:$BE$80,MATCH(Analise!$B$16,ZikaPro!$B$4:$B$80,0),MATCH(Analise!Y15,ZikaPro!$D$3:$BE$3,0)))="",NA(),(INDEX(ZikaPro!$D$4:$BE$80,MATCH(Analise!$B$16,ZikaPro!$B$4:$B$80,0),MATCH(Analise!Y15,ZikaPro!$D$3:$BE$3,0)))/SUMIF(População!$B$4:$B$79,Analise!$B$16,População!$C$4:$C$79)*100000) -> 0 | Z16: =IF((INDEX(ZikaPro!$D$4:$BE$80,MATCH(Analise!$B$16,ZikaPro!$B$4:$B$80,0),MATCH(Analise!Z15,ZikaPro!$D$3:$BE$3,0)))="",NA(),(INDEX(ZikaPro!$D$4:$BE$80,MATCH(Analise!$B$16,ZikaPro!$B$4:$B$80,0),MATCH(Analise!Z15,ZikaPro!$D$3:$BE$3,0)))/SUMIF(População!$B$4:$B$79,Analise!$B$16,População!$C$4:$C$79)*100000) -> 0 | AA16: =IF((INDEX(ZikaPro!$D$4:$BE$80,MATCH(Analise!$B$16,ZikaPro!$B$4:$B$80,0),MATCH(Analise!AA15,ZikaPro!$D$3:$BE$3,0)))="",NA(),(INDEX(ZikaPro!$D$4:$BE$80,MATCH(Analise!$B$16,ZikaPro!$B$4:$B$80,0),MATCH(Analise!AA15,ZikaPro!$D$3:$BE$3,0)))/SUMIF(População!$B$4:$B$79,Analise!$B$16,População!$C$4:$C$79)*100000) -> 0 | AB16: =IF((INDEX(ZikaPro!$D$4:$BE$80,MATCH(Analise!$B$16,ZikaPro!$B$4:$B$80,0),MATCH(Analise!AB15,ZikaPro!$D$3:$BE$3,0)))="",NA(),(INDEX(ZikaPro!$D$4:$BE$80,MATCH(Analise!$B$16,ZikaPro!$B$4:$B$80,0),MATCH(Analise!AB15,ZikaPro!$D$3:$BE$3,0)))/SUMIF(População!$B$4:$B$79,Analise!$B$16,População!$C$4:$C$79)*100000) -> 0 | AC16: =IF((INDEX(ZikaPro!$D$4:$BE$80,MATCH(Analise!$B$16,ZikaPro!$B$4:$B$80,0),MATCH(Analise!AC15,ZikaPro!$D$3:$BE$3,0)))="",NA(),(INDEX(ZikaPro!$D$4:$BE$80,MATCH(Analise!$B$16,ZikaPro!$B$4:$B$80,0),MATCH(Analise!AC15,ZikaPro!$D$3:$BE$3,0)))/SUMIF(População!$B$4:$B$79,Analise!$B$16,População!$C$4:$C$79)*100000) -> 0 | AD16: =IF((INDEX(ZikaPro!$D$4:$BE$80,MATCH(Analise!$B$16,ZikaPro!$B$4:$B$80,0),MATCH(Analise!AD15,ZikaPro!$D$3:$BE$3,0)))="",NA(),(INDEX(ZikaPro!$D$4:$BE$80,MATCH(Analise!$B$16,ZikaPro!$B$4:$B$80,0),MATCH(Analise!AD15,ZikaPro!$D$3:$BE$3,0)))/SUMIF(População!$B$4:$B$79,Analise!$B$16,População!$C$4:$C$79)*100000) -> 0.04413493108 | AE16: =IF((INDEX(ZikaPro!$D$4:$BE$80,MATCH(Analise!$B$16,ZikaPro!$B$4:$B$80,0),MATCH(Analise!AE15,ZikaPro!$D$3:$BE$3,0)))="",NA(),(INDEX(ZikaPro!$D$4:$BE$80,MATCH(Analise!$B$16,ZikaPro!$B$4:$B$80,0),MATCH(Analise!AE15,ZikaPro!$D$3:$BE$3,0)))/SUMIF(População!$B$4:$B$79,Analise!$B$16,População!$C$4:$C$79)*100000) -> 0 | AF16: =IF((INDEX(ZikaPro!$D$4:$BE$80,MATCH(Analise!$B$16,ZikaPro!$B$4:$B$80,0),MATCH(Analise!AF15,ZikaPro!$D$3:$BE$3,0)))="",NA(),(INDEX(ZikaPro!$D$4:$BE$80,MATCH(Analise!$B$16,ZikaPro!$B$4:$B$80,0),MATCH(Analise!AF15,ZikaPro!$D$3:$BE$3,0)))/SUMIF(População!$B$4:$B$79,Analise!$B$16,População!$C$4:$C$79)*100000) -> 0 | AG16: =IF((INDEX(ZikaPro!$D$4:$BE$80,MATCH(Analise!$B$16,ZikaPro!$B$4:$B$80,0),MATCH(Analise!AG15,ZikaPro!$D$3:$BE$3,0)))="",NA(),(INDEX(ZikaPro!$D$4:$BE$80,MATCH(Analise!$B$16,ZikaPro!$B$4:$B$80,0),MATCH(Analise!AG15,ZikaPro!$D$3:$BE$3,0)))/SUMIF(População!$B$4:$B$79,Analise!$B$16,População!$C$4:$C$79)*100000) -> 0.08826986215 | AH16: =IF((INDEX(ZikaPro!$D$4:$BE$80,MATCH(Analise!$B$16,ZikaPro!$B$4:$B$80,0),MATCH(Analise!AH15,ZikaPro!$D$3:$BE$3,0)))="",NA(),(INDEX(ZikaPro!$D$4:$BE$80,MATCH(Analise!$B$16,ZikaPro!$B$4:$B$80,0),MATCH(Analise!AH15,ZikaPro!$D$3:$BE$3,0)))/SUMIF(População!$B$4:$B$79,Analise!$B$16,População!$C$4:$C$79)*100000) -> 0.04413493108 | AI16: =IF((INDEX(ZikaPro!$D$4:$BE$80,MATCH(Analise!$B$16,ZikaPro!$B$4:$B$80,0),MATCH(Analise!AI15,ZikaPro!$D$3:$BE$3,0)))="",NA(),(INDEX(ZikaPro!$D$4:$BE$80,MATCH(Analise!$B$16,ZikaPro!$B$4:$B$80,0),MATCH(Analise!AI15,ZikaPro!$D$3:$BE$3,0)))/SUMIF(População!$B$4:$B$79,Analise!$B$16,População!$C$4:$C$79)*100000) -> 0 | AJ16: =IF((INDEX(ZikaPro!$D$4:$BE$80,MATCH(Analise!$B$16,ZikaPro!$B$4:$B$80,0),MATCH(Analise!AJ15,ZikaPro!$D$3:$BE$3,0)))="",NA(),(INDEX(ZikaPro!$D$4:$BE$80,MATCH(Analise!$B$16,ZikaPro!$B$4:$B$80,0),MATCH(Analise!AJ15,ZikaPro!$D$3:$BE$3,0)))/SUMIF(População!$B$4:$B$79,Analise!$B$16,População!$C$4:$C$79)*100000) -> 0 | AK16: =IF((INDEX(ZikaPro!$D$4:$BE$80,MATCH(Analise!$B$16,ZikaPro!$B$4:$B$80,0),MATCH(Analise!AK15,ZikaPro!$D$3:$BE$3,0)))="",NA(),(INDEX(ZikaPro!$D$4:$BE$80,MATCH(Analise!$B$16,ZikaPro!$B$4:$B$80,0),MATCH(Analise!AK15,ZikaPro!$D$3:$BE$3,0)))/SUMIF(População!$B$4:$B$79,Analise!$B$16,População!$C$4:$C$79)*100000) -> 0 | AL16: =IF((INDEX(ZikaPro!$D$4:$BE$80,MATCH(Analise!$B$16,ZikaPro!$B$4:$B$80,0),MATCH(Analise!AL15,ZikaPro!$D$3:$BE$3,0)))="",NA(),(INDEX(ZikaPro!$D$4:$BE$80,MATCH(Analise!$B$16,ZikaPro!$B$4:$B$80,0),MATCH(Analise!AL15,ZikaPro!$D$3:$BE$3,0)))/SUMIF(População!$B$4:$B$79,Analise!$B$16,População!$C$4:$C$79)*100000) -> 0 | AM16: =IF((INDEX(ZikaPro!$D$4:$BE$80,MATCH(Analise!$B$16,ZikaPro!$B$4:$B$80,0),MATCH(Analise!AM15,ZikaPro!$D$3:$BE$3,0)))="",NA(),(INDEX(ZikaPro!$D$4:$BE$80,MATCH(Analise!$B$16,ZikaPro!$B$4:$B$80,0),MATCH(Analise!AM15,ZikaPro!$D$3:$BE$3,0)))/SUMIF(População!$B$4:$B$79,Analise!$B$16,População!$C$4:$C$79)*100000) -> 0 | AN16: =IF((INDEX(ZikaPro!$D$4:$BE$80,MATCH(Analise!$B$16,ZikaPro!$B$4:$B$80,0),MATCH(Analise!AN15,ZikaPro!$D$3:$BE$3,0)))="",NA(),(INDEX(ZikaPro!$D$4:$BE$80,MATCH(Analise!$B$16,ZikaPro!$B$4:$B$80,0),MATCH(Analise!AN15,ZikaPro!$D$3:$BE$3,0)))/SUMIF(População!$B$4:$B$79,Analise!$B$16,População!$C$4:$C$79)*100000) -> 0 | AO16: =IF((INDEX(ZikaPro!$D$4:$BE$80,MATCH(Analise!$B$16,ZikaPro!$B$4:$B$80,0),MATCH(Analise!AO15,ZikaPro!$D$3:$BE$3,0)))="",NA(),(INDEX(ZikaPro!$D$4:$BE$80,MATCH(Analise!$B$16,ZikaPro!$B$4:$B$80,0),MATCH(Analise!AO15,ZikaPro!$D$3:$BE$3,0)))/SUMIF(População!$B$4:$B$79,Analise!$B$16,População!$C$4:$C$79)*100000) -> 0 | AP16: =IF((INDEX(ZikaPro!$D$4:$BE$80,MATCH(Analise!$B$16,ZikaPro!$B$4:$B$80,0),MATCH(Analise!AP15,ZikaPro!$D$3:$BE$3,0)))="",NA(),(INDEX(ZikaPro!$D$4:$BE$80,MATCH(Analise!$B$16,ZikaPro!$B$4:$B$80,0),MATCH(Analise!AP15,ZikaPro!$D$3:$BE$3,0)))/SUMIF(População!$B$4:$B$79,Analise!$B$16,População!$C$4:$C$79)*100000) -> 0.04413493108 | AQ16: =IF((INDEX(ZikaPro!$D$4:$BE$80,MATCH(Analise!$B$16,ZikaPro!$B$4:$B$80,0),MATCH(Analise!AQ15,ZikaPro!$D$3:$BE$3,0)))="",NA(),(INDEX(ZikaPro!$D$4:$BE$80,MATCH(Analise!$B$16,ZikaPro!$B$4:$B$80,0),MATCH(Analise!AQ15,ZikaPro!$D$3:$BE$3,0)))/SUMIF(População!$B$4:$B$79,Analise!$B$16,População!$C$4:$C$79)*100000) -> 0 | AR16: =IF((INDEX(ZikaPro!$D$4:$BE$80,MATCH(Analise!$B$16,ZikaPro!$B$4:$B$80,0),MATCH(Analise!AR15,ZikaPro!$D$3:$BE$3,0)))="",NA(),(INDEX(ZikaPro!$D$4:$BE$80,MATCH(Analise!$B$16,ZikaPro!$B$4:$B$80,0),MATCH(Analise!AR15,ZikaPro!$D$3:$BE$3,0)))/SUMIF(População!$B$4:$B$79,Analise!$B$16,População!$C$4:$C$79)*100000) -> 0.04413493108 | AS16: =IF((INDEX(ZikaPro!$D$4:$BE$80,MATCH(Analise!$B$16,ZikaPro!$B$4:$B$80,0),MATCH(Analise!AS15,ZikaPro!$D$3:$BE$3,0)))="",NA(),(INDEX(ZikaPro!$D$4:$BE$80,MATCH(Analise!$B$16,ZikaPro!$B$4:$B$80,0),MATCH(Analise!AS15,ZikaPro!$D$3:$BE$3,0)))/SUMIF(População!$B$4:$B$79,Analise!$B$16,População!$C$4:$C$79)*100000) -> 0 | AT16: =IF((INDEX(ZikaPro!$D$4:$BE$80,MATCH(Analise!$B$16,ZikaPro!$B$4:$B$80,0),MATCH(Analise!AT15,ZikaPro!$D$3:$BE$3,0)))="",NA(),(INDEX(ZikaPro!$D$4:$BE$80,MATCH(Analise!$B$16,ZikaPro!$B$4:$B$80,0),MATCH(Analise!AT15,ZikaPro!$D$3:$BE$3,0)))/SUMIF(População!$B$4:$B$79,Analise!$B$16,População!$C$4:$C$79)*100000) -> 0 | AU16: =IF((INDEX(ZikaPro!$D$4:$BE$80,MATCH(Analise!$B$16,ZikaPro!$B$4:$B$80,0),MATCH(Analise!AU15,ZikaPro!$D$3:$BE$3,0)))="",NA(),(INDEX(ZikaPro!$D$4:$BE$80,MATCH(Analise!$B$16,ZikaPro!$B$4:$B$80,0),MATCH(Analise!AU15,ZikaPro!$D$3:$BE$3,0)))/SUMIF(População!$B$4:$B$79,Analise!$B$16,População!$C$4:$C$79)*100000) -> 0.04413493108 | AV16: =IF((INDEX(ZikaPro!$D$4:$BE$80,MATCH(Analise!$B$16,ZikaPro!$B$4:$B$80,0),MATCH(Analise!AV15,ZikaPro!$D$3:$BE$3,0)))="",NA(),(INDEX(ZikaPro!$D$4:$BE$80,MATCH(Analise!$B$16,ZikaPro!$B$4:$B$80,0),MATCH(Analise!AV15,ZikaPro!$D$3:$BE$3,0)))/SUMIF(População!$B$4:$B$79,Analise!$B$16,População!$C$4:$C$79)*100000) -> 0 | AW16: =IF((INDEX(ZikaPro!$D$4:$BE$80,MATCH(Analise!$B$16,ZikaPro!$B$4:$B$80,0),MATCH(Analise!AW15,ZikaPro!$D$3:$BE$3,0)))="",NA(),(INDEX(ZikaPro!$D$4:$BE$80,MATCH(Analise!$B$16,ZikaPro!$B$4:$B$80,0),MATCH(Analise!AW15,ZikaPro!$D$3:$BE$3,0)))/SUMIF(População!$B$4:$B$79,Analise!$B$16,População!$C$4:$C$79)*100000) -> 0 | AX16: =IF((INDEX(ZikaPro!$D$4:$BE$80,MATCH(Analise!$B$16,ZikaPro!$B$4:$B$80,0),MATCH(Analise!AX15,ZikaPro!$D$3:$BE$3,0)))="",NA(),(INDEX(ZikaPro!$D$4:$BE$80,MATCH(Analise!$B$16,ZikaPro!$B$4:$B$80,0),MATCH(Analise!AX15,ZikaPro!$D$3:$BE$3,0)))/SUMIF(População!$B$4:$B$79,Analise!$B$16,População!$C$4:$C$79)*100000) -> 0 | AY16: =IF((INDEX(ZikaPro!$D$4:$BE$80,MATCH(Analise!$B$16,ZikaPro!$B$4:$B$80,0),MATCH(Analise!AY15,ZikaPro!$D$3:$BE$3,0)))="",NA(),(INDEX(ZikaPro!$D$4:$BE$80,MATCH(Analise!$B$16,ZikaPro!$B$4:$B$80,0),MATCH(Analise!AY15,ZikaPro!$D$3:$BE$3,0)))/SUMIF(População!$B$4:$B$79,Analise!$B$16,População!$C$4:$C$79)*100000) -> 0 | AZ16: =IF((INDEX(ZikaPro!$D$4:$BE$80,MATCH(Analise!$B$16,ZikaPro!$B$4:$B$80,0),MATCH(Analise!AZ15,ZikaPro!$D$3:$BE$3,0)))="",NA(),(INDEX(ZikaPro!$D$4:$BE$80,MATCH(Analise!$B$16,ZikaPro!$B$4:$B$80,0),MATCH(Analise!AZ15,ZikaPro!$D$3:$BE$3,0)))/SUMIF(População!$B$4:$B$79,Analise!$B$16,População!$C$4:$C$79)*100000) -> 0 | BA16: =IF((INDEX(ZikaPro!$D$4:$BE$80,MATCH(Analise!$B$16,ZikaPro!$B$4:$B$80,0),MATCH(Analise!BA15,ZikaPro!$D$3:$BE$3,0)))="",NA(),(INDEX(ZikaPro!$D$4:$BE$80,MATCH(Analise!$B$16,ZikaPro!$B$4:$B$80,0),MATCH(Analise!BA15,ZikaPro!$D$3:$BE$3,0)))/SUMIF(População!$B$4:$B$79,Analise!$B$16,População!$C$4:$C$79)*100000) -> 0 | BB16: =IF((INDEX(ZikaPro!$D$4:$BE$80,MATCH(Analise!$B$16,ZikaPro!$B$4:$B$80,0),MATCH(Analise!BB15,ZikaPro!$D$3:$BE$3,0)))="",NA(),(INDEX(ZikaPro!$D$4:$BE$80,MATCH(Analise!$B$16,ZikaPro!$B$4:$B$80,0),MATCH(Analise!BB15,ZikaPro!$D$3:$BE$3,0)))/SUMIF(População!$B$4:$B$79,Analise!$B$16,População!$C$4:$C$79)*100000) -> 0 | BC16: =IF((INDEX(ZikaPro!$D$4:$BE$80,MATCH(Analise!$B$16,ZikaPro!$B$4:$B$80,0),MATCH(Analise!BC15,ZikaPro!$D$3:$BE$3,0)))="",NA(),(INDEX(ZikaPro!$D$4:$BE$80,MATCH(Analise!$B$16,ZikaPro!$B$4:$B$80,0),MATCH(Analise!BC15,ZikaPro!$D$3:$BE$3,0)))/SUMIF(População!$B$4:$B$79,Analise!$B$16,População!$C$4:$C$79)*100000) -> 0 | BD16: =IF((INDEX(ZikaPro!$D$4:$BE$80,MATCH(Analise!$B$16,ZikaPro!$B$4:$B$80,0),MATCH(Analise!BD15,ZikaPro!$D$3:$BE$3,0)))="",NA(),(INDEX(ZikaPro!$D$4:$BE$80,MATCH(Analise!$B$16,ZikaPro!$B$4:$B$80,0),MATCH(Analise!BD15,ZikaPro!$D$3:$BE$3,0)))/SUMIF(População!$B$4:$B$79,Analise!$B$16,População!$C$4:$C$79)*100000) -> 0.7502938283
A17: Dengue | B17: =PainelArbovirose!$B$4 -> Sergipe | C17: =IF((INDEX(DenPro!$C$4:$BD$80,MATCH(Analise!$B$17,DenPro!$B$4:$B$80,0),MATCH(Analise!C15,DenPro!$C$3:$BD$3,0)))="",NA(),(INDEX(DenPro!$C$4:$BD$80,MATCH(Analise!$B$17,DenPro!$B$4:$B$80,0),MATCH(Analise!C15,DenPro!$C$3:$BD$3,0)))/SUMIF(População!$B$4:$B$79,Analise!$B$17,População!$C$4:$C$79)*100000) -> 0.8385636905 | D17: =IF((INDEX(DenPro!$C$4:$BD$80,MATCH(Analise!$B$17,DenPro!$B$4:$B$80,0),MATCH(Analise!D15,DenPro!$C$3:$BD$3,0)))="",NA(),(INDEX(DenPro!$C$4:$BD$80,MATCH(Analise!$B$17,DenPro!$B$4:$B$80,0),MATCH(Analise!D15,DenPro!$C$3:$BD$3,0)))/SUMIF(População!$B$4:$B$79,Analise!$B$17,População!$C$4:$C$79)*100000) -> 0.7502938283 | E17: =IF((INDEX(DenPro!$C$4:$BD$80,MATCH(Analise!$B$17,DenPro!$B$4:$B$80,0),MATCH(Analise!E15,DenPro!$C$3:$BD$3,0)))="",NA(),(INDEX(DenPro!$C$4:$BD$80,MATCH(Analise!$B$17,DenPro!$B$4:$B$80,0),MATCH(Analise!E15,DenPro!$C$3:$BD$3,0)))/SUMIF(População!$B$4:$B$79,Analise!$B$17,População!$C$4:$C$79)*100000) -> 0.6178890351 | F17: =IF((INDEX(DenPro!$C$4:$BD$80,MATCH(Analise!$B$17,DenPro!$B$4:$B$80,0),MATCH(Analise!F15,DenPro!$C$3:$BD$3,0)))="",NA(),(INDEX(DenPro!$C$4:$BD$80,MATCH(Analise!$B$17,DenPro!$B$4:$B$80,0),MATCH(Analise!F15,DenPro!$C$3:$BD$3,0)))/SUMIF(População!$B$4:$B$79,Analise!$B$17,População!$C$4:$C$79)*100000) -> 1.279913001 | G17: =IF((INDEX(DenPro!$C$4:$BD$80,MATCH(Analise!$B$17,DenPro!$B$4:$B$80,0),MATCH(Analise!G15,DenPro!$C$3:$BD$3,0)))="",NA(),(INDEX(DenPro!$C$4:$BD$80,MATCH(Analise!$B$17,DenPro!$B$4:$B$80,0),MATCH(Analise!G15,DenPro!$C$3:$BD$3,0)))/SUMIF(População!$B$4:$B$79,Analise!$B$17,População!$C$4:$C$79)*100000) -> 0.4854842418 | H17: =IF((INDEX(DenPro!$C$4:$BD$80,MATCH(Analise!$B$17,DenPro!$B$4:$B$80,0),MATCH(Analise!H15,DenPro!$C$3:$BD$3,0)))="",NA(),(INDEX(DenPro!$C$4:$BD$80,MATCH(Analise!$B$17,DenPro!$B$4:$B$80,0),MATCH(Analise!H15,DenPro!$C$3:$BD$3,0)))/SUMIF(População!$B$4:$B$79,Analise!$B$17,População!$C$4:$C$79)*100000) -> 0.2648095865 | I17: =IF((INDEX(DenPro!$C$4:$BD$80,MATCH(Analise!$B$17,DenPro!$B$4:$B$80,0),MATCH(Analise!I15,DenPro!$C$3:$BD$3,0)))="",NA(),(INDEX(DenPro!$C$4:$BD$80,MATCH(Analise!$B$17,DenPro!$B$4:$B$80,0),MATCH(Analise!I15,DenPro!$C$3:$BD$3,0)))/SUMIF(População!$B$4:$B$79,Analise!$B$17,População!$C$4:$C$79)*100000) -> 0.5296191729 | J17: =IF((INDEX(DenPro!$C$4:$BD$80,MATCH(Analise!$B$17,DenPro!$B$4:$B$80,0),MATCH(Analise!J15,DenPro!$C$3:$BD$3,0)))="",NA(),(INDEX(DenPro!$C$4:$BD$80,MATCH(Analise!$B$17,DenPro!$B$4:$B$80,0),MATCH(Analise!J15,DenPro!$C$3:$BD$3,0)))/SUMIF(População!$B$4:$B$79,Analise!$B$17,População!$C$4:$C$79)*100000) -> 0.3972143797 | K17: =IF((INDEX(DenPro!$C$4:$BD$80,MATCH(Analise!$B$17,DenPro!$B$4:$B$80,0),MATCH(Analise!K15,DenPro!$C$3:$BD$3,0)))="",NA(),(INDEX(DenPro!$C$4:$BD$80,MATCH(Analise!$B$17,DenPro!$B$4:$B$80,0),MATCH(Analise!K15,DenPro!$C$3:$BD$3,0)))/SUMIF(População!$B$4:$B$79,Analise!$B$17,População!$C$4:$C$79)*100000) -> 0.3089445175 | L17: =IF((INDEX(DenPro!$C$4:$BD$80,MATCH(Analise!$B$17,DenPro!$B$4:$B$80,0),MATCH(Analise!L15,DenPro!$C$3:$BD$3,0)))="",NA(),(INDEX(DenPro!$C$4:$BD$80,MATCH(Analise!$B$17,DenPro!$B$4:$B$80,0),MATCH(Analise!L15,DenPro!$C$3:$BD$3,0)))/SUMIF(População!$B$4:$B$79,Analise!$B$17,População!$C$4:$C$79)*100000) -> 0.4413493108 | M17: =IF((INDEX(DenPro!$C$4:$BD$80,MATCH(Analise!$B$17,DenPro!$B$4:$B$80,0),MATCH(Analise!M15,DenPro!$C$3:$BD$3,0)))="",NA(),(INDEX(DenPro!$C$4:$BD$80,MATCH(Analise!$B$17,DenPro!$B$4:$B$80,0),MATCH(Analise!M15,DenPro!$C$3:$BD$3,0)))/SUMIF(População!$B$4:$B$79,Analise!$B$17,População!$C$4:$C$79)*100000) -> 0.3530794486 | N17: =IF((INDEX(DenPro!$C$4:$BD$80,MATCH(Analise!$B$17,DenPro!$B$4:$B$80,0),MATCH(Analise!N15,DenPro!$C$3:$BD$3,0)))="",NA(),(INDEX(DenPro!$C$4:$BD$80,MATCH(Analise!$B$17,DenPro!$B$4:$B$80,0),MATCH(Analise!N15,DenPro!$C$3:$BD$3,0)))/SUMIF(População!$B$4:$B$79,Analise!$B$17,População!$C$4:$C$79)*100000) -> 0.9268335526 | O17: =IF((INDEX(DenPro!$C$4:$BD$80,MATCH(Analise!$B$17,DenPro!$B$4:$B$80,0),MATCH(Analise!O15,DenPro!$C$3:$BD$3,0)))="",NA(),(INDEX(DenPro!$C$4:$BD$80,MATCH(Analise!$B$17,DenPro!$B$4:$B$80,0),MATCH(Analise!O15,DenPro!$C$3:$BD$3,0)))/SUMIF(População!$B$4:$B$79,Analise!$B$17,População!$C$4:$C$79)*100000) -> 1.147508208 | P17: =IF((INDEX(DenPro!$C$4:$BD$80,MATCH(Analise!$B$17,DenPro!$B$4:$B$80,0),MATCH(Analise!P15,DenPro!$C$3:$BD$3,0)))="",NA(),(INDEX(DenPro!$C$4:$BD$80,MATCH(Analise!$B$17,DenPro!$B$4:$B$80,0),MATCH(Analise!P15,DenPro!$C$3:$BD$3,0)))/SUMIF(População!$B$4:$B$79,Analise!$B$17,População!$C$4:$C$79)*100000) -> 0.7944287594 | Q17: =IF((INDEX(DenPro!$C$4:$BD$80,MATCH(Analise!$B$17,DenPro!$B$4:$B$80,0),MATCH(Analise!Q15,DenPro!$C$3:$BD$3,0)))="",NA(),(INDEX(DenPro!$C$4:$BD$80,MATCH(Analise!$B$17,DenPro!$B$4:$B$80,0),MATCH(Analise!Q15,DenPro!$C$3:$BD$3,0)))/SUMIF(População!$B$4:$B$79,Analise!$B$17,População!$C$4:$C$79)*100000) -> 0.7502938283 | R17: =IF((INDEX(DenPro!$C$4:$BD$80,MATCH(Analise!$B$17,DenPro!$B$4:$B$80,0),MATCH(Analise!R15,DenPro!$C$3:$BD$3,0)))="",NA(),(INDEX(DenPro!$C$4:$BD$80,MATCH(Analise!$B$17,DenPro!$B$4:$B$80,0),MATCH(Analise!R15,DenPro!$C$3:$BD$3,0)))/SUMIF(População!$B$4:$B$79,Analise!$B$17,População!$C$4:$C$79)*100000) -> 1.015103415 | S17: =IF((INDEX(DenPro!$C$4:$BD$80,MATCH(Analise!$B$17,DenPro!$B$4:$B$80,0),MATCH(Analise!S15,DenPro!$C$3:$BD$3,0)))="",NA(),(INDEX(DenPro!$C$4:$BD$80,MATCH(Analise!$B$17,DenPro!$B$4:$B$80,0),MATCH(Analise!S15,DenPro!$C$3:$BD$3,0)))/SUMIF(População!$B$4:$B$79,Analise!$B$17,População!$C$4:$C$79)*100000) -> 0.6620239662 | T17: =IF((INDEX(DenPro!$C$4:$BD$80,MATCH(Analise!$B$17,DenPro!$B$4:$B$80,0),MATCH(Analise!T15,DenPro!$C$3:$BD$3,0)))="",NA(),(INDEX(DenPro!$C$4:$BD$80,MATCH(Analise!$B$17,DenPro!$B$4:$B$80,0),MATCH(Analise!T15,DenPro!$C$3:$BD$3,0)))/SUMIF(População!$B$4:$B$79,Analise!$B$17,População!$C$4:$C$79)*100000) -> 0.9709684837 | U17: =IF((INDEX(DenPro!$C$4:$BD$80,MATCH(Analise!$B$17,DenPro!$B$4:$B$80,0),MATCH(Analise!U15,DenPro!$C$3:$BD$3,0)))="",NA(),(INDEX(DenPro!$C$4:$BD$80,MATCH(Analise!$B$17,DenPro!$B$4:$B$80,0),MATCH(Analise!U15,DenPro!$C$3:$BD$3,0)))/SUMIF(População!$B$4:$B$79,Analise!$B$17,População!$C$4:$C$79)*100000) -> 0.8385636905 | V17: =IF((INDEX(DenPro!$C$4:$BD$80,MATCH(Analise!$B$17,DenPro!$B$4:$B$80,0),MATCH(Analise!V15,DenPro!$C$3:$BD$3,0)))="",NA(),(INDEX(DenPro!$C$4:$BD$80,MATCH(Analise!$B$17,DenPro!$B$4:$B$80,0),MATCH(Analise!V15,DenPro!$C$3:$BD$3,0)))/SUMIF(População!$B$4:$B$79,Analise!$B$17,População!$C$4:$C$79)*100000) -> 0.8826986215 | W17: =IF((INDEX(DenPro!$C$4:$BD$80,MATCH(Analise!$B$17,DenPro!$B$4:$B$80,0),MATCH(Analise!W15,DenPro!$C$3:$BD$3,0)))="",NA(),(INDEX(DenPro!$C$4:$BD$80,MATCH(Analise!$B$17,DenPro!$B$4:$B$80,0),MATCH(Analise!W15,DenPro!$C$3:$BD$3,0)))/SUMIF(População!$B$4:$B$79,Analise!$B$17,População!$C$4:$C$79)*100000) -> 0.4413493108 | X17: =IF((INDEX(DenPro!$C$4:$BD$80,MATCH(Analise!$B$17,DenPro!$B$4:$B$80,0),MATCH(Analise!X15,DenPro!$C$3:$BD$3,0)))="",NA(),(INDEX(DenPro!$C$4:$BD$80,MATCH(Analise!$B$17,DenPro!$B$4:$B$80,0),MATCH(Analise!X15,DenPro!$C$3:$BD$3,0)))/SUMIF(População!$B$4:$B$79,Analise!$B$17,População!$C$4:$C$79)*100000) -> 0.6178890351 | Y17: =IF((INDEX(DenPro!$C$4:$BD$80,MATCH(Analise!$B$17,DenPro!$B$4:$B$80,0),MATCH(Analise!Y15,DenPro!$C$3:$BD$3,0)))="",NA(),(INDEX(DenPro!$C$4:$BD$80,MATCH(Analise!$B$17,DenPro!$B$4:$B$80,0),MATCH(Analise!Y15,DenPro!$C$3:$BD$3,0)))/SUMIF(População!$B$4:$B$79,Analise!$B$17,População!$C$4:$C$79)*100000) -> 0.7944287594 | Z17: =IF((INDEX(DenPro!$C$4:$BD$80,MATCH(Analise!$B$17,DenPro!$B$4:$B$80,0),MATCH(Analise!Z15,DenPro!$C$3:$BD$3,0)))="",NA(),(INDEX(DenPro!$C$4:$BD$80,MATCH(Analise!$B$17,DenPro!$B$4:$B$80,0),MATCH(Analise!Z15,DenPro!$C$3:$BD$3,0)))/SUMIF(População!$B$4:$B$79,Analise!$B$17,População!$C$4:$C$79)*100000) -> 0.4413493108 | AA17: =IF((INDEX(DenPro!$C$4:$BD$80,MATCH(Analise!$B$17,DenPro!$B$4:$B$80,0),MATCH(Analise!AA15,DenPro!$C$3:$BD$3,0)))="",NA(),(INDEX(DenPro!$C$4:$BD$80,MATCH(Analise!$B$17,DenPro!$B$4:$B$80,0),MATCH(Analise!AA15,DenPro!$C$3:$BD$3,0)))/SUMIF(População!$B$4:$B$79,Analise!$B$17,População!$C$4:$C$79)*100000) -> 0.3089445175 | AB17: =IF((INDEX(DenPro!$C$4:$BD$80,MATCH(Analise!$B$17,DenPro!$B$4:$B$80,0),MATCH(Analise!AB15,DenPro!$C$3:$BD$3,0)))="",NA(),(INDEX(DenPro!$C$4:$BD$80,MATCH(Analise!$B$17,DenPro!$B$4:$B$80,0),MATCH(Analise!AB15,DenPro!$C$3:$BD$3,0)))/SUMIF(População!$B$4:$B$79,Analise!$B$17,População!$C$4:$C$79)*100000) -> 0.3530794486 | AC17: =IF((INDEX(DenPro!$C$4:$BD$80,MATCH(Analise!$B$17,DenPro!$B$4:$B$80,0),MATCH(Analise!AC15,DenPro!$C$3:$BD$3,0)))="",NA(),(INDEX(DenPro!$C$4:$BD$80,MATCH(Analise!$B$17,DenPro!$B$4:$B$80,0),MATCH(Analise!AC15,DenPro!$C$3:$BD$3,0)))/SUMIF(População!$B$4:$B$79,Analise!$B$17,População!$C$4:$C$79)*100000) -> 0.1324047932 | AD17: =IF((INDEX(DenPro!$C$4:$BD$80,MATCH(Analise!$B$17,DenPro!$B$4:$B$80,0),MATCH(Analise!AD15,DenPro!$C$3:$BD$3,0)))="",NA(),(INDEX(DenPro!$C$4:$BD$80,MATCH(Analise!$B$17,DenPro!$B$4:$B$80,0),MATCH(Analise!AD15,DenPro!$C$3:$BD$3,0)))/SUMIF(População!$B$4:$B$79,Analise!$B$17,População!$C$4:$C$79)*100000) -> 0.3972143797 | AE17: =IF((INDEX(DenPro!$C$4:$BD$80,MATCH(Analise!$B$17,DenPro!$B$4:$B$80,0),MATCH(Analise!AE15,DenPro!$C$3:$BD$3,0)))="",NA(),(INDEX(DenPro!$C$4:$BD$80,MATCH(Analise!$B$17,DenPro!$B$4:$B$80,0),MATCH(Analise!AE15,DenPro!$C$3:$BD$3,0)))/SUMIF(População!$B$4:$B$79,Analise!$B$17,População!$C$4:$C$79)*100000) -> 0.3530794486 | AF17: =IF((INDEX(DenPro!$C$4:$BD$80,MATCH(Analise!$B$17,DenPro!$B$4:$B$80,0),MATCH(Analise!AF15,DenPro!$C$3:$BD$3,0)))="",NA(),(INDEX(DenPro!$C$4:$BD$80,MATCH(Analise!$B$17,DenPro!$B$4:$B$80,0),MATCH(Analise!AF15,DenPro!$C$3:$BD$3,0)))/SUMIF(População!$B$4:$B$79,Analise!$B$17,População!$C$4:$C$79)*100000) -> 0.04413493108 | AG17: =IF((INDEX(DenPro!$C$4:$BD$80,MATCH(Analise!$B$17,DenPro!$B$4:$B$80,0),MATCH(Analise!AG15,DenPro!$C$3:$BD$3,0)))="",NA(),(INDEX(DenPro!$C$4:$BD$80,MATCH(Analise!$B$17,DenPro!$B$4:$B$80,0),MATCH(Analise!AG15,DenPro!$C$3:$BD$3,0)))/SUMIF(População!$B$4:$B$79,Analise!$B$17,População!$C$4:$C$79)*100000) -> 0.4413493108 | AH17: =IF((INDEX(DenPro!$C$4:$BD$80,MATCH(Analise!$B$17,DenPro!$B$4:$B$80,0),MATCH(Analise!AH15,DenPro!$C$3:$BD$3,0)))="",NA(),(INDEX(DenPro!$C$4:$BD$80,MATCH(Analise!$B$17,DenPro!$B$4:$B$80,0),MATCH(Analise!AH15,DenPro!$C$3:$BD$3,0)))/SUMIF(População!$B$4:$B$79,Analise!$B$17,População!$C$4:$C$79)*100000) -> 0.2648095865 | AI17: =IF((INDEX(DenPro!$C$4:$BD$80,MATCH(Analise!$B$17,DenPro!$B$4:$B$80,0),MATCH(Analise!AI15,DenPro!$C$3:$BD$3,0)))="",NA(),(INDEX(DenPro!$C$4:$BD$80,MATCH(Analise!$B$17,DenPro!$B$4:$B$80,0),MATCH(Analise!AI15,DenPro!$C$3:$BD$3,0)))/SUMIF(População!$B$4:$B$79,Analise!$B$17,População!$C$4:$C$79)*100000) -> 0.3972143797 | AJ17: =IF((INDEX(DenPro!$C$4:$BD$80,MATCH(Analise!$B$17,DenPro!$B$4:$B$80,0),MATCH(Analise!AJ15,DenPro!$C$3:$BD$3,0)))="",NA(),(INDEX(DenPro!$C$4:$BD$80,MATCH(Analise!$B$17,DenPro!$B$4:$B$80,0),MATCH(Analise!AJ15,DenPro!$C$3:$BD$3,0)))/SUMIF(População!$B$4:$B$79,Analise!$B$17,População!$C$4:$C$79)*100000) -> 0.2648095865 | AK17: =IF((INDEX(DenPro!$C$4:$BD$80,MATCH(Analise!$B$17,DenPro!$B$4:$B$80,0),MATCH(Analise!AK15,DenPro!$C$3:$BD$3,0)))="",NA(),(INDEX(DenPro!$C$4:$BD$80,MATCH(Analise!$B$17,DenPro!$B$4:$B$80,0),MATCH(Analise!AK15,DenPro!$C$3:$BD$3,0)))/SUMIF(População!$B$4:$B$79,Analise!$B$17,População!$C$4:$C$79)*100000) -> 0.3530794486 | AL17: =IF((INDEX(DenPro!$C$4:$BD$80,MATCH(Analise!$B$17,DenPro!$B$4:$B$80,0),MATCH(Analise!AL15,DenPro!$C$3:$BD$3,0)))="",NA(),(INDEX(DenPro!$C$4:$BD$80,MATCH(Analise!$B$17,DenPro!$B$4:$B$80,0),MATCH(Analise!AL15,DenPro!$C$3:$BD$3,0)))/SUMIF(População!$B$4:$B$79,Analise!$B$17,População!$C$4:$C$79)*100000) -> 0.7061588972 | AM17: =IF((INDEX(DenPro!$C$4:$BD$80,MATCH(Analise!$B$17,DenPro!$B$4:$B$80,0),MATCH(Analise!AM15,DenPro!$C$3:$BD$3,0)))="",NA(),(INDEX(DenPro!$C$4:$BD$80,MATCH(Analise!$B$17,DenPro!$B$4:$B$80,0),MATCH(Analise!AM15,DenPro!$C$3:$BD$3,0)))/SUMIF(População!$B$4:$B$79,Analise!$B$17,População!$C$4:$C$79)*100000) -> 0.4413493108 | AN17: =IF((INDEX(DenPro!$C$4:$BD$80,MATCH(Analise!$B$17,DenPro!$B$4:$B$80,0),MATCH(Analise!AN15,DenPro!$C$3:$BD$3,0)))="",NA(),(INDEX(DenPro!$C$4:$BD$80,MATCH(Analise!$B$17,DenPro!$B$4:$B$80,0),MATCH(Analise!AN15,DenPro!$C$3:$BD$3,0)))/SUMIF(População!$B$4:$B$79,Analise!$B$17,População!$C$4:$C$79)*100000) -> 0.6620239662 | AO17: =IF((INDEX(DenPro!$C$4:$BD$80,MATCH(Analise!$B$17,DenPro!$B$4:$B$80,0),MATCH(Analise!AO15,DenPro!$C$3:$BD$3,0)))="",NA(),(INDEX(DenPro!$C$4:$BD$80,MATCH(Analise!$B$17,DenPro!$B$4:$B$80,0),MATCH(Analise!AO15,DenPro!$C$3:$BD$3,0)))/SUMIF(População!$B$4:$B$79,Analise!$B$17,População!$C$4:$C$79)*100000) -> 0.4413493108 | AP17: =IF((INDEX(DenPro!$C$4:$BD$80,MATCH(Analise!$B$17,DenPro!$B$4:$B$80,0),MATCH(Analise!AP15,DenPro!$C$3:$BD$3,0)))="",NA(),(INDEX(DenPro!$C$4:$BD$80,MATCH(Analise!$B$17,DenPro!$B$4:$B$80,0),MATCH(Analise!AP15,DenPro!$C$3:$BD$3,0)))/SUMIF(População!$B$4:$B$79,Analise!$B$17,População!$C$4:$C$79)*100000) -> 0.6620239662 | AQ17: =IF((INDEX(DenPro!$C$4:$BD$80,MATCH(Analise!$B$17,DenPro!$B$4:$B$80,0),MATCH(Analise!AQ15,DenPro!$C$3:$BD$3,0)))="",NA(),(INDEX(DenPro!$C$4:$BD$80,MATCH(Analise!$B$17,DenPro!$B$4:$B$80,0),MATCH(Analise!AQ15,DenPro!$C$3:$BD$3,0)))/SUMIF(População!$B$4:$B$79,Analise!$B$17,População!$C$4:$C$79)*100000) -> 0.4413493108 | AR17: =IF((INDEX(DenPro!$C$4:$BD$80,MATCH(Analise!$B$17,DenPro!$B$4:$B$80,0),MATCH(Analise!AR15,DenPro!$C$3:$BD$3,0)))="",NA(),(INDEX(DenPro!$C$4:$BD$80,MATCH(Analise!$B$17,DenPro!$B$4:$B$80,0),MATCH(Analise!AR15,DenPro!$C$3:$BD$3,0)))/SUMIF(População!$B$4:$B$79,Analise!$B$17,População!$C$4:$C$79)*100000) -> 0.2206746554 | AS17: =IF((INDEX(DenPro!$C$4:$BD$80,MATCH(Analise!$B$17,DenPro!$B$4:$B$80,0),MATCH(Analise!AS15,DenPro!$C$3:$BD$3,0)))="",NA(),(INDEX(DenPro!$C$4:$BD$80,MATCH(Analise!$B$17,DenPro!$B$4:$B$80,0),MATCH(Analise!AS15,DenPro!$C$3:$BD$3,0)))/SUMIF(População!$B$4:$B$79,Analise!$B$17,População!$C$4:$C$79)*100000) -> 0.2648095865 | AT17: =IF((INDEX(DenPro!$C$4:$BD$80,MATCH(Analise!$B$17,DenPro!$B$4:$B$80,0),MATCH(Analise!AT15,DenPro!$C$3:$BD$3,0)))="",NA(),(INDEX(DenPro!$C$4:$BD$80,MATCH(Analise!$B$17,DenPro!$B$4:$B$80,0),MATCH(Analise!AT15,DenPro!$C$3:$BD$3,0)))/SUMIF(População!$B$4:$B$79,Analise!$B$17,População!$C$4:$C$79)*100000) -> 0.3530794486 | AU17: =IF((INDEX(DenPro!$C$4:$BD$80,MATCH(Analise!$B$17,DenPro!$B$4:$B$80,0),MATCH(Analise!AU15,DenPro!$C$3:$BD$3,0)))="",NA(),(INDEX(DenPro!$C$4:$BD$80,MATCH(Analise!$B$17,DenPro!$B$4:$B$80,0),MATCH(Analise!AU15,DenPro!$C$3:$BD$3,0)))/SUMIF(População!$B$4:$B$79,Analise!$B$17,População!$C$4:$C$79)*100000) -> 0.4413493108 | AV17: =IF((INDEX(DenPro!$C$4:$BD$80,MATCH(Analise!$B$17,DenPro!$B$4:$B$80,0),MATCH(Analise!AV15,DenPro!$C$3:$BD$3,0)))="",NA(),(INDEX(DenPro!$C$4:$BD$80,MATCH(Analise!$B$17,DenPro!$B$4:$B$80,0),MATCH(Analise!AV15,DenPro!$C$3:$BD$3,0)))/SUMIF(População!$B$4:$B$79,Analise!$B$17,População!$C$4:$C$79)*100000) -> 0.4413493108 | AW17: =IF((INDEX(DenPro!$C$4:$BD$80,MATCH(Analise!$B$17,DenPro!$B$4:$B$80,0),MATCH(Analise!AW15,DenPro!$C$3:$BD$3,0)))="",NA(),(INDEX(DenPro!$C$4:$BD$80,MATCH(Analise!$B$17,DenPro!$B$4:$B$80,0),MATCH(Analise!AW15,DenPro!$C$3:$BD$3,0)))/SUMIF(População!$B$4:$B$79,Analise!$B$17,População!$C$4:$C$79)*100000) -> 0.2648095865 | AX17: =IF((INDEX(DenPro!$C$4:$BD$80,MATCH(Analise!$B$17,DenPro!$B$4:$B$80,0),MATCH(Analise!AX15,DenPro!$C$3:$BD$3,0)))="",NA(),(INDEX(DenPro!$C$4:$BD$80,MATCH(Analise!$B$17,DenPro!$B$4:$B$80,0),MATCH(Analise!AX15,DenPro!$C$3:$BD$3,0)))/SUMIF(População!$B$4:$B$79,Analise!$B$17,População!$C$4:$C$79)*100000) -> 0.3089445175 | AY17: =IF((INDEX(DenPro!$C$4:$BD$80,MATCH(Analise!$B$17,DenPro!$B$4:$B$80,0),MATCH(Analise!AY15,DenPro!$C$3:$BD$3,0)))="",NA(),(INDEX(DenPro!$C$4:$BD$80,MATCH(Analise!$B$17,DenPro!$B$4:$B$80,0),MATCH(Analise!AY15,DenPro!$C$3:$BD$3,0)))/SUMIF(População!$B$4:$B$79,Analise!$B$17,População!$C$4:$C$79)*100000) -> 0.08826986215 | AZ17: =IF((INDEX(DenPro!$C$4:$BD$80,MATCH(Analise!$B$17,DenPro!$B$4:$B$80,0),MATCH(Analise!AZ15,DenPro!$C$3:$BD$3,0)))="",NA(),(INDEX(DenPro!$C$4:$BD$80,MATCH(Analise!$B$17,DenPro!$B$4:$B$80,0),MATCH(Analise!AZ15,DenPro!$C$3:$BD$3,0)))/SUMIF(População!$B$4:$B$79,Analise!$B$17,População!$C$4:$C$79)*100000) -> 0.1765397243 | BA17: =IF((INDEX(DenPro!$C$4:$BD$80,MATCH(Analise!$B$17,DenPro!$B$4:$B$80,0),MATCH(Analise!BA15,DenPro!$C$3:$BD$3,0)))="",NA(),(INDEX(DenPro!$C$4:$BD$80,MATCH(Analise!$B$17,DenPro!$B$4:$B$80,0),MATCH(Analise!BA15,DenPro!$C$3:$BD$3,0)))/SUMIF(População!$B$4:$B$79,Analise!$B$17,População!$C$4:$C$79)*100000) -> 0.08826986215 | BB17: =IF((INDEX(DenPro!$C$4:$BD$80,MATCH(Analise!$B$17,DenPro!$B$4:$B$80,0),MATCH(Analise!BB15,DenPro!$C$3:$BD$3,0)))="",NA(),(INDEX(DenPro!$C$4:$BD$80,MATCH(Analise!$B$17,DenPro!$B$4:$B$80,0),MATCH(Analise!BB15,DenPro!$C$3:$BD$3,0)))/SUMIF(População!$B$4:$B$79,Analise!$B$17,População!$C$4:$C$79)*100000) -> 0.1324047932 | BC17: =IF((INDEX(DenPro!$C$4:$BD$80,MATCH(Analise!$B$17,DenPro!$B$4:$B$80,0),MATCH(Analise!BC15,DenPro!$C$3:$BD$3,0)))="",NA(),(INDEX(DenPro!$C$4:$BD$80,MATCH(Analise!$B$17,DenPro!$B$4:$B$80,0),MATCH(Analise!BC15,DenPro!$C$3:$BD$3,0)))/SUMIF(População!$B$4:$B$79,Analise!$B$17,População!$C$4:$C$79)*100000) ->  | BD17: =IF((INDEX(DenPro!$C$4:$BD$80,MATCH(Analise!$B$17,DenPro!$B$4:$B$80,0),MATCH(Analise!BD15,DenPro!$C$3:$BD$3,0)))="",NA(),(INDEX(DenPro!$C$4:$BD$80,MATCH(Analise!$B$17,DenPro!$B$4:$B$80,0),MATCH(Analise!BD15,DenPro!$C$3:$BD$3,0)))/SUMIF(População!$B$4:$B$79,Analise!$B$17,População!$C$4:$C$79)*100000) -> 25.9954744
A18: Chikungunya | B18: =PainelArbovirose!$B$4 -> Sergipe | C18: =IF((INDEX(ChiPro!$C$4:$BC$80,MATCH(Analise!$B$17,ChiPro!$B$4:$B$80,0),MATCH(Analise!C15,ChiPro!$C$3:$BC$3,0)))="",NA(),(INDEX(ChiPro!$C$4:$BC$80,MATCH(Analise!$B$17,ChiPro!$B$4:$B$80,0),MATCH(Analise!C15,ChiPro!$C$3:$BC$3,0)))/SUMIF(População!$B$4:$B$79,Analise!$B$17,População!$C$4:$C$79)*100000) -> 1.147508208 | D18: =IF((INDEX(ChiPro!$C$4:$BC$80,MATCH(Analise!$B$17,ChiPro!$B$4:$B$80,0),MATCH(Analise!D15,ChiPro!$C$3:$BC$3,0)))="",NA(),(INDEX(ChiPro!$C$4:$BC$80,MATCH(Analise!$B$17,ChiPro!$B$4:$B$80,0),MATCH(Analise!D15,ChiPro!$C$3:$BC$3,0)))/SUMIF(População!$B$4:$B$79,Analise!$B$17,População!$C$4:$C$79)*100000) -> 0.7061588972 | E18: =IF((INDEX(ChiPro!$C$4:$BC$80,MATCH(Analise!$B$17,ChiPro!$B$4:$B$80,0),MATCH(Analise!E15,ChiPro!$C$3:$BC$3,0)))="",NA(),(INDEX(ChiPro!$C$4:$BC$80,MATCH(Analise!$B$17,ChiPro!$B$4:$B$80,0),MATCH(Analise!E15,ChiPro!$C$3:$BC$3,0)))/SUMIF(População!$B$4:$B$79,Analise!$B$17,População!$C$4:$C$79)*100000) -> 0.5296191729 | F18: =IF((INDEX(ChiPro!$C$4:$BC$80,MATCH(Analise!$B$17,ChiPro!$B$4:$B$80,0),MATCH(Analise!F15,ChiPro!$C$3:$BC$3,0)))="",NA(),(INDEX(ChiPro!$C$4:$BC$80,MATCH(Analise!$B$17,ChiPro!$B$4:$B$80,0),MATCH(Analise!F15,ChiPro!$C$3:$BC$3,0)))/SUMIF(População!$B$4:$B$79,Analise!$B$17,População!$C$4:$C$79)*100000) -> 0.7502938283 | G18: =IF((INDEX(ChiPro!$C$4:$BC$80,MATCH(Analise!$B$17,ChiPro!$B$4:$B$80,0),MATCH(Analise!G15,ChiPro!$C$3:$BC$3,0)))="",NA(),(INDEX(ChiPro!$C$4:$BC$80,MATCH(Analise!$B$17,ChiPro!$B$4:$B$80,0),MATCH(Analise!G15,ChiPro!$C$3:$BC$3,0)))/SUMIF(População!$B$4:$B$79,Analise!$B$17,População!$C$4:$C$79)*100000) -> 1.015103415 | H18: =IF((INDEX(ChiPro!$C$4:$BC$80,MATCH(Analise!$B$17,ChiPro!$B$4:$B$80,0),MATCH(Analise!H15,ChiPro!$C$3:$BC$3,0)))="",NA(),(INDEX(ChiPro!$C$4:$BC$80,MATCH(Analise!$B$17,ChiPro!$B$4:$B$80,0),MATCH(Analise!H15,ChiPro!$C$3:$BC$3,0)))/SUMIF(População!$B$4:$B$79,Analise!$B$17,População!$C$4:$C$79)*100000) -> 0.6178890351 | I18: =IF((INDEX(ChiPro!$C$4:$BC$80,MATCH(Analise!$B$17,ChiPro!$B$4:$B$80,0),MATCH(Analise!I15,ChiPro!$C$3:$BC$3,0)))="",NA(),(INDEX(ChiPro!$C$4:$BC$80,MATCH(Analise!$B$17,ChiPro!$B$4:$B$80,0),MATCH(Analise!I15,ChiPro!$C$3:$BC$3,0)))/SUMIF(População!$B$4:$B$79,Analise!$B$17,População!$C$4:$C$79)*100000) -> 0.573754104 | J18: =IF((INDEX(ChiPro!$C$4:$BC$80,MATCH(Analise!$B$17,ChiPro!$B$4:$B$80,0),MATCH(Analise!J15,ChiPro!$C$3:$BC$3,0)))="",NA(),(INDEX(ChiPro!$C$4:$BC$80,MATCH(Analise!$B$17,ChiPro!$B$4:$B$80,0),MATCH(Analise!J15,ChiPro!$C$3:$BC$3,0)))/SUMIF(População!$B$4:$B$79,Analise!$B$17,População!$C$4:$C$79)*100000) -> 0.3089445175 | K18: =IF((INDEX(ChiPro!$C$4:$BC$80,MATCH(Analise!$B$17,ChiPro!$B$4:$B$80,0),MATCH(Analise!K15,ChiPro!$C$3:$BC$3,0)))="",NA(),(INDEX(ChiPro!$C$4:$BC$80,MATCH(Analise!$B$17,ChiPro!$B$4:$B$80,0),MATCH(Analise!K15,ChiPro!$C$3:$BC$3,0)))/SUMIF(População!$B$4:$B$79,Analise!$B$17,População!$C$4:$C$79)*100000) -> 0.2206746554 | L18: =IF((INDEX(ChiPro!$C$4:$BC$80,MATCH(Analise!$B$17,ChiPro!$B$4:$B$80,0),MATCH(Analise!L15,ChiPro!$C$3:$BC$3,0)))="",NA(),(INDEX(ChiPro!$C$4:$BC$80,MATCH(Analise!$B$17,ChiPro!$B$4:$B$80,0),MATCH(Analise!L15,ChiPro!$C$3:$BC$3,0)))/SUMIF(População!$B$4:$B$79,Analise!$B$17,População!$C$4:$C$79)*100000) -> 0.3530794486 | M18: =IF((INDEX(ChiPro!$C$4:$BC$80,MATCH(Analise!$B$17,ChiPro!$B$4:$B$80,0),MATCH(Analise!M15,ChiPro!$C$3:$BC$3,0)))="",NA(),(INDEX(ChiPro!$C$4:$BC$80,MATCH(Analise!$B$17,ChiPro!$B$4:$B$80,0),MATCH(Analise!M15,ChiPro!$C$3:$BC$3,0)))/SUMIF(População!$B$4:$B$79,Analise!$B$17,População!$C$4:$C$79)*100000) -> 0.2648095865 | N18: =IF((INDEX(ChiPro!$C$4:$BC$80,MATCH(Analise!$B$17,ChiPro!$B$4:$B$80,0),MATCH(Analise!N15,ChiPro!$C$3:$BC$3,0)))="",NA(),(INDEX(ChiPro!$C$4:$BC$80,MATCH(Analise!$B$17,ChiPro!$B$4:$B$80,0),MATCH(Analise!N15,ChiPro!$C$3:$BC$3,0)))/SUMIF(População!$B$4:$B$79,Analise!$B$17,População!$C$4:$C$79)*100000) -> 0.4854842418 | O18: =IF((INDEX(ChiPro!$C$4:$BC$80,MATCH(Analise!$B$17,ChiPro!$B$4:$B$80,0),MATCH(Analise!O15,ChiPro!$C$3:$BC$3,0)))="",NA(),(INDEX(ChiPro!$C$4:$BC$80,MATCH(Analise!$B$17,ChiPro!$B$4:$B$80,0),MATCH(Analise!O15,ChiPro!$C$3:$BC$3,0)))/SUMIF(População!$B$4:$B$79,Analise!$B$17,População!$C$4:$C$79)*100000) -> 0.7502938283 | P18: =IF((INDEX(ChiPro!$C$4:$BC$80,MATCH(Analise!$B$17,ChiPro!$B$4:$B$80,0),MATCH(Analise!P15,ChiPro!$C$3:$BC$3,0)))="",NA(),(INDEX(ChiPro!$C$4:$BC$80,MATCH(Analise!$B$17,ChiPro!$B$4:$B$80,0),MATCH(Analise!P15,ChiPro!$C$3:$BC$3,0)))/SUMIF(População!$B$4:$B$79,Analise!$B$17,População!$C$4:$C$79)*100000) -> 0.7944287594 | Q18: =IF((INDEX(ChiPro!$C$4:$BC$80,MATCH(Analise!$B$17,ChiPro!$B$4:$B$80,0),MATCH(Analise!Q15,ChiPro!$C$3:$BC$3,0)))="",NA(),(INDEX(ChiPro!$C$4:$BC$80,MATCH(Analise!$B$17,ChiPro!$B$4:$B$80,0),MATCH(Analise!Q15,ChiPro!$C$3:$BC$3,0)))/SUMIF(População!$B$4:$B$79,Analise!$B$17,População!$C$4:$C$79)*100000) -> 0.6178890351 | R18: =IF((INDEX(ChiPro!$C$4:$BC$80,MATCH(Analise!$B$17,ChiPro!$B$4:$B$80,0),MATCH(Analise!R15,ChiPro!$C$3:$BC$3,0)))="",NA(),(INDEX(ChiPro!$C$4:$BC$80,MATCH(Analise!$B$17,ChiPro!$B$4:$B$80,0),MATCH(Analise!R15,ChiPro!$C$3:$BC$3,0)))/SUMIF(População!$B$4:$B$79,Analise!$B$17,População!$C$4:$C$79)*100000) -> 1.103373277 | S18: =IF((INDEX(ChiPro!$C$4:$BC$80,MATCH(Analise!$B$17,ChiPro!$B$4:$B$80,0),MATCH(Analise!S15,ChiPro!$C$3:$BC$3,0)))="",NA(),(INDEX(ChiPro!$C$4:$BC$80,MATCH(Analise!$B$17,ChiPro!$B$4:$B$80,0),MATCH(Analise!S15,ChiPro!$C$3:$BC$3,0)))/SUMIF(População!$B$4:$B$79,Analise!$B$17,População!$C$4:$C$79)*100000) -> 0.8385636905 | T18: =IF((INDEX(ChiPro!$C$4:$BC$80,MATCH(Analise!$B$17,ChiPro!$B$4:$B$80,0),MATCH(Analise!T15,ChiPro!$C$3:$BC$3,0)))="",NA(),(INDEX(ChiPro!$C$4:$BC$80,MATCH(Analise!$B$17,ChiPro!$B$4:$B$80,0),MATCH(Analise!T15,ChiPro!$C$3:$BC$3,0)))/SUMIF(População!$B$4:$B$79,Analise!$B$17,População!$C$4:$C$79)*100000) -> 1.544722588 | U18: =IF((INDEX(ChiPro!$C$4:$BC$80,MATCH(Analise!$B$17,ChiPro!$B$4:$B$80,0),MATCH(Analise!U15,ChiPro!$C$3:$BC$3,0)))="",NA(),(INDEX(ChiPro!$C$4:$BC$80,MATCH(Analise!$B$17,ChiPro!$B$4:$B$80,0),MATCH(Analise!U15,ChiPro!$C$3:$BC$3,0)))/SUMIF(População!$B$4:$B$79,Analise!$B$17,População!$C$4:$C$79)*100000) -> 1.015103415 | V18: =IF((INDEX(ChiPro!$C$4:$BC$80,MATCH(Analise!$B$17,ChiPro!$B$4:$B$80,0),MATCH(Analise!V15,ChiPro!$C$3:$BC$3,0)))="",NA(),(INDEX(ChiPro!$C$4:$BC$80,MATCH(Analise!$B$17,ChiPro!$B$4:$B$80,0),MATCH(Analise!V15,ChiPro!$C$3:$BC$3,0)))/SUMIF(População!$B$4:$B$79,Analise!$B$17,População!$C$4:$C$79)*100000) -> 0.6620239662 | W18: =IF((INDEX(ChiPro!$C$4:$BC$80,MATCH(Analise!$B$17,ChiPro!$B$4:$B$80,0),MATCH(Analise!W15,ChiPro!$C$3:$BC$3,0)))="",NA(),(INDEX(ChiPro!$C$4:$BC$80,MATCH(Analise!$B$17,ChiPro!$B$4:$B$80,0),MATCH(Analise!W15,ChiPro!$C$3:$BC$3,0)))/SUMIF(População!$B$4:$B$79,Analise!$B$17,População!$C$4:$C$79)*100000) -> 0.08826986215 | X18: =IF((INDEX(ChiPro!$C$4:$BC$80,MATCH(Analise!$B$17,ChiPro!$B$4:$B$80,0),MATCH(Analise!X15,ChiPro!$C$3:$BC$3,0)))="",NA(),(INDEX(ChiPro!$C$4:$BC$80,MATCH(Analise!$B$17,ChiPro!$B$4:$B$80,0),MATCH(Analise!X15,ChiPro!$C$3:$BC$3,0)))/SUMIF(População!$B$4:$B$79,Analise!$B$17,População!$C$4:$C$79)*100000) -> 0.1765397243 | Y18: =IF((INDEX(ChiPro!$C$4:$BC$80,MATCH(Analise!$B$17,ChiPro!$B$4:$B$80,0),MATCH(Analise!Y15,ChiPro!$C$3:$BC$3,0)))="",NA(),(INDEX(ChiPro!$C$4:$BC$80,MATCH(Analise!$B$17,ChiPro!$B$4:$B$80,0),MATCH(Analise!Y15,ChiPro!$C$3:$BC$3,0)))/SUMIF(População!$B$4:$B$79,Analise!$B$17,População!$C$4:$C$79)*100000) -> 0.08826986215 | Z18: =IF((INDEX(ChiPro!$C$4:$BC$80,MATCH(Analise!$B$17,ChiPro!$B$4:$B$80,0),MATCH(Analise!Z15,ChiPro!$C$3:$BC$3,0)))="",NA(),(INDEX(ChiPro!$C$4:$BC$80,MATCH(Analise!$B$17,ChiPro!$B$4:$B$80,0),MATCH(Analise!Z15,ChiPro!$C$3:$BC$3,0)))/SUMIF(População!$B$4:$B$79,Analise!$B$17,População!$C$4:$C$79)*100000) -> 0.04413493108 | AA18: =IF((INDEX(ChiPro!$C$4:$BC$80,MATCH(Analise!$B$17,ChiPro!$B$4:$B$80,0),MATCH(Analise!AA15,ChiPro!$C$3:$BC$3,0)))="",NA(),(INDEX(ChiPro!$C$4:$BC$80,MATCH(Analise!$B$17,ChiPro!$B$4:$B$80,0),MATCH(Analise!AA15,ChiPro!$C$3:$BC$3,0)))/SUMIF(População!$B$4:$B$79,Analise!$B$17,População!$C$4:$C$79)*100000) -> 0.1324047932 | AB18: =IF((INDEX(ChiPro!$C$4:$BC$80,MATCH(Analise!$B$17,ChiPro!$B$4:$B$80,0),MATCH(Analise!AB15,ChiPro!$C$3:$BC$3,0)))="",NA(),(INDEX(ChiPro!$C$4:$BC$80,MATCH(Analise!$B$17,ChiPro!$B$4:$B$80,0),MATCH(Analise!AB15,ChiPro!$C$3:$BC$3,0)))/SUMIF(População!$B$4:$B$79,Analise!$B$17,População!$C$4:$C$79)*100000) -> 0.1765397243 | AC18: =IF((INDEX(ChiPro!$C$4:$BC$80,MATCH(Analise!$B$17,ChiPro!$B$4:$B$80,0),MATCH(Analise!AC15,ChiPro!$C$3:$BC$3,0)))="",NA(),(INDEX(ChiPro!$C$4:$BC$80,MATCH(Analise!$B$17,ChiPro!$B$4:$B$80,0),MATCH(Analise!AC15,ChiPro!$C$3:$BC$3,0)))/SUMIF(População!$B$4:$B$79,Analise!$B$17,População!$C$4:$C$79)*100000) -> 0.04413493108 | AD18: =IF((INDEX(ChiPro!$C$4:$BC$80,MATCH(Analise!$B$17,ChiPro!$B$4:$B$80,0),MATCH(Analise!AD15,ChiPro!$C$3:$BC$3,0)))="",NA(),(INDEX(ChiPro!$C$4:$BC$80,MATCH(Analise!$B$17,ChiPro!$B$4:$B$80,0),MATCH(Analise!AD15,ChiPro!$C$3:$BC$3,0)))/SUMIF(População!$B$4:$B$79,Analise!$B$17,População!$C$4:$C$79)*100000) -> 0.2648095865 | AE18: =IF((INDEX(ChiPro!$C$4:$BC$80,MATCH(Analise!$B$17,ChiPro!$B$4:$B$80,0),MATCH(Analise!AE15,ChiPro!$C$3:$BC$3,0)))="",NA(),(INDEX(ChiPro!$C$4:$BC$80,MATCH(Analise!$B$17,ChiPro!$B$4:$B$80,0),MATCH(Analise!AE15,ChiPro!$C$3:$BC$3,0)))/SUMIF(População!$B$4:$B$79,Analise!$B$17,População!$C$4:$C$79)*100000) -> 0.1765397243 | AF18: =IF((INDEX(ChiPro!$C$4:$BC$80,MATCH(Analise!$B$17,ChiPro!$B$4:$B$80,0),MATCH(Analise!AF15,ChiPro!$C$3:$BC$3,0)))="",NA(),(INDEX(ChiPro!$C$4:$BC$80,MATCH(Analise!$B$17,ChiPro!$B$4:$B$80,0),MATCH(Analise!AF15,ChiPro!$C$3:$BC$3,0)))/SUMIF(População!$B$4:$B$79,Analise!$B$17,População!$C$4:$C$79)*100000) -> 0.1324047932 | AG18: =IF((INDEX(ChiPro!$C$4:$BC$80,MATCH(Analise!$B$17,ChiPro!$B$4:$B$80,0),MATCH(Analise!AG15,ChiPro!$C$3:$BC$3,0)))="",NA(),(INDEX(ChiPro!$C$4:$BC$80,MATCH(Analise!$B$17,ChiPro!$B$4:$B$80,0),MATCH(Analise!AG15,ChiPro!$C$3:$BC$3,0)))/SUMIF(População!$B$4:$B$79,Analise!$B$17,População!$C$4:$C$79)*100000) -> 0.1765397243 | AH18: =IF((INDEX(ChiPro!$C$4:$BC$80,MATCH(Analise!$B$17,ChiPro!$B$4:$B$80,0),MATCH(Analise!AH15,ChiPro!$C$3:$BC$3,0)))="",NA(),(INDEX(ChiPro!$C$4:$BC$80,MATCH(Analise!$B$17,ChiPro!$B$4:$B$80,0),MATCH(Analise!AH15,ChiPro!$C$3:$BC$3,0)))/SUMIF(População!$B$4:$B$79,Analise!$B$17,População!$C$4:$C$79)*100000) -> 0.1324047932 | AI18: =IF((INDEX(ChiPro!$C$4:$BC$80,MATCH(Analise!$B$17,ChiPro!$B$4:$B$80,0),MATCH(Analise!AI15,ChiPro!$C$3:$BC$3,0)))="",NA(),(INDEX(ChiPro!$C$4:$BC$80,MATCH(Analise!$B$17,ChiPro!$B$4:$B$80,0),MATCH(Analise!AI15,ChiPro!$C$3:$BC$3,0)))/SUMIF(População!$B$4:$B$79,Analise!$B$17,População!$C$4:$C$79)*100000) -> 0.08826986215 | AJ18: =IF((INDEX(ChiPro!$C$4:$BC$80,MATCH(Analise!$B$17,ChiPro!$B$4:$B$80,0),MATCH(Analise!AJ15,ChiPro!$C$3:$BC$3,0)))="",NA(),(INDEX(ChiPro!$C$4:$BC$80,MATCH(Analise!$B$17,ChiPro!$B$4:$B$80,0),MATCH(Analise!AJ15,ChiPro!$C$3:$BC$3,0)))/SUMIF(População!$B$4:$B$79,Analise!$B$17,População!$C$4:$C$79)*100000) -> 0.08826986215 | AK18: =IF((INDEX(ChiPro!$C$4:$BC$80,MATCH(Analise!$B$17,ChiPro!$B$4:$B$80,0),MATCH(Analise!AK15,ChiPro!$C$3:$BC$3,0)))="",NA(),(INDEX(ChiPro!$C$4:$BC$80,MATCH(Analise!$B$17,ChiPro!$B$4:$B$80,0),MATCH(Analise!AK15,ChiPro!$C$3:$BC$3,0)))/SUMIF(População!$B$4:$B$79,Analise!$B$17,População!$C$4:$C$79)*100000) -> 0.1324047932 | AL18: =IF((INDEX(ChiPro!$C$4:$BC$80,MATCH(Analise!$B$17,ChiPro!$B$4:$B$80,0),MATCH(Analise!AL15,ChiPro!$C$3:$BC$3,0)))="",NA(),(INDEX(ChiPro!$C$4:$BC$80,MATCH(Analise!$B$17,ChiPro!$B$4:$B$80,0),MATCH(Analise!AL15,ChiPro!$C$3:$BC$3,0)))/SUMIF(População!$B$4:$B$79,Analise!$B$17,População!$C$4:$C$79)*100000) -> 0.08826986215 | AM18: =IF((INDEX(ChiPro!$C$4:$BC$80,MATCH(Analise!$B$17,ChiPro!$B$4:$B$80,0),MATCH(Analise!AM15,ChiPro!$C$3:$BC$3,0)))="",NA(),(INDEX(ChiPro!$C$4:$BC$80,MATCH(Analise!$B$17,ChiPro!$B$4:$B$80,0),MATCH(Analise!AM15,ChiPro!$C$3:$BC$3,0)))/SUMIF(População!$B$4:$B$79,Analise!$B$17,População!$C$4:$C$79)*100000) -> 0.1765397243 | AN18: =IF((INDEX(ChiPro!$C$4:$BC$80,MATCH(Analise!$B$17,ChiPro!$B$4:$B$80,0),MATCH(Analise!AN15,ChiPro!$C$3:$BC$3,0)))="",NA(),(INDEX(ChiPro!$C$4:$BC$80,MATCH(Analise!$B$17,ChiPro!$B$4:$B$80,0),MATCH(Analise!AN15,ChiPro!$C$3:$BC$3,0)))/SUMIF(População!$B$4:$B$79,Analise!$B$17,População!$C$4:$C$79)*100000) -> 0.3972143797 | AO18: =IF((INDEX(ChiPro!$C$4:$BC$80,MATCH(Analise!$B$17,ChiPro!$B$4:$B$80,0),MATCH(Analise!AO15,ChiPro!$C$3:$BC$3,0)))="",NA(),(INDEX(ChiPro!$C$4:$BC$80,MATCH(Analise!$B$17,ChiPro!$B$4:$B$80,0),MATCH(Analise!AO15,ChiPro!$C$3:$BC$3,0)))/SUMIF(População!$B$4:$B$79,Analise!$B$17,População!$C$4:$C$79)*100000) -> 0.04413493108 | AP18: =IF((INDEX(ChiPro!$C$4:$BC$80,MATCH(Analise!$B$17,ChiPro!$B$4:$B$80,0),MATCH(Analise!AP15,ChiPro!$C$3:$BC$3,0)))="",NA(),(INDEX(ChiPro!$C$4:$BC$80,MATCH(Analise!$B$17,ChiPro!$B$4:$B$80,0),MATCH(Analise!AP15,ChiPro!$C$3:$BC$3,0)))/SUMIF(População!$B$4:$B$79,Analise!$B$17,População!$C$4:$C$79)*100000) -> 0.1324047932 | AQ18: =IF((INDEX(ChiPro!$C$4:$BC$80,MATCH(Analise!$B$17,ChiPro!$B$4:$B$80,0),MATCH(Analise!AQ15,ChiPro!$C$3:$BC$3,0)))="",NA(),(INDEX(ChiPro!$C$4:$BC$80,MATCH(Analise!$B$17,ChiPro!$B$4:$B$80,0),MATCH(Analise!AQ15,ChiPro!$C$3:$BC$3,0)))/SUMIF(População!$B$4:$B$79,Analise!$B$17,População!$C$4:$C$79)*100000) -> 0.2206746554 | AR18: =IF((INDEX(ChiPro!$C$4:$BC$80,MATCH(Analise!$B$17,ChiPro!$B$4:$B$80,0),MATCH(Analise!AR15,ChiPro!$C$3:$BC$3,0)))="",NA(),(INDEX(ChiPro!$C$4:$BC$80,MATCH(Analise!$B$17,ChiPro!$B$4:$B$80,0),MATCH(Analise!AR15,ChiPro!$C$3:$BC$3,0)))/SUMIF(População!$B$4:$B$79,Analise!$B$17,População!$C$4:$C$79)*100000) -> 0.1324047932 | AS18: =IF((INDEX(ChiPro!$C$4:$BC$80,MATCH(Analise!$B$17,ChiPro!$B$4:$B$80,0),MATCH(Analise!AS15,ChiPro!$C$3:$BC$3,0)))="",NA(),(INDEX(ChiPro!$C$4:$BC$80,MATCH(Analise!$B$17,ChiPro!$B$4:$B$80,0),MATCH(Analise!AS15,ChiPro!$C$3:$BC$3,0)))/SUMIF(População!$B$4:$B$79,Analise!$B$17,População!$C$4:$C$79)*100000) -> 0 | AT18: =IF((INDEX(ChiPro!$C$4:$BC$80,MATCH(Analise!$B$17,ChiPro!$B$4:$B$80,0),MATCH(Analise!AT15,ChiPro!$C$3:$BC$3,0)))="",NA(),(INDEX(ChiPro!$C$4:$BC$80,MATCH(Analise!$B$17,ChiPro!$B$4:$B$80,0),MATCH(Analise!AT15,ChiPro!$C$3:$BC$3,0)))/SUMIF(População!$B$4:$B$79,Analise!$B$17,População!$C$4:$C$79)*100000) -> 0.04413493108 | AU18: =IF((INDEX(ChiPro!$C$4:$BC$80,MATCH(Analise!$B$17,ChiPro!$B$4:$B$80,0),MATCH(Analise!AU15,ChiPro!$C$3:$BC$3,0)))="",NA(),(INDEX(ChiPro!$C$4:$BC$80,MATCH(Analise!$B$17,ChiPro!$B$4:$B$80,0),MATCH(Analise!AU15,ChiPro!$C$3:$BC$3,0)))/SUMIF(População!$B$4:$B$79,Analise!$B$17,População!$C$4:$C$79)*100000) -> 0.04413493108 | AV18: =IF((INDEX(ChiPro!$C$4:$BC$80,MATCH(Analise!$B$17,ChiPro!$B$4:$B$80,0),MATCH(Analise!AV15,ChiPro!$C$3:$BC$3,0)))="",NA(),(INDEX(ChiPro!$C$4:$BC$80,MATCH(Analise!$B$17,ChiPro!$B$4:$B$80,0),MATCH(Analise!AV15,ChiPro!$C$3:$BC$3,0)))/SUMIF(População!$B$4:$B$79,Analise!$B$17,População!$C$4:$C$79)*100000) -> 0 | AW18: =IF((INDEX(ChiPro!$C$4:$BC$80,MATCH(Analise!$B$17,ChiPro!$B$4:$B$80,0),MATCH(Analise!AW15,ChiPro!$C$3:$BC$3,0)))="",NA(),(INDEX(ChiPro!$C$4:$BC$80,MATCH(Analise!$B$17,ChiPro!$B$4:$B$80,0),MATCH(Analise!AW15,ChiPro!$C$3:$BC$3,0)))/SUMIF(População!$B$4:$B$79,Analise!$B$17,População!$C$4:$C$79)*100000) -> 0.04413493108 | AX18: =IF((INDEX(ChiPro!$C$4:$BC$80,MATCH(Analise!$B$17,ChiPro!$B$4:$B$80,0),MATCH(Analise!AX15,ChiPro!$C$3:$BC$3,0)))="",NA(),(INDEX(ChiPro!$C$4:$BC$80,MATCH(Analise!$B$17,ChiPro!$B$4:$B$80,0),MATCH(Analise!AX15,ChiPro!$C$3:$BC$3,0)))/SUMIF(População!$B$4:$B$79,Analise!$B$17,População!$C$4:$C$79)*100000) -> 0 | AY18: =IF((INDEX(ChiPro!$C$4:$BC$80,MATCH(Analise!$B$17,ChiPro!$B$4:$B$80,0),MATCH(Analise!AY15,ChiPro!$C$3:$BC$3,0)))="",NA(),(INDEX(ChiPro!$C$4:$BC$80,MATCH(Analise!$B$17,ChiPro!$B$4:$B$80,0),MATCH(Analise!AY15,ChiPro!$C$3:$BC$3,0)))/SUMIF(População!$B$4:$B$79,Analise!$B$17,População!$C$4:$C$79)*100000) -> 0.04413493108 | AZ18: =IF((INDEX(ChiPro!$C$4:$BC$80,MATCH(Analise!$B$17,ChiPro!$B$4:$B$80,0),MATCH(Analise!AZ15,ChiPro!$C$3:$BC$3,0)))="",NA(),(INDEX(ChiPro!$C$4:$BC$80,MATCH(Analise!$B$17,ChiPro!$B$4:$B$80,0),MATCH(Analise!AZ15,ChiPro!$C$3:$BC$3,0)))/SUMIF(População!$B$4:$B$79,Analise!$B$17,População!$C$4:$C$79)*100000) -> 0 | BA18: =IF((INDEX(ChiPro!$C$4:$BC$80,MATCH(Analise!$B$17,ChiPro!$B$4:$B$80,0),MATCH(Analise!BA15,ChiPro!$C$3:$BC$3,0)))="",NA(),(INDEX(ChiPro!$C$4:$BC$80,MATCH(Analise!$B$17,ChiPro!$B$4:$B$80,0),MATCH(Analise!BA15,ChiPro!$C$3:$BC$3,0)))/SUMIF(População!$B$4:$B$79,Analise!$B$17,População!$C$4:$C$79)*100000) -> 0.04413493108 | BB18: =IF((INDEX(ChiPro!$C$4:$BC$80,MATCH(Analise!$B$17,ChiPro!$B$4:$B$80,0),MATCH(Analise!BB15,ChiPro!$C$3:$BC$3,0)))="",NA(),(INDEX(ChiPro!$C$4:$BC$80,MATCH(Analise!$B$17,ChiPro!$B$4:$B$80,0),MATCH(Analise!BB15,ChiPro!$C$3:$BC$3,0)))/SUMIF(População!$B$4:$B$79,Analise!$B$17,População!$C$4:$C$79)*100000) -> 0.04413493108 | BC18: =IF((INDEX(ChiPro!$C$4:$BC$80,MATCH(Analise!$B$17,ChiPro!$B$4:$B$80,0),MATCH(Analise!BC15,ChiPro!$C$3:$BC$3,0)))="",NA(),(INDEX(ChiPro!$C$4:$BC$80,MATCH(Analise!$B$17,ChiPro!$B$4:$B$80,0),MATCH(Analise!BC15,ChiPro!$C$3:$BC$3,0)))/SUMIF(População!$B$4:$B$79,Analise!$B$17,População!$C$4:$C$79)*100000) ->  | BD18: =IF((INDEX(ChiPro!$C$4:$BC$80,MATCH(Analise!$B$17,ChiPro!$B$4:$B$80,0),MATCH(Analise!BD15,ChiPro!$C$3:$BC$3,0)))="",NA(),(INDEX(ChiPro!$C$4:$BC$80,MATCH(Analise!$B$17,ChiPro!$B$4:$B$80,0),MATCH(Analise!BD15,ChiPro!$C$3:$BC$3,0)))/SUMIF(População!$B$4:$B$79,Analise!$B$17,População!$C$4:$C$79)*100000) -> 17.69810736
A20: Análise | C20: 01 | D20: 02 | E20: 03 | F20: 04 | G20: 05 | H20: 06 | I20: 07 | J20: 08 | K20: 09 | L20: 10 | M20: 11 | N20: 12 | O20: 13 | P20: 14 | Q20: 15 | R20: 16 | S20: 17 | T20: 18 | U20: 19 | V20: 20 | W20: 21 | X20: 22 | Y20: 23 | Z20: 24 | AA20: 25 | AB20: 26 | AC20: 27 | AD20: 28 | AE20: 29 | AF20: 30 | AG20: 31 | AH20: 32 | AI20: 33 | AJ20: 34 | AK20: 35 | AL20: 36 | AM20: 37 | AN20: 38 | AO20: 39 | AP20: 40 | AQ20: 41 | AR20: 42 | AS20: 43 | AT20: 44 | AU20: 45 | AV20: 46 | AW20: 47 | AX20: 48 | AY20: 49 | AZ20: 50 | BA20: 51 | BB20: 52 | BC20: 53
A21: Agravo/tx Incidência | B21: Mun Resid SE | C21: Semana 01 | D21: Semana 02 | E21: Semana 03 | F21: Semana 04 | G21: Semana 05 | H21: Semana 06 | I21: Semana 07 | J21: Semana 08 | K21: Semana 09 | L21: Semana 10 | M21: Semana 11 | N21: Semana 12 | O21: Semana 13 | P21: Semana 14 | Q21: Semana 15 | R21: Semana 16 | S21: Semana 17 | T21: Semana 18 | U21: Semana 19 | V21: Semana 20 | W21: Semana 21 | X21: Semana 22 | Y21: Semana 23 | Z21: Semana 24 | AA21: Semana 25 | AB21: Semana 26 | AC21: Semana 27 | AD21: Semana 28 | AE21: Semana 29 | AF21: Semana 30 | AG21: Semana 31 | AH21: Semana 32 | AI21: Semana 33 | AJ21: Semana 34 | AK21: Semana 35 | AL21: Semana 36 | AM21: Semana 37 | AN21: Semana 38 | AO21: Semana 39 | AP21: Semana 40 | AQ21: Semana 41 | AR21: Semana 42 | AS21: Semana 43 | AT21: Semana 44 | AU21: Semana 45 | AV21: Semana 46 | AW21: Semana 47 | AX21: Semana 48 | AY21: Semana 49 | AZ21: Semana 50 | BA21: Semana 51 | BB21: Semana 52 | BC21: Semana 53 | BD21: Total
A22: Zika | B22: =PainelArbovirose!$B$4 -> Sergipe | C22: =IF(PainelArbovirose!$B$5=Analise!$A$2,C4,IF(PainelArbovirose!$B$5=Analise!$A$8,C10,C16)) -> 0 | D22: =IF(PainelArbovirose!$B$5=Analise!$A$2,D4,IF(PainelArbovirose!$B$5=Analise!$A$8,D10,D16)) -> 0 | E22: =IF(PainelArbovirose!$B$5=Analise!$A$2,E4,IF(PainelArbovirose!$B$5=Analise!$A$8,E10,E16)) -> 0 | F22: =IF(PainelArbovirose!$B$5=Analise!$A$2,F4,IF(PainelArbovirose!$B$5=Analise!$A$8,F10,F16)) -> 0 | G22: =IF(PainelArbovirose!$B$5=Analise!$A$2,G4,IF(PainelArbovirose!$B$5=Analise!$A$8,G10,G16)) -> 0 | H22: =IF(PainelArbovirose!$B$5=Analise!$A$2,H4,IF(PainelArbovirose!$B$5=Analise!$A$8,H10,H16)) -> 0 | I22: =IF(PainelArbovirose!$B$5=Analise!$A$2,I4,IF(PainelArbovirose!$B$5=Analise!$A$8,I10,I16)) -> 0 | J22: =IF(PainelArbovirose!$B$5=Analise!$A$2,J4,IF(PainelArbovirose!$B$5=Analise!$A$8,J10,J16)) -> 0.04389222177 | K22: =IF(PainelArbovirose!$B$5=Analise!$A$2,K4,IF(PainelArbovirose!$B$5=Analise!$A$8,K10,K16)) -> 0 | L22: =IF(PainelArbovirose!$B$5=Analise!$A$2,L4,IF(PainelArbovirose!$B$5=Analise!$A$8,L10,L16)) -> 0.04389222177 | M22: =IF(PainelArbovirose!$B$5=Analise!$A$2,M4,IF(PainelArbovirose!$B$5=Analise!$A$8,M10,M16)) -> 0 | N22: =IF(PainelArbovirose!$B$5=Analise!$A$2,N4,IF(PainelArbovirose!$B$5=Analise!$A$8,N10,N16)) -> 0 | O22: =IF(PainelArbovirose!$B$5=Analise!$A$2,O4,IF(PainelArbovirose!$B$5=Analise!$A$8,O10,O16)) -> 0 | P22: =IF(PainelArbovirose!$B$5=Analise!$A$2,P4,IF(PainelArbovirose!$B$5=Analise!$A$8,P10,P16)) -> 0.08778444354 | Q22: =IF(PainelArbovirose!$B$5=Analise!$A$2,Q4,IF(PainelArbovirose!$B$5=Analise!$A$8,Q10,Q16)) -> 0.04389222177 | R22: =IF(PainelArbovirose!$B$5=Analise!$A$2,R4,IF(PainelArbovirose!$B$5=Analise!$A$8,R10,R16)) -> 0.04389222177 | S22: =IF(PainelArbovirose!$B$5=Analise!$A$2,S4,IF(PainelArbovirose!$B$5=Analise!$A$8,S10,S16)) -> 0 | T22: =IF(PainelArbovirose!$B$5=Analise!$A$2,T4,IF(PainelArbovirose!$B$5=Analise!$A$8,T10,T16)) -> 0.04389222177 | U22: =IF(PainelArbovirose!$B$5=Analise!$A$2,U4,IF(PainelArbovirose!$B$5=Analise!$A$8,U10,U16)) -> 0.08778444354 | V22: =IF(PainelArbovirose!$B$5=Analise!$A$2,V4,IF(PainelArbovirose!$B$5=Analise!$A$8,V10,V16)) -> 0 | W22: =IF(PainelArbovirose!$B$5=Analise!$A$2,W4,IF(PainelArbovirose!$B$5=Analise!$A$8,W10,W16)) -> 0 | X22: =IF(PainelArbovirose!$B$5=Analise!$A$2,X4,IF(PainelArbovirose!$B$5=Analise!$A$8,X10,X16)) -> 0.04389222177 | Y22: =IF(PainelArbovirose!$B$5=Analise!$A$2,Y4,IF(PainelArbovirose!$B$5=Analise!$A$8,Y10,Y16)) -> 0.04389222177 | Z22: =IF(PainelArbovirose!$B$5=Analise!$A$2,Z4,IF(PainelArbovirose!$B$5=Analise!$A$8,Z10,Z16)) -> 0.04389222177 | AA22: =IF(PainelArbovirose!$B$5=Analise!$A$2,AA4,IF(PainelArbovirose!$B$5=Analise!$A$8,AA10,AA16)) -> 0.04389222177 | AB22: =IF(PainelArbovirose!$B$5=Analise!$A$2,AB4,IF(PainelArbovirose!$B$5=Analise!$A$8,AB10,AB16)) -> 0.08778444354 | AC22: =IF(PainelArbovirose!$B$5=Analise!$A$2,AC4,IF(PainelArbovirose!$B$5=Analise!$A$8,AC10,AC16)) -> 0 | AD22: =IF(PainelArbovirose!$B$5=Analise!$A$2,AD4,IF(PainelArbovirose!$B$5=Analise!$A$8,AD10,AD16)) -> 0.04389222177 | AE22: =IF(PainelArbovirose!$B$5=Analise!$A$2,AE4,IF(PainelArbovirose!$B$5=Analise!$A$8,AE10,AE16)) -> 0.04389222177 | AF22: =IF(PainelArbovirose!$B$5=Analise!$A$2,AF4,IF(PainelArbovirose!$B$5=Analise!$A$8,AF10,AF16)) -> 0.1316766653 | AG22: =IF(PainelArbovirose!$B$5=Analise!$A$2,AG4,IF(PainelArbovirose!$B$5=Analise!$A$8,AG10,AG16)) -> 0.2633533306 | AH22: =IF(PainelArbovirose!$B$5=Analise!$A$2,AH4,IF(PainelArbovirose!$B$5=Analise!$A$8,AH10,AH16)) -> 0.2194611089 | AI22: =IF(PainelArbovirose!$B$5=Analise!$A$2,AI4,IF(PainelArbovirose!$B$5=Analise!$A$8,AI10,AI16)) -> 0.4389222177 | AJ22: =IF(PainelArbovirose!$B$5=Analise!$A$2,AJ4,IF(PainelArbovirose!$B$5=Analise!$A$8,AJ10,AJ16)) -> 0.04389222177 | AK22: =IF(PainelArbovirose!$B$5=Analise!$A$2,AK4,IF(PainelArbovirose!$B$5=Analise!$A$8,AK10,AK16)) -> 0.08778444354 | AL22: =IF(PainelArbovirose!$B$5=Analise!$A$2,AL4,IF(PainelArbovirose!$B$5=Analise!$A$8,AL10,AL16)) ->  | AM22: =IF(PainelArbovirose!$B$5=Analise!$A$2,AM4,IF(PainelArbovirose!$B$5=Analise!$A$8,AM10,AM16)) ->  | AN22: =IF(PainelArbovirose!$B$5=Analise!$A$2,AN4,IF(PainelArbovirose!$B$5=Analise!$A$8,AN10,AN16)) ->  | AO22: =IF(PainelArbovirose!$B$5=Analise!$A$2,AO4,IF(PainelArbovirose!$B$5=Analise!$A$8,AO10,AO16)) ->  | AP22: =IF(PainelArbovirose!$B$5=Analise!$A$2,AP4,IF(PainelArbovirose!$B$5=Analise!$A$8,AP10,AP16)) ->  | AQ22: =IF(PainelArbovirose!$B$5=Analise!$A$2,AQ4,IF(PainelArbovirose!$B$5=Analise!$A$8,AQ10,AQ16)) ->  | AR22: =IF(PainelArbovirose!$B$5=Analise!$A$2,AR4,IF(PainelArbovirose!$B$5=Analise!$A$8,AR10,AR16)) ->  | AS22: =IF(PainelArbovirose!$B$5=Analise!$A$2,AS4,IF(PainelArbovirose!$B$5=Analise!$A$8,AS10,AS16)) ->  | AT22: =IF(PainelArbovirose!$B$5=Analise!$A$2,AT4,IF(PainelArbovirose!$B$5=Analise!$A$8,AT10,AT16)) ->  | AU22: =IF(PainelArbovirose!$B$5=Analise!$A$2,AU4,IF(PainelArbovirose!$B$5=Analise!$A$8,AU10,AU16)) ->  | AV22: =IF(PainelArbovirose!$B$5=Analise!$A$2,AV4,IF(PainelArbovirose!$B$5=Analise!$A$8,AV10,AV16)) ->  | AW22: =IF(PainelArbovirose!$B$5=Analise!$A$2,AW4,IF(PainelArbovirose!$B$5=Analise!$A$8,AW10,AW16)) ->  | AX22: =IF(PainelArbovirose!$B$5=Analise!$A$2,AX4,IF(PainelArbovirose!$B$5=Analise!$A$8,AX10,AX16)) ->  | AY22: =IF(PainelArbovirose!$B$5=Analise!$A$2,AY4,IF(PainelArbovirose!$B$5=Analise!$A$8,AY10,AY16)) ->  | AZ22: =IF(PainelArbovirose!$B$5=Analise!$A$2,AZ4,IF(PainelArbovirose!$B$5=Analise!$A$8,AZ10,AZ16)) ->  | BA22: =IF(PainelArbovirose!$B$5=Analise!$A$2,BA4,IF(PainelArbovirose!$B$5=Analise!$A$8,BA10,BA16)) ->  | BB22: =IF(PainelArbovirose!$B$5=Analise!$A$2,BB4,IF(PainelArbovirose!$B$5=Analise!$A$8,BB10,BB16)) ->  | BC22: =IF(PainelArbovirose!$B$5=Analise!$A$2,BC4,IF(PainelArbovirose!$B$5=Analise!$A$8,BC10,BC16)) ->  | BD22: =IF(PainelArbovirose!$B$5=Analise!$A$2,BD4,IF(PainelArbovirose!$B$5=Analise!$A$8,BD10,BD16)) -> 1.931257758
A23: Dengue | B23: =PainelArbovirose!$B$4 -> Sergipe | C23: =IF(PainelArbovirose!$B$5=Analise!$A$2,C5,IF(PainelArbovirose!$B$5=Analise!$A$8,C11,C17)) -> 0.1316766653 | D23: =IF(PainelArbovirose!$B$5=Analise!$A$2,D5,IF(PainelArbovirose!$B$5=Analise!$A$8,D11,D17)) -> 0.2633533306 | E23: =IF(PainelArbovirose!$B$5=Analise!$A$2,E5,IF(PainelArbovirose!$B$5=Analise!$A$8,E11,E17)) -> 0.2194611089 | F23: =IF(PainelArbovirose!$B$5=Analise!$A$2,F5,IF(PainelArbovirose!$B$5=Analise!$A$8,F11,F17)) -> 0.2194611089 | G23: =IF(PainelArbovirose!$B$5=Analise!$A$2,G5,IF(PainelArbovirose!$B$5=Analise!$A$8,G11,G17)) -> 0.08778444354 | H23: =IF(PainelArbovirose!$B$5=Analise!$A$2,H5,IF(PainelArbovirose!$B$5=Analise!$A$8,H11,H17)) -> 0.1755688871 | I23: =IF(PainelArbovirose!$B$5=Analise!$A$2,I5,IF(PainelArbovirose!$B$5=Analise!$A$8,I11,I17)) -> 0.3072455524 | J23: =IF(PainelArbovirose!$B$5=Analise!$A$2,J5,IF(PainelArbovirose!$B$5=Analise!$A$8,J11,J17)) -> 0.1755688871 | K23: =IF(PainelArbovirose!$B$5=Analise!$A$2,K5,IF(PainelArbovirose!$B$5=Analise!$A$8,K11,K17)) -> 0.2633533306 | L23: =IF(PainelArbovirose!$B$5=Analise!$A$2,L5,IF(PainelArbovirose!$B$5=Analise!$A$8,L11,L17)) -> 0.5267066613 | M23: =IF(PainelArbovirose!$B$5=Analise!$A$2,M5,IF(PainelArbovirose!$B$5=Analise!$A$8,M11,M17)) -> 0.8778444354 | N23: =IF(PainelArbovirose!$B$5=Analise!$A$2,N5,IF(PainelArbovirose!$B$5=Analise!$A$8,N11,N17)) -> 0.4828144395 | O23: =IF(PainelArbovirose!$B$5=Analise!$A$2,O5,IF(PainelArbovirose!$B$5=Analise!$A$8,O11,O17)) -> 0.6583833266 | P23: =IF(PainelArbovirose!$B$5=Analise!$A$2,P5,IF(PainelArbovirose!$B$5=Analise!$A$8,P11,P17)) -> 0.9217366572 | Q23: =IF(PainelArbovirose!$B$5=Analise!$A$2,Q5,IF(PainelArbovirose!$B$5=Analise!$A$8,Q11,Q17)) -> 1.536227762 | R23: =IF(PainelArbovirose!$B$5=Analise!$A$2,R5,IF(PainelArbovirose!$B$5=Analise!$A$8,R11,R17)) -> 1.448443318 | S23: =IF(PainelArbovirose!$B$5=Analise!$A$2,S5,IF(PainelArbovirose!$B$5=Analise!$A$8,S11,S17)) -> 1.887365536 | T23: =IF(PainelArbovirose!$B$5=Analise!$A$2,T5,IF(PainelArbovirose!$B$5=Analise!$A$8,T11,T17)) -> 3.862515516 | U23: =IF(PainelArbovirose!$B$5=Analise!$A$2,U5,IF(PainelArbovirose!$B$5=Analise!$A$8,U11,U17)) -> 4.564791064 | V23: =IF(PainelArbovirose!$B$5=Analise!$A$2,V5,IF(PainelArbovirose!$B$5=Analise!$A$8,V11,V17)) -> 6.715509931 | W23: =IF(PainelArbovirose!$B$5=Analise!$A$2,W5,IF(PainelArbovirose!$B$5=Analise!$A$8,W11,W17)) -> 7.505569923 | X23: =IF(PainelArbovirose!$B$5=Analise!$A$2,X5,IF(PainelArbovirose!$B$5=Analise!$A$8,X11,X17)) -> 7.417785479 | Y23: =IF(PainelArbovirose!$B$5=Analise!$A$2,Y5,IF(PainelArbovirose!$B$5=Analise!$A$8,Y11,Y17)) -> 8.16395325 | Z23: =IF(PainelArbovirose!$B$5=Analise!$A$2,Z5,IF(PainelArbovirose!$B$5=Analise!$A$8,Z11,Z17)) -> 9.349043237 | AA23: =IF(PainelArbovirose!$B$5=Analise!$A$2,AA5,IF(PainelArbovirose!$B$5=Analise!$A$8,AA11,AA17)) -> 11.71922321 | AB23: =IF(PainelArbovirose!$B$5=Analise!$A$2,AB5,IF(PainelArbovirose!$B$5=Analise!$A$8,AB11,AB17)) -> 17.68856537 | AC23: =IF(PainelArbovirose!$B$5=Analise!$A$2,AC5,IF(PainelArbovirose!$B$5=Analise!$A$8,AC11,AC17)) -> 18.87365536 | AD23: =IF(PainelArbovirose!$B$5=Analise!$A$2,AD5,IF(PainelArbovirose!$B$5=Analise!$A$8,AD11,AD17)) -> 17.82024204 | AE23: =IF(PainelArbovirose!$B$5=Analise!$A$2,AE5,IF(PainelArbovirose!$B$5=Analise!$A$8,AE11,AE17)) -> 15.62563095 | AF23: =IF(PainelArbovirose!$B$5=Analise!$A$2,AF5,IF(PainelArbovirose!$B$5=Analise!$A$8,AF11,AF17)) -> 21.59497311 | AG23: =IF(PainelArbovirose!$B$5=Analise!$A$2,AG5,IF(PainelArbovirose!$B$5=Analise!$A$8,AG11,AG17)) -> 18.7419787 | AH23: =IF(PainelArbovirose!$B$5=Analise!$A$2,AH5,IF(PainelArbovirose!$B$5=Analise!$A$8,AH11,AH17)) -> 13.9138343 | AI23: =IF(PainelArbovirose!$B$5=Analise!$A$2,AI5,IF(PainelArbovirose!$B$5=Analise!$A$8,AI11,AI17)) -> 12.59706765 | AJ23: =IF(PainelArbovirose!$B$5=Analise!$A$2,AJ5,IF(PainelArbovirose!$B$5=Analise!$A$8,AJ11,AJ17)) -> 13.56269653 | AK23: =IF(PainelArbovirose!$B$5=Analise!$A$2,AK5,IF(PainelArbovirose!$B$5=Analise!$A$8,AK11,AK17)) -> 9.700181012 | AL23: =IF(PainelArbovirose!$B$5=Analise!$A$2,AL5,IF(PainelArbovirose!$B$5=Analise!$A$8,AL11,AL17)) ->  | AM23: =IF(PainelArbovirose!$B$5=Analise!$A$2,AM5,IF(PainelArbovirose!$B$5=Analise!$A$8,AM11,AM17)) ->  | AN23: =IF(PainelArbovirose!$B$5=Analise!$A$2,AN5,IF(PainelArbovirose!$B$5=Analise!$A$8,AN11,AN17)) ->  | AO23: =IF(PainelArbovirose!$B$5=Analise!$A$2,AO5,IF(PainelArbovirose!$B$5=Analise!$A$8,AO11,AO17)) ->  | AP23: =IF(PainelArbovirose!$B$5=Analise!$A$2,AP5,IF(PainelArbovirose!$B$5=Analise!$A$8,AP11,AP17)) ->  | AQ23: =IF(PainelArbovirose!$B$5=Analise!$A$2,AQ5,IF(PainelArbovirose!$B$5=Analise!$A$8,AQ11,AQ17)) ->  | AR23: =IF(PainelArbovirose!$B$5=Analise!$A$2,AR5,IF(PainelArbovirose!$B$5=Analise!$A$8,AR11,AR17)) ->  | AS23: =IF(PainelArbovirose!$B$5=Analise!$A$2,AS5,IF(PainelArbovirose!$B$5=Analise!$A$8,AS11,AS17)) ->  | AT23: =IF(PainelArbovirose!$B$5=Analise!$A$2,AT5,IF(PainelArbovirose!$B$5=Analise!$A$8,AT11,AT17)) ->  | AU23: =IF(PainelArbovirose!$B$5=Analise!$A$2,AU5,IF(PainelArbovirose!$B$5=Analise!$A$8,AU11,AU17)) ->  | AV23: =IF(PainelArbovirose!$B$5=Analise!$A$2,AV5,IF(PainelArbovirose!$B$5=Analise!$A$8,AV11,AV17)) ->  | AW23: =IF(PainelArbovirose!$B$5=Analise!$A$2,AW5,IF(PainelArbovirose!$B$5=Analise!$A$8,AW11,AW17)) ->  | AX23: =IF(PainelArbovirose!$B$5=Analise!$A$2,AX5,IF(PainelArbovirose!$B$5=Analise!$A$8,AX11,AX17)) ->  | AY23: =IF(PainelArbovirose!$B$5=Analise!$A$2,AY5,IF(PainelArbovirose!$B$5=Analise!$A$8,AY11,AY17)) ->  | AZ23: =IF(PainelArbovirose!$B$5=Analise!$A$2,AZ5,IF(PainelArbovirose!$B$5=Analise!$A$8,AZ11,AZ17)) ->  | BA23: =IF(PainelArbovirose!$B$5=Analise!$A$2,BA5,IF(PainelArbovirose!$B$5=Analise!$A$8,BA11,BA17)) ->  | BB23: =IF(PainelArbovirose!$B$5=Analise!$A$2,BB5,IF(PainelArbovirose!$B$5=Analise!$A$8,BB11,BB17)) ->  | BC23: =IF(PainelArbovirose!$B$5=Analise!$A$2,BC5,IF(PainelArbovirose!$B$5=Analise!$A$8,BC11,BC17)) ->  | BD23: =IF(PainelArbovirose!$B$5=Analise!$A$2,BD5,IF(PainelArbovirose!$B$5=Analise!$A$8,BD11,BD17)) -> 229.6002121
A24: Chikungunya | B24: =PainelArbovirose!$B$4 -> Sergipe | C24: =IF(PainelArbovirose!$B$5=Analise!$A$2,C6,IF(PainelArbovirose!$B$5=Analise!$A$8,C12,C18)) -> 0.04389222177 | D24: =IF(PainelArbovirose!$B$5=Analise!$A$2,D6,IF(PainelArbovirose!$B$5=Analise!$A$8,D12,D18)) -> 0 | E24: =IF(PainelArbovirose!$B$5=Analise!$A$2,E6,IF(PainelArbovirose!$B$5=Analise!$A$8,E12,E18)) -> 0.04389222177 | F24: =IF(PainelArbovirose!$B$5=Analise!$A$2,F6,IF(PainelArbovirose!$B$5=Analise!$A$8,F12,F18)) -> 0.04389222177 | G24: =IF(PainelArbovirose!$B$5=Analise!$A$2,G6,IF(PainelArbovirose!$B$5=Analise!$A$8,G12,G18)) -> 0 | H24: =IF(PainelArbovirose!$B$5=Analise!$A$2,H6,IF(PainelArbovirose!$B$5=Analise!$A$8,H12,H18)) -> 0.08778444354 | I24: =IF(PainelArbovirose!$B$5=Analise!$A$2,I6,IF(PainelArbovirose!$B$5=Analise!$A$8,I12,I18)) -> 0 | J24: =IF(PainelArbovirose!$B$5=Analise!$A$2,J6,IF(PainelArbovirose!$B$5=Analise!$A$8,J12,J18)) -> 0.08778444354 | K24: =IF(PainelArbovirose!$B$5=Analise!$A$2,K6,IF(PainelArbovirose!$B$5=Analise!$A$8,K12,K18)) -> 0 | L24: =IF(PainelArbovirose!$B$5=Analise!$A$2,L6,IF(PainelArbovirose!$B$5=Analise!$A$8,L12,L18)) -> 0 | M24: =IF(PainelArbovirose!$B$5=Analise!$A$2,M6,IF(PainelArbovirose!$B$5=Analise!$A$8,M12,M18)) -> 0 | N24: =IF(PainelArbovirose!$B$5=Analise!$A$2,N6,IF(PainelArbovirose!$B$5=Analise!$A$8,N12,N18)) -> 0.04389222177 | O24: =IF(PainelArbovirose!$B$5=Analise!$A$2,O6,IF(PainelArbovirose!$B$5=Analise!$A$8,O12,O18)) -> 0.08778444354 | P24: =IF(PainelArbovirose!$B$5=Analise!$A$2,P6,IF(PainelArbovirose!$B$5=Analise!$A$8,P12,P18)) -> 0.04389222177 | Q24: =IF(PainelArbovirose!$B$5=Analise!$A$2,Q6,IF(PainelArbovirose!$B$5=Analise!$A$8,Q12,Q18)) -> 0 | R24: =IF(PainelArbovirose!$B$5=Analise!$A$2,R6,IF(PainelArbovirose!$B$5=Analise!$A$8,R12,R18)) -> 0 | S24: =IF(PainelArbovirose!$B$5=Analise!$A$2,S6,IF(PainelArbovirose!$B$5=Analise!$A$8,S12,S18)) -> 0 | T24: =IF(PainelArbovirose!$B$5=Analise!$A$2,T6,IF(PainelArbovirose!$B$5=Analise!$A$8,T12,T18)) -> 0 | U24: =IF(PainelArbovirose!$B$5=Analise!$A$2,U6,IF(PainelArbovirose!$B$5=Analise!$A$8,U12,U18)) -> 0 | V24: =IF(PainelArbovirose!$B$5=Analise!$A$2,V6,IF(PainelArbovirose!$B$5=Analise!$A$8,V12,V18)) -> 0.1316766653 | W24: =IF(PainelArbovirose!$B$5=Analise!$A$2,W6,IF(PainelArbovirose!$B$5=Analise!$A$8,W12,W18)) -> 0.1755688871 | X24: =IF(PainelArbovirose!$B$5=Analise!$A$2,X6,IF(PainelArbovirose!$B$5=Analise!$A$8,X12,X18)) -> 0.04389222177 | Y24: =IF(PainelArbovirose!$B$5=Analise!$A$2,Y6,IF(PainelArbovirose!$B$5=Analise!$A$8,Y12,Y18)) -> 0 | Z24: =IF(PainelArbovirose!$B$5=Analise!$A$2,Z6,IF(PainelArbovirose!$B$5=Analise!$A$8,Z12,Z18)) -> 0.3072455524 | AA24: =IF(PainelArbovirose!$B$5=Analise!$A$2,AA6,IF(PainelArbovirose!$B$5=Analise!$A$8,AA12,AA18)) -> 0.3950299959 | AB24: =IF(PainelArbovirose!$B$5=Analise!$A$2,AB6,IF(PainelArbovirose!$B$5=Analise!$A$8,AB12,AB18)) -> 0.1316766653 | AC24: =IF(PainelArbovirose!$B$5=Analise!$A$2,AC6,IF(PainelArbovirose!$B$5=Analise!$A$8,AC12,AC18)) -> 0.2194611089 | AD24: =IF(PainelArbovirose!$B$5=Analise!$A$2,AD6,IF(PainelArbovirose!$B$5=Analise!$A$8,AD12,AD18)) -> 0.6144911048 | AE24: =IF(PainelArbovirose!$B$5=Analise!$A$2,AE6,IF(PainelArbovirose!$B$5=Analise!$A$8,AE12,AE18)) -> 0.8778444354 | AF24: =IF(PainelArbovirose!$B$5=Analise!$A$2,AF6,IF(PainelArbovirose!$B$5=Analise!$A$8,AF12,AF18)) -> 0.7461677701 | AG24: =IF(PainelArbovirose!$B$5=Analise!$A$2,AG6,IF(PainelArbovirose!$B$5=Analise!$A$8,AG12,AG18)) -> 0.8339522137 | AH24: =IF(PainelArbovirose!$B$5=Analise!$A$2,AH6,IF(PainelArbovirose!$B$5=Analise!$A$8,AH12,AH18)) -> 1.360658875 | AI24: =IF(PainelArbovirose!$B$5=Analise!$A$2,AI6,IF(PainelArbovirose!$B$5=Analise!$A$8,AI12,AI18)) -> 1.053413323 | AJ24: =IF(PainelArbovirose!$B$5=Analise!$A$2,AJ6,IF(PainelArbovirose!$B$5=Analise!$A$8,AJ12,AJ18)) -> 1.185089988 | AK24: =IF(PainelArbovirose!$B$5=Analise!$A$2,AK6,IF(PainelArbovirose!$B$5=Analise!$A$8,AK12,AK18)) -> 1.316766653 | AL24: =IF(PainelArbovirose!$B$5=Analise!$A$2,AL6,IF(PainelArbovirose!$B$5=Analise!$A$8,AL12,AL18)) ->  | AM24: =IF(PainelArbovirose!$B$5=Analise!$A$2,AM6,IF(PainelArbovirose!$B$5=Analise!$A$8,AM12,AM18)) ->  | AN24: =IF(PainelArbovirose!$B$5=Analise!$A$2,AN6,IF(PainelArbovirose!$B$5=Analise!$A$8,AN12,AN18)) ->  | AO24: =IF(PainelArbovirose!$B$5=Analise!$A$2,AO6,IF(PainelArbovirose!$B$5=Analise!$A$8,AO12,AO18)) ->  | AP24: =IF(PainelArbovirose!$B$5=Analise!$A$2,AP6,IF(PainelArbovirose!$B$5=Analise!$A$8,AP12,AP18)) ->  | AQ24: =IF(PainelArbovirose!$B$5=Analise!$A$2,AQ6,IF(PainelArbovirose!$B$5=Analise!$A$8,AQ12,AQ18)) ->  | AR24: =IF(PainelArbovirose!$B$5=Analise!$A$2,AR6,IF(PainelArbovirose!$B$5=Analise!$A$8,AR12,AR18)) ->  | AS24: =IF(PainelArbovirose!$B$5=Analise!$A$2,AS6,IF(PainelArbovirose!$B$5=Analise!$A$8,AS12,AS18)) ->  | AT24: =IF(PainelArbovirose!$B$5=Analise!$A$2,AT6,IF(PainelArbovirose!$B$5=Analise!$A$8,AT12,AT18)) ->  | AU24: =IF(PainelArbovirose!$B$5=Analise!$A$2,AU6,IF(PainelArbovirose!$B$5=Analise!$A$8,AU12,AU18)) ->  | AV24: =IF(PainelArbovirose!$B$5=Analise!$A$2,AV6,IF(PainelArbovirose!$B$5=Analise!$A$8,AV12,AV18)) ->  | AW24: =IF(PainelArbovirose!$B$5=Analise!$A$2,AW6,IF(PainelArbovirose!$B$5=Analise!$A$8,AW12,AW18)) ->  | AX24: =IF(PainelArbovirose!$B$5=Analise!$A$2,AX6,IF(PainelArbovirose!$B$5=Analise!$A$8,AX12,AX18)) ->  | AY24: =IF(PainelArbovirose!$B$5=Analise!$A$2,AY6,IF(PainelArbovirose!$B$5=Analise!$A$8,AY12,AY18)) ->  | AZ24: =IF(PainelArbovirose!$B$5=Analise!$A$2,AZ6,IF(PainelArbovirose!$B$5=Analise!$A$8,AZ12,AZ18)) ->  | BA24: =IF(PainelArbovirose!$B$5=Analise!$A$2,BA6,IF(PainelArbovirose!$B$5=Analise!$A$8,BA12,BA18)) ->  | BB24: =IF(PainelArbovirose!$B$5=Analise!$A$2,BB6,IF(PainelArbovirose!$B$5=Analise!$A$8,BB12,BB18)) ->  | BC24: =IF(PainelArbovirose!$B$5=Analise!$A$2,BC6,IF(PainelArbovirose!$B$5=Analise!$A$8,BC12,BC18)) ->  | BD24: =IF(PainelArbovirose!$B$5=Analise!$A$2,BD6,IF(PainelArbovirose!$B$5=Analise!$A$8,BD12,BD18)) -> 9.875749899
A26: DVS/SINAN (Banco de 02/10/2019), sujeitos a alteração. Projeção Pop. 2018-IBGE | C26: 01 | D26: 02 | E26: 03 | F26: 04 | G26: 05 | H26: 06 | I26: 07 | J26: 08 | K26: 09 | L26: 10 | M26: 11 | N26: 12 | O26: 13 | P26: 14 | Q26: 15 | R26: 16 | S26: 17 | T26: 18 | U26: 19 | V26: 20 | W26: 21 | X26: 22 | Y26: 23 | Z26: 24 | AA26: 25 | AB26: 26 | AC26: 27 | AD26: 28 | AE26: 29 | AF26: 30 | AG26: 31 | AH26: 32 | AI26: 33 | AJ26: 34 | AK26: 35 | AL26: 36 | AM26: 37 | AN26: 38 | AO26: 39 | AP26: 40 | AQ26: 41 | AR26: 42 | AS26: 43 | AT26: 44 | AU26: 45 | AV26: 46 | AW26: 47 | AX26: 48 | AY26: 49 | AZ26: 50 | BA26: 51 | BB26: 52 | BC26: 53
A27: Agravo/tx Incidência | B27: Mun Resid SE | C27: Semana 01 | D27: Semana 02 | E27: Semana 03 | F27: Semana 04 | G27: Semana 05 | H27: Semana 06 | I27: Semana 07 | J27: Semana 08 | K27: Semana 09 | L27: Semana 10 | M27: Semana 11 | N27: Semana 12 | O27: Semana 13 | P27: Semana 14 | Q27: Semana 15 | R27: Semana 16 | S27: Semana 17 | T27: Semana 18 | U27: Semana 19 | V27: Semana 20 | W27: Semana 21 | X27: Semana 22 | Y27: Semana 23 | Z27: Semana 24 | AA27: Semana 25 | AB27: Semana 26 | AC27: Semana 27 | AD27: Semana 28 | AE27: Semana 29 | AF27: Semana 30 | AG27: Semana 31 | AH27: Semana 32 | AI27: Semana 33 | AJ27: Semana 34 | AK27: Semana 35 | AL27: Semana 36 | AM27: Semana 37 | AN27: Semana 38 | AO27: Semana 39 | AP27: Semana 40 | AQ27: Semana 41 | AR27: Semana 42 | AS27: Semana 43 | AT27: Semana 44 | AU27: Semana 45 | AV27: Semana 46 | AW27: Semana 47 | AX27: Semana 48 | AY27: Semana 49 | AZ27: Semana 50 | BA27: Semana 51 | BB27: Semana 52 | BC27: Semana 53 | BD27: Total
A28: =PainelArbovirose!$H$4 -> 0 | B28: =PainelArbovirose!$B$4 -> Sergipe | C28: =INDEX($C$16:$BD$18,MATCH($A$28,Arbovirose,0),MATCH(C27,$C$15:$BD$15,0)) ->  | AI28: =INDEX($C$16:$BD$18,MATCH($A$28,Arbovirose,0),MATCH(AI27,$C$15:$BD$15,0)) -> 
A30: 2019
A31: MUNICIPIO | B31: 1º C I C L O | C31: 2 º C I C L O | D31: 3º C I C L O | E31: 4º C I C L O | F31: 5º C I C L O | G31: 6º C I C L O | H31: CICLO TRABALHADO | I31: CICLO ATUAL | J31: SEMANA ATUAL | K31: LIRAa ATUAL | L31: Imóveis Programados
A32: =PainelArbovirose!$B$4 -> Sergipe | B32: =INDEX(Ciclos_2019!$E$5:$T$80,MATCH(Analise!$A$32,Ciclos_2019!$B$5:$B$80,0),MATCH(Analise!B31,Ciclos_2019!$E$3:$T$3,0)) -> 859747 | C32: =INDEX(Ciclos_2019!$E$5:$T$80,MATCH(Analise!$A$32,Ciclos_2019!$B$5:$B$80,0),MATCH(Analise!C31,Ciclos_2019!$E$3:$T$3,0)) -> 875607 | D32: =INDEX(Ciclos_2019!$E$5:$T$80,MATCH(Analise!$A$32,Ciclos_2019!$B$5:$B$80,0),MATCH(Analise!D31,Ciclos_2019!$E$3:$T$3,0)) -> 798277 | E32: =INDEX(Ciclos_2019!$E$5:$T$80,MATCH(Analise!$A$32,Ciclos_2019!$B$5:$B$80,0),MATCH(Analise!E31,Ciclos_2019!$E$3:$T$3,0)) -> 395124 | F32: =INDEX(Ciclos_2019!$E$5:$T$80,MATCH(Analise!$A$32,Ciclos_2019!$B$5:$B$80,0),MATCH(Analise!F31,Ciclos_2019!$E$3:$T$3,0)) -> 0 | G32: =INDEX(Ciclos_2019!$E$5:$T$80,MATCH(Analise!$A$32,Ciclos_2019!$B$5:$B$80,0),MATCH(Analise!G31,Ciclos_2019!$E$3:$T$3,0)) -> 0 | H32: =INDEX(Ciclos_2019!$U$5:$U$80,MATCH(Analise!A32,Ciclos_2019!$B$5:$B$80,0),MATCH(Analise!$H$38,Ciclos_2019!$U$3,0)) -> 4º C I C L O | I32: =Ciclos_2019!U2 -> 4º C I C L O | J32: =COUNT(C4:BB4) -> 35 | L32: =INDEX(Ciclos_2019!$C$5:$C$80,MATCH(Analise!$A$32,Ciclos_2019!$B$5:$B$80,0),MATCH(Analise!L31,Ciclos_2019!$C$3:$T$3,0)) -> 1009934
A33: VISISTAS REALIZADAS | B33: =B32/SUMIF(Ciclos_2019!$B$5:$B$80,Analise!$A$32,Ciclos_2019!$C$5:$C$80)*100 -> 85.12902823 | C33: =C32/SUMIF(Ciclos_2019!$B$5:$B$80,Analise!$A$32,Ciclos_2019!$C$5:$C$80)*100 -> 86.69942788 | D33: =D32/SUMIF(Ciclos_2019!$B$5:$B$80,Analise!$A$32,Ciclos_2019!$C$5:$C$80)*100 -> 79.04249189 | E33: =E32/SUMIF(Ciclos_2019!$B$5:$B$80,Analise!$A$32,Ciclos_2019!$C$5:$C$80)*100 -> 39.12374472 | F33: =F32/SUMIF(Ciclos_2019!$B$5:$B$80,Analise!$A$32,Ciclos_2019!$C$5:$C$80)*100 -> 0 | G33: =G32/SUMIF(Ciclos_2019!$B$5:$B$80,Analise!$A$32,Ciclos_2019!$C$5:$C$80)*100 -> 0
A34: META PACTUADA | B34: 80 | C34: 80 | D34: 80 | E34: 80 | F34: 80 | G34: 80
A35: META ABSOLUTA | B35: =$L$32 -> 1009934 | C35: =$L$32 -> 1009934 | D35: 1009934 | E35: 1009934 | F35: 1009934 | G35: 1009934
A37: 2018
A38: MUNICIPIO | B38: 1º C I C L O | C38: 2 º C I C L O | D38: 3º C I C L O | E38: 4º C I C L O | F38: 5º C I C L O | G38: 6º C I C L O | H38: CICLO TRABALHADO | I38: CICLO ATUAL | J38: SEMANA ATUAL | K38: LIRAa ATUAL | L38: Imóveis Programados
A39: =PainelArbovirose!$B$4 -> Sergipe | B39: =INDEX(Ciclos_2018!$E$5:$T$80,MATCH(Analise!$A$39,Ciclos_2018!$B$5:$B$80,0),MATCH(Analise!B38,Ciclos_2018!$E$3:$T$3,0)) -> 894960 | C39: =INDEX(Ciclos_2018!$E$5:$T$80,MATCH(Analise!$A$39,Ciclos_2018!$B$5:$B$80,0),MATCH(Analise!C38,Ciclos_2018!$E$3:$T$3,0)) -> 859272 | D39: =INDEX(Ciclos_2018!$E$5:$T$80,MATCH(Analise!$A$39,Ciclos_2018!$B$5:$B$80,0),MATCH(Analise!D38,Ciclos_2018!$E$3:$T$3,0)) -> 862636 | E39: =INDEX(Ciclos_2018!$E$5:$T$80,MATCH(Analise!$A$39,Ciclos_2018!$B$5:$B$80,0),MATCH(Analise!E38,Ciclos_2018!$E$3:$T$3,0)) -> 821971 | F39: =INDEX(Ciclos_2018!$E$5:$T$80,MATCH(Analise!$A$39,Ciclos_2018!$B$5:$B$80,0),MATCH(Analise!F38,Ciclos_2018!$E$3:$T$3,0)) -> 523831 | G39: =INDEX(Ciclos_2018!$E$5:$T$80,MATCH(Analise!$A$39,Ciclos_2018!$B$5:$B$80,0),MATCH(Analise!G38,Ciclos_2018!$E$3:$T$3,0)) -> 474550 | H39: =INDEX(Ciclos_2018!$U$5:$U$80,MATCH(Analise!A39,Ciclos_2018!$B$5:$B$80,0),MATCH(Analise!$H$38,Ciclos_2018!$U$3,0)) -> 6º C I C L O | I39: =Ciclos_2018!U2 -> 6º C I C L O | J39: =COUNT(C10:BB10) -> 52 | L39: =INDEX(Ciclos_2018!$C$5:$C$80,MATCH(Analise!$A$39,Ciclos_2018!$B$5:$B$80,0),MATCH(Analise!L38,Ciclos_2018!$C$3:$T$3,0)) -> 970976
A40: VISITAS REALIZADAS | B40: =B39/SUMIF(Ciclos_2018!$B$5:$B$80,Analise!$A$39,Ciclos_2018!$C$5:$C$80)*100 -> 92.17117622 | C40: =C39/SUMIF(Ciclos_2018!$B$5:$B$80,Analise!$A$39,Ciclos_2018!$C$5:$C$80)*100 -> 88.49569917 | D40: =D39/SUMIF(Ciclos_2018!$B$5:$B$80,Analise!$A$39,Ciclos_2018!$C$5:$C$80)*100 -> 88.8421547 | E40: =E39/SUMIF(Ciclos_2018!$B$5:$B$80,Analise!$A$39,Ciclos_2018!$C$5:$C$80)*100 -> 84.65410062 | F40: =F39/SUMIF(Ciclos_2018!$B$5:$B$80,Analise!$A$39,Ciclos_2018!$C$5:$C$80)*100 -> 53.94891326 | G40: =G39/SUMIF(Ciclos_2018!$B$5:$B$80,Analise!$A$39,Ciclos_2018!$C$5:$C$80)*100 -> 48.8735046
A41: META PACTUADA | B41: 80 | C41: 80 | D41: 80 | E41: 80 | F41: 80 | G41: 80
A42: META ABSOLUTA | B42: =$L$39 -> 970976 | C42: =$L$39 -> 970976 | D42: 970976 | E42: 970976 | F42: 970976 | G42: 970976
A45: 2017
A46: MUNICIPIO | B46: 1º C I C L O | C46: 2 º C I C L O | D46: 3º C I C L O | E46: 4º C I C L O | F46: 5º C I C L O | G46: 6º C I C L O | H46: CICLO TRABALHADO | I46: CICLO ATUAL | J46: SEMANA ATUAL | K46: LIRAa ATUAL | L46: Imóveis Programados
A47: =PainelArbovirose!$B$4 -> Sergipe | B47: =INDEX(Ciclos_2017!$E$5:$T$80,MATCH(Analise!$A$47,Ciclos_2017!$B$5:$B$80,0),MATCH(Analise!B46,Ciclos_2017!$E$3:$T$3,0)) -> 857454 | C47: =INDEX(Ciclos_2017!$E$5:$T$80,MATCH(Analise!$A$47,Ciclos_2017!$B$5:$B$80,0),MATCH(Analise!C46,Ciclos_2017!$E$3:$T$3,0)) -> 894742 | D47: =INDEX(Ciclos_2017!$E$5:$T$80,MATCH(Analise!$A$47,Ciclos_2017!$B$5:$B$80,0),MATCH(Analise!D46,Ciclos_2017!$E$3:$T$3,0)) -> 832824 | E47: =INDEX(Ciclos_2017!$E$5:$T$80,MATCH(Analise!$A$47,Ciclos_2017!$B$5:$B$80,0),MATCH(Analise!E46,Ciclos_2017!$E$3:$T$3,0)) -> 593247 | F47: =INDEX(Ciclos_2017!$E$5:$T$80,MATCH(Analise!$A$47,Ciclos_2017!$B$5:$B$80,0),MATCH(Analise!F46,Ciclos_2017!$E$3:$T$3,0)) -> 492748 | G47: =INDEX(Ciclos_2017!$E$5:$T$80,MATCH(Analise!$A$47,Ciclos_2017!$B$5:$B$80,0),MATCH(Analise!G46,Ciclos_2017!$E$3:$T$3,0)) -> 425898 | H47: =INDEX(Ciclos_2017!$U$5:$U$80,MATCH(Analise!A47,Ciclos_2017!$B$5:$B$80,0),MATCH(Analise!$H$46,Ciclos_2017!$U$3,0)) -> 6º C I C L O | I47: =Ciclos_2017!U2 -> 6º C I C L O | J47: =COUNT(C16:BB16) -> 52 | L47: =INDEX(Ciclos_2017!$C$5:$C$80,MATCH(Analise!$A$47,Ciclos_2017!$B$5:$B$80,0),MATCH(Analise!L46,Ciclos_2017!$C$3:$T$3,0)) -> 953570
A48: VISISTAS REALIZADAS | B48: =B47/SUMIF(Ciclos_2017!$B$5:$B$80,Analise!$A$47,Ciclos_2017!$C$5:$C$80)*100 -> 89.92040438 | C48: =C47/SUMIF(Ciclos_2017!$B$5:$B$80,Analise!$A$47,Ciclos_2017!$C$5:$C$80)*100 -> 93.83076229 | D48: =D47/SUMIF(Ciclos_2017!$B$5:$B$80,Analise!$A$47,Ciclos_2017!$C$5:$C$80)*100 -> 87.33747916 | E48: =E47/SUMIF(Ciclos_2017!$B$5:$B$80,Analise!$A$47,Ciclos_2017!$C$5:$C$80)*100 -> 62.21326174 | F48: =F47/SUMIF(Ciclos_2017!$B$5:$B$80,Analise!$A$47,Ciclos_2017!$C$5:$C$80)*100 -> 51.67402498 | G48: =G47/SUMIF(Ciclos_2017!$B$5:$B$80,Analise!$A$47,Ciclos_2017!$C$5:$C$80)*100 -> 44.66352759
A49: META PACTUADA | B49: 80 | C49: 80 | D49: 80 | E49: 80 | F49: 80 | G49: 80
A50: META ABSOLUTA | B50: =$L$47 -> 953570 | C50: =$L$47 -> 953570 | D50: 953570 | E50: 953570 | F50: 953570 | G50: 953570
A53: Analise | B53: =IF(PainelArbovirose!$B$5=Analise!$A$45,A45,IF(PainelArbovirose!$B$5=Analise!$A$37,A37,A30)) -> 2019
A54: MUNICIPIO | B54: 1º C I C L O | C54: 2 º C I C L O | D54: 3º C I C L O | E54: 4º C I C L O | F54: 5º C I C L O | G54: 6º C I C L O | H54: CICLO TRABALHADO | I54: CICLO ATUAL | J54: SEMANA ATUAL | K54: LIRAa ATUAL | L54: Imóveis Programados
A55: =PainelArbovirose!$B$4 -> Sergipe | B55: =IF(PainelArbovirose!$B$5=Analise!$A$45,B47,IF(PainelArbovirose!$B$5=Analise!$A$37,B39,B32)) -> 859747 | C55: =IF(PainelArbovirose!$B$5=Analise!$A$45,C47,IF(PainelArbovirose!$B$5=Analise!$A$37,C39,C32)) -> 875607 | D55: =IF(PainelArbovirose!$B$5=Analise!$A$45,D47,IF(PainelArbovirose!$B$5=Analise!$A$37,D39,D32)) -> 798277 | E55: =IF(PainelArbovirose!$B$5=Analise!$A$45,E47,IF(PainelArbovirose!$B$5=Analise!$A$37,E39,E32)) -> 395124 | F55: =IF(PainelArbovirose!$B$5=Analise!$A$45,F47,IF(PainelArbovirose!$B$5=Analise!$A$37,F39,F32)) -> 0 | G55: =IF(PainelArbovirose!$B$5=Analise!$A$45,G47,IF(PainelArbovirose!$B$5=Analise!$A$37,G39,G32)) -> 0 | H55: =IF(PainelArbovirose!$B$5=Analise!$A$45,H47,IF(PainelArbovirose!$B$5=Analise!$A$37,H39,H32)) -> 4º C I C L O | I55: =IF(PainelArbovirose!$B$5=Analise!$A$45,I47,IF(PainelArbovirose!$B$5=Analise!$A$37,I39,I32)) -> 4º C I C L O | J55: =IF(PainelArbovirose!$B$5=Analise!$A$45,J47,IF(PainelArbovirose!$B$5=Analise!$A$37,J39,J32)) -> 35 | K55: =IF(PainelArbovirose!$B$5=Analise!$A$45,K47,IF(PainelArbovirose!$B$5=Analise!$A$37,K39,K32)) -> 0 | L55: =IF(PainelArbovirose!$B$5=Analise!$A$45,L47,IF(PainelArbovirose!$B$5=Analise!$A$37,L39,L32)) -> 1009934
A56: Visitas Realizadas | B56: =IF(PainelArbovirose!$B$5=Analise!$A$45,B48,IF(PainelArbovirose!$B$5=Analise!$A$37,B40,B33)) -> 85.12902823 | C56: =IF(PainelArbovirose!$B$5=Analise!$A$45,C48,IF(PainelArbovirose!$B$5=Analise!$A$37,C40,C33)) -> 86.69942788 | D56: =IF(PainelArbovirose!$B$5=Analise!$A$45,D48,IF(PainelArbovirose!$B$5=Analise!$A$37,D40,D33)) -> 79.04249189 | E56: =IF(PainelArbovirose!$B$5=Analise!$A$45,E48,IF(PainelArbovirose!$B$5=Analise!$A$37,E40,E33)) -> 39.12374472 | F56: =IF(PainelArbovirose!$B$5=Analise!$A$45,F48,IF(PainelArbovirose!$B$5=Analise!$A$37,F40,F33)) -> 0 | G56: =IF(PainelArbovirose!$B$5=Analise!$A$45,G48,IF(PainelArbovirose!$B$5=Analise!$A$37,G40,G33)) -> 0
A57: Meta Pactuada | B57: =IF(PainelArbovirose!$B$5=Analise!$A$45,B49,IF(PainelArbovirose!$B$5=Analise!$A$37,B41,B34)) -> 80 | C57: =IF(PainelArbovirose!$B$5=Analise!$A$45,C49,IF(PainelArbovirose!$B$5=Analise!$A$37,C41,C34)) -> 80 | D57: =IF(PainelArbovirose!$B$5=Analise!$A$45,D49,IF(PainelArbovirose!$B$5=Analise!$A$37,D41,D34)) -> 80 | E57: =IF(PainelArbovirose!$B$5=Analise!$A$45,E49,IF(PainelArbovirose!$B$5=Analise!$A$37,E41,E34)) -> 80 | F57: =IF(PainelArbovirose!$B$5=Analise!$A$45,F49,IF(PainelArbovirose!$B$5=Analise!$A$37,F41,F34)) -> 80 | G57: =IF(PainelArbovirose!$B$5=Analise!$A$45,G49,IF(PainelArbovirose!$B$5=Analise!$A$37,G41,G34)) -> 80
A58: META ABSOLUTA | B58: =IF(PainelArbovirose!$B$5=Analise!$A$45,B50,IF(PainelArbovirose!$B$5=Analise!$A$37,B42,B35)) -> 1009934 | C58: =IF(PainelArbovirose!$B$5=Analise!$A$45,C50,IF(PainelArbovirose!$B$5=Analise!$A$37,C42,C35)) -> 1009934 | D58: =IF(PainelArbovirose!$B$5=Analise!$A$45,D50,IF(PainelArbovirose!$B$5=Analise!$A$37,D42,D35)) -> 1009934 | E58: =IF(PainelArbovirose!$B$5=Analise!$A$45,E50,IF(PainelArbovirose!$B$5=Analise!$A$37,E42,E35)) -> 1009934 | F58: =IF(PainelArbovirose!$B$5=Analise!$A$45,F50,IF(PainelArbovirose!$B$5=Analise!$A$37,F42,F35)) -> 1009934 | G58: =IF(PainelArbovirose!$B$5=Analise!$A$45,G50,IF(PainelArbovirose!$B$5=Analise!$A$37,G42,G35)) -> 1009934
A59: Titulo grafico Incidência | B59: =IF(PainelArbovirose!B5=A45,"Taxa de Incidência (Dengue, Chikungunya, Zika) por Semana Epidemiológica - Dados atualizados até a semana epidemiológica "&J47&"/2017 - "&A47,IF(PainelArbovirose!B5=A37,"Taxa de Incidência (Dengue, Chikungunya, Zika) por Semana Epidemiológica - Dados até a semana epidemiológica "&J39&"/2018 - "&A39,"Taxa de Incidência (Dengue, Chikungunya, Zika) por Semana Epidemiológica - Dados até a semana epidemiológica "&J32&"/2019 - "&A32)) -> Taxa de Incidência (Dengue, Chikungunya, Zika) por Semana Epidemiológica - Dados até a semana epidemiológica 35/2019 - Sergipe | H59: ="Nº de Casos Prováveis e Taxa de Incidência até a semana epidemiológica Nº "&J55 -> Nº de Casos Prováveis e Taxa de Incidência até a semana epidemiológica Nº 35
A60: Titulo grafico Visita | B60: =IF(PainelArbovirose!B5=A45,"Percentual de Visita Domiciliar por Ciclo Trabalhado em 2017 - Meta Conforme Indicador do SISPACTO - "&A55,IF(PainelArbovirose!B5=A37,"Percentual de Visita Domiciliar por Ciclo Trabalhado em 2018 - Meta Conforme Indicador do SISPACTO -"&A55,"Percentual de Visita Domiciliar por Ciclo Trabalhado em 2019 - Meta Conforme Indicador do SISPACTO -"&A55)) -> Percentual de Visita Domiciliar por Ciclo Trabalhado em 2019 - Meta Conforme Indicador do SISPACTO -Sergipe
A61: Legenda | B61: =IF(B53=A45,Ciclos_2017!$B$82,IF(B53=A37,Ciclos_2018!B82,Ciclos_2019!B82)) -> DVS/SisPNCD (Dados atualizados até 23/10/2019)
A62: ANO | D62: Taxa
A63: 2017 | D63: =SUM(BD10) -> 0.3972143797
A64: 2018
A65: 2019
A67: VISITA DOMICILIAR
A68: Indicador - 1 | B68: SES
A69: Classe | B69: Valor
A70: 10 | B70: 10
A71: 20 | B71: 10
A72: 30 | B72: 10
A73: 40 | B73: 10
A74: 50 | B74: 10
A75: 60 | B75: 10
A76: 70 | B76: 10
A77: 80 | B77: 10
A78: 90 | B78: 10
A79: 100 | B79: 10
A80: - | B80: =SUM(B70:B79) -> 100
A82: Ponteiro | B82: =B28 -> Sergipe | C82: Visita Domiciliar
A83: Posição | B83: =IF(INDEX(K91:K166,MATCH(B82,B91:B166,0),MATCH(C82,K90,0))>100,100,INDEX(K91:K166,MATCH(B82,B91:B166,0),MATCH(C82,K90,0))) -> 39.12374472
A84: Coord | B84: Eixo X | C84: Eixo Y
A85: Base | B85: 0 | C85: 0
A86: Ponta | B86: =-COS(PI()*B83/B80) -> -0.335077644 | C86: =SIN(PI()*B83/B80) -> 0.9421905181
A87: Titulo Grafico | B87: =H55 &" - "& B53 -> 4º C I C L O - 2019
A88: Legenda | B88: =IF(PainelArbovirose!B5=2017,Ciclos_2017!B82,Ciclos_2018!B82) -> DVS/SisPNCD (Dados atualizados até 22/01/2019)
A89: MAPA/VELOCÍMETRO
A90: id | B90: MUNICÍPIO | C90: COORD.X | D90: COORD.Y | E90: LIRAa | F90: Baixo Risco | G90: Médio Risco | H90: Alto Risco | I90: Sem Informação | J90: CICLO TRABALHADO | K90: Visita Domiciliar
A91: 1 | B91: AMPARO De SÃO FRANCISCO | C91: -36.91932 | D91: -10.1576 | E91: =IF(PainelArbovirose!$B$4="sergipe",SUMIF(Analise!$B$170:$B$244,Analise!B91,Analise!$C$170:$C$244),IF(B91=PainelArbovirose!$B$4,SUMIF(Analise!$B$170:$B$244,Analise!B91,Analise!$C$170:$C$244),"")) -> 0 | F91: =IF(E91="","",IF(E91<0,"",IF(E91<=1,0.5,""))) -> 0.5 | G91: =IF(AND(E91>1,E91<3.9),0.5,"") ->  | H91: =IF(E91="","",IF(E91>=3.9,0.5,"")) ->  | I91: =IF(E91="","",IF(E91<0,0.5,"")) ->  | J91: =IF(PainelArbovirose!$B$5=$A$45,INDEX(Ciclos_2017!$U$5:$U$79,MATCH(Analise!B91,Ciclos_2017!$B$5:$B$80,0),MATCH(Analise!$J$90,Ciclos_2017!$U$3,0)),IF(PainelArbovirose!$B$5=$A$37,INDEX(Ciclos_2018!$U$5:$U$79,MATCH(Analise!B91,Ciclos_2018!$B$5:$B$80,0),MATCH(Analise!$J$90,Ciclos_2018!$U$3,0)),INDEX(Ciclos_2019!$U$5:$U$79,MATCH(Analise!B91,Ciclos_2019!$B$5:$B$80,0),MATCH(Analise!$J$90,Ciclos_2019!$U$3,0)))) -> 4º C I C L O | K91: =IF(PainelArbovirose!$B$5=$A$45,SUMIF(Ciclos_2017!$B$5:$B$80,Analise!B91,Ciclos_2017!$W$5:$W$80),IF(PainelArbovirose!$B$5=$A$37,SUMIF(Ciclos_2018!$B$5:$B$80,Analise!B91,Ciclos_2018!$W$5:$W$80),SUMIF(Ciclos_2019!$B$5:$B$80,Analise!B91,Ciclos_2019!$W$5:$W$80))) -> 100.9819967
A92: 2 | B92: AQUIDABÃ | C92: -37.0523 | D92: -10.26809 | E92: =IF(PainelArbovirose!$B$4="sergipe",SUMIF(Analise!$B$170:$B$244,Analise!B92,Analise!$C$170:$C$244),IF(B92=PainelArbovirose!$B$4,SUMIF(Analise!$B$170:$B$244,Analise!B92,Analise!$C$170:$C$244),"")) -> 2.3 | F92: =IF(E92="","",IF(E92<0,"",IF(E92<=1,0.5,""))) ->  | G92: =IF(AND(E92>1,E92<3.9),0.5,"") -> 0.5 | H92: =IF(E92="","",IF(E92>=3.9,0.5,"")) ->  | I92: =IF(E92="","",IF(E92<0,0.5,"")) ->  | J92: =IF(PainelArbovirose!$B$5=$A$45,INDEX(Ciclos_2017!$U$5:$U$79,MATCH(Analise!B92,Ciclos_2017!$B$5:$B$80,0),MATCH(Analise!$J$90,Ciclos_2017!$U$3,0)),IF(PainelArbovirose!$B$5=$A$37,INDEX(Ciclos_2018!$U$5:$U$79,MATCH(Analise!B92,Ciclos_2018!$B$5:$B$80,0),MATCH(Analise!$J$90,Ciclos_2018!$U$3,0)),INDEX(Ciclos_2019!$U$5:$U$79,MATCH(Analise!B92,Ciclos_2019!$B$5:$B$80,0),MATCH(Analise!$J$90,Ciclos_2019!$U$3,0)))) -> 4º C I C L O | K92: =IF(PainelArbovirose!$B$5=$A$45,SUMIF(Ciclos_2017!$B$5:$B$80,Analise!B92,Ciclos_2017!$W$5:$W$80),IF(PainelArbovirose!$B$5=$A$37,SUMIF(Ciclos_2018!$B$5:$B$80,Analise!B92,Ciclos_2018!$W$5:$W$80),SUMIF(Ciclos_2019!$B$5:$B$80,Analise!B92,Ciclos_2019!$W$5:$W$80))) -> 82.50232009
A93: 3 | B93: ARACAJU | C93: -37.08555 | D93: -10.9863 | E93: =IF(PainelArbovirose!$B$4="sergipe",SUMIF(Analise!$B$170:$B$244,Analise!B93,Analise!$C$170:$C$244),IF(B93=PainelArbovirose!$B$4,SUMIF(Analise!$B$170:$B$244,Analise!B93,Analise!$C$170:$C$244),"")) -> 1.4 | G93: 0.5 | J93: =IF(PainelArbovirose!$B$5=$A$45,INDEX(Ciclos_2017!$U$5:$U$79,MATCH(Analise!B93,Ciclos_2017!$B$5:$B$80,0),MATCH(Analise!$J$90,Ciclos_2017!$U$3,0)),IF(PainelArbovirose!$B$5=$A$37,INDEX(Ciclos_2018!$U$5:$U$79,MATCH(Analise!B93,Ciclos_2018!$B$5:$B$80,0),MATCH(Analise!$J$90,Ciclos_2018!$U$3,0)),INDEX(Ciclos_2019!$U$5:$U$79,MATCH(Analise!B93,Ciclos_2019!$B$5:$B$80,0),MATCH(Analise!$J$90,Ciclos_2019!$U$3,0)))) -> 3º C I C L O | K93: =IF(PainelArbovirose!$B$5=$A$45,SUMIF(Ciclos_2017!$B$5:$B$80,Analise!B93,Ciclos_2017!$W$5:$W$80),IF(PainelArbovirose!$B$5=$A$37,SUMIF(Ciclos_2018!$B$5:$B$80,Analise!B93,Ciclos_2018!$W$5:$W$80),SUMIF(Ciclos_2019!$B$5:$B$80,Analise!B93,Ciclos_2019!$W$5:$W$80))) -> 85.47928888
A94: 4 | B94: ARAUÁ | C94: -37.60868 | D94: -11.26644 | E94: =IF(PainelArbovirose!$B$4="sergipe",SUMIF(Analise!$B$170:$B$244,Analise!B94,Analise!$C$170:$C$244),IF(B94=PainelArbovirose!$B$4,SUMIF(Analise!$B$170:$B$244,Analise!B94,Analise!$C$170:$C$244),"")) -> 0.8 | F94: 0.5 | J94: =IF(PainelArbovirose!$B$5=$A$45,INDEX(Ciclos_2017!$U$5:$U$79,MATCH(Analise!B94,Ciclos_2017!$B$5:$B$80,0),MATCH(Analise!$J$90,Ciclos_2017!$U$3,0)),IF(PainelArbovirose!$B$5=$A$37,INDEX(Ciclos_2018!$U$5:$U$79,MATCH(Analise!B94,Ciclos_2018!$B$5:$B$80,0),MATCH(Analise!$J$90,Ciclos_2018!$U$3,0)),INDEX(Ciclos_2019!$U$5:$U$79,MATCH(Analise!B94,Ciclos_2019!$B$5:$B$80,0),MATCH(Analise!$J$90,Ciclos_2019!$U$3,0)))) -> 4º C I C L O | K94: =IF(PainelArbovirose!$B$5=$A$45,SUMIF(Ciclos_2017!$B$5:$B$80,Analise!B94,Ciclos_2017!$W$5:$W$80),IF(PainelArbovirose!$B$5=$A$37,SUMIF(Ciclos_2018!$B$5:$B$80,Analise!B94,Ciclos_2018!$W$5:$W$80),SUMIF(Ciclos_2019!$B$5:$B$80,Analise!B94,Ciclos_2019!$W$5:$W$80))) -> 107.5436115
A95: 5 | B95: AREIA BRANCA | C95: -37.32707 | D95: -10.77656 | E95: =IF(PainelArbovirose!$B$4="sergipe",SUMIF(Analise!$B$170:$B$244,Analise!B95,Analise!$C$170:$C$244),IF(B95=PainelArbovirose!$B$4,SUMIF(Analise!$B$170:$B$244,Analise!B95,Analise!$C$170:$C$244),"")) -> 2.3 | G95: 0.5 | J95: =IF(PainelArbovirose!$B$5=$A$45,INDEX(Ciclos_2017!$U$5:$U$79,MATCH(Analise!B95,Ciclos_2017!$B$5:$B$80,0),MATCH(Analise!$J$90,Ciclos_2017!$U$3,0)),IF(PainelArbovirose!$B$5=$A$37,INDEX(Ciclos_2018!$U$5:$U$79,MATCH(Analise!B95,Ciclos_2018!$B$5:$B$80,0),MATCH(Analise!$J$90,Ciclos_2018!$U$3,0)),INDEX(Ciclos_2019!$U$5:$U$79,MATCH(Analise!B95,Ciclos_2019!$B$5:$B$80,0),MATCH(Analise!$J$90,Ciclos_2019!$U$3,0)))) -> 3º C I C L O | K95: =IF(PainelArbovirose!$B$5=$A$45,SUMIF(Ciclos_2017!$B$5:$B$80,Analise!B95,Ciclos_2017!$W$5:$W$80),IF(PainelArbovirose!$B$5=$A$37,SUMIF(Ciclos_2018!$B$5:$B$80,Analise!B95,Ciclos_2018!$W$5:$W$80),SUMIF(Ciclos_2019!$B$5:$B$80,Analise!B95,Ciclos_2019!$W$5:$W$80))) -> 81.67168028
A96: 6 | B96: BARRA DOS COQUEIROS | C96: -37.01026 | D96: -10.89976 | E96: =IF(PainelArbovirose!$B$4="sergipe",SUMIF(Analise!$B$170:$B$244,Analise!B96,Analise!$C$170:$C$244),IF(B96=PainelArbovirose!$B$4,SUMIF(Analise!$B$170:$B$244,Analise!B96,Analise!$C$170:$C$244),"")) -> 2.1 | G96: 0.5 | J96: =IF(PainelArbovirose!$B$5=$A$45,INDEX(Ciclos_2017!$U$5:$U$79,MATCH(Analise!B96,Ciclos_2017!$B$5:$B$80,0),MATCH(Analise!$J$90,Ciclos_2017!$U$3,0)),IF(PainelArbovirose!$B$5=$A$37,INDEX(Ciclos_2018!$U$5:$U$79,MATCH(Analise!B96,Ciclos_2018!$B$5:$B$80,0),MATCH(Analise!$J$90,Ciclos_2018!$U$3,0)),INDEX(Ciclos_2019!$U$5:$U$79,MATCH(Analise!B96,Ciclos_2019!$B$5:$B$80,0),MATCH(Analise!$J$90,Ciclos_2019!$U$3,0)))) -> 3º C I C L O | K96: =IF(PainelArbovirose!$B$5=$A$45,SUMIF(Ciclos_2017!$B$5:$B$80,Analise!B96,Ciclos_2017!$W$5:$W$80),IF(PainelArbovirose!$B$5=$A$37,SUMIF(Ciclos_2018!$B$5:$B$80,Analise!B96,Ciclos_2018!$W$5:$W$80),SUMIF(Ciclos_2019!$B$5:$B$80,Analise!B96,Ciclos_2019!$W$5:$W$80))) -> 113.1889055
A97: 7 | B97: BOQUIM | C97: -37.61455 | D97: -11.13835 | E97: =IF(PainelArbovirose!$B$4="sergipe",SUMIF(Analise!$B$170:$B$244,Analise!B97,Analise!$C$170:$C$244),IF(B97=PainelArbovirose!$B$4,SUMIF(Analise!$B$170:$B$244,Analise!B97,Analise!$C$170:$C$244),"")) -> 2.3 | G97: 0.5 | J97: =IF(PainelArbovirose!$B$5=$A$45,INDEX(Ciclos_2017!$U$5:$U$79,MATCH(Analise!B97,Ciclos_2017!$B$5:$B$80,0),MATCH(Analise!$J$90,Ciclos_2017!$U$3,0)),IF(PainelArbovirose!$B$5=$A$37,INDEX(Ciclos_2018!$U$5:$U$79,MATCH(Analise!B97,Ciclos_2018!$B$5:$B$80,0),MATCH(Analise!$J$90,Ciclos_2018!$U$3,0)),INDEX(Ciclos_2019!$U$5:$U$79,MATCH(Analise!B97,Ciclos_2019!$B$5:$B$80,0),MATCH(Analise!$J$90,Ciclos_2019!$U$3,0)))) -> 4º C I C L O | K97: =IF(PainelArbovirose!$B$5=$A$45,SUMIF(Ciclos_2017!$B$5:$B$80,Analise!B97,Ciclos_2017!$W$5:$W$80),IF(PainelArbovirose!$B$5=$A$37,SUMIF(Ciclos_2018!$B$5:$B$80,Analise!B97,Ciclos_2018!$W$5:$W$80),SUMIF(Ciclos_2019!$B$5:$B$80,Analise!B97,Ciclos_2019!$W$5:$W$80))) -> 84.82380918
A98: 8 | B98: BREJO GRANDE | C98: -36.49064 | D98: -10.4741 | E98: =IF(PainelArbovirose!$B$4="sergipe",SUMIF(Analise!$B$170:$B$244,Analise!B98,Analise!$C$170:$C$244),IF(B98=PainelArbovirose!$B$4,SUMIF(Analise!$B$170:$B$244,Analise!B98,Analise!$C$170:$C$244),"")) -> 0.8 | F98: 0.5 | J98: =IF(PainelArbovirose!$B$5=$A$45,INDEX(Ciclos_2017!$U$5:$U$79,MATCH(Analise!B98,Ciclos_2017!$B$5:$B$80,0),MATCH(Analise!$J$90,Ciclos_2017!$U$3,0)),IF(PainelArbovirose!$B$5=$A$37,INDEX(Ciclos_2018!$U$5:$U$79,MATCH(Analise!B98,Ciclos_2018!$B$5:$B$80,0),MATCH(Analise!$J$90,Ciclos_2018!$U$3,0)),INDEX(Ciclos_2019!$U$5:$U$79,MATCH(Analise!B98,Ciclos_2019!$B$5:$B$80,0),MATCH(Analise!$J$90,Ciclos_2019!$U$3,0)))) -> 4º C I C L O | K98: =IF(PainelArbovirose!$B$5=$A$45,SUMIF(Ciclos_2017!$B$5:$B$80,Analise!B98,Ciclos_2017!$W$5:$W$80),IF(PainelArbovirose!$B$5=$A$37,SUMIF(Ciclos_2018!$B$5:$B$80,Analise!B98,Ciclos_2018!$W$5:$W$80),SUMIF(Ciclos_2019!$B$5:$B$80,Analise!B98,Ciclos_2019!$W$5:$W$80))) -> 102.5330706
A99: 9 | B99: CAMPO DO BRITO | C99: -37.50503 | D99: -10.757 | E99: =IF(PainelArbovirose!$B$4="sergipe",SUMIF(Analise!$B$170:$B$244,Analise!B99,Analise!$C$170:$C$244),IF(B99=PainelArbovirose!$B$4,SUMIF(Analise!$B$170:$B$244,Analise!B99,Analise!$C$170:$C$244),"")) -> 1.2 | G99: 0.5 | J99: =IF(PainelArbovirose!$B$5=$A$45,INDEX(Ciclos_2017!$U$5:$U$79,MATCH(Analise!B99,Ciclos_2017!$B$5:$B$80,0),MATCH(Analise!$J$90,Ciclos_2017!$U$3,0)),IF(PainelArbovirose!$B$5=$A$37,INDEX(Ciclos_2018!$U$5:$U$79,MATCH(Analise!B99,Ciclos_2018!$B$5:$B$80,0),MATCH(Analise!$J$90,Ciclos_2018!$U$3,0)),INDEX(Ciclos_2019!$U$5:$U$79,MATCH(Analise!B99,Ciclos_2019!$B$5:$B$80,0),MATCH(Analise!$J$90,Ciclos_2019!$U$3,0)))) -> 4º C I C L O | K99: =IF(PainelArbovirose!$B$5=$A$45,SUMIF(Ciclos_2017!$B$5:$B$80,Analise!B99,Ciclos_2017!$W$5:$W$80),IF(PainelArbovirose!$B$5=$A$37,SUMIF(Ciclos_2018!$B$5:$B$80,Analise!B99,Ciclos_2018!$W$5:$W$80),SUMIF(Ciclos_2019!$B$5:$B$80,Analise!B99,Ciclos_2019!$W$5:$W$80))) -> 101.3905477
A100: 10 | B100: CANHOBA | C100: -36.98875 | D100: -10.14098 | E100: =IF(PainelArbovirose!$B$4="sergipe",SUMIF(Analise!$B$170:$B$244,Analise!B100,Analise!$C$170:$C$244),IF(B100=PainelArbovirose!$B$4,SUMIF(Analise!$B$170:$B$244,Analise!B100,Analise!$C$170:$C$244),"")) -> 0.3 | F100: 0.5 | J100: =IF(PainelArbovirose!$B$5=$A$45,INDEX(Ciclos_2017!$U$5:$U$79,MATCH(Analise!B100,Ciclos_2017!$B$5:$B$80,0),MATCH(Analise!$J$90,Ciclos_2017!$U$3,0)),IF(PainelArbovirose!$B$5=$A$37,INDEX(Ciclos_2018!$U$5:$U$79,MATCH(Analise!B100,Ciclos_2018!$B$5:$B$80,0),MATCH(Analise!$J$90,Ciclos_2018!$U$3,0)),INDEX(Ciclos_2019!$U$5:$U$79,MATCH(Analise!B100,Ciclos_2019!$B$5:$B$80,0),MATCH(Analise!$J$90,Ciclos_2019!$U$3,0)))) -> 3º C I C L O | K100: =IF(PainelArbovirose!$B$5=$A$45,SUMIF(Ciclos_2017!$B$5:$B$80,Analise!B100,Ciclos_2017!$W$5:$W$80),IF(PainelArbovirose!$B$5=$A$37,SUMIF(Ciclos_2018!$B$5:$B$80,Analise!B100,Ciclos_2018!$W$5:$W$80),SUMIF(Ciclos_2019!$B$5:$B$80,Analise!B100,Ciclos_2019!$W$5:$W$80))) -> 58.98174832
A101: 11 | B101: CANINDÉ DE SÃO FRANCISCO | C101: -37.91376 | D101: -9.68923 | E101: =IF(PainelArbovirose!$B$4="sergipe",SUMIF(Analise!$B$170:$B$244,Analise!B101,Analise!$C$170:$C$244),IF(B101=PainelArbovirose!$B$4,SUMIF(Analise!$B$170:$B$244,Analise!B101,Analise!$C$170:$C$244),"")) -> 2.1 | G101: 0.5 | J101: =IF(PainelArbovirose!$B$5=$A$45,INDEX(Ciclos_2017!$U$5:$U$79,MATCH(Analise!B101,Ciclos_2017!$B$5:$B$80,0),MATCH(Analise!$J$90,Ciclos_2017!$U$3,0)),IF(PainelArbovirose!$B$5=$A$37,INDEX(Ciclos_2018!$U$5:$U$79,MATCH(Analise!B101,Ciclos_2018!$B$5:$B$80,0),MATCH(Analise!$J$90,Ciclos_2018!$U$3,0)),INDEX(Ciclos_2019!$U$5:$U$79,MATCH(Analise!B101,Ciclos_2019!$B$5:$B$80,0),MATCH(Analise!$J$90,Ciclos_2019!$U$3,0)))) -> 2 º C I C L O | K101: =IF(PainelArbovirose!$B$5=$A$45,SUMIF(Ciclos_2017!$B$5:$B$80,Analise!B101,Ciclos_2017!$W$5:$W$80),IF(PainelArbovirose!$B$5=$A$37,SUMIF(Ciclos_2018!$B$5:$B$80,Analise!B101,Ciclos_2018!$W$5:$W$80),SUMIF(Ciclos_2019!$B$5:$B$80,Analise!B101,Ciclos_2019!$W$5:$W$80))) -> 82.47317322
A102: 12 | B102: CAPELA | C102: -37.03617 | D102: -10.49055 | E102: =IF(PainelArbovirose!$B$4="sergipe",SUMIF(Analise!$B$170:$B$244,Analise!B102,Analise!$C$170:$C$244),IF(B102=PainelArbovirose!$B$4,SUMIF(Analise!$B$170:$B$244,Analise!B102,Analise!$C$170:$C$244),"")) -> 4.4 | H102: 0.5 | J102: =IF(PainelArbovirose!$B$5=$A$45,INDEX(Ciclos_2017!$U$5:$U$79,MATCH(Analise!B102,Ciclos_2017!$B$5:$B$80,0),MATCH(Analise!$J$90,Ciclos_2017!$U$3,0)),IF(PainelArbovirose!$B$5=$A$37,INDEX(Ciclos_2018!$U$5:$U$79,MATCH(Analise!B102,Ciclos_2018!$B$5:$B$80,0),MATCH(Analise!$J$90,Ciclos_2018!$U$3,0)),INDEX(Ciclos_2019!$U$5:$U$79,MATCH(Analise!B102,Ciclos_2019!$B$5:$B$80,0),MATCH(Analise!$J$90,Ciclos_2019!$U$3,0)))) -> 4º C I C L O | K102: =IF(PainelArbovirose!$B$5=$A$45,SUMIF(Ciclos_2017!$B$5:$B$80,Analise!B102,Ciclos_2017!$W$5:$W$80),IF(PainelArbovirose!$B$5=$A$37,SUMIF(Ciclos_2018!$B$5:$B$80,Analise!B102,Ciclos_2018!$W$5:$W$80),SUMIF(Ciclos_2019!$B$5:$B$80,Analise!B102,Ciclos_2019!$W$5:$W$80))) -> 94.33949845
A103: 13 | B103: CARIRA | C103: -37.70011 | D103: -10.34192 | E103: =IF(PainelArbovirose!$B$4="sergipe",SUMIF(Analise!$B$170:$B$244,Analise!B103,Analise!$C$170:$C$244),IF(B103=PainelArbovirose!$B$4,SUMIF(Analise!$B$170:$B$244,Analise!B103,Analise!$C$170:$C$244),"")) -> 2.6 | G103: 0.5 | J103: =IF(PainelArbovirose!$B$5=$A$45,INDEX(Ciclos_2017!$U$5:$U$79,MATCH(Analise!B103,Ciclos_2017!$B$5:$B$80,0),MATCH(Analise!$J$90,Ciclos_2017!$U$3,0)),IF(PainelArbovirose!$B$5=$A$37,INDEX(Ciclos_2018!$U$5:$U$79,MATCH(Analise!B103,Ciclos_2018!$B$5:$B$80,0),MATCH(Analise!$J$90,Ciclos_2018!$U$3,0)),INDEX(Ciclos_2019!$U$5:$U$79,MATCH(Analise!B103,Ciclos_2019!$B$5:$B$80,0),MATCH(Analise!$J$90,Ciclos_2019!$U$3,0)))) -> 4º C I C L O | K103: =IF(PainelArbovirose!$B$5=$A$45,SUMIF(Ciclos_2017!$B$5:$B$80,Analise!B103,Ciclos_2017!$W$5:$W$80),IF(PainelArbovirose!$B$5=$A$37,SUMIF(Ciclos_2018!$B$5:$B$80,Analise!B103,Ciclos_2018!$W$5:$W$80),SUMIF(Ciclos_2019!$B$5:$B$80,Analise!B103,Ciclos_2019!$W$5:$W$80))) -> 90.871952
A104: 14 | B104: CARMÓPOLIS | C104: -36.97652 | D104: -10.65873 | E104: =IF(PainelArbovirose!$B$4="sergipe",SUMIF(Analise!$B$170:$B$244,Analise!B104,Analise!$C$170:$C$244),IF(B104=PainelArbovirose!$B$4,SUMIF(Analise!$B$170:$B$244,Analise!B104,Analise!$C$170:$C$244),"")) -> 1.3 | G104: 0.5 | J104: =IF(PainelArbovirose!$B$5=$A$45,INDEX(Ciclos_2017!$U$5:$U$79,MATCH(Analise!B104,Ciclos_2017!$B$5:$B$80,0),MATCH(Analise!$J$90,Ciclos_2017!$U$3,0)),IF(PainelArbovirose!$B$5=$A$37,INDEX(Ciclos_2018!$U$5:$U$79,MATCH(Analise!B104,Ciclos_2018!$B$5:$B$80,0),MATCH(Analise!$J$90,Ciclos_2018!$U$3,0)),INDEX(Ciclos_2019!$U$5:$U$79,MATCH(Analise!B104,Ciclos_2019!$B$5:$B$80,0),MATCH(Analise!$J$90,Ciclos_2019!$U$3,0)))) -> 3º C I C L O | K104: =IF(PainelArbovirose!$B$5=$A$45,SUMIF(Ciclos_2017!$B$5:$B$80,Analise!B104,Ciclos_2017!$W$5:$W$80),IF(PainelArbovirose!$B$5=$A$37,SUMIF(Ciclos_2018!$B$5:$B$80,Analise!B104,Ciclos_2018!$W$5:$W$80),SUMIF(Ciclos_2019!$B$5:$B$80,Analise!B104,Ciclos_2019!$W$5:$W$80))) -> 99.70845481
A105: 15 | B105: CEDRO DE SÃO JOÃO | C105: -36.90025 | D105: -10.26174 | E105: =IF(PainelArbovirose!$B$4="sergipe",SUMIF(Analise!$B$170:$B$244,Analise!B105,Analise!$C$170:$C$244),IF(B105=PainelArbovirose!$B$4,SUMIF(Analise!$B$170:$B$244,Analise!B105,Analise!$C$170:$C$244),"")) -> 2.9 | G105: 0.5 | J105: =IF(PainelArbovirose!$B$5=$A$45,INDEX(Ciclos_2017!$U$5:$U$79,MATCH(Analise!B105,Ciclos_2017!$B$5:$B$80,0),MATCH(Analise!$J$90,Ciclos_2017!$U$3,0)),IF(PainelArbovirose!$B$5=$A$37,INDEX(Ciclos_2018!$U$5:$U$79,MATCH(Analise!B105,Ciclos_2018!$B$5:$B$80,0),MATCH(Analise!$J$90,Ciclos_2018!$U$3,0)),INDEX(Ciclos_2019!$U$5:$U$79,MATCH(Analise!B105,Ciclos_2019!$B$5:$B$80,0),MATCH(Analise!$J$90,Ciclos_2019!$U$3,0)))) -> 4º C I C L O | K105: =IF(PainelArbovirose!$B$5=$A$45,SUMIF(Ciclos_2017!$B$5:$B$80,Analise!B105,Ciclos_2017!$W$5:$W$80),IF(PainelArbovirose!$B$5=$A$37,SUMIF(Ciclos_2018!$B$5:$B$80,Analise!B105,Ciclos_2018!$W$5:$W$80),SUMIF(Ciclos_2019!$B$5:$B$80,Analise!B105,Ciclos_2019!$W$5:$W$80))) -> 105.115251
A106: 16 | B106: CRISTINÁPOLIS | C106: -37.75877 | D106: -11.46836 | E106: =IF(PainelArbovirose!$B$4="sergipe",SUMIF(Analise!$B$170:$B$244,Analise!B106,Analise!$C$170:$C$244),IF(B106=PainelArbovirose!$B$4,SUMIF(Analise!$B$170:$B$244,Analise!B106,Analise!$C$170:$C$244),"")) -> 1.2 | G106: 0.5 | J106: =IF(PainelArbovirose!$B$5=$A$45,INDEX(Ciclos_2017!$U$5:$U$79,MATCH(Analise!B106,Ciclos_2017!$B$5:$B$80,0),MATCH(Analise!$J$90,Ciclos_2017!$U$3,0)),IF(PainelArbovirose!$B$5=$A$37,INDEX(Ciclos_2018!$U$5:$U$79,MATCH(Analise!B106,Ciclos_2018!$B$5:$B$80,0),MATCH(Analise!$J$90,Ciclos_2018!$U$3,0)),INDEX(Ciclos_2019!$U$5:$U$79,MATCH(Analise!B106,Ciclos_2019!$B$5:$B$80,0),MATCH(Analise!$J$90,Ciclos_2019!$U$3,0)))) -> 4º C I C L O | K106: =IF(PainelArbovirose!$B$5=$A$45,SUMIF(Ciclos_2017!$B$5:$B$80,Analise!B106,Ciclos_2017!$W$5:$W$80),IF(PainelArbovirose!$B$5=$A$37,SUMIF(Ciclos_2018!$B$5:$B$80,Analise!B106,Ciclos_2018!$W$5:$W$80),SUMIF(Ciclos_2019!$B$5:$B$80,Analise!B106,Ciclos_2019!$W$5:$W$80))) -> 82.39270386
A107: 17 | B107: CUMBE | C107: -37.1936 | D107: -10.3605 | E107: =IF(PainelArbovirose!$B$4="sergipe",SUMIF(Analise!$B$170:$B$244,Analise!B107,Analise!$C$170:$C$244),IF(B107=PainelArbovirose!$B$4,SUMIF(Analise!$B$170:$B$244,Analise!B107,Analise!$C$170:$C$244),"")) -> 1.8 | G107: 0.5 | J107: =IF(PainelArbovirose!$B$5=$A$45,INDEX(Ciclos_2017!$U$5:$U$79,MATCH(Analise!B107,Ciclos_2017!$B$5:$B$80,0),MATCH(Analise!$J$90,Ciclos_2017!$U$3,0)),IF(PainelArbovirose!$B$5=$A$37,INDEX(Ciclos_2018!$U$5:$U$79,MATCH(Analise!B107,Ciclos_2018!$B$5:$B$80,0),MATCH(Analise!$J$90,Ciclos_2018!$U$3,0)),INDEX(Ciclos_2019!$U$5:$U$79,MATCH(Analise!B107,Ciclos_2019!$B$5:$B$80,0),MATCH(Analise!$J$90,Ciclos_2019!$U$3,0)))) -> 2 º C I C L O | K107: =IF(PainelArbovirose!$B$5=$A$45,SUMIF(Ciclos_2017!$B$5:$B$80,Analise!B107,Ciclos_2017!$W$5:$W$80),IF(PainelArbovirose!$B$5=$A$37,SUMIF(Ciclos_2018!$B$5:$B$80,Analise!B107,Ciclos_2018!$W$5:$W$80),SUMIF(Ciclos_2019!$B$5:$B$80,Analise!B107,Ciclos_2019!$W$5:$W$80))) -> 98.51268591
A108: 18 | B108: DIVINA PASTORA | C108: -37.15742 | D108: -10.67829 | E108: =IF(PainelArbovirose!$B$4="sergipe",SUMIF(Analise!$B$170:$B$244,Analise!B108,Analise!$C$170:$C$244),IF(B108=PainelArbovirose!$B$4,SUMIF(Analise!$B$170:$B$244,Analise!B108,Analise!$C$170:$C$244),"")) -> 0.5 | F108: 0.5 | J108: =IF(PainelArbovirose!$B$5=$A$45,INDEX(Ciclos_2017!$U$5:$U$79,MATCH(Analise!B108,Ciclos_2017!$B$5:$B$80,0),MATCH(Analise!$J$90,Ciclos_2017!$U$3,0)),IF(PainelArbovirose!$B$5=$A$37,INDEX(Ciclos_2018!$U$5:$U$79,MATCH(Analise!B108,Ciclos_2018!$B$5:$B$80,0),MATCH(Analise!$J$90,Ciclos_2018!$U$3,0)),INDEX(Ciclos_2019!$U$5:$U$79,MATCH(Analise!B108,Ciclos_2019!$B$5:$B$80,0),MATCH(Analise!$J$90,Ciclos_2019!$U$3,0)))) -> 4º C I C L O | K108: =IF(PainelArbovirose!$B$5=$A$45,SUMIF(Ciclos_2017!$B$5:$B$80,Analise!B108,Ciclos_2017!$W$5:$W$80),IF(PainelArbovirose!$B$5=$A$37,SUMIF(Ciclos_2018!$B$5:$B$80,Analise!B108,Ciclos_2018!$W$5:$W$80),SUMIF(Ciclos_2019!$B$5:$B$80,Analise!B108,Ciclos_2019!$W$5:$W$80))) -> 98.99078543
A109: 19 | B109: ESTÂNCIA | C109: -37.41752 | D109: -11.23368 | E109: =IF(PainelArbovirose!$B$4="sergipe",SUMIF(Analise!$B$170:$B$244,Analise!B109,Analise!$C$170:$C$244),IF(B109=PainelArbovirose!$B$4,SUMIF(Analise!$B$170:$B$244,Analise!B109,Analise!$C$170:$C$244),"")) -> 0.9 | F109: 0.5 | J109: =IF(PainelArbovirose!$B$5=$A$45,INDEX(Ciclos_2017!$U$5:$U$79,MATCH(Analise!B109,Ciclos_2017!$B$5:$B$80,0),MATCH(Analise!$J$90,Ciclos_2017!$U$3,0)),IF(PainelArbovirose!$B$5=$A$37,INDEX(Ciclos_2018!$U$5:$U$79,MATCH(Analise!B109,Ciclos_2018!$B$5:$B$80,0),MATCH(Analise!$J$90,Ciclos_2018!$U$3,0)),INDEX(Ciclos_2019!$U$5:$U$79,MATCH(Analise!B109,Ciclos_2019!$B$5:$B$80,0),MATCH(Analise!$J$90,Ciclos_2019!$U$3,0)))) -> 4º C I C L O | K109: =IF(PainelArbovirose!$B$5=$A$45,SUMIF(Ciclos_2017!$B$5:$B$80,Analise!B109,Ciclos_2017!$W$5:$W$80),IF(PainelArbovirose!$B$5=$A$37,SUMIF(Ciclos_2018!$B$5:$B$80,Analise!B109,Ciclos_2018!$W$5:$W$80),SUMIF(Ciclos_2019!$B$5:$B$80,Analise!B109,Ciclos_2019!$W$5:$W$80))) -> 87.49852124
A110: 20 | B110: FEIRA NOVA | C110: -37.33147 | D110: -10.27347 | E110: =IF(PainelArbovirose!$B$4="sergipe",SUMIF(Analise!$B$170:$B$244,Analise!B110,Analise!$C$170:$C$244),IF(B110=PainelArbovirose!$B$4,SUMIF(Analise!$B$170:$B$244,Analise!B110,Analise!$C$170:$C$244),"")) -> 1.6 | G110: 0.5 | J110: =IF(PainelArbovirose!$B$5=$A$45,INDEX(Ciclos_2017!$U$5:$U$79,MATCH(Analise!B110,Ciclos_2017!$B$5:$B$80,0),MATCH(Analise!$J$90,Ciclos_2017!$U$3,0)),IF(PainelArbovirose!$B$5=$A$37,INDEX(Ciclos_2018!$U$5:$U$79,MATCH(Analise!B110,Ciclos_2018!$B$5:$B$80,0),MATCH(Analise!$J$90,Ciclos_2018!$U$3,0)),INDEX(Ciclos_2019!$U$5:$U$79,MATCH(Analise!B110,Ciclos_2019!$B$5:$B$80,0),MATCH(Analise!$J$90,Ciclos_2019!$U$3,0)))) -> 3º C I C L O | K110: =IF(PainelArbovirose!$B$5=$A$45,SUMIF(Ciclos_2017!$B$5:$B$80,Analise!B110,Ciclos_2017!$W$5:$W$80),IF(PainelArbovirose!$B$5=$A$37,SUMIF(Ciclos_2018!$B$5:$B$80,Analise!B110,Ciclos_2018!$W$5:$W$80),SUMIF(Ciclos_2019!$B$5:$B$80,Analise!B110,Ciclos_2019!$W$5:$W$80))) -> 84.50807636
A111: 21 | B111: FREI PAULO | C111: -37.58375 | D111: -10.53846 | E111: =IF(PainelArbovirose!$B$4="sergipe",SUMIF(Analise!$B$170:$B$244,Analise!B111,Analise!$C$170:$C$244),IF(B111=PainelArbovirose!$B$4,SUMIF(Analise!$B$170:$B$244,Analise!B111,Analise!$C$170:$C$244),"")) -> 1.1 | G111: 0.5 | J111: =IF(PainelArbovirose!$B$5=$A$45,INDEX(Ciclos_2017!$U$5:$U$79,MATCH(Analise!B111,Ciclos_2017!$B$5:$B$80,0),MATCH(Analise!$J$90,Ciclos_2017!$U$3,0)),IF(PainelArbovirose!$B$5=$A$37,INDEX(Ciclos_2018!$U$5:$U$79,MATCH(Analise!B111,Ciclos_2018!$B$5:$B$80,0),MATCH(Analise!$J$90,Ciclos_2018!$U$3,0)),INDEX(Ciclos_2019!$U$5:$U$79,MATCH(Analise!B111,Ciclos_2019!$B$5:$B$80,0),MATCH(Analise!$J$90,Ciclos_2019!$U$3,0)))) -> 4º C I C L O | K111: =IF(PainelArbovirose!$B$5=$A$45,SUMIF(Ciclos_2017!$B$5:$B$80,Analise!B111,Ciclos_2017!$W$5:$W$80),IF(PainelArbovirose!$B$5=$A$37,SUMIF(Ciclos_2018!$B$5:$B$80,Analise!B111,Ciclos_2018!$W$5:$W$80),SUMIF(Ciclos_2019!$B$5:$B$80,Analise!B111,Ciclos_2019!$W$5:$W$80))) -> 98.45243514
A112: 22 | B112: GARARU | C112: -37.14569 | D112: -9.97719 | E112: =IF(PainelArbovirose!$B$4="sergipe",SUMIF(Analise!$B$170:$B$244,Analise!B112,Analise!$C$170:$C$244),IF(B112=PainelArbovirose!$B$4,SUMIF(Analise!$B$170:$B$244,Analise!B112,Analise!$C$170:$C$244),"")) -> 2.6 | G112: 0.5 | J112: =IF(PainelArbovirose!$B$5=$A$45,INDEX(Ciclos_2017!$U$5:$U$79,MATCH(Analise!B112,Ciclos_2017!$B$5:$B$80,0),MATCH(Analise!$J$90,Ciclos_2017!$U$3,0)),IF(PainelArbovirose!$B$5=$A$37,INDEX(Ciclos_2018!$U$5:$U$79,MATCH(Analise!B112,Ciclos_2018!$B$5:$B$80,0),MATCH(Analise!$J$90,Ciclos_2018!$U$3,0)),INDEX(Ciclos_2019!$U$5:$U$79,MATCH(Analise!B112,Ciclos_2019!$B$5:$B$80,0),MATCH(Analise!$J$90,Ciclos_2019!$U$3,0)))) -> 4º C I C L O | K112: =IF(PainelArbovirose!$B$5=$A$45,SUMIF(Ciclos_2017!$B$5:$B$80,Analise!B112,Ciclos_2017!$W$5:$W$80),IF(PainelArbovirose!$B$5=$A$37,SUMIF(Ciclos_2018!$B$5:$B$80,Analise!B112,Ciclos_2018!$W$5:$W$80),SUMIF(Ciclos_2019!$B$5:$B$80,Analise!B112,Ciclos_2019!$W$5:$W$80))) -> 53.95759717
A113: 23 | B113: GENERAL MAYNARD | C113: -36.98728 | D113: -10.691 | E113: =IF(PainelArbovirose!$B$4="sergipe",SUMIF(Analise!$B$170:$B$244,Analise!B113,Analise!$C$170:$C$244),IF(B113=PainelArbovirose!$B$4,SUMIF(Analise!$B$170:$B$244,Analise!B113,Analise!$C$170:$C$244),"")) -> 0.6 | F113: 0.5 | J113: =IF(PainelArbovirose!$B$5=$A$45,INDEX(Ciclos_2017!$U$5:$U$79,MATCH(Analise!B113,Ciclos_2017!$B$5:$B$80,0),MATCH(Analise!$J$90,Ciclos_2017!$U$3,0)),IF(PainelArbovirose!$B$5=$A$37,INDEX(Ciclos_2018!$U$5:$U$79,MATCH(Analise!B113,Ciclos_2018!$B$5:$B$80,0),MATCH(Analise!$J$90,Ciclos_2018!$U$3,0)),INDEX(Ciclos_2019!$U$5:$U$79,MATCH(Analise!B113,Ciclos_2019!$B$5:$B$80,0),MATCH(Analise!$J$90,Ciclos_2019!$U$3,0)))) -> 4º C I C L O | K113: =IF(PainelArbovirose!$B$5=$A$45,SUMIF(Ciclos_2017!$B$5:$B$80,Analise!B113,Ciclos_2017!$W$5:$W$80),IF(PainelArbovirose!$B$5=$A$37,SUMIF(Ciclos_2018!$B$5:$B$80,Analise!B113,Ciclos_2018!$W$5:$W$80),SUMIF(Ciclos_2019!$B$5:$B$80,Analise!B113,Ciclos_2019!$W$5:$W$80))) -> 92.71986022
A114: 24 | B114: GRACHO CARDOSO | C114: -37.21902 | D114: -10.23338 | E114: =IF(PainelArbovirose!$B$4="sergipe",SUMIF(Analise!$B$170:$B$244,Analise!B114,Analise!$C$170:$C$244),IF(B114=PainelArbovirose!$B$4,SUMIF(Analise!$B$170:$B$244,Analise!B114,Analise!$C$170:$C$244),"")) -> 0.5 | F114: 0.5 | J114: =IF(PainelArbovirose!$B$5=$A$45,INDEX(Ciclos_2017!$U$5:$U$79,MATCH(Analise!B114,Ciclos_2017!$B$5:$B$80,0),MATCH(Analise!$J$90,Ciclos_2017!$U$3,0)),IF(PainelArbovirose!$B$5=$A$37,INDEX(Ciclos_2018!$U$5:$U$79,MATCH(Analise!B114,Ciclos_2018!$B$5:$B$80,0),MATCH(Analise!$J$90,Ciclos_2018!$U$3,0)),INDEX(Ciclos_2019!$U$5:$U$79,MATCH(Analise!B114,Ciclos_2019!$B$5:$B$80,0),MATCH(Analise!$J$90,Ciclos_2019!$U$3,0)))) -> 4º C I C L O | K114: =IF(PainelArbovirose!$B$5=$A$45,SUMIF(Ciclos_2017!$B$5:$B$80,Analise!B114,Ciclos_2017!$W$5:$W$80),IF(PainelArbovirose!$B$5=$A$37,SUMIF(Ciclos_2018!$B$5:$B$80,Analise!B114,Ciclos_2018!$W$5:$W$80),SUMIF(Ciclos_2019!$B$5:$B$80,Analise!B114,Ciclos_2019!$W$5:$W$80))) -> 71.40047207
A115: 25 | B115: ILHA DAS FLORES | C115: -36.5502 | D115: -10.4397 | E115: =IF(PainelArbovirose!$B$4="sergipe",SUMIF(Analise!$B$170:$B$244,Analise!B115,Analise!$C$170:$C$244),IF(B115=PainelArbovirose!$B$4,SUMIF(Analise!$B$170:$B$244,Analise!B115,Analise!$C$170:$C$244),"")) -> 3.5 | G115: 0.5 | J115: =IF(PainelArbovirose!$B$5=$A$45,INDEX(Ciclos_2017!$U$5:$U$79,MATCH(Analise!B115,Ciclos_2017!$B$5:$B$80,0),MATCH(Analise!$J$90,Ciclos_2017!$U$3,0)),IF(PainelArbovirose!$B$5=$A$37,INDEX(Ciclos_2018!$U$5:$U$79,MATCH(Analise!B115,Ciclos_2018!$B$5:$B$80,0),MATCH(Analise!$J$90,Ciclos_2018!$U$3,0)),INDEX(Ciclos_2019!$U$5:$U$79,MATCH(Analise!B115,Ciclos_2019!$B$5:$B$80,0),MATCH(Analise!$J$90,Ciclos_2019!$U$3,0)))) -> 4º C I C L O | K115: =IF(PainelArbovirose!$B$5=$A$45,SUMIF(Ciclos_2017!$B$5:$B$80,Analise!B115,Ciclos_2017!$W$5:$W$80),IF(PainelArbovirose!$B$5=$A$37,SUMIF(Ciclos_2018!$B$5:$B$80,Analise!B115,Ciclos_2018!$W$5:$W$80),SUMIF(Ciclos_2019!$B$5:$B$80,Analise!B115,Ciclos_2019!$W$5:$W$80))) -> 93.70257967
A116: 26 | B116: INDIAROBA | C116: -37.53974 | D116: -11.49769 | E116: =IF(PainelArbovirose!$B$4="sergipe",SUMIF(Analise!$B$170:$B$244,Analise!B116,Analise!$C$170:$C$244),IF(B116=PainelArbovirose!$B$4,SUMIF(Analise!$B$170:$B$244,Analise!B116,Analise!$C$170:$C$244),"")) -> 2.2 | G116: 0.5 | J116: =IF(PainelArbovirose!$B$5=$A$45,INDEX(Ciclos_2017!$U$5:$U$79,MATCH(Analise!B116,Ciclos_2017!$B$5:$B$80,0),MATCH(Analise!$J$90,Ciclos_2017!$U$3,0)),IF(PainelArbovirose!$B$5=$A$37,INDEX(Ciclos_2018!$U$5:$U$79,MATCH(Analise!B116,Ciclos_2018!$B$5:$B$80,0),MATCH(Analise!$J$90,Ciclos_2018!$U$3,0)),INDEX(Ciclos_2019!$U$5:$U$79,MATCH(Analise!B116,Ciclos_2019!$B$5:$B$80,0),MATCH(Analise!$J$90,Ciclos_2019!$U$3,0)))) -> 2 º C I C L O | K116: =IF(PainelArbovirose!$B$5=$A$45,SUMIF(Ciclos_2017!$B$5:$B$80,Analise!B116,Ciclos_2017!$W$5:$W$80),IF(PainelArbovirose!$B$5=$A$37,SUMIF(Ciclos_2018!$B$5:$B$80,Analise!B116,Ciclos_2018!$W$5:$W$80),SUMIF(Ciclos_2019!$B$5:$B$80,Analise!B116,Ciclos_2019!$W$5:$W$80))) -> 46.73931551
A117: 27 | B117: ITABAIANA | C117: -37.41458 | D117: -10.6998 | E117: =IF(PainelArbovirose!$B$4="sergipe",SUMIF(Analise!$B$170:$B$244,Analise!B117,Analise!$C$170:$C$244),IF(B117=PainelArbovirose!$B$4,SUMIF(Analise!$B$170:$B$244,Analise!B117,Analise!$C$170:$C$244),"")) -> 5.1 | H117: 0.5 | J117: =IF(PainelArbovirose!$B$5=$A$45,INDEX(Ciclos_2017!$U$5:$U$79,MATCH(Analise!B117,Ciclos_2017!$B$5:$B$80,0),MATCH(Analise!$J$90,Ciclos_2017!$U$3,0)),IF(PainelArbovirose!$B$5=$A$37,INDEX(Ciclos_2018!$U$5:$U$79,MATCH(Analise!B117,Ciclos_2018!$B$5:$B$80,0),MATCH(Analise!$J$90,Ciclos_2018!$U$3,0)),INDEX(Ciclos_2019!$U$5:$U$79,MATCH(Analise!B117,Ciclos_2019!$B$5:$B$80,0),MATCH(Analise!$J$90,Ciclos_2019!$U$3,0)))) -> 2 º C I C L O | K117: =IF(PainelArbovirose!$B$5=$A$45,SUMIF(Ciclos_2017!$B$5:$B$80,Analise!B117,Ciclos_2017!$W$5:$W$80),IF(PainelArbovirose!$B$5=$A$37,SUMIF(Ciclos_2018!$B$5:$B$80,Analise!B117,Ciclos_2018!$W$5:$W$80),SUMIF(Ciclos_2019!$B$5:$B$80,Analise!B117,Ciclos_2019!$W$5:$W$80))) -> 99.02857346
A118: 28 | B118: ITABAIANINHA | C118: -37.78615 | D118: -11.26497 | E118: =IF(PainelArbovirose!$B$4="sergipe",SUMIF(Analise!$B$170:$B$244,Analise!B118,Analise!$C$170:$C$244),IF(B118=PainelArbovirose!$B$4,SUMIF(Analise!$B$170:$B$244,Analise!B118,Analise!$C$170:$C$244),"")) -> 1.7 | G118: 0.5 | J118: =IF(PainelArbovirose!$B$5=$A$45,INDEX(Ciclos_2017!$U$5:$U$79,MATCH(Analise!B118,Ciclos_2017!$B$5:$B$80,0),MATCH(Analise!$J$90,Ciclos_2017!$U$3,0)),IF(PainelArbovirose!$B$5=$A$37,INDEX(Ciclos_2018!$U$5:$U$79,MATCH(Analise!B118,Ciclos_2018!$B$5:$B$80,0),MATCH(Analise!$J$90,Ciclos_2018!$U$3,0)),INDEX(Ciclos_2019!$U$5:$U$79,MATCH(Analise!B118,Ciclos_2019!$B$5:$B$80,0),MATCH(Analise!$J$90,Ciclos_2019!$U$3,0)))) -> 4º C I C L O | K118: =IF(PainelArbovirose!$B$5=$A$45,SUMIF(Ciclos_2017!$B$5:$B$80,Analise!B118,Ciclos_2017!$W$5:$W$80),IF(PainelArbovirose!$B$5=$A$37,SUMIF(Ciclos_2018!$B$5:$B$80,Analise!B118,Ciclos_2018!$W$5:$W$80),SUMIF(Ciclos_2019!$B$5:$B$80,Analise!B118,Ciclos_2019!$W$5:$W$80))) -> 93.95395161
A119: 29 | B119: ITABI | C119: -37.13884 | D119: -10.11311 | E119: =IF(PainelArbovirose!$B$4="sergipe",SUMIF(Analise!$B$170:$B$244,Analise!B119,Analise!$C$170:$C$244),IF(B119=PainelArbovirose!$B$4,SUMIF(Analise!$B$170:$B$244,Analise!B119,Analise!$C$170:$C$244),"")) -> 1.6 | G119: 0.5 | J119: =IF(PainelArbovirose!$B$5=$A$45,INDEX(Ciclos_2017!$U$5:$U$79,MATCH(Analise!B119,Ciclos_2017!$B$5:$B$80,0),MATCH(Analise!$J$90,Ciclos_2017!$U$3,0)),IF(PainelArbovirose!$B$5=$A$37,INDEX(Ciclos_2018!$U$5:$U$79,MATCH(Analise!B119,Ciclos_2018!$B$5:$B$80,0),MATCH(Analise!$J$90,Ciclos_2018!$U$3,0)),INDEX(Ciclos_2019!$U$5:$U$79,MATCH(Analise!B119,Ciclos_2019!$B$5:$B$80,0),MATCH(Analise!$J$90,Ciclos_2019!$U$3,0)))) -> 4º C I C L O | K119: =IF(PainelArbovirose!$B$5=$A$45,SUMIF(Ciclos_2017!$B$5:$B$80,Analise!B119,Ciclos_2017!$W$5:$W$80),IF(PainelArbovirose!$B$5=$A$37,SUMIF(Ciclos_2018!$B$5:$B$80,Analise!B119,Ciclos_2018!$W$5:$W$80),SUMIF(Ciclos_2019!$B$5:$B$80,Analise!B119,Ciclos_2019!$W$5:$W$80))) -> 97.13216958
A120: 30 | B120: ITAPORANGA D'AJUDA | C120: -37.34125 | D120: -11.01563 | E120: =IF(PainelArbovirose!$B$4="sergipe",SUMIF(Analise!$B$170:$B$244,Analise!B120,Analise!$C$170:$C$244),IF(B120=PainelArbovirose!$B$4,SUMIF(Analise!$B$170:$B$244,Analise!B120,Analise!$C$170:$C$244),"")) -> 0.5 | F120: 0.5 | J120: =IF(PainelArbovirose!$B$5=$A$45,INDEX(Ciclos_2017!$U$5:$U$79,MATCH(Analise!B120,Ciclos_2017!$B$5:$B$80,0),MATCH(Analise!$J$90,Ciclos_2017!$U$3,0)),IF(PainelArbovirose!$B$5=$A$37,INDEX(Ciclos_2018!$U$5:$U$79,MATCH(Analise!B120,Ciclos_2018!$B$5:$B$80,0),MATCH(Analise!$J$90,Ciclos_2018!$U$3,0)),INDEX(Ciclos_2019!$U$5:$U$79,MATCH(Analise!B120,Ciclos_2019!$B$5:$B$80,0),MATCH(Analise!$J$90,Ciclos_2019!$U$3,0)))) -> 3º C I C L O | K120: =IF(PainelArbovirose!$B$5=$A$45,SUMIF(Ciclos_2017!$B$5:$B$80,Analise!B120,Ciclos_2017!$W$5:$W$80),IF(PainelArbovirose!$B$5=$A$37,SUMIF(Ciclos_2018!$B$5:$B$80,Analise!B120,Ciclos_2018!$W$5:$W$80),SUMIF(Ciclos_2019!$B$5:$B$80,Analise!B120,Ciclos_2019!$W$5:$W$80))) -> 36.79059565
A121: 31 | B121: JAPARATUBA | C121: -36.92861 | D121: -10.58344 | E121: =IF(PainelArbovirose!$B$4="sergipe",SUMIF(Analise!$B$170:$B$244,Analise!B121,Analise!$C$170:$C$244),IF(B121=PainelArbovirose!$B$4,SUMIF(Analise!$B$170:$B$244,Analise!B121,Analise!$C$170:$C$244),"")) -> 0.7 | F121: 0.5 | J121: =IF(PainelArbovirose!$B$5=$A$45,INDEX(Ciclos_2017!$U$5:$U$79,MATCH(Analise!B121,Ciclos_2017!$B$5:$B$80,0),MATCH(Analise!$J$90,Ciclos_2017!$U$3,0)),IF(PainelArbovirose!$B$5=$A$37,INDEX(Ciclos_2018!$U$5:$U$79,MATCH(Analise!B121,Ciclos_2018!$B$5:$B$80,0),MATCH(Analise!$J$90,Ciclos_2018!$U$3,0)),INDEX(Ciclos_2019!$U$5:$U$79,MATCH(Analise!B121,Ciclos_2019!$B$5:$B$80,0),MATCH(Analise!$J$90,Ciclos_2019!$U$3,0)))) -> 4º C I C L O | K121: =IF(PainelArbovirose!$B$5=$A$45,SUMIF(Ciclos_2017!$B$5:$B$80,Analise!B121,Ciclos_2017!$W$5:$W$80),IF(PainelArbovirose!$B$5=$A$37,SUMIF(Ciclos_2018!$B$5:$B$80,Analise!B121,Ciclos_2018!$W$5:$W$80),SUMIF(Ciclos_2019!$B$5:$B$80,Analise!B121,Ciclos_2019!$W$5:$W$80))) -> 102.6131222
A122: 32 | B122: JAPOATÃ | C122: -36.78976 | D122: -10.37614 | E122: =IF(PainelArbovirose!$B$4="sergipe",SUMIF(Analise!$B$170:$B$244,Analise!B122,Analise!$C$170:$C$244),IF(B122=PainelArbovirose!$B$4,SUMIF(Analise!$B$170:$B$244,Analise!B122,Analise!$C$170:$C$244),"")) -> 5.1 | H122: 0.5 | J122: =IF(PainelArbovirose!$B$5=$A$45,INDEX(Ciclos_2017!$U$5:$U$79,MATCH(Analise!B122,Ciclos_2017!$B$5:$B$80,0),MATCH(Analise!$J$90,Ciclos_2017!$U$3,0)),IF(PainelArbovirose!$B$5=$A$37,INDEX(Ciclos_2018!$U$5:$U$79,MATCH(Analise!B122,Ciclos_2018!$B$5:$B$80,0),MATCH(Analise!$J$90,Ciclos_2018!$U$3,0)),INDEX(Ciclos_2019!$U$5:$U$79,MATCH(Analise!B122,Ciclos_2019!$B$5:$B$80,0),MATCH(Analise!$J$90,Ciclos_2019!$U$3,0)))) -> 4º C I C L O | K122: =IF(PainelArbovirose!$B$5=$A$45,SUMIF(Ciclos_2017!$B$5:$B$80,Analise!B122,Ciclos_2017!$W$5:$W$80),IF(PainelArbovirose!$B$5=$A$37,SUMIF(Ciclos_2018!$B$5:$B$80,Analise!B122,Ciclos_2018!$W$5:$W$80),SUMIF(Ciclos_2019!$B$5:$B$80,Analise!B122,Ciclos_2019!$W$5:$W$80))) -> 61.80402527
A123: 33 | B123: LAGARTO | C123: -37.65024 | D123: -10.90807 | E123: =IF(PainelArbovirose!$B$4="sergipe",SUMIF(Analise!$B$170:$B$244,Analise!B123,Analise!$C$170:$C$244),IF(B123=PainelArbovirose!$B$4,SUMIF(Analise!$B$170:$B$244,Analise!B123,Analise!$C$170:$C$244),"")) -> 1.7 | G123: 0.5 | J123: =IF(PainelArbovirose!$B$5=$A$45,INDEX(Ciclos_2017!$U$5:$U$79,MATCH(Analise!B123,Ciclos_2017!$B$5:$B$80,0),MATCH(Analise!$J$90,Ciclos_2017!$U$3,0)),IF(PainelArbovirose!$B$5=$A$37,INDEX(Ciclos_2018!$U$5:$U$79,MATCH(Analise!B123,Ciclos_2018!$B$5:$B$80,0),MATCH(Analise!$J$90,Ciclos_2018!$U$3,0)),INDEX(Ciclos_2019!$U$5:$U$79,MATCH(Analise!B123,Ciclos_2019!$B$5:$B$80,0),MATCH(Analise!$J$90,Ciclos_2019!$U$3,0)))) -> 4º C I C L O | K123: =IF(PainelArbovirose!$B$5=$A$45,SUMIF(Ciclos_2017!$B$5:$B$80,Analise!B123,Ciclos_2017!$W$5:$W$80),IF(PainelArbovirose!$B$5=$A$37,SUMIF(Ciclos_2018!$B$5:$B$80,Analise!B123,Ciclos_2018!$W$5:$W$80),SUMIF(Ciclos_2019!$B$5:$B$80,Analise!B123,Ciclos_2019!$W$5:$W$80))) -> 77.02796222
A124: 34 | B124: LARANJEIRAS | C124: -37.17893 | D124: -10.79856 | E124: =IF(PainelArbovirose!$B$4="sergipe",SUMIF(Analise!$B$170:$B$244,Analise!B124,Analise!$C$170:$C$244),IF(B124=PainelArbovirose!$B$4,SUMIF(Analise!$B$170:$B$244,Analise!B124,Analise!$C$170:$C$244),"")) -> 1.1 | G124: 0.5 | J124: =IF(PainelArbovirose!$B$5=$A$45,INDEX(Ciclos_2017!$U$5:$U$79,MATCH(Analise!B124,Ciclos_2017!$B$5:$B$80,0),MATCH(Analise!$J$90,Ciclos_2017!$U$3,0)),IF(PainelArbovirose!$B$5=$A$37,INDEX(Ciclos_2018!$U$5:$U$79,MATCH(Analise!B124,Ciclos_2018!$B$5:$B$80,0),MATCH(Analise!$J$90,Ciclos_2018!$U$3,0)),INDEX(Ciclos_2019!$U$5:$U$79,MATCH(Analise!B124,Ciclos_2019!$B$5:$B$80,0),MATCH(Analise!$J$90,Ciclos_2019!$U$3,0)))) -> 2 º C I C L O | K124: =IF(PainelArbovirose!$B$5=$A$45,SUMIF(Ciclos_2017!$B$5:$B$80,Analise!B124,Ciclos_2017!$W$5:$W$80),IF(PainelArbovirose!$B$5=$A$37,SUMIF(Ciclos_2018!$B$5:$B$80,Analise!B124,Ciclos_2018!$W$5:$W$80),SUMIF(Ciclos_2019!$B$5:$B$80,Analise!B124,Ciclos_2019!$W$5:$W$80))) -> 102.2521691
A125: 35 | B125: MACAMBIRA | C125: -37.57983 | D125: -10.65873 | E125: =IF(PainelArbovirose!$B$4="sergipe",SUMIF(Analise!$B$170:$B$244,Analise!B125,Analise!$C$170:$C$244),IF(B125=PainelArbovirose!$B$4,SUMIF(Analise!$B$170:$B$244,Analise!B125,Analise!$C$170:$C$244),"")) -> 0.8 | F125: 0.5 | J125: =IF(PainelArbovirose!$B$5=$A$45,INDEX(Ciclos_2017!$U$5:$U$79,MATCH(Analise!B125,Ciclos_2017!$B$5:$B$80,0),MATCH(Analise!$J$90,Ciclos_2017!$U$3,0)),IF(PainelArbovirose!$B$5=$A$37,INDEX(Ciclos_2018!$U$5:$U$79,MATCH(Analise!B125,Ciclos_2018!$B$5:$B$80,0),MATCH(Analise!$J$90,Ciclos_2018!$U$3,0)),INDEX(Ciclos_2019!$U$5:$U$79,MATCH(Analise!B125,Ciclos_2019!$B$5:$B$80,0),MATCH(Analise!$J$90,Ciclos_2019!$U$3,0)))) -> 3º C I C L O | K125: =IF(PainelArbovirose!$B$5=$A$45,SUMIF(Ciclos_2017!$B$5:$B$80,Analise!B125,Ciclos_2017!$W$5:$W$80),IF(PainelArbovirose!$B$5=$A$37,SUMIF(Ciclos_2018!$B$5:$B$80,Analise!B125,Ciclos_2018!$W$5:$W$80),SUMIF(Ciclos_2019!$B$5:$B$80,Analise!B125,Ciclos_2019!$W$5:$W$80))) -> 93.27548807
A126: 36 | B126: MALHADA DOS BOIS | C126: -36.93986 | D126: -10.33898 | E126: =IF(PainelArbovirose!$B$4="sergipe",SUMIF(Analise!$B$170:$B$244,Analise!B126,Analise!$C$170:$C$244),IF(B126=PainelArbovirose!$B$4,SUMIF(Analise!$B$170:$B$244,Analise!B126,Analise!$C$170:$C$244),"")) -> 3.9 | H126: 0.5 | J126: =IF(PainelArbovirose!$B$5=$A$45,INDEX(Ciclos_2017!$U$5:$U$79,MATCH(Analise!B126,Ciclos_2017!$B$5:$B$80,0),MATCH(Analise!$J$90,Ciclos_2017!$U$3,0)),IF(PainelArbovirose!$B$5=$A$37,INDEX(Ciclos_2018!$U$5:$U$79,MATCH(Analise!B126,Ciclos_2018!$B$5:$B$80,0),MATCH(Analise!$J$90,Ciclos_2018!$U$3,0)),INDEX(Ciclos_2019!$U$5:$U$79,MATCH(Analise!B126,Ciclos_2019!$B$5:$B$80,0),MATCH(Analise!$J$90,Ciclos_2019!$U$3,0)))) -> 4º C I C L O | K126: =IF(PainelArbovirose!$B$5=$A$45,SUMIF(Ciclos_2017!$B$5:$B$80,Analise!B126,Ciclos_2017!$W$5:$W$80),IF(PainelArbovirose!$B$5=$A$37,SUMIF(Ciclos_2018!$B$5:$B$80,Analise!B126,Ciclos_2018!$W$5:$W$80),SUMIF(Ciclos_2019!$B$5:$B$80,Analise!B126,Ciclos_2019!$W$5:$W$80))) -> 89.62777081
A127: 37 | B127: MALHADOR | C127: -37.29382 | D127: -10.66557 | E127: =IF(PainelArbovirose!$B$4="sergipe",SUMIF(Analise!$B$170:$B$244,Analise!B127,Analise!$C$170:$C$244),IF(B127=PainelArbovirose!$B$4,SUMIF(Analise!$B$170:$B$244,Analise!B127,Analise!$C$170:$C$244),"")) -> 3.2 | G127: 0.5 | J127: =IF(PainelArbovirose!$B$5=$A$45,INDEX(Ciclos_2017!$U$5:$U$79,MATCH(Analise!B127,Ciclos_2017!$B$5:$B$80,0),MATCH(Analise!$J$90,Ciclos_2017!$U$3,0)),IF(PainelArbovirose!$B$5=$A$37,INDEX(Ciclos_2018!$U$5:$U$79,MATCH(Analise!B127,Ciclos_2018!$B$5:$B$80,0),MATCH(Analise!$J$90,Ciclos_2018!$U$3,0)),INDEX(Ciclos_2019!$U$5:$U$79,MATCH(Analise!B127,Ciclos_2019!$B$5:$B$80,0),MATCH(Analise!$J$90,Ciclos_2019!$U$3,0)))) -> 2 º C I C L O | K127: =IF(PainelArbovirose!$B$5=$A$45,SUMIF(Ciclos_2017!$B$5:$B$80,Analise!B127,Ciclos_2017!$W$5:$W$80),IF(PainelArbovirose!$B$5=$A$37,SUMIF(Ciclos_2018!$B$5:$B$80,Analise!B127,Ciclos_2018!$W$5:$W$80),SUMIF(Ciclos_2019!$B$5:$B$80,Analise!B127,Ciclos_2019!$W$5:$W$80))) -> 99.40557065
A128: 38 | B128: MARUIM | C128: -37.10217 | D128: -10.73598 | E128: =IF(PainelArbovirose!$B$4="sergipe",SUMIF(Analise!$B$170:$B$244,Analise!B128,Analise!$C$170:$C$244),IF(B128=PainelArbovirose!$B$4,SUMIF(Analise!$B$170:$B$244,Analise!B128,Analise!$C$170:$C$244),"")) -> 2.9 | G128: 0.5 | J128: =IF(PainelArbovirose!$B$5=$A$45,INDEX(Ciclos_2017!$U$5:$U$79,MATCH(Analise!B128,Ciclos_2017!$B$5:$B$80,0),MATCH(Analise!$J$90,Ciclos_2017!$U$3,0)),IF(PainelArbovirose!$B$5=$A$37,INDEX(Ciclos_2018!$U$5:$U$79,MATCH(Analise!B128,Ciclos_2018!$B$5:$B$80,0),MATCH(Analise!$J$90,Ciclos_2018!$U$3,0)),INDEX(Ciclos_2019!$U$5:$U$79,MATCH(Analise!B128,Ciclos_2019!$B$5:$B$80,0),MATCH(Analise!$J$90,Ciclos_2019!$U$3,0)))) -> 4º C I C L O | K128: =IF(PainelArbovirose!$B$5=$A$45,SUMIF(Ciclos_2017!$B$5:$B$80,Analise!B128,Ciclos_2017!$W$5:$W$80),IF(PainelArbovirose!$B$5=$A$37,SUMIF(Ciclos_2018!$B$5:$B$80,Analise!B128,Ciclos_2018!$W$5:$W$80),SUMIF(Ciclos_2019!$B$5:$B$80,Analise!B128,Ciclos_2019!$W$5:$W$80))) -> 86.45690834
A129: 39 | B129: MOITA BONITA | C129: -37.34076 | D129: -10.59126 | E129: =IF(PainelArbovirose!$B$4="sergipe",SUMIF(Analise!$B$170:$B$244,Analise!B129,Analise!$C$170:$C$244),IF(B129=PainelArbovirose!$B$4,SUMIF(Analise!$B$170:$B$244,Analise!B129,Analise!$C$170:$C$244),"")) -> 2.4 | G129: 0.5 | J129: =IF(PainelArbovirose!$B$5=$A$45,INDEX(Ciclos_2017!$U$5:$U$79,MATCH(Analise!B129,Ciclos_2017!$B$5:$B$80,0),MATCH(Analise!$J$90,Ciclos_2017!$U$3,0)),IF(PainelArbovirose!$B$5=$A$37,INDEX(Ciclos_2018!$U$5:$U$79,MATCH(Analise!B129,Ciclos_2018!$B$5:$B$80,0),MATCH(Analise!$J$90,Ciclos_2018!$U$3,0)),INDEX(Ciclos_2019!$U$5:$U$79,MATCH(Analise!B129,Ciclos_2019!$B$5:$B$80,0),MATCH(Analise!$J$90,Ciclos_2019!$U$3,0)))) -> 4º C I C L O | K129: =IF(PainelArbovirose!$B$5=$A$45,SUMIF(Ciclos_2017!$B$5:$B$80,Analise!B129,Ciclos_2017!$W$5:$W$80),IF(PainelArbovirose!$B$5=$A$37,SUMIF(Ciclos_2018!$B$5:$B$80,Analise!B129,Ciclos_2018!$W$5:$W$80),SUMIF(Ciclos_2019!$B$5:$B$80,Analise!B129,Ciclos_2019!$W$5:$W$80))) -> 99.78034047
A130: 40 | B130: MONTE ALEGRE DE SERGIPE | C130: -37.55783 | D130: -10.0476 | E130: =IF(PainelArbovirose!$B$4="sergipe",SUMIF(Analise!$B$170:$B$244,Analise!B130,Analise!$C$170:$C$244),IF(B130=PainelArbovirose!$B$4,SUMIF(Analise!$B$170:$B$244,Analise!B130,Analise!$C$170:$C$244),"")) -> 2.7 | G130: 0.5 | J130: =IF(PainelArbovirose!$B$5=$A$45,INDEX(Ciclos_2017!$U$5:$U$79,MATCH(Analise!B130,Ciclos_2017!$B$5:$B$80,0),MATCH(Analise!$J$90,Ciclos_2017!$U$3,0)),IF(PainelArbovirose!$B$5=$A$37,INDEX(Ciclos_2018!$U$5:$U$79,MATCH(Analise!B130,Ciclos_2018!$B$5:$B$80,0),MATCH(Analise!$J$90,Ciclos_2018!$U$3,0)),INDEX(Ciclos_2019!$U$5:$U$79,MATCH(Analise!B130,Ciclos_2019!$B$5:$B$80,0),MATCH(Analise!$J$90,Ciclos_2019!$U$3,0)))) -> 4º C I C L O | K130: =IF(PainelArbovirose!$B$5=$A$45,SUMIF(Ciclos_2017!$B$5:$B$80,Analise!B130,Ciclos_2017!$W$5:$W$80),IF(PainelArbovirose!$B$5=$A$37,SUMIF(Ciclos_2018!$B$5:$B$80,Analise!B130,Ciclos_2018!$W$5:$W$80),SUMIF(Ciclos_2019!$B$5:$B$80,Analise!B130,Ciclos_2019!$W$5:$W$80))) -> 95.44360067
A131: 41 | B131: MURIBECA | C131: -36.95159 | D131: -10.40743 | E131: =IF(PainelArbovirose!$B$4="sergipe",SUMIF(Analise!$B$170:$B$244,Analise!B131,Analise!$C$170:$C$244),IF(B131=PainelArbovirose!$B$4,SUMIF(Analise!$B$170:$B$244,Analise!B131,Analise!$C$170:$C$244),"")) -> 0.6 | F131: 0.5 | J131: =IF(PainelArbovirose!$B$5=$A$45,INDEX(Ciclos_2017!$U$5:$U$79,MATCH(Analise!B131,Ciclos_2017!$B$5:$B$80,0),MATCH(Analise!$J$90,Ciclos_2017!$U$3,0)),IF(PainelArbovirose!$B$5=$A$37,INDEX(Ciclos_2018!$U$5:$U$79,MATCH(Analise!B131,Ciclos_2018!$B$5:$B$80,0),MATCH(Analise!$J$90,Ciclos_2018!$U$3,0)),INDEX(Ciclos_2019!$U$5:$U$79,MATCH(Analise!B131,Ciclos_2019!$B$5:$B$80,0),MATCH(Analise!$J$90,Ciclos_2019!$U$3,0)))) -> 4º C I C L O | K131: =IF(PainelArbovirose!$B$5=$A$45,SUMIF(Ciclos_2017!$B$5:$B$80,Analise!B131,Ciclos_2017!$W$5:$W$80),IF(PainelArbovirose!$B$5=$A$37,SUMIF(Ciclos_2018!$B$5:$B$80,Analise!B131,Ciclos_2018!$W$5:$W$80),SUMIF(Ciclos_2019!$B$5:$B$80,Analise!B131,Ciclos_2019!$W$5:$W$80))) -> 78.38643135
A132: 42 | B132: NEÓPOLIS | C132: -36.625 | D132: -10.35658 | E132: =IF(PainelArbovirose!$B$4="sergipe",SUMIF(Analise!$B$170:$B$244,Analise!B132,Analise!$C$170:$C$244),IF(B132=PainelArbovirose!$B$4,SUMIF(Analise!$B$170:$B$244,Analise!B132,Analise!$C$170:$C$244),"")) -> 1.4 | G132: 0.5 | J132: =IF(PainelArbovirose!$B$5=$A$45,INDEX(Ciclos_2017!$U$5:$U$79,MATCH(Analise!B132,Ciclos_2017!$B$5:$B$80,0),MATCH(Analise!$J$90,Ciclos_2017!$U$3,0)),IF(PainelArbovirose!$B$5=$A$37,INDEX(Ciclos_2018!$U$5:$U$79,MATCH(Analise!B132,Ciclos_2018!$B$5:$B$80,0),MATCH(Analise!$J$90,Ciclos_2018!$U$3,0)),INDEX(Ciclos_2019!$U$5:$U$79,MATCH(Analise!B132,Ciclos_2019!$B$5:$B$80,0),MATCH(Analise!$J$90,Ciclos_2019!$U$3,0)))) -> 4º C I C L O | K132: =IF(PainelArbovirose!$B$5=$A$45,SUMIF(Ciclos_2017!$B$5:$B$80,Analise!B132,Ciclos_2017!$W$5:$W$80),IF(PainelArbovirose!$B$5=$A$37,SUMIF(Ciclos_2018!$B$5:$B$80,Analise!B132,Ciclos_2018!$W$5:$W$80),SUMIF(Ciclos_2019!$B$5:$B$80,Analise!B132,Ciclos_2019!$W$5:$W$80))) -> 89.22341962
A133: 43 | B133: NOSSA SENHORA APARECIDA | C133: -37.48743 | D133: -10.39081 | E133: =IF(PainelArbovirose!$B$4="sergipe",SUMIF(Analise!$B$170:$B$244,Analise!B133,Analise!$C$170:$C$244),IF(B133=PainelArbovirose!$B$4,SUMIF(Analise!$B$170:$B$244,Analise!B133,Analise!$C$170:$C$244),"")) -> 1.4 | G133: 0.5 | J133: =IF(PainelArbovirose!$B$5=$A$45,INDEX(Ciclos_2017!$U$5:$U$79,MATCH(Analise!B133,Ciclos_2017!$B$5:$B$80,0),MATCH(Analise!$J$90,Ciclos_2017!$U$3,0)),IF(PainelArbovirose!$B$5=$A$37,INDEX(Ciclos_2018!$U$5:$U$79,MATCH(Analise!B133,Ciclos_2018!$B$5:$B$80,0),MATCH(Analise!$J$90,Ciclos_2018!$U$3,0)),INDEX(Ciclos_2019!$U$5:$U$79,MATCH(Analise!B133,Ciclos_2019!$B$5:$B$80,0),MATCH(Analise!$J$90,Ciclos_2019!$U$3,0)))) -> 4º C I C L O | K133: =IF(PainelArbovirose!$B$5=$A$45,SUMIF(Ciclos_2017!$B$5:$B$80,Analise!B133,Ciclos_2017!$W$5:$W$80),IF(PainelArbovirose!$B$5=$A$37,SUMIF(Ciclos_2018!$B$5:$B$80,Analise!B133,Ciclos_2018!$W$5:$W$80),SUMIF(Ciclos_2019!$B$5:$B$80,Analise!B133,Ciclos_2019!$W$5:$W$80))) -> 102.1881838
A134: 44 | B134: NOSSA SENHORA DA GLÓRIA | C134: -37.45223 | D134: -10.1972 | E134: =IF(PainelArbovirose!$B$4="sergipe",SUMIF(Analise!$B$170:$B$244,Analise!B134,Analise!$C$170:$C$244),IF(B134=PainelArbovirose!$B$4,SUMIF(Analise!$B$170:$B$244,Analise!B134,Analise!$C$170:$C$244),"")) -> 6.2 | H134: 0.5 | J134: =IF(PainelArbovirose!$B$5=$A$45,INDEX(Ciclos_2017!$U$5:$U$79,MATCH(Analise!B134,Ciclos_2017!$B$5:$B$80,0),MATCH(Analise!$J$90,Ciclos_2017!$U$3,0)),IF(PainelArbovirose!$B$5=$A$37,INDEX(Ciclos_2018!$U$5:$U$79,MATCH(Analise!B134,Ciclos_2018!$B$5:$B$80,0),MATCH(Analise!$J$90,Ciclos_2018!$U$3,0)),INDEX(Ciclos_2019!$U$5:$U$79,MATCH(Analise!B134,Ciclos_2019!$B$5:$B$80,0),MATCH(Analise!$J$90,Ciclos_2019!$U$3,0)))) -> 4º C I C L O | K134: =IF(PainelArbovirose!$B$5=$A$45,SUMIF(Ciclos_2017!$B$5:$B$80,Analise!B134,Ciclos_2017!$W$5:$W$80),IF(PainelArbovirose!$B$5=$A$37,SUMIF(Ciclos_2018!$B$5:$B$80,Analise!B134,Ciclos_2018!$W$5:$W$80),SUMIF(Ciclos_2019!$B$5:$B$80,Analise!B134,Ciclos_2019!$W$5:$W$80))) -> 87.37914968
A135: 45 | B135: NOSSA SENHORA DAS DORES | C135: -37.22147 | D135: -10.47881 | E135: =IF(PainelArbovirose!$B$4="sergipe",SUMIF(Analise!$B$170:$B$244,Analise!B135,Analise!$C$170:$C$244),IF(B135=PainelArbovirose!$B$4,SUMIF(Analise!$B$170:$B$244,Analise!B135,Analise!$C$170:$C$244),"")) -> 2 | G135: 0.5 | J135: =IF(PainelArbovirose!$B$5=$A$45,INDEX(Ciclos_2017!$U$5:$U$79,MATCH(Analise!B135,Ciclos_2017!$B$5:$B$80,0),MATCH(Analise!$J$90,Ciclos_2017!$U$3,0)),IF(PainelArbovirose!$B$5=$A$37,INDEX(Ciclos_2018!$U$5:$U$79,MATCH(Analise!B135,Ciclos_2018!$B$5:$B$80,0),MATCH(Analise!$J$90,Ciclos_2018!$U$3,0)),INDEX(Ciclos_2019!$U$5:$U$79,MATCH(Analise!B135,Ciclos_2019!$B$5:$B$80,0),MATCH(Analise!$J$90,Ciclos_2019!$U$3,0)))) -> 4º C I C L O | K135: =IF(PainelArbovirose!$B$5=$A$45,SUMIF(Ciclos_2017!$B$5:$B$80,Analise!B135,Ciclos_2017!$W$5:$W$80),IF(PainelArbovirose!$B$5=$A$37,SUMIF(Ciclos_2018!$B$5:$B$80,Analise!B135,Ciclos_2018!$W$5:$W$80),SUMIF(Ciclos_2019!$B$5:$B$80,Analise!B135,Ciclos_2019!$W$5:$W$80))) -> 76.15012107
A136: 46 | B136: NOSSA SENHORA DE LOURDES | C136: -37.03959 | D136: -10.08573 | E136: =IF(PainelArbovirose!$B$4="sergipe",SUMIF(Analise!$B$170:$B$244,Analise!B136,Analise!$C$170:$C$244),IF(B136=PainelArbovirose!$B$4,SUMIF(Analise!$B$170:$B$244,Analise!B136,Analise!$C$170:$C$244),"")) -> 2.3 | G136: 0.5 | J136: =IF(PainelArbovirose!$B$5=$A$45,INDEX(Ciclos_2017!$U$5:$U$79,MATCH(Analise!B136,Ciclos_2017!$B$5:$B$80,0),MATCH(Analise!$J$90,Ciclos_2017!$U$3,0)),IF(PainelArbovirose!$B$5=$A$37,INDEX(Ciclos_2018!$U$5:$U$79,MATCH(Analise!B136,Ciclos_2018!$B$5:$B$80,0),MATCH(Analise!$J$90,Ciclos_2018!$U$3,0)),INDEX(Ciclos_2019!$U$5:$U$79,MATCH(Analise!B136,Ciclos_2019!$B$5:$B$80,0),MATCH(Analise!$J$90,Ciclos_2019!$U$3,0)))) -> 3º C I C L O | K136: =IF(PainelArbovirose!$B$5=$A$45,SUMIF(Ciclos_2017!$B$5:$B$80,Analise!B136,Ciclos_2017!$W$5:$W$80),IF(PainelArbovirose!$B$5=$A$37,SUMIF(Ciclos_2018!$B$5:$B$80,Analise!B136,Ciclos_2018!$W$5:$W$80),SUMIF(Ciclos_2019!$B$5:$B$80,Analise!B136,Ciclos_2019!$W$5:$W$80))) -> 65.39387685
A137: 47 | B137: NOSSA SENHORA DO SOCORRO | C137: -37.15595 | D137: -10.86505 | E137: =IF(PainelArbovirose!$B$4="sergipe",SUMIF(Analise!$B$170:$B$244,Analise!B137,Analise!$C$170:$C$244),IF(B137=PainelArbovirose!$B$4,SUMIF(Analise!$B$170:$B$244,Analise!B137,Analise!$C$170:$C$244),"")) -> 0.6 | F137: 0.5 | J137: =IF(PainelArbovirose!$B$5=$A$45,INDEX(Ciclos_2017!$U$5:$U$79,MATCH(Analise!B137,Ciclos_2017!$B$5:$B$80,0),MATCH(Analise!$J$90,Ciclos_2017!$U$3,0)),IF(PainelArbovirose!$B$5=$A$37,INDEX(Ciclos_2018!$U$5:$U$79,MATCH(Analise!B137,Ciclos_2018!$B$5:$B$80,0),MATCH(Analise!$J$90,Ciclos_2018!$U$3,0)),INDEX(Ciclos_2019!$U$5:$U$79,MATCH(Analise!B137,Ciclos_2019!$B$5:$B$80,0),MATCH(Analise!$J$90,Ciclos_2019!$U$3,0)))) -> 3º C I C L O | K137: =IF(PainelArbovirose!$B$5=$A$45,SUMIF(Ciclos_2017!$B$5:$B$80,Analise!B137,Ciclos_2017!$W$5:$W$80),IF(PainelArbovirose!$B$5=$A$37,SUMIF(Ciclos_2018!$B$5:$B$80,Analise!B137,Ciclos_2018!$W$5:$W$80),SUMIF(Ciclos_2019!$B$5:$B$80,Analise!B137,Ciclos_2019!$W$5:$W$80))) -> 101.6317386
A138: 48 | B138: PACATUBA | C138: -36.67096 | D138: -10.48174 | E138: =IF(PainelArbovirose!$B$4="sergipe",SUMIF(Analise!$B$170:$B$244,Analise!B138,Analise!$C$170:$C$244),IF(B138=PainelArbovirose!$B$4,SUMIF(Analise!$B$170:$B$244,Analise!B138,Analise!$C$170:$C$244),"")) -> 0.6 | F138: 0.5 | J138: =IF(PainelArbovirose!$B$5=$A$45,INDEX(Ciclos_2017!$U$5:$U$79,MATCH(Analise!B138,Ciclos_2017!$B$5:$B$80,0),MATCH(Analise!$J$90,Ciclos_2017!$U$3,0)),IF(PainelArbovirose!$B$5=$A$37,INDEX(Ciclos_2018!$U$5:$U$79,MATCH(Analise!B138,Ciclos_2018!$B$5:$B$80,0),MATCH(Analise!$J$90,Ciclos_2018!$U$3,0)),INDEX(Ciclos_2019!$U$5:$U$79,MATCH(Analise!B138,Ciclos_2019!$B$5:$B$80,0),MATCH(Analise!$J$90,Ciclos_2019!$U$3,0)))) -> 4º C I C L O | K138: =IF(PainelArbovirose!$B$5=$A$45,SUMIF(Ciclos_2017!$B$5:$B$80,Analise!B138,Ciclos_2017!$W$5:$W$80),IF(PainelArbovirose!$B$5=$A$37,SUMIF(Ciclos_2018!$B$5:$B$80,Analise!B138,Ciclos_2018!$W$5:$W$80),SUMIF(Ciclos_2019!$B$5:$B$80,Analise!B138,Ciclos_2019!$W$5:$W$80))) -> 82.90988487
A139: 49 | B139: PEDRA MOLE | C139: -37.68593 | D139: -10.61082 | E139: =IF(PainelArbovirose!$B$4="sergipe",SUMIF(Analise!$B$170:$B$244,Analise!B139,Analise!$C$170:$C$244),IF(B139=PainelArbovirose!$B$4,SUMIF(Analise!$B$170:$B$244,Analise!B139,Analise!$C$170:$C$244),"")) -> 1 | F139: 0.5 | J139: =IF(PainelArbovirose!$B$5=$A$45,INDEX(Ciclos_2017!$U$5:$U$79,MATCH(Analise!B139,Ciclos_2017!$B$5:$B$80,0),MATCH(Analise!$J$90,Ciclos_2017!$U$3,0)),IF(PainelArbovirose!$B$5=$A$37,INDEX(Ciclos_2018!$U$5:$U$79,MATCH(Analise!B139,Ciclos_2018!$B$5:$B$80,0),MATCH(Analise!$J$90,Ciclos_2018!$U$3,0)),INDEX(Ciclos_2019!$U$5:$U$79,MATCH(Analise!B139,Ciclos_2019!$B$5:$B$80,0),MATCH(Analise!$J$90,Ciclos_2019!$U$3,0)))) -> 1º C I C L O | K139: =IF(PainelArbovirose!$B$5=$A$45,SUMIF(Ciclos_2017!$B$5:$B$80,Analise!B139,Ciclos_2017!$W$5:$W$80),IF(PainelArbovirose!$B$5=$A$37,SUMIF(Ciclos_2018!$B$5:$B$80,Analise!B139,Ciclos_2018!$W$5:$W$80),SUMIF(Ciclos_2019!$B$5:$B$80,Analise!B139,Ciclos_2019!$W$5:$W$80))) -> 85.15679443
A140: 50 | B140: PEDRINHAS | C140: -37.67224 | D140: -11.20337 | E140: =IF(PainelArbovirose!$B$4="sergipe",SUMIF(Analise!$B$170:$B$244,Analise!B140,Analise!$C$170:$C$244),IF(B140=PainelArbovirose!$B$4,SUMIF(Analise!$B$170:$B$244,Analise!B140,Analise!$C$170:$C$244),"")) -> 3.1 | G140: 0.5 | J140: =IF(PainelArbovirose!$B$5=$A$45,INDEX(Ciclos_2017!$U$5:$U$79,MATCH(Analise!B140,Ciclos_2017!$B$5:$B$80,0),MATCH(Analise!$J$90,Ciclos_2017!$U$3,0)),IF(PainelArbovirose!$B$5=$A$37,INDEX(Ciclos_2018!$U$5:$U$79,MATCH(Analise!B140,Ciclos_2018!$B$5:$B$80,0),MATCH(Analise!$J$90,Ciclos_2018!$U$3,0)),INDEX(Ciclos_2019!$U$5:$U$79,MATCH(Analise!B140,Ciclos_2019!$B$5:$B$80,0),MATCH(Analise!$J$90,Ciclos_2019!$U$3,0)))) -> 4º C I C L O | K140: =IF(PainelArbovirose!$B$5=$A$45,SUMIF(Ciclos_2017!$B$5:$B$80,Analise!B140,Ciclos_2017!$W$5:$W$80),IF(PainelArbovirose!$B$5=$A$37,SUMIF(Ciclos_2018!$B$5:$B$80,Analise!B140,Ciclos_2018!$W$5:$W$80),SUMIF(Ciclos_2019!$B$5:$B$80,Analise!B140,Ciclos_2019!$W$5:$W$80))) -> 100.8982036
A141: 51 | B141: PINHÃO | C141: -37.74851 | D141: -10.56584 | E141: =IF(PainelArbovirose!$B$4="sergipe",SUMIF(Analise!$B$170:$B$244,Analise!B141,Analise!$C$170:$C$244),IF(B141=PainelArbovirose!$B$4,SUMIF(Analise!$B$170:$B$244,Analise!B141,Analise!$C$170:$C$244),"")) -> 1.6 | G141: 0.5 | J141: =IF(PainelArbovirose!$B$5=$A$45,INDEX(Ciclos_2017!$U$5:$U$79,MATCH(Analise!B141,Ciclos_2017!$B$5:$B$80,0),MATCH(Analise!$J$90,Ciclos_2017!$U$3,0)),IF(PainelArbovirose!$B$5=$A$37,INDEX(Ciclos_2018!$U$5:$U$79,MATCH(Analise!B141,Ciclos_2018!$B$5:$B$80,0),MATCH(Analise!$J$90,Ciclos_2018!$U$3,0)),INDEX(Ciclos_2019!$U$5:$U$79,MATCH(Analise!B141,Ciclos_2019!$B$5:$B$80,0),MATCH(Analise!$J$90,Ciclos_2019!$U$3,0)))) -> 4º C I C L O | K141: =IF(PainelArbovirose!$B$5=$A$45,SUMIF(Ciclos_2017!$B$5:$B$80,Analise!B141,Ciclos_2017!$W$5:$W$80),IF(PainelArbovirose!$B$5=$A$37,SUMIF(Ciclos_2018!$B$5:$B$80,Analise!B141,Ciclos_2018!$W$5:$W$80),SUMIF(Ciclos_2019!$B$5:$B$80,Analise!B141,Ciclos_2019!$W$5:$W$80))) -> 72.95952223
A142: 52 | B142: PIRAMBU | C142: -36.83132 | D142: -10.69491 | E142: =IF(PainelArbovirose!$B$4="sergipe",SUMIF(Analise!$B$170:$B$244,Analise!B142,Analise!$C$170:$C$244),IF(B142=PainelArbovirose!$B$4,SUMIF(Analise!$B$170:$B$244,Analise!B142,Analise!$C$170:$C$244),"")) -> 0.7 | F142: 0.5 | J142: =IF(PainelArbovirose!$B$5=$A$45,INDEX(Ciclos_2017!$U$5:$U$79,MATCH(Analise!B142,Ciclos_2017!$B$5:$B$80,0),MATCH(Analise!$J$90,Ciclos_2017!$U$3,0)),IF(PainelArbovirose!$B$5=$A$37,INDEX(Ciclos_2018!$U$5:$U$79,MATCH(Analise!B142,Ciclos_2018!$B$5:$B$80,0),MATCH(Analise!$J$90,Ciclos_2018!$U$3,0)),INDEX(Ciclos_2019!$U$5:$U$79,MATCH(Analise!B142,Ciclos_2019!$B$5:$B$80,0),MATCH(Analise!$J$90,Ciclos_2019!$U$3,0)))) -> 4º C I C L O | K142: =IF(PainelArbovirose!$B$5=$A$45,SUMIF(Ciclos_2017!$B$5:$B$80,Analise!B142,Ciclos_2017!$W$5:$W$80),IF(PainelArbovirose!$B$5=$A$37,SUMIF(Ciclos_2018!$B$5:$B$80,Analise!B142,Ciclos_2018!$W$5:$W$80),SUMIF(Ciclos_2019!$B$5:$B$80,Analise!B142,Ciclos_2019!$W$5:$W$80))) -> 87.52808989
A143: 53 | B143: POÇO REDONDO | C143: -37.70059 | D143: -9.8227 | E143: =IF(PainelArbovirose!$B$4="sergipe",SUMIF(Analise!$B$170:$B$244,Analise!B143,Analise!$C$170:$C$244),IF(B143=PainelArbovirose!$B$4,SUMIF(Analise!$B$170:$B$244,Analise!B143,Analise!$C$170:$C$244),"")) -> 1.4 | G143: 0.5 | J143: =IF(PainelArbovirose!$B$5=$A$45,INDEX(Ciclos_2017!$U$5:$U$79,MATCH(Analise!B143,Ciclos_2017!$B$5:$B$80,0),MATCH(Analise!$J$90,Ciclos_2017!$U$3,0)),IF(PainelArbovirose!$B$5=$A$37,INDEX(Ciclos_2018!$U$5:$U$79,MATCH(Analise!B143,Ciclos_2018!$B$5:$B$80,0),MATCH(Analise!$J$90,Ciclos_2018!$U$3,0)),INDEX(Ciclos_2019!$U$5:$U$79,MATCH(Analise!B143,Ciclos_2019!$B$5:$B$80,0),MATCH(Analise!$J$90,Ciclos_2019!$U$3,0)))) -> 4º C I C L O | K143: =IF(PainelArbovirose!$B$5=$A$45,SUMIF(Ciclos_2017!$B$5:$B$80,Analise!B143,Ciclos_2017!$W$5:$W$80),IF(PainelArbovirose!$B$5=$A$37,SUMIF(Ciclos_2018!$B$5:$B$80,Analise!B143,Ciclos_2018!$W$5:$W$80),SUMIF(Ciclos_2019!$B$5:$B$80,Analise!B143,Ciclos_2019!$W$5:$W$80))) -> 88.89817912
A144: 54 | B144: POÇO VERDE | C144: -38.15821 | D144: -10.77509 | E144: =IF(PainelArbovirose!$B$4="sergipe",SUMIF(Analise!$B$170:$B$244,Analise!B144,Analise!$C$170:$C$244),IF(B144=PainelArbovirose!$B$4,SUMIF(Analise!$B$170:$B$244,Analise!B144,Analise!$C$170:$C$244),"")) -> 2 | G144: 0.5 | J144: =IF(PainelArbovirose!$B$5=$A$45,INDEX(Ciclos_2017!$U$5:$U$79,MATCH(Analise!B144,Ciclos_2017!$B$5:$B$80,0),MATCH(Analise!$J$90,Ciclos_2017!$U$3,0)),IF(PainelArbovirose!$B$5=$A$37,INDEX(Ciclos_2018!$U$5:$U$79,MATCH(Analise!B144,Ciclos_2018!$B$5:$B$80,0),MATCH(Analise!$J$90,Ciclos_2018!$U$3,0)),INDEX(Ciclos_2019!$U$5:$U$79,MATCH(Analise!B144,Ciclos_2019!$B$5:$B$80,0),MATCH(Analise!$J$90,Ciclos_2019!$U$3,0)))) -> 3º C I C L O | K144: =IF(PainelArbovirose!$B$5=$A$45,SUMIF(Ciclos_2017!$B$5:$B$80,Analise!B144,Ciclos_2017!$W$5:$W$80),IF(PainelArbovirose!$B$5=$A$37,SUMIF(Ciclos_2018!$B$5:$B$80,Analise!B144,Ciclos_2018!$W$5:$W$80),SUMIF(Ciclos_2019!$B$5:$B$80,Analise!B144,Ciclos_2019!$W$5:$W$80))) -> 98.61626391
A145: 55 | B145: PORTO DA FOLHA | C145: -37.38769 | D145: -9.91657 | E145: =IF(PainelArbovirose!$B$4="sergipe",SUMIF(Analise!$B$170:$B$244,Analise!B145,Analise!$C$170:$C$244),IF(B145=PainelArbovirose!$B$4,SUMIF(Analise!$B$170:$B$244,Analise!B145,Analise!$C$170:$C$244),"")) -> 5.1 | H145: 0.5 | J145: =IF(PainelArbovirose!$B$5=$A$45,INDEX(Ciclos_2017!$U$5:$U$79,MATCH(Analise!B145,Ciclos_2017!$B$5:$B$80,0),MATCH(Analise!$J$90,Ciclos_2017!$U$3,0)),IF(PainelArbovirose!$B$5=$A$37,INDEX(Ciclos_2018!$U$5:$U$79,MATCH(Analise!B145,Ciclos_2018!$B$5:$B$80,0),MATCH(Analise!$J$90,Ciclos_2018!$U$3,0)),INDEX(Ciclos_2019!$U$5:$U$79,MATCH(Analise!B145,Ciclos_2019!$B$5:$B$80,0),MATCH(Analise!$J$90,Ciclos_2019!$U$3,0)))) -> 4º C I C L O | K145: =IF(PainelArbovirose!$B$5=$A$45,SUMIF(Ciclos_2017!$B$5:$B$80,Analise!B145,Ciclos_2017!$W$5:$W$80),IF(PainelArbovirose!$B$5=$A$37,SUMIF(Ciclos_2018!$B$5:$B$80,Analise!B145,Ciclos_2018!$W$5:$W$80),SUMIF(Ciclos_2019!$B$5:$B$80,Analise!B145,Ciclos_2019!$W$5:$W$80))) -> 89.58704316
A146: 56 | B146: PROPRIÁ | C146: -36.83034 | D146: -10.23338 | E146: =IF(PainelArbovirose!$B$4="sergipe",SUMIF(Analise!$B$170:$B$244,Analise!B146,Analise!$C$170:$C$244),IF(B146=PainelArbovirose!$B$4,SUMIF(Analise!$B$170:$B$244,Analise!B146,Analise!$C$170:$C$244),"")) -> 1.2 | G146: 0.5 | J146: =IF(PainelArbovirose!$B$5=$A$45,INDEX(Ciclos_2017!$U$5:$U$79,MATCH(Analise!B146,Ciclos_2017!$B$5:$B$80,0),MATCH(Analise!$J$90,Ciclos_2017!$U$3,0)),IF(PainelArbovirose!$B$5=$A$37,INDEX(Ciclos_2018!$U$5:$U$79,MATCH(Analise!B146,Ciclos_2018!$B$5:$B$80,0),MATCH(Analise!$J$90,Ciclos_2018!$U$3,0)),INDEX(Ciclos_2019!$U$5:$U$79,MATCH(Analise!B146,Ciclos_2019!$B$5:$B$80,0),MATCH(Analise!$J$90,Ciclos_2019!$U$3,0)))) -> 4º C I C L O | K146: =IF(PainelArbovirose!$B$5=$A$45,SUMIF(Ciclos_2017!$B$5:$B$80,Analise!B146,Ciclos_2017!$W$5:$W$80),IF(PainelArbovirose!$B$5=$A$37,SUMIF(Ciclos_2018!$B$5:$B$80,Analise!B146,Ciclos_2018!$W$5:$W$80),SUMIF(Ciclos_2019!$B$5:$B$80,Analise!B146,Ciclos_2019!$W$5:$W$80))) -> 100.2460803
A147: 57 | B147: RIACHÃO DO DANTAS | C147: -37.74949 | D147: -11.07039 | E147: =IF(PainelArbovirose!$B$4="sergipe",SUMIF(Analise!$B$170:$B$244,Analise!B147,Analise!$C$170:$C$244),IF(B147=PainelArbovirose!$B$4,SUMIF(Analise!$B$170:$B$244,Analise!B147,Analise!$C$170:$C$244),"")) -> 9.1 | H147: 0.5 | J147: =IF(PainelArbovirose!$B$5=$A$45,INDEX(Ciclos_2017!$U$5:$U$79,MATCH(Analise!B147,Ciclos_2017!$B$5:$B$80,0),MATCH(Analise!$J$90,Ciclos_2017!$U$3,0)),IF(PainelArbovirose!$B$5=$A$37,INDEX(Ciclos_2018!$U$5:$U$79,MATCH(Analise!B147,Ciclos_2018!$B$5:$B$80,0),MATCH(Analise!$J$90,Ciclos_2018!$U$3,0)),INDEX(Ciclos_2019!$U$5:$U$79,MATCH(Analise!B147,Ciclos_2019!$B$5:$B$80,0),MATCH(Analise!$J$90,Ciclos_2019!$U$3,0)))) -> 4º C I C L O | K147: =IF(PainelArbovirose!$B$5=$A$45,SUMIF(Ciclos_2017!$B$5:$B$80,Analise!B147,Ciclos_2017!$W$5:$W$80),IF(PainelArbovirose!$B$5=$A$37,SUMIF(Ciclos_2018!$B$5:$B$80,Analise!B147,Ciclos_2018!$W$5:$W$80),SUMIF(Ciclos_2019!$B$5:$B$80,Analise!B147,Ciclos_2019!$W$5:$W$80))) -> 35.79992733
A148: 58 | B148: RIACHUELO | C148: -37.21951 | D148: -10.73402 | E148: =IF(PainelArbovirose!$B$4="sergipe",SUMIF(Analise!$B$170:$B$244,Analise!B148,Analise!$C$170:$C$244),IF(B148=PainelArbovirose!$B$4,SUMIF(Analise!$B$170:$B$244,Analise!B148,Analise!$C$170:$C$244),"")) -> 1.4 | G148: 0.5 | J148: =IF(PainelArbovirose!$B$5=$A$45,INDEX(Ciclos_2017!$U$5:$U$79,MATCH(Analise!B148,Ciclos_2017!$B$5:$B$80,0),MATCH(Analise!$J$90,Ciclos_2017!$U$3,0)),IF(PainelArbovirose!$B$5=$A$37,INDEX(Ciclos_2018!$U$5:$U$79,MATCH(Analise!B148,Ciclos_2018!$B$5:$B$80,0),MATCH(Analise!$J$90,Ciclos_2018!$U$3,0)),INDEX(Ciclos_2019!$U$5:$U$79,MATCH(Analise!B148,Ciclos_2019!$B$5:$B$80,0),MATCH(Analise!$J$90,Ciclos_2019!$U$3,0)))) -> 3º C I C L O | K148: =IF(PainelArbovirose!$B$5=$A$45,SUMIF(Ciclos_2017!$B$5:$B$80,Analise!B148,Ciclos_2017!$W$5:$W$80),IF(PainelArbovirose!$B$5=$A$37,SUMIF(Ciclos_2018!$B$5:$B$80,Analise!B148,Ciclos_2018!$W$5:$W$80),SUMIF(Ciclos_2019!$B$5:$B$80,Analise!B148,Ciclos_2019!$W$5:$W$80))) -> 75.72953737
A149: 59 | B149: RIBEIRÓPOLIS | C149: -37.42876 | D149: -10.52086 | E149: =IF(PainelArbovirose!$B$4="sergipe",SUMIF(Analise!$B$170:$B$244,Analise!B149,Analise!$C$170:$C$244),IF(B149=PainelArbovirose!$B$4,SUMIF(Analise!$B$170:$B$244,Analise!B149,Analise!$C$170:$C$244),"")) -> 4.7 | H149: 0.5 | J149: =IF(PainelArbovirose!$B$5=$A$45,INDEX(Ciclos_2017!$U$5:$U$79,MATCH(Analise!B149,Ciclos_2017!$B$5:$B$80,0),MATCH(Analise!$J$90,Ciclos_2017!$U$3,0)),IF(PainelArbovirose!$B$5=$A$37,INDEX(Ciclos_2018!$U$5:$U$79,MATCH(Analise!B149,Ciclos_2018!$B$5:$B$80,0),MATCH(Analise!$J$90,Ciclos_2018!$U$3,0)),INDEX(Ciclos_2019!$U$5:$U$79,MATCH(Analise!B149,Ciclos_2019!$B$5:$B$80,0),MATCH(Analise!$J$90,Ciclos_2019!$U$3,0)))) -> 4º C I C L O | K149: =IF(PainelArbovirose!$B$5=$A$45,SUMIF(Ciclos_2017!$B$5:$B$80,Analise!B149,Ciclos_2017!$W$5:$W$80),IF(PainelArbovirose!$B$5=$A$37,SUMIF(Ciclos_2018!$B$5:$B$80,Analise!B149,Ciclos_2018!$W$5:$W$80),SUMIF(Ciclos_2019!$B$5:$B$80,Analise!B149,Ciclos_2019!$W$5:$W$80))) -> 86.51481125
A150: 60 | B150: ROSÁRIO DO CATETE | C150: -37.04741 | D150: -10.67535 | E150: =IF(PainelArbovirose!$B$4="sergipe",SUMIF(Analise!$B$170:$B$244,Analise!B150,Analise!$C$170:$C$244),IF(B150=PainelArbovirose!$B$4,SUMIF(Analise!$B$170:$B$244,Analise!B150,Analise!$C$170:$C$244),"")) -> 1.9 | G150: 0.5 | J150: =IF(PainelArbovirose!$B$5=$A$45,INDEX(Ciclos_2017!$U$5:$U$79,MATCH(Analise!B150,Ciclos_2017!$B$5:$B$80,0),MATCH(Analise!$J$90,Ciclos_2017!$U$3,0)),IF(PainelArbovirose!$B$5=$A$37,INDEX(Ciclos_2018!$U$5:$U$79,MATCH(Analise!B150,Ciclos_2018!$B$5:$B$80,0),MATCH(Analise!$J$90,Ciclos_2018!$U$3,0)),INDEX(Ciclos_2019!$U$5:$U$79,MATCH(Analise!B150,Ciclos_2019!$B$5:$B$80,0),MATCH(Analise!$J$90,Ciclos_2019!$U$3,0)))) -> 4º C I C L O | K150: =IF(PainelArbovirose!$B$5=$A$45,SUMIF(Ciclos_2017!$B$5:$B$80,Analise!B150,Ciclos_2017!$W$5:$W$80),IF(PainelArbovirose!$B$5=$A$37,SUMIF(Ciclos_2018!$B$5:$B$80,Analise!B150,Ciclos_2018!$W$5:$W$80),SUMIF(Ciclos_2019!$B$5:$B$80,Analise!B150,Ciclos_2019!$W$5:$W$80))) -> 99.9825784
A151: 61 | B151: SALGADO | C151: -37.48352 | D151: -11.04594 | E151: =IF(PainelArbovirose!$B$4="sergipe",SUMIF(Analise!$B$170:$B$244,Analise!B151,Analise!$C$170:$C$244),IF(B151=PainelArbovirose!$B$4,SUMIF(Analise!$B$170:$B$244,Analise!B151,Analise!$C$170:$C$244),"")) -> 4.9 | H151: 0.5 | J151: =IF(PainelArbovirose!$B$5=$A$45,INDEX(Ciclos_2017!$U$5:$U$79,MATCH(Analise!B151,Ciclos_2017!$B$5:$B$80,0),MATCH(Analise!$J$90,Ciclos_2017!$U$3,0)),IF(PainelArbovirose!$B$5=$A$37,INDEX(Ciclos_2018!$U$5:$U$79,MATCH(Analise!B151,Ciclos_2018!$B$5:$B$80,0),MATCH(Analise!$J$90,Ciclos_2018!$U$3,0)),INDEX(Ciclos_2019!$U$5:$U$79,MATCH(Analise!B151,Ciclos_2019!$B$5:$B$80,0),MATCH(Analise!$J$90,Ciclos_2019!$U$3,0)))) -> 3º C I C L O | K151: =IF(PainelArbovirose!$B$5=$A$45,SUMIF(Ciclos_2017!$B$5:$B$80,Analise!B151,Ciclos_2017!$W$5:$W$80),IF(PainelArbovirose!$B$5=$A$37,SUMIF(Ciclos_2018!$B$5:$B$80,Analise!B151,Ciclos_2018!$W$5:$W$80),SUMIF(Ciclos_2019!$B$5:$B$80,Analise!B151,Ciclos_2019!$W$5:$W$80))) -> 42.46770743
A152: 62 | B152: SANTA LUZIA DO ITANHY | C152: -37.48352 | D152: -11.36276 | E152: =IF(PainelArbovirose!$B$4="sergipe",SUMIF(Analise!$B$170:$B$244,Analise!B152,Analise!$C$170:$C$244),IF(B152=PainelArbovirose!$B$4,SUMIF(Analise!$B$170:$B$244,Analise!B152,Analise!$C$170:$C$244),"")) -> 3.2 | G152: 0.5 | J152: =IF(PainelArbovirose!$B$5=$A$45,INDEX(Ciclos_2017!$U$5:$U$79,MATCH(Analise!B152,Ciclos_2017!$B$5:$B$80,0),MATCH(Analise!$J$90,Ciclos_2017!$U$3,0)),IF(PainelArbovirose!$B$5=$A$37,INDEX(Ciclos_2018!$U$5:$U$79,MATCH(Analise!B152,Ciclos_2018!$B$5:$B$80,0),MATCH(Analise!$J$90,Ciclos_2018!$U$3,0)),INDEX(Ciclos_2019!$U$5:$U$79,MATCH(Analise!B152,Ciclos_2019!$B$5:$B$80,0),MATCH(Analise!$J$90,Ciclos_2019!$U$3,0)))) -> 4º C I C L O | K152: =IF(PainelArbovirose!$B$5=$A$45,SUMIF(Ciclos_2017!$B$5:$B$80,Analise!B152,Ciclos_2017!$W$5:$W$80),IF(PainelArbovirose!$B$5=$A$37,SUMIF(Ciclos_2018!$B$5:$B$80,Analise!B152,Ciclos_2018!$W$5:$W$80),SUMIF(Ciclos_2019!$B$5:$B$80,Analise!B152,Ciclos_2019!$W$5:$W$80))) -> 89.02399481
A153: 63 | B153: SANTA ROSA DE LIMA | C153: -37.22293 | D153: -10.64211 | E153: =IF(PainelArbovirose!$B$4="sergipe",SUMIF(Analise!$B$170:$B$244,Analise!B153,Analise!$C$170:$C$244),IF(B153=PainelArbovirose!$B$4,SUMIF(Analise!$B$170:$B$244,Analise!B153,Analise!$C$170:$C$244),"")) -> 1.6 | G153: 0.5 | J153: =IF(PainelArbovirose!$B$5=$A$45,INDEX(Ciclos_2017!$U$5:$U$79,MATCH(Analise!B153,Ciclos_2017!$B$5:$B$80,0),MATCH(Analise!$J$90,Ciclos_2017!$U$3,0)),IF(PainelArbovirose!$B$5=$A$37,INDEX(Ciclos_2018!$U$5:$U$79,MATCH(Analise!B153,Ciclos_2018!$B$5:$B$80,0),MATCH(Analise!$J$90,Ciclos_2018!$U$3,0)),INDEX(Ciclos_2019!$U$5:$U$79,MATCH(Analise!B153,Ciclos_2019!$B$5:$B$80,0),MATCH(Analise!$J$90,Ciclos_2019!$U$3,0)))) -> 4º C I C L O | K153: =IF(PainelArbovirose!$B$5=$A$45,SUMIF(Ciclos_2017!$B$5:$B$80,Analise!B153,Ciclos_2017!$W$5:$W$80),IF(PainelArbovirose!$B$5=$A$37,SUMIF(Ciclos_2018!$B$5:$B$80,Analise!B153,Ciclos_2018!$W$5:$W$80),SUMIF(Ciclos_2019!$B$5:$B$80,Analise!B153,Ciclos_2019!$W$5:$W$80))) -> 80.21729289
A154: 64 | B154: SANTANA DO SÃO FRANCISCO | C154: -36.63087 | D154: -10.28227 | E154: =IF(PainelArbovirose!$B$4="sergipe",SUMIF(Analise!$B$170:$B$244,Analise!B154,Analise!$C$170:$C$244),IF(B154=PainelArbovirose!$B$4,SUMIF(Analise!$B$170:$B$244,Analise!B154,Analise!$C$170:$C$244),"")) -> 1.1 | G154: 0.5 | J154: =IF(PainelArbovirose!$B$5=$A$45,INDEX(Ciclos_2017!$U$5:$U$79,MATCH(Analise!B154,Ciclos_2017!$B$5:$B$80,0),MATCH(Analise!$J$90,Ciclos_2017!$U$3,0)),IF(PainelArbovirose!$B$5=$A$37,INDEX(Ciclos_2018!$U$5:$U$79,MATCH(Analise!B154,Ciclos_2018!$B$5:$B$80,0),MATCH(Analise!$J$90,Ciclos_2018!$U$3,0)),INDEX(Ciclos_2019!$U$5:$U$79,MATCH(Analise!B154,Ciclos_2019!$B$5:$B$80,0),MATCH(Analise!$J$90,Ciclos_2019!$U$3,0)))) -> 3º C I C L O | K154: =IF(PainelArbovirose!$B$5=$A$45,SUMIF(Ciclos_2017!$B$5:$B$80,Analise!B154,Ciclos_2017!$W$5:$W$80),IF(PainelArbovirose!$B$5=$A$37,SUMIF(Ciclos_2018!$B$5:$B$80,Analise!B154,Ciclos_2018!$W$5:$W$80),SUMIF(Ciclos_2019!$B$5:$B$80,Analise!B154,Ciclos_2019!$W$5:$W$80))) -> 89.37211199
A155: 65 | B155: SANTO AMARO DAS BROTAS | C155: -37.02199 | D155: -10.78585 | E155: =IF(PainelArbovirose!$B$4="sergipe",SUMIF(Analise!$B$170:$B$244,Analise!B155,Analise!$C$170:$C$244),IF(B155=PainelArbovirose!$B$4,SUMIF(Analise!$B$170:$B$244,Analise!B155,Analise!$C$170:$C$244),"")) -> 1.7 | G155: 0.5 | J155: =IF(PainelArbovirose!$B$5=$A$45,INDEX(Ciclos_2017!$U$5:$U$79,MATCH(Analise!B155,Ciclos_2017!$B$5:$B$80,0),MATCH(Analise!$J$90,Ciclos_2017!$U$3,0)),IF(PainelArbovirose!$B$5=$A$37,INDEX(Ciclos_2018!$U$5:$U$79,MATCH(Analise!B155,Ciclos_2018!$B$5:$B$80,0),MATCH(Analise!$J$90,Ciclos_2018!$U$3,0)),INDEX(Ciclos_2019!$U$5:$U$79,MATCH(Analise!B155,Ciclos_2019!$B$5:$B$80,0),MATCH(Analise!$J$90,Ciclos_2019!$U$3,0)))) -> 4º C I C L O | K155: =IF(PainelArbovirose!$B$5=$A$45,SUMIF(Ciclos_2017!$B$5:$B$80,Analise!B155,Ciclos_2017!$W$5:$W$80),IF(PainelArbovirose!$B$5=$A$37,SUMIF(Ciclos_2018!$B$5:$B$80,Analise!B155,Ciclos_2018!$W$5:$W$80),SUMIF(Ciclos_2019!$B$5:$B$80,Analise!B155,Ciclos_2019!$W$5:$W$80))) -> 88.18770227
A156: 66 | B156: SÃO CRISTÓVÃO | C156: -37.22147 | D156: -10.98727 | E156: =IF(PainelArbovirose!$B$4="sergipe",SUMIF(Analise!$B$170:$B$244,Analise!B156,Analise!$C$170:$C$244),IF(B156=PainelArbovirose!$B$4,SUMIF(Analise!$B$170:$B$244,Analise!B156,Analise!$C$170:$C$244),"")) -> 1.4 | F156: =IF(E156="","",IF(E156<0,"",IF(E156<=1,0.5,""))) ->  | G156: =IF(AND(E156>1,E156<3.9),0.5,"") -> 0.5 | H156: =IF(E156="","",IF(E156>=3.9,0.5,"")) ->  | I156: =IF(E156="","",IF(E156<0,0.5,"")) ->  | J156: =IF(PainelArbovirose!$B$5=$A$45,INDEX(Ciclos_2017!$U$5:$U$79,MATCH(Analise!B156,Ciclos_2017!$B$5:$B$80,0),MATCH(Analise!$J$90,Ciclos_2017!$U$3,0)),IF(PainelArbovirose!$B$5=$A$37,INDEX(Ciclos_2018!$U$5:$U$79,MATCH(Analise!B156,Ciclos_2018!$B$5:$B$80,0),MATCH(Analise!$J$90,Ciclos_2018!$U$3,0)),INDEX(Ciclos_2019!$U$5:$U$79,MATCH(Analise!B156,Ciclos_2019!$B$5:$B$80,0),MATCH(Analise!$J$90,Ciclos_2019!$U$3,0)))) -> 3º C I C L O | K156: =IF(PainelArbovirose!$B$5=$A$45,SUMIF(Ciclos_2017!$B$5:$B$80,Analise!B156,Ciclos_2017!$W$5:$W$80),IF(PainelArbovirose!$B$5=$A$37,SUMIF(Ciclos_2018!$B$5:$B$80,Analise!B156,Ciclos_2018!$W$5:$W$80),SUMIF(Ciclos_2019!$B$5:$B$80,Analise!B156,Ciclos_2019!$W$5:$W$80))) -> 99.96672767
A157: 67 | B157: SÃO DOMINGOS | C157: -37.57543 | D157: -10.79562 | E157: =IF(PainelArbovirose!$B$4="sergipe",SUMIF(Analise!$B$170:$B$244,Analise!B157,Analise!$C$170:$C$244),IF(B157=PainelArbovirose!$B$4,SUMIF(Analise!$B$170:$B$244,Analise!B157,Analise!$C$170:$C$244),"")) -> 0.8 | F157: 0.5 | J157: =IF(PainelArbovirose!$B$5=$A$45,INDEX(Ciclos_2017!$U$5:$U$79,MATCH(Analise!B157,Ciclos_2017!$B$5:$B$80,0),MATCH(Analise!$J$90,Ciclos_2017!$U$3,0)),IF(PainelArbovirose!$B$5=$A$37,INDEX(Ciclos_2018!$U$5:$U$79,MATCH(Analise!B157,Ciclos_2018!$B$5:$B$80,0),MATCH(Analise!$J$90,Ciclos_2018!$U$3,0)),INDEX(Ciclos_2019!$U$5:$U$79,MATCH(Analise!B157,Ciclos_2019!$B$5:$B$80,0),MATCH(Analise!$J$90,Ciclos_2019!$U$3,0)))) -> 2 º C I C L O | K157: =IF(PainelArbovirose!$B$5=$A$45,SUMIF(Ciclos_2017!$B$5:$B$80,Analise!B157,Ciclos_2017!$W$5:$W$80),IF(PainelArbovirose!$B$5=$A$37,SUMIF(Ciclos_2018!$B$5:$B$80,Analise!B157,Ciclos_2018!$W$5:$W$80),SUMIF(Ciclos_2019!$B$5:$B$80,Analise!B157,Ciclos_2019!$W$5:$W$80))) -> 97.24944673
A158: 68 | B158: SÃO FRANCISCO | C158: -36.87728 | D158: -10.34387 | E158: =IF(PainelArbovirose!$B$4="sergipe",SUMIF(Analise!$B$170:$B$244,Analise!B158,Analise!$C$170:$C$244),IF(B158=PainelArbovirose!$B$4,SUMIF(Analise!$B$170:$B$244,Analise!B158,Analise!$C$170:$C$244),"")) -> 1.7 | G158: 0.5 | J158: =IF(PainelArbovirose!$B$5=$A$45,INDEX(Ciclos_2017!$U$5:$U$79,MATCH(Analise!B158,Ciclos_2017!$B$5:$B$80,0),MATCH(Analise!$J$90,Ciclos_2017!$U$3,0)),IF(PainelArbovirose!$B$5=$A$37,INDEX(Ciclos_2018!$U$5:$U$79,MATCH(Analise!B158,Ciclos_2018!$B$5:$B$80,0),MATCH(Analise!$J$90,Ciclos_2018!$U$3,0)),INDEX(Ciclos_2019!$U$5:$U$79,MATCH(Analise!B158,Ciclos_2019!$B$5:$B$80,0),MATCH(Analise!$J$90,Ciclos_2019!$U$3,0)))) -> 4º C I C L O | K158: =IF(PainelArbovirose!$B$5=$A$45,SUMIF(Ciclos_2017!$B$5:$B$80,Analise!B158,Ciclos_2017!$W$5:$W$80),IF(PainelArbovirose!$B$5=$A$37,SUMIF(Ciclos_2018!$B$5:$B$80,Analise!B158,Ciclos_2018!$W$5:$W$80),SUMIF(Ciclos_2019!$B$5:$B$80,Analise!B158,Ciclos_2019!$W$5:$W$80))) -> 102.0623742
A159: 69 | B159: SÃO MIGUEL DO ALEIXO | C159: -37.37694 | D159: -10.39081 | E159: =IF(PainelArbovirose!$B$4="sergipe",SUMIF(Analise!$B$170:$B$244,Analise!B159,Analise!$C$170:$C$244),IF(B159=PainelArbovirose!$B$4,SUMIF(Analise!$B$170:$B$244,Analise!B159,Analise!$C$170:$C$244),"")) -> 1.7 | G159: 0.5 | J159: =IF(PainelArbovirose!$B$5=$A$45,INDEX(Ciclos_2017!$U$5:$U$79,MATCH(Analise!B159,Ciclos_2017!$B$5:$B$80,0),MATCH(Analise!$J$90,Ciclos_2017!$U$3,0)),IF(PainelArbovirose!$B$5=$A$37,INDEX(Ciclos_2018!$U$5:$U$79,MATCH(Analise!B159,Ciclos_2018!$B$5:$B$80,0),MATCH(Analise!$J$90,Ciclos_2018!$U$3,0)),INDEX(Ciclos_2019!$U$5:$U$79,MATCH(Analise!B159,Ciclos_2019!$B$5:$B$80,0),MATCH(Analise!$J$90,Ciclos_2019!$U$3,0)))) -> 3º C I C L O | K159: =IF(PainelArbovirose!$B$5=$A$45,SUMIF(Ciclos_2017!$B$5:$B$80,Analise!B159,Ciclos_2017!$W$5:$W$80),IF(PainelArbovirose!$B$5=$A$37,SUMIF(Ciclos_2018!$B$5:$B$80,Analise!B159,Ciclos_2018!$W$5:$W$80),SUMIF(Ciclos_2019!$B$5:$B$80,Analise!B159,Ciclos_2019!$W$5:$W$80))) -> 81.94541638
A160: 70 | B160: SIMÃO DIAS | C160: -37.8238 | D160: -10.7526 | E160: =IF(PainelArbovirose!$B$4="sergipe",SUMIF(Analise!$B$170:$B$244,Analise!B160,Analise!$C$170:$C$244),IF(B160=PainelArbovirose!$B$4,SUMIF(Analise!$B$170:$B$244,Analise!B160,Analise!$C$170:$C$244),"")) -> 7.4 | H160: 0.5 | J160: =IF(PainelArbovirose!$B$5=$A$45,INDEX(Ciclos_2017!$U$5:$U$79,MATCH(Analise!B160,Ciclos_2017!$B$5:$B$80,0),MATCH(Analise!$J$90,Ciclos_2017!$U$3,0)),IF(PainelArbovirose!$B$5=$A$37,INDEX(Ciclos_2018!$U$5:$U$79,MATCH(Analise!B160,Ciclos_2018!$B$5:$B$80,0),MATCH(Analise!$J$90,Ciclos_2018!$U$3,0)),INDEX(Ciclos_2019!$U$5:$U$79,MATCH(Analise!B160,Ciclos_2019!$B$5:$B$80,0),MATCH(Analise!$J$90,Ciclos_2019!$U$3,0)))) -> 4º C I C L O | K160: =IF(PainelArbovirose!$B$5=$A$45,SUMIF(Ciclos_2017!$B$5:$B$80,Analise!B160,Ciclos_2017!$W$5:$W$80),IF(PainelArbovirose!$B$5=$A$37,SUMIF(Ciclos_2018!$B$5:$B$80,Analise!B160,Ciclos_2018!$W$5:$W$80),SUMIF(Ciclos_2019!$B$5:$B$80,Analise!B160,Ciclos_2019!$W$5:$W$80))) -> 64.010059
A161: 71 | B161: SIRIRI | C161: -37.12271 | D161: -10.59517 | E161: =IF(PainelArbovirose!$B$4="sergipe",SUMIF(Analise!$B$170:$B$244,Analise!B161,Analise!$C$170:$C$244),IF(B161=PainelArbovirose!$B$4,SUMIF(Analise!$B$170:$B$244,Analise!B161,Analise!$C$170:$C$244),"")) -> 3.6 | G161: 0.5 | J161: =IF(PainelArbovirose!$B$5=$A$45,INDEX(Ciclos_2017!$U$5:$U$79,MATCH(Analise!B161,Ciclos_2017!$B$5:$B$80,0),MATCH(Analise!$J$90,Ciclos_2017!$U$3,0)),IF(PainelArbovirose!$B$5=$A$37,INDEX(Ciclos_2018!$U$5:$U$79,MATCH(Analise!B161,Ciclos_2018!$B$5:$B$80,0),MATCH(Analise!$J$90,Ciclos_2018!$U$3,0)),INDEX(Ciclos_2019!$U$5:$U$79,MATCH(Analise!B161,Ciclos_2019!$B$5:$B$80,0),MATCH(Analise!$J$90,Ciclos_2019!$U$3,0)))) -> 4º C I C L O | K161: =IF(PainelArbovirose!$B$5=$A$45,SUMIF(Ciclos_2017!$B$5:$B$80,Analise!B161,Ciclos_2017!$W$5:$W$80),IF(PainelArbovirose!$B$5=$A$37,SUMIF(Ciclos_2018!$B$5:$B$80,Analise!B161,Ciclos_2018!$W$5:$W$80),SUMIF(Ciclos_2019!$B$5:$B$80,Analise!B161,Ciclos_2019!$W$5:$W$80))) -> 100.4564225
A162: 72 | B162: TELHA | C162: -36.89341 | D162: -10.19427 | E162: =IF(PainelArbovirose!$B$4="sergipe",SUMIF(Analise!$B$170:$B$244,Analise!B162,Analise!$C$170:$C$244),IF(B162=PainelArbovirose!$B$4,SUMIF(Analise!$B$170:$B$244,Analise!B162,Analise!$C$170:$C$244),"")) -> 1.5 | G162: 0.5 | J162: =IF(PainelArbovirose!$B$5=$A$45,INDEX(Ciclos_2017!$U$5:$U$79,MATCH(Analise!B162,Ciclos_2017!$B$5:$B$80,0),MATCH(Analise!$J$90,Ciclos_2017!$U$3,0)),IF(PainelArbovirose!$B$5=$A$37,INDEX(Ciclos_2018!$U$5:$U$79,MATCH(Analise!B162,Ciclos_2018!$B$5:$B$80,0),MATCH(Analise!$J$90,Ciclos_2018!$U$3,0)),INDEX(Ciclos_2019!$U$5:$U$79,MATCH(Analise!B162,Ciclos_2019!$B$5:$B$80,0),MATCH(Analise!$J$90,Ciclos_2019!$U$3,0)))) -> 4º C I C L O | K162: =IF(PainelArbovirose!$B$5=$A$45,SUMIF(Ciclos_2017!$B$5:$B$80,Analise!B162,Ciclos_2017!$W$5:$W$80),IF(PainelArbovirose!$B$5=$A$37,SUMIF(Ciclos_2018!$B$5:$B$80,Analise!B162,Ciclos_2018!$W$5:$W$80),SUMIF(Ciclos_2019!$B$5:$B$80,Analise!B162,Ciclos_2019!$W$5:$W$80))) -> 104.3374926
